Workbook

Sheet AER only (hidden)
B1: Data in these columns used for data validation and database purposes.
B2: Date last modified: | C2: 2017-01-16 | D2: added (Albury and Victora) for AGN
C3: 2016-10-17 | D3: updated TransGrid's correct legal name, corrected TasNetworks (T) to June financial year
C4: 2017-02-01 | D4: inserted Power and Water, added NRs (dms_FeederCat_1 and dms_FeederCat_2)
C5: 2017-03-03 | D5: inserted AEMO as a business | AC5: FOR ELECTRICITY BUSINESSES ONLY
AC6: Feeder Types | AG6: TasNetworks (D) | AH6: MAIFI flag | AI6: Feeder Names
AC7: CBD | AD7: Urban | AE7: Short rural | AF7: long rural | AG7: EXTRA
B8: dms_TradingName_List | C8: dms_TradingNameFull_List | D8: dms_ABN_List | E8: dms_JurisdictionList | F8: dms_Sector_List | G8: dms_Segment_List | H8: dms_FormControl_List | I8: dms_RPT_List | J8: dms_RPTMonth_List | K8: dms_CRCPlength_List | L8: dms_FRCPlength_List | M8: dms_663_List | N8: dms_DeterminationRef_List | O8: dms_Addr1_List | P8: dms_Addr2_List | Q8: dms_Suburb_List | R8: dms_State_List | S8: dms_PostCode_List | T8: dms_PAddr1_List | U8: dms_PAddr2_List | V8: dms_PSuburb_List | W8: dms_PState_List | X8: dms_PPostCode_List | Y8: dms_ContactName1_List | Z8: dms_ContactPh1_List | AA8: dms_ContactEmail_List | AB8: Column1 | AC8: dms_CBD_flag | AD8: dms_Urban_flag | AE8: dms_ShortRural_flag | AF8: dms_LongRural_flag | AG8: dms_FeederType_5_flag | AH8: dms_MAIFI_flag_List | AI8: dms_FeederName_1 | AJ8: dms_FeederName_2 | AK8: dms_FeederName_3 | AL8: dms_FeederName_4 | AM8: dms_FeederName_5
B9: ActewAGL Distribution | C9: ActewAGL Distribution | D9: 76670568688 | E9: ACT | F9: Electricity | G9: Distribution | H9: Revenue cap | I9: Financial | J9: June | K9: 5 | L9: 5 | M9: 5 | N9: 2014-19 Distribution Determination | O9: 40 Bunda Street | Q9: CANBERRA | R9: ACT | S9: 2600 | T9: GPO BOX 366 | V9: CANBERRA | W9: ACT | X9: 2601 | Y9: Robert Walker | Z9: 02 6248 3847 | AA9: robert.walker@actewagle.com.au | AC9: NO | AD9: YES | AE9: YES | AF9: NO | AG9: NO | AI9: CBD | AJ9: Urban | AK9: Short rural | AL9: Long rural | AN9: ActewAGL Distribution
B10: ActewAGL Distribution (Tx Assets) | C10: ActewAGL Distribution (Tx Assets) | D10: 76670568688 | E10: ACT | F10: Electricity | G10: Distribution | H10: Revenue cap | I10: Financial | J10: June | K10: 5 | L10: 5 | M10: 5 | N10: distribution determination | O10: 40 Bunda Street | Q10: CANBERRA | R10: ACT | S10: 2600 | T10: GPO BOX 366 | V10: CANBERRA | W10: ACT | X10: 2601 | Y10: Robert Walker | Z10: 02 6248 3847 | AA10: robert.walker@actewagle.com.au | AI10: CBD | AJ10: Urban | AK10: Short rural | AL10: Long rural | AN10: ActewAGL Distribution (Tx Assets)
B11: ActewAGL Gas | C11: ActewAGL Gas | D11: 76670568688 | E11: ACT | F11: Gas | G11: Distribution | H11: Weighted average price cap | I11: Financial | J11: June | K11: 5 | L11: 5 | M11: x | O11: 40 Bunda Street | Q11: CANBERRA | R11: ACT | S11: 2600 | T11: GPO BOX 366 | V11: CANBERRA | W11: ACT | X11: 2601 | Y11: Philip Deamer | Z11: 02 6248 3438 | AA11: GasAAReview@actewagl.com.au | AN11: ActewAGL Gas
B12: AEMO | C12: Australian Energy Market Operator Ltd | D12: 94072010327 | E12: Vic | F12: Electricity | G12: Transmission | H12: - | I12: Financial | J12: March | K12: 5 | L12: 5 | M12: x | N12: - | O12: Level 22 | P12: 530 Collins Street | Q12: MELBOURNE | R12: VIC | S12: 3000 | T12: GPO Box 2008 | V12: MELBOURNE | W12: VIC | X12: 3001 | AI12: CBD | AJ12: Urban | AK12: Short rural | AL12: Long rural | AN12: AEMO
B13: AGN (Albury and Victoria) | C13: Australian Gas Networks Limited (reporting data for Albury and Victoria) | D13: 19078551685 | E13: Vic | F13: Gas | G13: Distribution | H13: Weighted average price cap | I13: Calendar | J13: December | K13: 5 | L13: 5 | M13: x | O13: Level 6 | P13: 400 King William Street | Q13: ADELAIDE | R13: SA | S13: 5000 | T13: PO Box 6468 | U13: Halifax Street | V13: ADELAIDE | W13: SA | X13: 5000 | Y13: Craig de Laine | Z13: 08 8418 1129 | AA13: craig.delaine@agn.com.au | AI13: CBD | AJ13: Urban | AK13: Short rural | AL13: Long rural | AN13: AGN (Albury)
B14: AGN (Albury) | C14: Australian Gas Networks Limited (reporting data for Albury) | D14: 19078551685 | E14: Vic | F14: Gas | G14: Distribution | H14: Weighted average price cap | I14: Calendar | J14: December | K14: 5 | L14: 5 | M14: x | O14: Level 6 | P14: 400 King William Street | Q14: ADELAIDE | R14: SA | S14: 5000 | T14: PO Box 6468 | U14: Halifax Street | V14: ADELAIDE | W14: SA | X14: 5000 | Y14: Craig de Laine | Z14: 08 8418 1129 | AA14: craig.delaine@agn.com.au | AI14: CBD | AJ14: Urban | AK14: Short rural | AL14: Long rural
B15: AGN (SA) | C15: Australian Gas Networks Limited (reporting data for SA) | D15: 19078551685 | E15: SA | F15: Gas | G15: Distribution | H15: Weighted average price cap | I15: Financial | J15: June | K15: 5 | L15: 5 | M15: 5 | N15: distribution determination | O15: Level 6 | P15: 400 King William Street | Q15: ADELAIDE | R15: SA | S15: 5000 | T15: PO Box 6468 | U15: Halifax Street | V15: ADELAIDE | W15: SA | X15: 5000 | Y15: Craig de Laine | Z15: 08 8418 1129 | AA15: craig.delaine@agn.com.au | AN15: AGN (SA)
B16: AGN (Victoria) | C16: Australian Gas Networks Limited (reporting data for Victoria) | D16: 19078551685 | E16: Vic | F16: Gas | G16: Distribution | H16: Weighted average price cap | I16: Calendar | J16: December | K16: 5 | L16: 5 | M16: x | AN16: AGN (Victoria)
B17: Amadeus | C17: APT Pipelines (NT) Pty Ltd | D17: 39009737393 | E17: NT | F17: Gas | G17: Transmission | H17: Weighted average price cap | I17: Financial | J17: June | K17: 5 | L17: 5 | M17: x | N17: n/a | O17: Level 19, HSBC Building | P17: 580 George Street | Q17: SYDNEY | R17: NSW | S17: 2000 | T17: Level 19, HSBC Building | U17: 580 George Street | V17: SYDNEY | W17: NSW | X17: 2000 | Y17: Alexandra Curran | Z17: 02 9275 0020 | AA17: alexandra.curran@apa.com.au | AN17: Amadeus
B18: APA GasNet | C18: APA GasNet Australia (Operations) Pty Ltd | D18: 065083009 | E18: Vic | F18: Gas | G18: Transmission | H18: Weighted average price cap | I18: Calendar | J18: December | K18: 5 | L18: 5 | M18: x | O18: Level 19, HSBC Building | P18: 580 George Street | Q18: SYDNEY | R18: NSW | S18: 2000 | T18: PO Box R41 | V18: ROYAL EXCHANGE | W18: NSW | X18: 1225 | Z18: 02 9693 0000 | AN18: APA GasNet
B19: Ausgrid | C19: Ausgrid | D19: 78508211731 | E19: NSW | F19: Electricity | G19: Distribution | H19: Revenue cap | I19: Financial | J19: June | K19: 5 | L19: 5 | M19: 5 | N19: 2014-19 Distribution Determination | O19: 570 George St | Q19: SYDNEY | R19: NSW | S19: 2000 | T19: GPO Box 4009 | V19: SYDNEY | W19: NSW | X19: 2001 | Y19: John Thomson | Z19: (02) 9269 2312 | AA19: john.thomson@ausgrid.com.au | AC19: YES | AD19: YES | AE19: YES | AF19: YES | AG19: NO | AI19: CBD | AJ19: Urban | AK19: Short rural | AL19: Long rural | AN19: Ausgrid
B20: Ausgrid (Tx Assets) | C20: Ausgrid (Tx Assets) | D20: 67505337385 | E20: NSW | F20: Electricity | G20: Distribution | H20: Revenue cap | I20: Financial | J20: June | K20: 5 | L20: 5 | M20: 5 | N20: distribution determination | R20: NSW | AI20: CBD | AJ20: Urban | AK20: Short rural | AL20: Long rural | AN20: Ausgrid (Tx Assets)
B21: AusNet (D) | C21: AusNet Electricity Services Pty Ltd | D21: 91064651118 | E21: Vic | F21: Electricity | G21: Distribution | H21: Revenue cap | I21: Calendar | J21: December | K21: 5 | L21: 5 | M21: 2 | N21: 2016-20 Distribution Determination | O21: Level 32 | P21: 2 Southbank Boulevard | Q21: SOUTHBANK | R21: Vic | S21: 3006 | T21: Locked Bag 14051 | V21: MELBOURNE CITY MAIL CENTRE | W21: VIC | X21: 8001 | AD21: YES | AE21: YES | AF21: YES | AG21: NO | AI21: CBD | AJ21: Urban | AK21: Short rural | AL21: Long rural | AN21: AusNet (D)
B22: AusNet (Gas) | C22: AusNet Gas Services | D22: 086015036 | E22: Vic | F22: Gas | G22: Distribution | H22: Weighted average price cap | I22: Calendar | J22: December | K22: 5 | L22: 5 | M22: X | O22: Level 19, HSBC Building | P22: 580 George Street | Q22: SYDNEY | R22: NSW | S22: 2000 | T22: PO Box R41 | V22: ROYAL EXCHANGE | W22: NSW | X22: 1225 | Y22: Alexandra Curran | Z22: 02 9275 0020 | AA22: alexandra.curran@apa.com.au | AN22: AusNet (Gas)
B23: AusNet (T) | C23: Ausnet Services (Transmission) Ltd | D23: 48116124362 | E23: Vic | F23: Electricity | G23: Transmission | H23: Revenue cap | I23: Financial | J23: March | K23: 5 | L23: 5 | M23: 2 | N23: transmission determination | O23: Level 32 | P23: 2 Southbank Boulevard | Q23: SOUTHBANK | R23: Vic | S23: 3006 | T23: Locked Bag 14051 | V23: MELBOURNE CITY MAIL CENTRE | W23: Vic | X23: 8001 | Y23: Clare Thompson | Z23: 03 9695 6670 | AA23: clare.e.thompson@ausnetservices.com.au | AI23: CBD | AJ23: Urban | AK23: Short rural | AL23: Long rural | AN23: AusNet (T)
B24: Australian Distribution Co. | C24: Australian Distribution Co. | D24: 11222333444 | E24: - | F24: Electricity | G24: Distribution | H24: Revenue cap | I24: Financial | J24: June | K24: 5 | L24: 5 | M24: 2 | N24: distribution determination | O24: 123 Straight Street | Q24: SYDNEY | R24: NSW | S24: 2000 | T24: PO Box 123 | V24: SYDNEY | W24: NSW | X24: 2000 | Y24: Bob Smith | Z24: 02 1234 5678 | AA24: bob@auselec.net.au | AI24: CBD | AJ24: Urban | AK24: Short rural | AL24: Long rural | AN24: Australian Distribution Co.
B25: Australian Distribution Co. (Vic) | C25: Australian Distribution Co. (Victoria) | D25: 11222333444 | E25: Vic | F25: Electricity | G25: Distribution | H25: Revenue cap | I25: Calendar | J25: December | K25: 5 | L25: 5 | M25: 2 | N25: distribution determination | O25: 123 Straight Street | Q25: MELBOURNE | R25: Vic | S25: 3000 | T25: PO Box 123 | V25: MELBOURNE | W25: VIC | X25: 3000 | Y25: Bob Smith | Z25: 02 1234 5678 | AA25: bob@auselec.net.au | AI25: CBD | AJ25: Urban | AK25: Short rural | AL25: Long rural | AN25: Australian Distribution Co. (Vic)
B26: Australian Transmission Co. | C26: Australian Transmission Co. | D26: 11222333444 | E26: - | F26: Electricity | G26: Transmission | H26: Revenue cap | I26: Financial | J26: June | K26: 5 | L26: 5 | M26: 5 | N26: transmission determination | O26: 123 Straight Street | Q26: SYDNEY | R26: NSW | S26: 2000 | T26: PO Box 123 | V26: SYDNEY | W26: NSW | X26: 2000 | Y26: Bob Smith | Z26: 02 1234 5678 | AA26: bob@auselec.net.au | AI26: CBD | AJ26: Urban | AK26: Short rural | AL26: Long rural | AN26: Australian Transmission Co.
B27: CitiPower | C27: CitiPower | D27: 76064651056 | E27: Vic | F27: Electricity | G27: Distribution | H27: Revenue cap | I27: Calendar | J27: December | K27: 5 | L27: 5 | M27: 2 | N27: 2016-20 Distribution Determination | O27: 40 Market Street | Q27: MELBOURNE | R27: Vic | S27: 3000 | T27: Locked Bag 14090 | V27: MELBOURNE | W27: VIC | X27: 8001 | Y27: Hannah Williams | Z27: 03 9683 4088 | AA27: hwilliams@powercor.com.au | AC27: YES | AD27: YES | AE27: NO | AF27: NO | AG27: NO | AI27: CBD | AJ27: Urban | AK27: Short rural | AL27: Long rural | AN27: CitiPower
B28: Directlink | C28: Directlink | D28: 16779340889 | E28: Qld | F28: Electricity | G28: Transmission | H28: Revenue cap | I28: Financial | J28: June | K28: 9 | L28: 5 | M28: 5 | N28: transmission determination | O28: Level 19, HSBC Building | P28: 580 George Street | Q28: SYDNEY | R28: NSW | S28: 2000 | T28: PO Box R41 | V28: ROYAL EXCHANGE | W28: NSW | X28: 1225 | Y28: Scott Young | Z28: 02 9275 0031 | AA28: scott.young@apa.com.au | AI28: CBD | AJ28: Urban | AK28: Short rural | AL28: Long rural | AN28: Directlink
B29: ElectraNet | C29: ElectraNet | D29: 41094482416 | E29: SA | F29: Electricity | G29: Transmission | H29: Revenue cap | I29: Financial | J29: June | K29: 5 | L29: 5 | M29: 5 | N29: transmission determination | O29: 52-55 East Terrace | P29: Rymill Park | Q29: ADELAIDE | R29: SA | S29: 5000 | T29: PO Box 7096 | U29: Hutt Street Post Office | V29: ADELAIDE | W29: SA | X29: 5000 | Y29: Bill Jackson | Z29: 08 8404 7969 | AA29: jackson.bill@electranet.com.au | AI29: CBD | AJ29: Urban | AK29: Short rural | AL29: Long rural | AN29: ElectraNet
B30: Endeavour Energy | C30: Endeavour Energy | D30: 11247365823 | E30: NSW | F30: Electricity | G30: Distribution | H30: Revenue cap | I30: Financial | J30: June | K30: 5 | L30: 5 | M30: 5 | N30: 2014-19 Distribution Determination | O30: 51 Huntingwood Drive | Q30: HUNTINGWOOD | R30: NSW | S30: 2148 | T30: PO Box 811 | V30: SEVEN HILLS | W30: NSW | X30: 1730 | Y30: Jon Hocking | Z30: 02 9853 4386 / 0407 348 156 | AA30: Jon.Hocking@Endeavourenergy.com.au | AC30: NO | AD30: YES | AE30: YES | AF30: YES | AG30: NO | AI30: CBD | AJ30: Urban | AK30: Short rural | AL30: Long rural | AN30: Endeavour Energy
B31: Energex | C31: Energex | D31: 40078849055 | E31: Qld | F31: Electricity | G31: Distribution | H31: Revenue cap | I31: Financial | J31: June | K31: 5 | L31: 5 | M31: 5 | N31: 2015-20 Distribution Determination | O31: 26 Reddacliff Street | Q31: NEWSTEAD | R31: Qld | S31: 4006 | T31: 26 Reddacliff Street | V31: NEWSTEAD | W31: QLD | X31: 4006 | Y31: Nicola Roscoe | Z31: 07 3664 5891 | AA31: nicolaroscoe@energex.com.au | AC31: YES | AD31: YES | AE31: YES | AF31: NO | AG31: NO | AI31: CBD | AJ31: Urban | AK31: Short rural | AL31: Long rural | AN31: Energex
B32: Ergon Energy | C32: Ergon Energy | D32: 50087646062 | E32: Qld | F32: Electricity | G32: Distribution | H32: Revenue cap | I32: Financial | J32: June | K32: 5 | L32: 5 | M32: 5 | N32: 2015-20 Distribution Determination | O32: 22 Walker Street | Q32: TOWNSVILLE | R32: Qld | S32: 4810 | T32: Po Box 264 | V32: FORTITUDE VALLEY | W32: QLD | X32: 4006 | Y32: Jenny Doyle, Group Manager Regulatory Affairs | Z32: (07) 3851 6416 | AA32: jenny.doyle@ergon.com.au | AC32: NO | AD32: YES | AE32: YES | AF32: YES | AG32: NO | AI32: CBD | AJ32: Urban | AK32: Short rural | AL32: Long rural | AN32: Ergon Energy
B33: Essential Energy | C33: Essential Energy | D33: 37428185226 | E33: NSW | F33: Electricity | G33: Distribution | H33: Revenue cap | I33: Financial | J33: June | K33: 5 | L33: 5 | M33: 5 | N33: 2014-19 Distribution Determination | O33: 8 Buller Street | Q33: PORT MACQUARIE | R33: NSW | S33: 2444 | T33: PO Box 5730 | V33: PORT MACQUARIE | W33: NSW | X33: 2444 | Y33: Catherine Waddell | Z33: 02 6338 3553 | AA33: catherine.waddell@essentialenergy.com.au | AE33: YES | AF33: YES | AG33: NO | AI33: CBD | AJ33: Urban | AK33: Short rural | AL33: Long rural | AN33: Essential Energy
B34: Jemena Electricity | C34: Jemena Electricity | D34: 82064651083 | E34: Vic | F34: Electricity | G34: Distribution | H34: Revenue cap | I34: Calendar | J34: December | K34: 5 | L34: 5 | M34: 2 | N34: 2016-20 Distribution Determination | O34: Level 16 | P34: 567 Collins Street | Q34: MELBOURNE | R34: VIC | S34: 3000 | T34: PO Box 16182 | V34: MELBOURNE | W34: VIC | X34: 8001 | Y34: Matthew Serpell | Z34: 03 9173 8231 | AA34: matthew.serpell@jemena.com.au | AE34: YES | AF34: NO | AG34: NO | AI34: CBD | AJ34: Urban | AK34: Short rural | AL34: Long rural | AN34: Jemena Electricity
B35: JGN | C35: Jemena Gas Networks (NSW) Ltd | D35: 003 004 322 | E35: NSW | F35: Gas | G35: Distribution | H35: Weighted average price cap | I35: Financial | J35: June | K35: 5 | L35: 5 | AN35: JGN
B36: Multinet Gas | C36: Multinet Gas (DB No.1) Pty Ltd (ACN 086 026 986), Multinet Gas (DB No.2) Pty Ltd (ACN 086 230 122) | D36: 086026986 | E36: Vic | F36: Gas | G36: Distribution | H36: Weighted average price cap | I36: Calendar | J36: December | K36: 5 | L36: 5 | M36: x | O36: 6 Nexus Court | Q36: MULGRAVE | R36: Vic | S36: 3149 | Y36: Stephanie McDougall | Z36: 03 8846 9538 | AA36: Stephanie.McDougall@ue.com.au | AN36: Multinet Gas
B37: Murraylink | C37: Murraylink | D37: 79181207909 | E37: SA | F37: Electricity | G37: Transmission | H37: Revenue cap | I37: Financial | J37: June | K37: 5 | L37: 5 | M37: 5 | N37: transmission determination | O37: Level 19 | P37: 580 George Street | Q37: SYDNEY | R37: NSW | S37: 2000 | Y37: Scott Young | Z37: 02 9275 0031 | AA37: scott.young@apa.com.au | AI37: CBD | AJ37: Urban | AK37: Short rural | AL37: Long rural | AN37: Murraylink
B38: Power and Water | C38: Power and Water Corporation | D38: 15947352360 | E38: NT | F38: Electricity | G38: Distribution | H38: Revenue cap | I38: Financial | J38: June | K38: 5 | L38: 5 | M38: x | N38: distribution determination | O38: GPO Box 1921 | Q38: DARWIN | R38: NT | S38: 0801 | T38: GPO Box 1921 | V38: DARWIN | W38: NT | X38: 0801 | Y38: Lucy Moon | Z38: 08 8924 5822 | AA38: Lucy.Moon@powerwater.com.au | AC38: YES | AD38: YES | AE38: YES | AF38: YES | AG38: NO | AI38: CBD | AJ38: Urban | AK38: Short rural | AL38: Long rural
B39: Powercor Australia | C39: Powercor Australia | D39: 89064651109 | E39: Vic | F39: Electricity | G39: Distribution | H39: Revenue cap | I39: Calendar | J39: December | K39: 5 | L39: 5 | M39: 2 | N39: 2016-20 Distribution Determination | O39: 40 Market Street | Q39: MELBOURNE | R39: Vic | S39: 3000 | T39: Locked bag 14090 | V39: MELBOURNE | W39: VIC | X39: 8001 | Y39: Hannah Williams | Z39: 03 9683 4088 | AA39: hwilliams@powercor.com.au | AE39: YES | AF39: YES | AG39: NO | AI39: CBD | AJ39: Urban | AK39: Short rural | AL39: Long rural | AN39: Powercor Australia
B40: Powerlink | C40: Queensland Electricity Transmission Corporation Limited trading as Powerlink Queensland | D40: 82078849233 | E40: Qld | F40: Electricity | G40: Transmission | H40: Revenue cap | I40: Financial | J40: June | K40: 5 | L40: 5 | M40: 5 | N40: transmission determination | O40: 33 Harold St | Q40: VIRGINIA | R40: Qld | S40: 4014 | T40: PO Box 1193 | V40: VIRGINIA | W40: QLD | X40: 4014 | Y40: Jennifer Harris | Z40: 07 3860 2667 | AA40: jharris@powerlink.com.au | AI40: CBD | AJ40: Urban | AK40: Short rural | AL40: Long rural | AN40: Powerlink
B41: Roma to Brisbane Pipeline | C41: APT Petroleum Pipelines Limited t/a Roma to Brisbane Pipeline | D41: 009 737 393 | E41: Qld | F41: Gas | G41: Transmission | H41: Weighted average price cap | I41: Financial | J41: June | K41: 5 | L41: 5 | M41: x | N41: n/a | O41: 580 George Street | Q41: SYDNEY | R41: NSW | S41: 2000 | T41: PO Box R41 | V41: ROYAL EXCHANGE | W41: NSW | X41: 1225 | Y41: Mark Allen | Z41: 02 9275 0010 | AA41: mark.allen@apa.com.au | AI41: CBD | AJ41: Urban | AK41: Short rural | AL41: Long rural | AN41: Roma to Brisbane Pipeline
B42: SA Power Networks | C42: SA Power Networks | D42: 13332330749 | E42: SA | F42: Electricity | G42: Distribution | H42: Revenue cap | I42: Financial | J42: June | K42: 5 | L42: 5 | M42: 5 | N42: 2015-20 Distribution Determination | O42: 1 Anzac Highway | Q42: KESWICK | R42: SA | S42: 5035 | T42: GPO Box 77 | V42: ADELAIDE | W42: SA | X42: 5000 | Y42: Richard Sibly | Z42: 08 8404 5613 | AA42: richard.sibly@sapowernetworks.com.au | AE42: YES | AF42: YES | AG42: NO | AI42: CBD | AJ42: Urban | AK42: Short rural | AL42: Long rural | AN42: SA Power Networks
B43: TasNetworks (D) | C43: TasNetworks (D) | D43: 24167357299 | E43: Tas | F43: Electricity | G43: Distribution | H43: Revenue cap | I43: Financial | J43: June | K43: 5 | L43: 5 | M43: 5 | N43: distribution determination | O43: 1-7 Maria Street | Q43: LENAH VALLEY | R43: Tas | S43: 7008 | T43: PO Box 606 | V43: MOONAH | W43: Tas | X43: 7009 | Y43: John Sayers | Z43: 03 6271 6469 | AA43: john.sayers@tasnetworks.com.au | AC43: YES | AD43: YES | AE43: YES | AF43: YES | AG43: YES | AI43: Critical Infrastructure | AJ43: High density commercial | AK43: Urban | AL43: High density rural | AM43: Low density rural | AN43: TasNetworks (D)
B44: TasNetworks (T) | C44: TasNetworks (T) | D44: 24167357299 | E44: Tas | F44: Electricity | G44: Transmission | H44: Revenue cap | I44: Financial | J44: June | K44: 5 | L44: 5 | M44: 5 | N44: transmission determination | O44: 1-7 Maria Street | Q44: LENAH VALLEY | R44: Tas | S44: 7008 | T44: PO Box 606 | V44: MOONAH | W44: Tas | X44: 7009 | Y44: John Sayers | Z44: 03 6271 6469 | AA44: john.sayers@tasnetworks.com.au | AI44: CBD | AJ44: Urban | AK44: Short rural | AL44: Long rural | AN44: TasNetworks (T)
B45: TransGrid | C45: NSW Electricity Networks Operations Pty Ltd trading as TransGrid | D45: 609169959 | E45: NSW | F45: Electricity | G45: Transmission | H45: Revenue cap | I45: Financial | J45: June | K45: 5 | L45: 4 | M45: 5 | N45: transmission determination | O45: 180 Thomas Street | Q45: SYDNEY | R45: NSW | S45: 2000 | T45: PO Box A1000 | V45: SYDNEY SOUTH | W45: NSW | X45: 1235 | Y45: Garrie Chubb | Z45: 0408 210 221 | AA45: garrie.chubb@transgrid.com.au | AI45: CBD | AJ45: Urban | AK45: Short rural | AL45: Long rural | AN45: TransGrid
B46: United Energy | C46: United Energy | D46: 70064651029 | E46: Vic | F46: Electricity | G46: Distribution | H46: Revenue cap | I46: Calendar | J46: December | K46: 5 | L46: 5 | M46: 2 | N46: 2016-20 Distribution Determination | O46: Level 3 | P46: 6 Nexus Court | Q46: MULGRAVE | R46: Vic | S46: 3149 | T46: PO Box 449 | V46: MOUNT WAVERLEY | W46: VIC | X46: 3170 | Y46: Mathew Abraham | Z46: 03 8846 9758 | AA46: mathew.abraham@ue.com.au | AE46: YES | AF46: NO | AG46: NO | AI46: CBD | AJ46: Urban | AK46: Short rural | AL46: Long rural | AN46: United Energy
B47: Western Power (D) | C47: Western Power (D) | D47: 18540492861 | E47: WA | F47: Electricity | G47: Distribution | H47: Revenue cap | I47: Financial | J47: June | K47: 12 | L47: 4 | M47: x | N47: distribution determination | O47: 363 Wellington Street | Q47: PERTH | R47: WA | S47: 6000 | T47: GPO Box L921 | V47: PERTH | W47: WA | X47: 6842 | Y47: Judy Hunter | Z47: 08 9326 6239 | AA47: judy.hunter@westernpower.com.au | AE47: YES | AF47: YES | AG47: NO | AH47: NO | AI47: CBD | AJ47: Urban | AK47: Short rural | AL47: Long rural | AN47: Western Power (D)
B48: Western Power (T) | C48: Western Power (T) | D48: 18540492861 | E48: WA | F48: Electricity | G48: Transmission | H48: Revenue cap | I48: Financial | J48: June | K48: 12 | L48: 4 | M48: x | N48: transmission determination | O48: 363 Wellington Street | Q48: PERTH | R48: WA | S48: 6000 | T48: GPO Box L921 | V48: PERTH | W48: WA | X48: 6842 | Y48: Judy Hunter | Z48: 08 9326 6239 | AA48: judy.hunter@westernpower.com.au | AE48: YES | AF48: YES | AG48: NO | AI48: CBD | AJ48: Urban | AK48: Short rural | AL48: Long rural | AN48: Western Power (T)
W51: For EB & Reset RINs only | AC51: For AARs only
B52: The Reg Year Ending (dms_RYE) must be set to the last year of the regulatory period. For forecast data is is usually (FRCP_y5) for actual it is a single year (CRY). For historical actual data the RYE will need to be set manually in the business details sheet by setting the dms_Multiyear_flag to 1 and putting the correct value in 'dms_Specified_FinalYear. See cells C67:C68 | G52: =IF(dms_RPT="financial",VALUE(LEFT(CRCP_y1,4)-1)&"-"&TEXT(VALUE(RIGHT(CRCP_y1,2)-1),"00"),VALUE(LEFT(CRCP_y1,4)-1)) -> 2013-14 | N52: Drop down selector box for CA & Reset RINs. | O52: For CA & Reset RINs only | W52: for DNSP only | AC52: For DNSPs only | AI52: Reason for interruption | AJ52: dms_Reason_Interruption_Detailed | AK52: dms_Reason_Interruption
B53: dms_Model_List | C53: DELETE NR 'CRY' IF NOT AN ANNUAL RIN (EB, CA , ARR) | E53: dms_RYE_Formula_Result | N53: dms_0203_ProjectType | O53: dms_020303_01_UOM | P53: dms_020501_01_UOM | Q53: dms_020501_02_UOM | R53: dms_020501_03_UOM | S53: dms_020501_04_UOM | T53: dms_020603_01_UOM | U53: dms_040102_01_UOM | V53: dms_040102_04_UOM | W53: dms_030601_01_UOM | X53: dms_030601_02_UOM | Y53: dms_030701_01_UOM | Z53: dms_030702_01_UOM | AA53: dms_030703_01_UOM | AC53: dms_030605_UOM | AD53: dms_03060703_UOM | AI53: Animal | AJ53: Animal impact | AK53: Animal
B54: ARR | C54: ANNUAL REPORTING STATEMENT | E54: =LEFT(dms_SingleYear_FinalYear_Result,2)&RIGHT(dms_SingleYear_FinalYear_Result,2) ->  | F54: =LEFT(dms_SingleYear_FinalYear_Result,2)&RIGHT(dms_SingleYear_FinalYear_Result,2) | H54: Formula errors are OK | N54: New line on new route - single circuit | O54: Circuit line length in km | P54: 0's | Q54: 0's | R54: 0's | S54: 0's | T54: 0's | U54: 0's | V54: days | W54: minutes/customer | X54: minutes/customer | Y54: Customer / km | Z54: % | AA54: km | AC54: number | AD54: number | AJ54: Animal nesting/burrowing, etc and other | AK54: Asset failure
B55: CA | C55: CATEGORY ANALYSIS | E55: =LEFT(dms_SingleYear_FinalYear_Result,2)&RIGHT(dms_SingleYear_FinalYear_Result,2) ->  | F55: =LEFT(dms_SingleYear_FinalYear_Result,2)&RIGHT(dms_SingleYear_FinalYear_Result,2) | H55: Formula errors are OK | N55: New line on new route - dual circuit | O55: Circuit line length in km | P55: 0's | Q55: 0's | R55: 0's | S55: 0's | T55: 0's | U55: 0's | V55: 0's | W55: minutes/customer | X55: minutes/customer | Y55: MWh/customer | Z55: Number of spans | AC55: number | AD55: number | AJ55: Other | AK55: Other
B56: CPI | C56: CPI | N56: New line on new route - other | O56: Circuit line length in km | P56: MVA added | Q56: MVA added | R56: MVA added | S56: MVA added | T56: 0's | U56: 0's | V56: $0s | W56: interruptions/customer | X56: interruptions/customer | Y56: kVA / customer | Z56: Number of spans | AC56: number | AD56: number | AI56: Asset failure | AJ56: LV | AK56: Overloads
B57: EB | C57: ECONOMIC BENCHMARKING | E57: =LEFT(dms_SingleYear_FinalYear_Result,2)&RIGHT(dms_SingleYear_FinalYear_Result,2) ->  | F57: =LEFT(dms_SingleYear_FinalYear_Result,2)&RIGHT(dms_SingleYear_FinalYear_Result,2) | H57: Formula errors are OK | N57: Line rebuild over existing route - single circuit | O57: Circuit line length in km | P57: 0's | Q57: 0's | R57: 0's | S57: 0's | T57: 0's | U57: $0s | V57: 0's | W57: interruptions/customer | X57: interruptions/customer | Z57: Number of spans | AC57: number | AD57: number | AJ57: Distribution substation | AK57: Planned
B58: PTRM | C58: POST TAX REVENUE MODEL | E58: =LEFT(dms_MultiYear_FinalYear_Result,2)&RIGHT(dms_MultiYear_FinalYear_Result,2) -> 2024 | F58: =LEFT(dms_MultiYear_FinalYear_Result,2)&RIGHT(dms_MultiYear_FinalYear_Result,2) | N58: Line rebuild over existing route - dual circuit | O58: Number | P58: total spend $0s | Q58: total spend $0s | R58: total spend $0s | S58: total spend $0s | T58: (per cent) | Z58: Number of spans | AC58: number | AD58: (per cent) | AJ58: HV | AK58: Network business
B59: Reset | C59: REGULATORY REPORTING STATEMENT | E59: =LEFT(dms_MultiYear_FinalYear_Result,2)&RIGHT(dms_MultiYear_FinalYear_Result,2) -> 2024 | F59: =LEFT(dms_MultiYear_FinalYear_Result,2)&RIGHT(dms_MultiYear_FinalYear_Result,2) | H59: Formula errors are OK | N59: Reconductor - Single circuit | O59: Number | P59: net circuit km added | Q59: net circuit km added | R59: net circuit km added | S59: net circuit km added | Z59: Years | AC59: number | AJ59: Zone substation | AK59: Third party
B60: RFM | C60: ROLL FORWARD MODEL | E60: =LEFT(dms_CRCP_FinalYear_Result,2)&RIGHT(dms_CRCP_FinalYear_Result,2) -> 2019 | F60: =LEFT(dms_CRCP_FinalYear_Result,2)&RIGHT(dms_CRCP_FinalYear_Result,2) | N60: Reconductor - Dual circuit | O60: Number | P60: total spend $0s | Q60: total spend $0s | R60: total spend $0s | S60: total spend $0s | Z60: Years | AC60: number | AJ60: Subtransmission | AK60: Unknown
B61: WACC | C61: WEIGHTED AVERAGE COST OF CAPITAL | E61: =LEFT(dms_MultiYear_FinalYear_Result,2)&RIGHT(dms_MultiYear_FinalYear_Result,2) -> 2024 | F61: =LEFT(dms_MultiYear_FinalYear_Result,2)&RIGHT(dms_MultiYear_FinalYear_Result,2) | N61: Other | P61: net circuit km added | Q61: net circuit km added | R61: net circuit km added | S61: net circuit km added | Z61: Trees | AC61: number | AI61: Other | AJ61: insert description of 'other' | AK61: Vegetation
P62: total spend $0s | Q62: total spend $0s | R62: total spend $0s | S62: total spend $0s | Z62: Trees | AC62: number | AI62: Overloads | AJ62: - | AK62: Weather
B63: dms_DataQuality_List | P63: 0's | R63: $0s | Z63: Defects | AC63: number | AI63: Planned | AJ63: - | AK63: 2 - STPIS Exclusion (3.3)(a)
B64: Actual | P64: 0's | Z64: Defects | AC64: number | AI64: Network business | AJ64: Network error | AK64: 3 - STPIS Exclusion (3.3)(a)
B65: Estimate | P65: 0's | Z65: Spans | AC65: number | AJ65: Switching and protection error | AK65: 4 - STPIS Exclusion (3.3)(a)
B66: Consolidated | P66: $0s | Z66: km | AC66: (per cent) | AI66: Third party | AJ66: Fire | AK66: 5 - STPIS Exclusion (3.3)(a)
B67: Recast | Z67: Spans | AC67: (per cent) | AJ67: Other | AK67: 6 - STPIS Exclusion (3.3)(a)
B68: Public | AJ68: Dig-in | AK68: 7 - STPIS Exclusion (3.3)(a)
AJ69: Unauthorised access
B70: For all files either AER or business needs to be able to specify the type of submission | C70: For PTRM & RFM templates we must provide a choice in case they change their form of control - otherwise it is drawn from the business specific lookup table above. | O70: For PTRM files - this field set the text for the named range "DMS_Xfactor" which in all cases is simply the text "x factors" - this saves putting in each old gas PTRM file | W70: for TNSP only | AJ70: Vehicle impact
B71: dms_SourceList | C71: dms_FormControl_Choices | O71: DMS_Xfactor | W71: dms_030601_01_UOM | Y71: dms_030701_01_UOM | Z71: dms_030702_01_UOM | AI71: Unknown | AJ71: Unknown
B72: After appeal | C72: Revenue cap | O72: x factors | W72: % | Y72: Number of spans | Z72: km | AI72: Vegetation | AJ72: Blow-in/Fall-in - NSP responsibility
B73: Draft decision | C73: Revenue yield | W73: number | Y73: Years | Z73: % | AJ73: Grow-in - NSP responsibility
B74: Final decision | C74: Weighted average price cap | W74: number | Y74: Trees | Z74: km | AJ74: Blow-in/Fall-in - Other responsible party
B75: PTRM update 1 | W75: % | Y75: Defects | Z75: number | AJ75: Grow-in - Other responsible party
B76: PTRM update 2 | W76: number | Y76: Number of spans | AI76: Weather
B77: PTRM update 3 | W77: number | Y77: km | AI77: 2 - STPIS Exclusion (3.3)(a)
B78: PTRM update 4 | W78: % | Y78: km | AI78: 3 - STPIS Exclusion (3.3)(a)
B79: PTRM update 5 | W79: number | Y79: Number of spans | AI79: 4 - STPIS Exclusion (3.3)(a)
B80: PTRM update 6 | W80: number | AI80: 5 - STPIS Exclusion (3.3)(a)
B81: PTRM update 7 | W81: % | AI81: 6 - STPIS Exclusion (3.3)(a)
B82: Regulatory proposal | W82: number | AI82: 7 - STPIS Exclusion (3.3)(a)
B83: Reporting | W83: %
B84: Revised regulatory proposal | W84: number
W85: %
W86: number
B90: These are indeces and lookup values for various dates. All step from the value placed in FRCP_y1 on the business and other details worksheet | L90: These date tables are currently used in the Recast templates to provide column headings and conditional formatting
B91: dms_FRCPlength_Num_List | C91: dms_FinalYear_List | D91: dms_CRCPlength_Num_List | E91: dms_CFinalYear_List | F91: dms_FRCP_years | H91: dms_CRCP_years | J91: dms_CRCP_index | L91: CRY from input cell on business sheet | M91: CRY - financial | N91: dms_FinYears | O91: CRY calendar | P91: dms_CalYears
B92: 1 | C92: dms_FRCP_y1 | D92: 1 | E92: CRCP_y1 | F92: =FRCP_y1 -> 2019-20 | G92: dms_FRCP_y1 | H92: =IF(dms_RPT="financial",VALUE(LEFT(dms_FRCP_y1,4)-1)&"-"&TEXT(VALUE(MID(dms_FRCP_y1,3,2)),"00"),VALUE(LEFT(dms_FRCP_y1,4)-1)) -> 2018-19 | I92: dms_CRCP_yZ | J92: 1 | L92: =CRY ->  | M92: =VALUE(LEFT(CRY,4))&"-"&TEXT(MID(CRY,3,2)+1,"00") ->  | N92: dms_CRYf_y1 | O92: =VALUE(LEFT(CRY,4)+1) ->  | P92: dms_CRYc_y1
B93: 2 | C93: dms_FRCP_y2 | D93: 2 | E93: CRCP_y2 | F93: =IF(dms_RPT="financial",VALUE(LEFT(dms_FRCP_y1,4)+1)&"-"&TEXT(VALUE(RIGHT(dms_FRCP_y1,2)+1),"00"),VALUE(LEFT(dms_FRCP_y1,4)+1)) -> 2020-21 | G93: dms_FRCP_y2 | H93: =IF(dms_RPT="financial",VALUE(LEFT(dms_CRCP_yZ,4)-1)&"-"&TEXT(VALUE(MID(dms_CRCP_yZ,3,2)),"00"),VALUE(LEFT(dms_CRCP_yZ,4)-1)) -> 2017-18 | I93: dms_CRCP_yY | J93: 2 | M93: =VALUE(LEFT(dms_CRYf_y1,4)+1)&"-"&TEXT(MID(dms_CRYf_y1,3,2)+2,"00") ->  | N93: dms_CRYf_y2 | O93: =VALUE(LEFT(dms_CRYc_y1,4)+1) ->  | P93: dms_CRYc_y2
B94: 3 | C94: dms_FRCP_y3 | D94: 3 | E94: CRCP_y3 | F94: =IF(dms_RPT="financial",VALUE(LEFT(dms_FRCP_y2,4)+1)&"-"&TEXT(VALUE(RIGHT(dms_FRCP_y2,2)+1),"00"),VALUE(LEFT(dms_FRCP_y2,4)+1)) -> 2021-22 | G94: dms_FRCP_y3 | H94: =IF(dms_RPT="financial",VALUE(LEFT(dms_CRCP_yY,4)-1)&"-"&TEXT(VALUE(MID(dms_CRCP_yY,3,2)),"00"),VALUE(LEFT(dms_CRCP_yY,4)-1)) -> 2016-17 | I94: dms_CRCP_yX | J94: 3 | M94: =VALUE(LEFT(dms_CRYf_y2,4)+1)&"-"&TEXT(MID(dms_CRYf_y2,3,2)+2,"00") ->  | N94: dms_CRYf_y3 | O94: =VALUE(LEFT(dms_CRYc_y2,4)+1) ->  | P94: dms_CRYc_y3
B95: 4 | C95: dms_FRCP_y4 | D95: 4 | E95: CRCP_y4 | F95: =IF(dms_RPT="financial",VALUE(LEFT(dms_FRCP_y3,4)+1)&"-"&TEXT(VALUE(RIGHT(dms_FRCP_y3,2)+1),"00"),VALUE(LEFT(dms_FRCP_y3,4)+1)) -> 2022-23 | G95: dms_FRCP_y4 | H95: =IF(dms_RPT="financial",VALUE(LEFT(dms_CRCP_yX,4)-1)&"-"&TEXT(VALUE(MID(dms_CRCP_yX,3,2)),"00"),VALUE(LEFT(dms_CRCP_yX,4)-1)) -> 2015-16 | I95: dms_CRCP_yW | J95: 4 | M95: =VALUE(LEFT(dms_CRYf_y3,4)+1)&"-"&TEXT(MID(dms_CRYf_y3,3,2)+2,"00") ->  | N95: dms_CRYf_y4 | O95: =VALUE(LEFT(dms_CRYc_y3,4)+1) ->  | P95: dms_CRYc_y4
B96: 5 | C96: dms_FRCP_y5 | D96: 5 | E96: CRCP_y5 | F96: =IF(dms_RPT="financial",VALUE(LEFT(dms_FRCP_y4,4)+1)&"-"&TEXT(VALUE(RIGHT(dms_FRCP_y4,2)+1),"00"),VALUE(LEFT(dms_FRCP_y4,4)+1)) -> 2023-24 | G96: dms_FRCP_y5 | H96: =IF(dms_RPT="financial",VALUE(LEFT(dms_CRCP_yW,4)-1)&"-"&TEXT(VALUE(MID(dms_CRCP_yW,3,2)),"00"),VALUE(LEFT(dms_CRCP_yW,4)-1)) -> 2014-15 | I96: dms_CRCP_yV | J96: 5 | M96: =VALUE(LEFT(dms_CRYf_y4,4)+1)&"-"&TEXT(MID(dms_CRYf_y4,3,2)+2,"00") ->  | N96: dms_CRYf_y5 | O96: =VALUE(LEFT(dms_CRYc_y4,4)+1) ->  | P96: dms_CRYc_y5
B97: 6 | C97: dms_FRCP_y6 | D97: 6 | E97: CRCP_y6 | F97: =IF(dms_RPT="financial",VALUE(LEFT(dms_FRCP_y5,4)+1)&"-"&TEXT(VALUE(RIGHT(dms_FRCP_y5,2)+1),"00"),VALUE(LEFT(dms_FRCP_y5,4)+1)) -> 2024-25 | G97: dms_FRCP_y6 | H97: =IF(dms_RPT="financial",VALUE(LEFT(dms_CRCP_yV,4)-1)&"-"&TEXT(VALUE(MID(dms_CRCP_yV,3,2)),"00"),VALUE(LEFT(dms_CRCP_yV,4)-1)) -> 2013-14 | I97: dms_CRCP_yU | J97: 6 | M97: =VALUE(LEFT(dms_CRYf_y5,4)+1)&"-"&TEXT(MID(dms_CRYf_y5,3,2)+2,"00") ->  | N97: dms_CRYf_y6 | O97: =VALUE(LEFT(dms_CRYc_y5,4)+1) ->  | P97: dms_CRYc_y6
B98: 7 | C98: dms_FRCP_y7 | D98: 7 | E98: CRCP_y7 | F98: =IF(dms_RPT="financial",VALUE(LEFT(dms_FRCP_y6,4)+1)&"-"&TEXT(VALUE(RIGHT(dms_FRCP_y6,2)+1),"00"),VALUE(LEFT(dms_FRCP_y6,4)+1)) -> 2025-26 | G98: dms_FRCP_y7 | H98: =IF(dms_RPT="financial",VALUE(LEFT(dms_CRCP_yU,4)-1)&"-"&TEXT(VALUE(MID(dms_CRCP_yU,3,2)),"00"),VALUE(LEFT(dms_CRCP_yU,4)-1)) -> 2012-13 | I98: dms_CRCP_yT | J98: 7 | M98: =VALUE(LEFT(dms_CRYf_y6,4)+1)&"-"&TEXT(MID(dms_CRYf_y6,3,2)+2,"00") ->  | N98: dms_CRYf_y7 | O98: =VALUE(LEFT(dms_CRYc_y6,4)+1) ->  | P98: dms_CRYc_y7
B99: 8 | C99: dms_FRCP_y8 | D99: 8 | E99: CRCP_y8 | F99: =IF(dms_RPT="financial",VALUE(LEFT(dms_FRCP_y7,4)+1)&"-"&TEXT(VALUE(RIGHT(dms_FRCP_y7,2)+1),"00"),VALUE(LEFT(dms_FRCP_y7,4)+1)) -> 2026-27 | G99: dms_FRCP_y8 | H99: =IF(dms_RPT="financial",VALUE(LEFT(dms_CRCP_yT,4)-1)&"-"&TEXT(VALUE(MID(dms_CRCP_yT,3,2)),"00"),VALUE(LEFT(dms_CRCP_yT,4)-1)) -> 2011-12 | I99: dms_CRCP_yS | J99: 8 | M99: =VALUE(LEFT(dms_CRYf_y7,4)+1)&"-"&TEXT(MID(dms_CRYf_y7,3,2)+2,"00") ->  | N99: dms_CRYf_y8 | O99: =VALUE(LEFT(dms_CRYc_y7,4)+1) ->  | P99: dms_CRYc_y8
B100: 9 | C100: dms_FRCP_y9 | D100: 9 | E100: CRCP_y9 | F100: =IF(dms_RPT="financial",VALUE(LEFT(dms_FRCP_y8,4)+1)&"-"&TEXT(VALUE(RIGHT(dms_FRCP_y8,2)+1),"00"),VALUE(LEFT(dms_FRCP_y8,4)+1)) -> 2027-28 | G100: dms_FRCP_y9 | H100: =IF(dms_RPT="financial",VALUE(LEFT(dms_CRCP_yS,4)-1)&"-"&TEXT(VALUE(MID(dms_CRCP_yS,3,2)),"00"),VALUE(LEFT(dms_CRCP_yS,4)-1)) -> 2010-11 | I100: dms_CRCP_yR | J100: 9 | M100: =VALUE(LEFT(dms_CRYf_y8,4)+1)&"-"&TEXT(MID(dms_CRYf_y8,3,2)+2,"00") ->  | N100: dms_CRYf_y9 | O100: =VALUE(LEFT(dms_CRYc_y8,4)+1) ->  | P100: dms_CRYc_y9
B101: 10 | C101: dms_FRCP_y10 | D101: 10 | E101: CRCP_y10 | F101: =IF(dms_RPT="financial",VALUE(LEFT(dms_FRCP_y9,4)+1)&"-"&TEXT(VALUE(RIGHT(dms_FRCP_y9,2)+1),"00"),VALUE(LEFT(dms_FRCP_y9,4)+1)) -> 2028-29 | G101: dms_FRCP_y10 | H101: =IF(dms_RPT="financial",VALUE(LEFT(dms_CRCP_yR,4)-1)&"-"&TEXT(VALUE(MID(dms_CRCP_yR,3,2)),"00"),VALUE(LEFT(dms_CRCP_yR,4)-1)) -> 2009-10 | I101: dms_CRCP_yQ | J101: 10 | M101: =VALUE(LEFT(dms_CRYf_y9,4)+1)&"-"&TEXT(MID(dms_CRYf_y9,3,2)+2,"00") ->  | N101: dms_CRYf_y10 | O101: =VALUE(LEFT(dms_CRYc_y9,4)+1) ->  | P101: dms_CRYc_y10
B102: 11 | C102: dms_FRCP_y11 | D102: 11 | E102: CRCP_y11 | F102: =IF(dms_RPT="financial",VALUE(LEFT(dms_FRCP_y10,4)+1)&"-"&TEXT(VALUE(RIGHT(dms_FRCP_y10,2)+1),"00"),VALUE(LEFT(dms_FRCP_y10,4)+1)) -> 2029-30 | G102: dms_FRCP_y11 | H102: =IF(dms_RPT="financial",VALUE(LEFT(dms_CRCP_yQ,4)-1)&"-"&TEXT(VALUE(MID(dms_CRCP_yQ,3,2)),"00"),VALUE(LEFT(dms_CRCP_yQ,4)-1)) -> 2008-09 | I102: dms_CRCP_yP | J102: 11 | M102: =VALUE(LEFT(dms_CRYf_y10,4)+1)&"-"&TEXT(MID(dms_CRYf_y10,3,2)+2,"00") ->  | N102: dms_CRYf_y11 | O102: =VALUE(LEFT(dms_CRYc_y10,4)+1) ->  | P102: dms_CRYc_y11
B103: 12 | C103: dms_FRCP_y12 | D103: 12 | E103: CRCP_y12 | F103: =IF(dms_RPT="financial",VALUE(LEFT(dms_FRCP_y11,4)+1)&"-"&TEXT(VALUE(RIGHT(dms_FRCP_y11,2)+1),"00"),VALUE(LEFT(dms_FRCP_y11,4)+1)) -> 2030-31 | G103: dms_FRCP_y12 | H103: =IF(dms_RPT="financial",VALUE(LEFT(dms_CRCP_yP,4)-1)&"-"&TEXT(VALUE(MID(dms_CRCP_yP,3,2)),"00"),VALUE(LEFT(dms_CRCP_yP,4)-1)) -> 2007-08 | I103: dms_CRCP_yO | J103: 12 | M103: =VALUE(LEFT(dms_CRYf_y11,4)+1)&"-"&TEXT(MID(dms_CRYf_y11,3,2)+2,"00") ->  | N103: dms_CRYf_y12 | O103: =VALUE(LEFT(dms_CRYc_y11,4)+1) ->  | P103: dms_CRYc_y12
B104: 13 | C104: dms_FRCP_y13 | D104: 13 | E104: CRCP_y13 | F104: =IF(dms_RPT="financial",VALUE(LEFT(dms_FRCP_y12,4)+1)&"-"&TEXT(VALUE(RIGHT(dms_FRCP_y12,2)+1),"00"),VALUE(LEFT(dms_FRCP_y12,4)+1)) -> 2031-32 | G104: dms_FRCP_y13 | H104: =IF(dms_RPT="financial",VALUE(LEFT(dms_CRCP_yO,4)-1)&"-"&TEXT(VALUE(MID(dms_CRCP_yO,3,2)),"00"),VALUE(LEFT(dms_CRCP_yO,4)-1)) -> 2006-07 | I104: dms_CRCP_yN | J104: 13 | M104: =VALUE(LEFT(dms_CRYf_y12,4)+1)&"-"&TEXT(MID(dms_CRYf_y12,3,2)+2,"00") ->  | N104: dms_CRYf_y13 | O104: =VALUE(LEFT(dms_CRYc_y12,4)+1) ->  | P104: dms_CRYc_y13
B105: 14 | C105: dms_FRCP_y14 | D105: 14 | E105: CRCP_y14 | F105: =IF(dms_RPT="financial",VALUE(LEFT(dms_FRCP_y13,4)+1)&"-"&TEXT(VALUE(RIGHT(dms_FRCP_y13,2)+1),"00"),VALUE(LEFT(dms_FRCP_y13,4)+1)) -> 2032-33 | G105: dms_FRCP_y14 | H105: =IF(dms_RPT="financial",VALUE(LEFT(dms_CRCP_yN,4)-1)&"-"&TEXT(VALUE(MID(dms_CRCP_yN,3,2)),"00"),VALUE(LEFT(dms_CRCP_yN,4)-1)) -> 2005-06 | I105: dms_CRCP_yM | J105: 14 | M105: =VALUE(LEFT(dms_CRYf_y13,4)+1)&"-"&TEXT(MID(dms_CRYf_y13,3,2)+2,"00") ->  | N105: dms_CRYf_y14 | O105: =VALUE(LEFT(dms_CRYc_y13,4)+1) ->  | P105: dms_CRYc_y14
B106: 15 | C106: dms_FRCP_y15 | D106: 15 | E106: CRCP_y15 | F106: =IF(dms_RPT="financial",VALUE(LEFT(dms_FRCP_y14,4)+1)&"-"&TEXT(VALUE(RIGHT(dms_FRCP_y14,2)+1),"00"),VALUE(LEFT(dms_FRCP_y14,4)+1)) -> 2033-34 | G106: dms_FRCP_y15 | H106: =IF(dms_RPT="financial",VALUE(LEFT(dms_CRCP_yM,4)-1)&"-"&TEXT(VALUE(MID(dms_CRCP_yM,3,2)),"00"),VALUE(LEFT(dms_CRCP_yM,4)-1)) -> 2004-05 | I106: dms_CRCP_yL | J106: 15 | M106: =VALUE(LEFT(dms_CRYf_y14,4)+1)&"-"&TEXT(MID(dms_CRYf_y14,3,2)+2,"00") ->  | N106: dms_CRYf_y15 | O106: =VALUE(LEFT(dms_CRYc_y14,4)+1) ->  | P106: dms_CRYc_y15
M107: =VALUE(LEFT(dms_CRYf_y15,4)+1)&"-"&TEXT(MID(dms_CRYf_y15,3,2)+2,"00") ->  | N107: dms_CRYf_y16 | O107: =VALUE(LEFT(dms_CRYc_y15,4)+1) ->  | P107: dms_CRYc_y16
B108: These are drop down lists for businesses to select the correct FRCP_y1 on the business and other details worksheet. This also populates the column headings in the worksheets | M108: =VALUE(LEFT(dms_CRYf_y16,4)+1)&"-"&TEXT(MID(dms_CRYf_y16,3,2)+2,"00") ->  | N108: dms_CRYf_y17 | O108: =VALUE(LEFT(dms_CRYc_y16,4)+1) ->  | P108: dms_CRYc_y17
B109: dms_RCP_fyear_list | C109: dms_CRY_ListF | D109: dms_CRY_ListC | E109: dms_RCP_cyear_list | F109: dms_FRCP_fyear_list | G109: dms_FRCP_ListF | H109: dms_FRCP_ListC | I109: dms_FRCP_cyear_list | M109: =VALUE(LEFT(dms_CRYf_y17,4)+1)&"-"&TEXT(MID(dms_CRYf_y17,3,2)+2,"00") ->  | N109: dms_CRYf_y18 | O109: =VALUE(LEFT(dms_CRYc_y17,4)+1) ->  | P109: dms_CRYc_y18
B110: dms_fy1 | C110: 2006-07 | D110: 2007 | E110: dms_cy1 | F110: dms_frcp_fy1 | G110: 2015-16 | H110: 2016 | I110: dms_crcp_cy1 | M110: =VALUE(LEFT(dms_CRYf_y18,4)+1)&"-"&TEXT(MID(dms_CRYf_y18,3,2)+2,"00") ->  | N110: dms_CRYf_y19 | O110: =VALUE(LEFT(dms_CRYc_y18,4)+1) ->  | P110: dms_CRYc_y19
B111: dms_fy2 | C111: 2007-08 | D111: 2008 | E111: dms_cy2 | F111: dms_frcp_fy2 | G111: 2016-17 | H111: 2017 | I111: dms_crcp_cy2 | M111: =VALUE(LEFT(dms_CRYf_y19,4)+1)&"-"&TEXT(MID(dms_CRYf_y19,3,2)+2,"00") ->  | N111: dms_CRYf_y20 | O111: =VALUE(LEFT(dms_CRYc_y19,4)+1) ->  | P111: dms_CRYc_y20
B112: dms_fy3 | C112: 2008-09 | D112: 2009 | E112: dms_cy3 | F112: dms_frcp_fy3 | G112: 2017-18 | H112: 2018 | I112: dms_crcp_cy3
B113: dms_fy4 | C113: 2009-10 | D113: 2010 | E113: dms_cy4 | F113: dms_frcp_fy4 | G113: 2018-19 | H113: 2019 | I113: dms_crcp_cy4
B114: dms_fy5 | C114: 2010-11 | D114: 2011 | E114: dms_cy5 | F114: dms_frcp_fy5 | G114: 2019-20 | H114: 2020 | I114: dms_crcp_cy5
B115: dms_fy6 | C115: 2011-12 | D115: 2012 | E115: dms_cy6 | F115: dms_frcp_fy6 | G115: 2020-21 | H115: 2021 | I115: dms_crcp_cy6
B116: dms_fy7 | C116: 2012-13 | D116: 2013 | E116: dms_cy7 | F116: dms_frcp_fy7 | G116: 2021-22 | H116: 2022 | I116: dms_crcp_cy7
B117: dms_fy8 | C117: 2013-14 | D117: 2014 | E117: dms_cy8 | F117: dms_frcp_fy8 | G117: 2022-23 | H117: 2023 | I117: dms_crcp_cy8 | L117: 2005-06 | M117: 2006
B118: dms_fy9 | C118: 2014-15 | D118: 2015 | E118: dms_cy9 | F118: dms_frcp_fy9 | G118: 2023-24 | H118: 2024 | I118: dms_crcp_cy9 | L118: 2006-07 | M118: 2007
B119: dms_fy10 | C119: 2015-16 | D119: 2016 | E119: dms_cy10 | F119: dms_frcp_fy10 | G119: 2024-25 | H119: 2025 | I119: dms_crcp_cy10 | L119: 2007-08 | M119: 2008
B120: dms_fy11 | C120: 2016-17 | D120: 2017 | E120: dms_cy11 | F120: dms_frcp_fy11 | G120: 2025-26 | H120: 2026 | I120: dms_crcp_cy11 | L120: 2008-09 | M120: 2009
B121: dms_fy12 | C121: 2017-18 | D121: 2018 | E121: dms_cy12 | F121: dms_frcp_fy12 | G121: 2026-27 | H121: 2027 | I121: dms_crcp_cy12 | L121: 2009-10 | M121: 2010
B122: dms_fy13 | C122: 2018-19 | D122: 2019 | E122: dms_cy13 | F122: dms_frcp_fy13 | G122: 2027-28 | H122: 2028 | I122: dms_crcp_cy13 | L122: 2010-11 | M122: 2011
B123: dms_fy14 | C123: 2019-20 | D123: 2020 | E123: dms_cy14 | F123: dms_frcp_fy14 | G123: 2028-29 | H123: 2029 | I123: dms_crcp_cy14 | L123: 2011-12 | M123: 2012
B124: dms_fy15 | C124: 2019-20 | D124: 2020 | E124: dms_cy15 | F124: dms_frcp_fy15 | G124: 2029-30 | H124: 2030 | I124: dms_crcp_cy15 | L124: 2012-13 | M124: 2013
B125: dms_fy16 | C125: 2020-21 | D125: 2021 | E125: dms_cy16 | L125: 2013-14 | M125: 2014
B126: dms_fy17 | C126: 2021-22 | D126: 2022 | E126: dms_cy17 | L126: 2014-15 | M126: 2015
B127: dms_fy18 | C127: 2022-23 | D127: 2023 | E127: dms_cy18 | L127: 2015-16 | M127: 2016
B128: dms_fy19 | C128: 2023-24 | D128: 2024 | E128: dms_cy19 | L128: 2016-17 | M128: 2017
B129: dms_fy20 | C129: 2024-25 | D129: 2025 | E129: dms_cy20 | L129: 2017-18 | M129: 2018
L130: 2018-19 | M130: 2019
L131: 2019-20 | M131: 2020
L132: 2020-21 | M132: 2021
L133: 2021-22 | M133: 2022
L134: 2022-23 | M134: 2023
L135: 2023-24 | M135: 2024
L136: 2024-25 | M136: 2025
L137: 2025-26 | M137: 2026
L138: 2026-27 | M138: 2027
L139: 2027-28 | M139: 2028
L140: 2028-29 | M140: 2029
L141: 2029-30 | M141: 2030
L142: 2030-31 | M142: 2031
L143: 2031-32 | M143: 2032
L144: 2032-33 | M144: 2033
L145: 2033-34 | M145: 2034
L146: 2034-35 | M146: 2035
L147: 2035-36 | M147: 2036

Sheet Contents
B1: =SheetHeader -> REGULATORY REPORTING STATEMENT
B2: =dms_TradingName -> Essential Energy
B3: =CONCATENATE(FRCP_y1," to ",FRCP_y5) -> 2019-20 to 2023-24
B4: CONTENTS
E7: 1. Business and other details | L7: 2. Expenditure | S7: 3. Economic benchmarking
E27: 4. Alternative control services | L27: 5. Network information | S27: 6. Service & quality
E34: 7. Other templates

Sheet Instructions
B2: =CONCATENATE(dms_Segment," Network Service Provider") -> Distribution Network Service Provider
B3: =IF(dms_Model="Reset","Regulatory Proposal RIN Template","Annual Reporting RIN") -> Regulatory Proposal RIN Template
C4: =CONCATENATE("This template is to be used by ",dms_TradingName," to fulfil its reporting obligations to the AER.") -> This template is to be used by Essential Energy to fulfil its reporting obligations to the AER.
C5: INSTRUCTIONS
C6: Complete the Business & other details worksheet before entering data or values in any other worksheets. The Business & other details worksheet is linked to other worksheets within the workbook and automatically generates certain column headings and conditional formatting.
C8: Identifying CONFIDENTIAL INFORMATION: Please use the macro at the top of each worksheet to identify confidential information. See Returning completed responses below, for how to deal with confidential and public information.
C9: -Do this by selecting the cell or cells that contain confidential information and then run the Mark selected cells as CONFIDENTIAL macro. This will format the cells a specific colour that is identified by the AER's database which in turn marks that information as confidential. -To reverse this, select the cell or cells and run the Return cells to NON-CONFIDENTIAL macro.
C11: UNITS OF MEASURE All amounts are to be unrounded and reported on a one for one basis: that is 1000 is to be entered as '1000'. Applicable units of measure may be identified in the table column headings or row descriptors.
C13: COLOUR CODING OF INPUT / NON-INPUT CELLS:
D14: Yellow = Input cell (mandatory)
D15: Darker yellow = input cell (mandatory)
D16: Orange = input cell (if data available)
D17: Grey = Not applicable/No inputs required
D18: PLEASE DO NOT ENTER TEXT into cells that are to contain numeric data.
C21: WORKSHEET NAVIGATION Many tables in the worksheets have been "grouped" to allow for easy navigation. To ungroup or group data use the outline symbols in the left margin (for Row groupings) or above the columns (for column groupings).
C23: RETURNING COMPLETED RESPONSES Please return two (2) files to the AER: 1. A confidential version which must contain a complete set of all responses with confidential information marked using the Mark selection CONFIDENTIAL macro and which has been completed using the locked template file provided by the AER. 2. A public version with confidential information either removed completely or aggregated in some form together with writtten consent to disclose the public version of the response. Use the drop down box on the Business and other details worksheet to identify the file as either confidential ('consolidated') or public.
C25: SUBMITTING AMENDED DATA TO THE AER If an NSP wishes to correct data previously submitted to the AER it should resubmit that data using the original completed submission as the starting point. Please make any necessary changes to the data. Data that is not being amended should be left unchanged. NSPs must identify the reason for the amendments in the Amendment Reason box on the Business and other details worksheet. NSPs may provide further details regarding any amendments in the Amendments worksheet. .
C26: NSP may use Amended Data macro to highlight cells that contain amended data. NB: if data is also CONFIDENTIAL, re-apply the Confidentiality macro after applying the Amended macro
C27: Please resubmit two (2) files - a confidential version and a public version of the amended submission to the AER

Sheet Business & other details
B1: =IF(dms_DataQuality="backcast",INDEX(dms_Worksheet_List,MATCH(dms_Model,dms_Model_List))&" BACKCAST",INDEX(dms_Worksheet_List,MATCH(dms_Model,dms_Model_List))) -> REGULATORY REPORTING STATEMENT
B2: =INDEX(dms_TradingNameFull_List,MATCH(dms_TradingName,dms_TradingName_List)) -> Essential Energy
B3: =IF(SUM(dms_SingleYear_Model)>0,CONCATENATE(CRY," to ",FRY),CONCATENATE(FRCP_y1," to ",dms_MultiYear_FinalYear_Result)) -> 2019-20 to 2023-24
B4: BUSINESS & OTHER DETAILS
B7: Instructions
B8: Complete the following business details regulatory template before entering data or values in any other regulatory template. This regulatory template is linked to other cells within the spreadsheet and automatically generates column headings and conditional formatting to distinguish business specific input and non-input cells.
B10: SUBMISSION PARTICULARS INPUT SHEETS
B12: ENTITY DETAILS
B14: Short name | C14: Essential Energy | F14: Select business name from drop down list first
B15: ACN / ABN | C15: =INDEX(dms_ABN_List,MATCH(dms_TradingName,dms_TradingName_List)) -> 37428185226
B18: Business address | C18: Address 1 | E18: =INDEX(dms_Addr1_List,MATCH(dms_TradingName,dms_TradingName_List)) -> 8 Buller Street
D19: Address 2 | E19: =IF(ISBLANK(INDEX(dms_Addr2_List,MATCH(dms_TradingName,dms_TradingName_List))),"",INDEX(dms_Addr2_List,MATCH(dms_TradingName,dms_TradingName_List))) -> 
C20: Suburb | E20: =INDEX(dms_Suburb_List,MATCH(dms_TradingName,dms_TradingName_List)) -> PORT MACQUARIE
D21: State | E21: =INDEX(dms_State_List,MATCH(dms_TradingName,dms_TradingName_List)) -> NSW | F21: p/code | G21: =INDEX(dms_PostCode_List,MATCH(dms_TradingName,dms_TradingName_List)) -> 2444
B23: Postal address | C23: Address 1 | E23: =INDEX(dms_PAddr1_List,MATCH(dms_TradingName,dms_TradingName_List)) -> PO Box 5730
D24: Address 2 | E24: =IF(ISBLANK(INDEX(dms_PAddr2_List,MATCH(dms_TradingName,dms_TradingName_List))),"",INDEX(dms_PAddr2_List,MATCH(dms_TradingName,dms_TradingName_List))) -> 
C25: Suburb | E25: =INDEX(dms_PSuburb_List,MATCH(dms_TradingName,dms_TradingName_List)) -> PORT MACQUARIE
D26: State | E26: =INDEX(dms_PState_List,MATCH(dms_TradingName,dms_TradingName_List)) -> NSW | F26: p/code | G26: =INDEX(dms_PPostCode_List,MATCH(dms_TradingName,dms_TradingName_List)) -> 2444
B29: Contact name/s | C29: Natalie Lindsay
B30: Contact phone/s | C30: 02 6589 8419
B31: Contact email address/s | C31: natalie.lindsay@essentialenergy.com.au
B33: REGULATORY CONTROL PERIODS
B35: Forthcoming regulatory control period | C35: 2019-20 | D35: =dms_FRCP_y2 -> 2020-21 | E35: =dms_FRCP_y3 -> 2021-22 | F35: =dms_FRCP_y4 -> 2022-23 | G35: =dms_FRCP_y5 -> 2023-24 | H35: =dms_FRCP_y6 -> 2024-25 | I35: =dms_FRCP_y7 -> 2025-26 | J35: =dms_FRCP_y8 -> 2026-27 | K35: =dms_FRCP_y9 -> 2027-28 | L35: =dms_FRCP_y10 -> 2028-29
B38: Current regulatory control period | C38: =dms_CRCP_FirstYear_Result -> 2014-15 | D38: =IF(dms_RPT="financial",VALUE(LEFT(CRCP_y1,4)+1)&"-"&TEXT(MID(CRCP_y1,3,2)+2,"00"),VALUE(LEFT(CRCP_y1,4)+1)) -> 2015-16 | E38: =IF(dms_RPT="financial",VALUE(LEFT(CRCP_y2,4)+1)&"-"&TEXT(VALUE(MID(CRCP_y2,3,2)+2),"00"),VALUE(LEFT(CRCP_y2,4)+1)) -> 2016-17 | F38: =IF(dms_RPT="financial",VALUE(LEFT(CRCP_y3,4)+1)&"-"&TEXT(VALUE(MID(CRCP_y3,3,2)+2),"00"),VALUE(LEFT(CRCP_y3,4)+1)) -> 2017-18 | G38: =IF(dms_RPT="financial",VALUE(LEFT(CRCP_y4,4)+1)&"-"&TEXT(VALUE(MID(CRCP_y4,3,2)+2),"00"),VALUE(LEFT(CRCP_y4,4)+1)) -> 2018-19 | H38: =IF(dms_RPT="financial",VALUE(LEFT(CRCP_y5,4)+1)&"-"&TEXT(VALUE(MID(CRCP_y5,3,2)+2),"00"),VALUE(LEFT(CRCP_y5,4)+1)) -> 2019-20 | I38: =IF(dms_RPT="financial",VALUE(LEFT(CRCP_y6,4)+1)&"-"&TEXT(VALUE(MID(CRCP_y6,3,2)+2),"00"),VALUE(LEFT(CRCP_y6,4)+1)) -> 2020-21 | J38: =IF(dms_RPT="financial",VALUE(LEFT(CRCP_y7,4)+1)&"-"&TEXT(VALUE(MID(CRCP_y7,3,2)+2),"00"),VALUE(LEFT(CRCP_y7,4)+1)) -> 2021-22 | K38: =IF(dms_RPT="financial",VALUE(LEFT(CRCP_y8,4)+1)&"-"&TEXT(VALUE(MID(CRCP_y8,3,2)+2),"00"),VALUE(LEFT(CRCP_y8,4)+1)) -> 2022-23 | L38: =IF(dms_RPT="financial",VALUE(LEFT(CRCP_y9,4)+1)&"-"&TEXT(VALUE(MID(CRCP_y9,3,2)+2),"00"),VALUE(LEFT(CRCP_y9,4)+1)) -> 2023-24
B41: Previous regulatory control period | C41: =IF(dms_RPT="financial",VALUE(LEFT(PRCP_y2,4)-1)&"-"&TEXT(VALUE(MID(PRCP_y2,3,2)),"00"),VALUE(LEFT(PRCP_y2,4)-1)) -> 2009-10 | D41: =IF(dms_RPT="financial",VALUE(LEFT(PRCP_y3,4)-1)&"-"&TEXT(VALUE(MID(PRCP_y3,3,2)),"00"),VALUE(LEFT(PRCP_y3,4)-1)) -> 2010-11 | E41: =IF(dms_RPT="financial",VALUE(LEFT(PRCP_y4,4)-1)&"-"&TEXT(VALUE(MID(PRCP_y4,3,2)),"00"),VALUE(LEFT(PRCP_y4,4)-1)) -> 2011-12 | F41: =IF(dms_RPT="financial",VALUE(LEFT(PRCP_y5,4)-1)&"-"&TEXT(VALUE(RIGHT(PRCP_y5,2)-1),"00"),VALUE(LEFT(PRCP_y5,4)-1)) -> 2012-13 | G41: =IF(dms_RPT="financial",VALUE(LEFT(CRCP_y1,4)-1)&"-"&TEXT(VALUE(RIGHT(CRCP_y1,2)-1),"00"),VALUE(LEFT(CRCP_y1,4)-1)) -> 2013-14
B44: Commencing regulatory year | C44: 2019-20 | D44: CRY
B46: Last completed regulatory year | C46: 2023-24 | D46: dms_FinalYear
B52: Source | C52: Reporting | E52: Please select the correct submission type from the dropdown list.
B53: Data quality (actual, estimate, public, consolidated) | C53: Consolidated
B54: Amended RIN submission - amendment reason
B55: Submission Date | C55: dd/mm/yyyy | D55: dms_SubmissionDate | E55: Please enter date this file submitted to AER (dd/mm/yyyy)
B56: EBSS - First application of scheme in forthcoming period? | C56: No
B57: Sector | C57: =INDEX(dms_Sector_List,MATCH(dms_TradingName,dms_TradingName_List)) -> Electricity | D57: dms_Sector | E57: =INDEX(dms_Sector_List,MATCH(dms_TradingName,dms_TradingName_List))
B58: Segment | C58: =INDEX(dms_Segment_List,MATCH(dms_TradingName,dms_TradingName_List)) -> Distribution | D58: dms_Segment | E58: =INDEX(dms_Segment_List,MATCH(dms_TradingName,dms_TradingName_List))
B59: Regulatory Year Ending | C59: =IF(dms_MultiYear_Flag=1,LEFT(dms_Specified_FinalYear,2)&RIGHT(dms_Specified_FinalYear,2),INDEX(dms_RYE_Formula_Result,MATCH(dms_Model,dms_Model_List))) -> 2024 | D59: dms_RYE | E59: =IF(dms_MultiYear_Flag=1,LEFT(dms_Specified_FinalYear,2)&RIGHT(dms_Specified_FinalYear,2),INDEX(dms_RYE_Formula_Result,MATCH(dms_Model,dms_Model_List)))
B60: Reporting Period Type | C60: =INDEX(dms_RPT_List,MATCH(dms_TradingName,dms_TradingName_List)) -> Financial | D60: dms_RPT | E60: =INDEX(dms_RPT_List,MATCH(dms_TradingName,dms_TradingName_List))
B61: Model or RIN Type | C61: Reset | D61: dms_Model | E61: Drop down selection
B62: Security Classification | C62: Public | D62: dms_Classification | E62: Always Public
B63: Template - version no. | C63: 5 | D63: dms_TemplateNumber
B64: Dollar $ real month | C64: =INDEX(dms_RPTMonth_List,MATCH(dms_TradingName,dms_TradingName_List)) -> June | D64: dms_RPTMonth | E64: =INDEX(dms_RPTMonth_List,MATCH(dms_TradingName,dms_TradingName_List))
B65: Dollar $ real (the last month before the FRCP_y1) | C65: =CONCATENATE(dms_RPTMonth)&" "&VALUE((LEFT(dms_CRCP_FinalYear_Result,2)&RIGHT(dms_CRCP_FinalYear_Result,2))) -> June 2019 | D65: dms_DollarReal | E65: =IF(SUM(dms_SingleYear_Model)>0,CONCATENATE(dms_RPTMonth)&" "&VALUE((LEFT(CRY,2))&RIGHT(CRY,2)),CONCATENATE(dms_RPTMonth)&" "&VALUE((LEFT(dms_CRCP_FinalYear_Result,2)&RIGHT(dms_CRCP_FinalYear_Result,2))))
B66: Form of control | C66: =INDEX(dms_FormControl_List,MATCH(dms_TradingName,dms_TradingName_List)) -> Revenue cap | D66: dms_FormControl | E66: =INDEX(dms_FormControl_List,MATCH(dms_TradingName,dms_TradingName_List))
B67: RIN response - version no. | C67: 1 | D67: dms_RINversion
B68: Jurisdiction | C68: =INDEX(dms_JurisdictionList,MATCH(dms_TradingName,dms_TradingName_List)) -> NSW | D68: dms_Jurisdiction | E68: =INDEX(dms_JurisdictionList,MATCH(dms_TradingName,dms_TradingName_List))
B69: Backcast Multiyear EB, CA or ARR? | C69: 0 | D69: dms_MultiYear_Flag | E69: 1=y, 0-n
C70: 2013 | D70: dms_Specified_FinalYear | E70: The result here is returned to dms_CRCP_FinalYear_Result if dms_MultiYear_Flag is set to 1
B71: Single Year Model T/F | C71: =IF(dms_Model="EB",1,0) -> 0 | D71: dms_EB
C72: =IF(dms_Model="CA",1,0) -> 0 | D72: dms_CA | E72: =dms_SingleYear_Model
C73: =IF(dms_Model="ARR",1,0) -> 0 | D73: dms_ARR
B74: Single Year Final Year Reference | C74: CRY | D74: dms_SingleYear_FinalYear_Ref | E74: This is the reference for EB, CA & ARR RINs
B75: Single Year Final Year Result | C75: =INDIRECT(dms_SingleYear_FinalYear_Ref) ->  | D75: dms_SingleYear_FinalYear_Result | E75: =INDIRECT(dms_SingleYear_FinalYear_Ref) | I75: Formula errors OK
B76: FRCP length in years | C76: =INDEX(dms_FRCPlength_List,MATCH(dms_TradingName,dms_TradingName_List)) -> 5 | D76: dms_FRCPlength_Num | E76: =INDEX(dms_FRCPlength_List,MATCH(dms_TradingName,dms_TradingName_List))
B77: Multi Year Final Year Reference | C77: =INDEX(dms_FinalYear_List,MATCH(dms_FRCPlength_Num,dms_FRCPlength_Num_List)) -> dms_FRCP_y5 | D77: dms_MultiYear_FinalYear_Ref | E77: =INDEX(dms_FinalYear_List,MATCH(dms_FRCPlength_Num,dms_FRCPlength_Num_List))
B78: Multi Year Final Year Result | C78: =IF(dms_MultiYear_Flag=0,INDIRECT(dms_MultiYear_FinalYear_Ref),dms_Specified_FinalYear) -> 2023-24 | D78: dms_MultiYear_FinalYear_Result | E78: =IF(dms_MultiYear_Flag=0,INDIRECT(dms_MultiYear_FinalYear_Ref),dms_Specified_FinalYear) | I78: Formula errors OK
B79: CRCP length in years | C79: =INDEX(dms_CRCPlength_List,MATCH(dms_TradingName,dms_TradingName_List)) -> 5 | D79: dms_CRCPlength_Num | E79: =INDEX(dms_CRCPlength_List,MATCH(dms_TradingName,dms_TradingName_List))
B80: CRCP Final Year Reference | C80: =INDEX(dms_CFinalYear_List,MATCH(dms_CRCPlength_Num,dms_CRCPlength_Num_List)) -> CRCP_y5 | D80: dms_CRCP_FinalYear_Ref | E80: =INDEX(dms_CFinalYear_List,MATCH(dms_CRCPlength_Num,dms_CRCPlength_Num_List))
B81: CRCP First Year Result | C81: =INDEX(dms_CRCP_years,MATCH(dms_CRCPlength_Num,dms_CRCP_index)) -> 2014-15 | D81: dms_CRCP_FirstYear_Result | E81: =INDEX(dms_CRCP_years,MATCH(dms_CRCPlength_Num,dms_CRCP_index))
B82: CRCP Final Year Result | C82: =IF(dms_MultiYear_Flag=0,(IF(SUM(dms_SingleYear_Model)>0,CRY,dms_CRCP_yZ)),dms_Specified_FinalYear) -> 2018-19 | D82: dms_CRCP_FinalYear_Result | E82: =IF(dms_MultiYear_Flag=0,(IF(SUM(dms_SingleYear_Model)>0,CRY,dms_CRCP_yZ)),dms_Specified_FinalYear)
B83: Table 6.6.3 - Public lighting repair - no. business days | C83: =INDEX(dms_663_List,MATCH(dms_TradingName,dms_TradingName_List)) -> 5 | D83: dms_663
B84: Distribution Determination Reference | C84: =INDEX(dms_DeterminationRef_List,MATCH(dms_TradingName,dms_TradingName_List)) -> 2014-19 Distribution Determination | D84: dms_DeterminationRef
B85: Backcast templates only - unit of measure | C85: $0s | D85: dms_Backcast_UOM | E85: If the cover sheet is for Backcast data ensure to apply dms_Backcast_UOM named range to this field. Otherwise, do not apply this named range.
B86: EB/CA Unit of Measure for Monetary Values | C86: $0s | D86: dms_dollar_nom_UOM | E86: If the cover sheet is attached to an EB files make sure this field is set
B88: discard this record? | C88: NO | D88: dms_DISCARD | E88: If record is to be discarded from DB set this flag to YES
B89: CBD Feeder for this business | C89: =INDEX(dms_CBD_flag,MATCH(dms_TradingName,dms_TradingName_List)) -> 0 | D89: dms_CBD_flag_NSP
B90: Urban Feeder for this business | C90: =INDEX(dms_Urban_flag,MATCH(dms_TradingName,dms_TradingName_List)) -> 0 | D90: dms_Urban_flag_NSP
B91: Short rural Feeder for this business | C91: =INDEX(dms_ShortRural_flag,MATCH(dms_TradingName,dms_TradingName_List)) -> YES | D91: dms_ShortRural_flag_NSP
B92: Long rural Feeder for this business | C92: =INDEX(dms_LongRural_flag,MATCH(dms_TradingName,dms_TradingName_List)) -> YES | D92: dms_LongRural_flag_NSP
B95: USES NAMED RANGES FLAG | C95: yes | D95: dms_Defined_Names_Used

Sheet CPI series
B1: =SheetHeader -> REGULATORY REPORTING STATEMENT
B2: =dms_TradingName -> Essential Energy
B3: =dms_Reg_Year_Span -> 2019-20 to 2023-24
B4: CPI SERIES
B8: NOMINATED CPI SERIES
B10: Name of CPI series | C10: ABS CPI index - December (rebased index in Dec 2012)
C12: =CRCP_y1 -> 2014-15 | D12: =CRCP_y2 -> 2015-16 | E12: =CRCP_y3 -> 2016-17 | F12: =CRCP_y4 -> 2017-18 | G12: =CRCP_y5 -> 2018-19 | H12: =FRCP_y1 -> 2019-20 | I12: =FRCP_y2 -> 2020-21 | J12: =FRCP_y3 -> 2021-22 | K12: =FRCP_y4 -> 2022-23 | L12: =FRCP_y5 -> 2023-24
B13: Series data | C13: 103.5 | D13: 106.075 | E13: 107.675 | F13: 109.05 | G13: 111.64539 | H13: 114.4365248 | I13: 117.2974379 | J13: 120.2298738 | K13: 123.2356207 | L13: 126.3165112

Sheet 2.1 Expenditure summary
B1: =SheetHeader -> REGULATORY REPORTING STATEMENT
B2: =dms_TradingName -> Essential Energy
B3: =dms_Reg_Year_Span -> 2019-20 to 2023-24
B4: 2.1 EXPENDITURE SUMMARY & RECONCILIATION
B8: 2.1.1 - STANDARD CONTROL SERVICES CAPEX
C9: =CONCATENATE("Forecast ($0's, real ", dms_DollarReal, ")") -> Forecast ($0's, real June 2019)
C10: =CRCP_y4 -> 2017-18 | D10: =CRCP_y5 -> 2018-19 | E10: =FRCP_y1 -> 2019-20 | F10: =FRCP_y2 -> 2020-21 | G10: =FRCP_y3 -> 2021-22 | H10: =FRCP_y4 -> 2022-23 | I10: =FRCP_y5 -> 2023-24
B11: Replacement expenditure | C11: 172519859.8 | D11: 178797800 | E11: 170518829.2 | F11: 166849456.2 | G11: 165252967.7 | H11: 160709962 | I11: 156366185.2
B12: Connections | C12: 92749591.46 | D12: 91926353.88 | E12: 93438184.95 | F12: 93376046.86 | G12: 93350654.37 | H12: 93348433.62 | I12: 93365891.14
B13: Augmentation Expenditure | C13: 38070347.35 | D13: 37615490 | E13: 40626175.62 | F13: 34686461.19 | G13: 29650633.18 | H13: 31165475.33 | I13: 29999688.34
B14: Non-network | C14: 84672789.62 | D14: 121110811.9 | E14: 146093657 | F14: 83472408.44 | G14: 94783023.05 | H14: 88505700.23 | I14: 82361853.79
B15: Capitalised network overheads | C15: 105207129 | D15: 97991647.54 | E15: 102024708.3 | F15: 90946543.46 | G15: 88302711.41 | H15: 86873461.35 | I15: 87872330.62
B16: Capitalised corporate overheads | C16: 41952490.12 | D16: 39014739.23 | E16: 35520603.55 | F16: 31548030.98 | G16: 27270832.62 | H16: 24649218.99 | I16: 23800233.65
B17: capcons (included in the above) | C17: 90025077.94 | D17: 87725558.93 | E17: 89704585.25 | F17: 89490377.46 | G17: 89371265.39 | H17: 89308328.18 | I17: 89293564.88
B20: 2.1.2 - STANDARD CONTROL SERVICES OPEX BY CATEGORY
C21: =CONCATENATE("Forecast ($0's, real ", dms_DollarReal, ")") -> Forecast ($0's, real June 2019)
C22: =CRCP_y4 -> 2017-18 | D22: =CRCP_y5 -> 2018-19
B23: Vegetation management | C23: 104771317.5 | D23: 118430560.8
B24: Maintenance | C24: 66076025.68 | D24: 73747714.93
B25: Emergency response | C25: 36016740.74 | D25: 38375200.71
B26: Non-network | C26: 0 | D26: 0
B27: Metering | C27: 0 | D27: 0
B28: Network overheads | C28: 93195586.51 | D28: 89740884.23
B29: Corporate overheads | C29: 50030698.29 | D29: 48830409.33
B30: Total Opex | C30: =SUM(C23:C29) -> 350090368.7 | D30: =SUM(D23:D29) -> 369124770
B33: 2.1.3 - ALTERNATIVE CONTROL SERVICES CAPEX
C34: =CONCATENATE("Forecast ($0's, real ", dms_DollarReal, ")") -> Forecast ($0's, real June 2019)
C35: =CRCP_y4 -> 2017-18 | D35: =CRCP_y5 -> 2018-19 | E35: =FRCP_y1 -> 2019-20 | F35: =FRCP_y2 -> 2020-21 | G35: =FRCP_y3 -> 2021-22 | H35: =FRCP_y4 -> 2022-23 | I35: =FRCP_y5 -> 2023-24
B36: Connections
B37: Metering | C37: 0 | D37: 0 | E37: 0 | F37: 0 | G37: 0 | H37: 0 | I37: 0
B38: Public lighting | C38: 2925276 | D38: 2714907 | E38: 3097936 | F38: 2543511 | G38: 1491741 | H38: 2412271 | I38: 2228603
B39: Fee and quoted | C39: 0 | D39: 0 | E39: 0 | F39: 0 | G39: 0 | H39: 0 | I39: 0
B40: Total Capex | C40: =SUM(C36:C39) -> 2925276 | D40: 2714907 | E40: 3097936 | F40: 2543511 | G40: 1491741 | H40: 2412271 | I40: 2228603
B43: 2.1.4 - ALTERNATIVE CONTROL SERVICES OPEX
C44: =CONCATENATE("Forecast ($0's, real ", dms_DollarReal, ")") -> Forecast ($0's, real June 2019)
C45: =CRCP_y4 -> 2017-18 | D45: =CRCP_y5 -> 2018-19 | E45: =FRCP_y1 -> 2019-20 | F45: =FRCP_y2 -> 2020-21 | G45: =FRCP_y3 -> 2021-22 | H45: =FRCP_y4 -> 2022-23 | I45: =FRCP_y5 -> 2023-24
B46: Connections
B47: Metering | C47: 18835554.17 | D47: 18137529.92 | E47: 19156594.38 | F47: 17916526.53 | G47: 17142540.92 | H47: 17042678.09 | I47: 16947598.12
B48: Public lighting | C48: 13665650.26 | D48: 15089049.95 | E48: 10518810.95 | F48: 11196243.84 | G48: 12325876.2 | H48: 10514784.75 | I48: 13099192.28
B49: Fee and quoted | C49: 26122770.32 | D49: 24933215.22 | E49: 19416582.39 | F49: 19022936.03 | G49: 18805677.5 | H49: 18904453.08 | I49: 19863086.65
B50: Total Opex | C50: =SUM(C46:C49) -> 58623974.76 | D50: 58159795.09 | E50: 49091987.72 | F50: 48135706.4 | G50: 48274094.61 | H50: 46461915.92 | I50: 49909877.05
B53: 2.1.5 - DUAL FUNCTION ASSETS CAPEX
C54: =CONCATENATE("Forecast ($0's, real ", dms_DollarReal, ")") -> Forecast ($0's, real June 2019)
C55: =CRCP_y4 -> 2017-18 | D55: =CRCP_y5 -> 2018-19 | E55: =FRCP_y1 -> 2019-20 | F55: =FRCP_y2 -> 2020-21 | G55: =FRCP_y3 -> 2021-22 | H55: =FRCP_y4 -> 2022-23 | I55: =FRCP_y5 -> 2023-24
B56: Replacement expenditure
B57: Connections
B58: Augmentation Expenditure
B59: Non-network
B60: Capitalised network overheads
B61: Capitalised corporate overheads
B62: capcons (included in the above)
B65: 2.1.6 - DUAL FUNCTION ASSETS OPEX BY CATEGORY
C66: =CONCATENATE("Forecast ($0's, real ", dms_DollarReal, ")") -> Forecast ($0's, real June 2019)
C67: =CRCP_y4 -> 2017-18 | D67: =CRCP_y5 -> 2018-19
B68: Vegetation management
B69: Maintenance
B70: Emergency response
B71: Non-network
B72: Metering
B73: Network overheads
B74: Corporate overheads
B89: Total Opex | C89: =SUM(C68:C88) -> 0 | D89: =SUM(D68:D88) -> 0
B92: 2.1.7 - STANDARD CONTROL SERVICES CAPCONS
C93: =CONCATENATE("Forecast ($0's, real ", dms_DollarReal, ")") -> Forecast ($0's, real June 2019)
C94: =CRCP_y4 -> 2017-18 | D94: =CRCP_y5 -> 2018-19 | E94: =FRCP_y1 -> 2019-20 | F94: =FRCP_y2 -> 2020-21 | G94: =FRCP_y3 -> 2021-22 | H94: =FRCP_y4 -> 2022-23 | I94: =FRCP_y5 -> 2023-24
B95: Replacement expenditure
B96: Connections | C96: 88030483.97 | D96: 87241353.88 | E96: 88481070.25 | F96: 88389743.07 | G96: 88332971.99 | H96: 88298991.38 | I96: 88282764.33
B97: Augmentation Expenditure
B98: Non-network
B99: Capitalised network overheads | C99: 1425972.056 | D99: 346319.989 | E99: 907546.4619 | F99: 817170.0176 | G99: 793296.7991 | H99: 786248.8722 | I99: 795373.5156
B100: Capitalised corporate overheads | C100: 568621.9099 | D100: 137885.0586 | E100: 315968.5396 | F100: 283464.3743 | G100: 244996.6018 | H100: 223087.9296 | I100: 215427.0335
B101: Total Capcons | C101: =SUM(C95:C100) -> 90025077.94 | D101: =SUM(D95:D100) -> 87725558.93 | E101: 89704585.25 | F101: 89490377.46 | G101: 89371265.39 | H101: 89308328.18 | I101: 89293564.88
B104: 2.1.8 - STANDARD CONTROL SERVICES CAPITALISED OVERHEADS
C105: =CONCATENATE("Forecast ($0's, real ", dms_DollarReal, ")") -> Forecast ($0's, real June 2019)
C106: =CRCP_y4 -> 2017-18 | D106: =CRCP_y5 -> 2018-19 | E106: =FRCP_y1 -> 2019-20 | F106: =FRCP_y2 -> 2020-21 | G106: =FRCP_y3 -> 2021-22 | H106: =FRCP_y4 -> 2022-23 | I106: =FRCP_y5 -> 2023-24
B107: Replacement expenditure | C107: 112527427.9 | D107: 105397435.1 | E107: 101222356.1 | F107: 93227773.88 | G107: 89690694.24 | H107: 86325780.25 | I107: 84847035.31
B108: Connections | C108: 5072668.738 | D108: 3245911.196 | E108: 4166127.452 | F108: 3886750.769 | G108: 3761629.769 | H108: 3721658.029 | I108: 3768994.333
B109: Augmentation Expenditure | C109: 24831681.83 | D109: 22173517.61 | E109: 24116264.66 | F109: 19381193.29 | G109: 16092817.65 | H109: 16740617.33 | I109: 16278357.2
B110: Non-network | C110: 4727840.597 | D110: 6189522.851 | E110: 8040563.594 | F110: 5998856.51 | G110: 6028402.371 | H110: 4734624.736 | I110: 6778177.425
B111: capcons (included in the above) | C111: 1994593.966 | D111: 484205.0476 | E111: 1223515.002 | F111: 1100634.392 | G111: 1038293.401 | H111: 1009336.802 | I111: 1010800.549
B112: Total Capitalised Overheads | C112: =SUM(C107:C110) -> 147159619.1 | D112: =SUM(D107:D110) -> 137006386.8 | E112: 137545311.8 | F112: 122494574.4 | G112: 115573544 | H112: 111522680.3 | I112: 111672564.3

Sheet 2.2 Repex
B1: =SheetHeader -> REGULATORY REPORTING STATEMENT
B2: =dms_TradingName -> Essential Energy
B3: =dms_Reg_Year_Span -> 2019-20 to 2023-24
B4: 2.2 REPEX
B6: There is ONE table on this worksheet. The table has been sub-grouped for easy navigation. See the Instructions sheet on how to group or ungroup tables.
B8: 2.2.1 - REPLACEMENT EXPENDITURE, VOLUMES AND ASSET FAILURES BY ASSET CATEGORY
B9: EXPENDITURE
E10: =CONCATENATE("EXPENDITURE ($0's, real ", dms_DollarReal,")") -> EXPENDITURE ($0's, real June 2019)
B11: ASSET GROUP | C11: ASSET CATEGORY | E11: =CRCP_y4 -> 2017-18 | F11: =CRCP_y5 -> 2018-19 | G11: =FRCP_y1 -> 2019-20 | H11: =FRCP_y2 -> 2020-21 | I11: =FRCP_y3 -> 2021-22 | J11: =FRCP_y4 -> 2022-23 | K11: =FRCP_y5 -> 2023-24
B12: POLES BY: HIGHEST OPERATING VOLTAGE ; MATERIAL TYPE | C12: ˂ = 1 kV; Wood - replacement of staked pole | E12: 392814.2787 | F12: 410071.3766 | G12: 433025.1288 | H12: 411779.2019 | I12: 400988.2051 | J12: 395113.5384 | K12: 395549.9869
C13: ˂ = 1 kV; Wood - replacement of unstaked pole | E13: 6651909.883 | F13: 6944141.266 | G13: 7332839.69 | H13: 6973061.549 | I13: 6790327.004 | J13: 6690845.504 | K13: 6698236.316
C14: > 1 kV & < = 11 kV; Wood - replacement of staked pole | E14: 606681.3604 | F14: 780202.5679 | G14: 755491.5578 | H14: 718235.1683 | I14: 714882.3681 | J14: 687132.2974 | K14: 685183.8156
C15: > 1 kV & < = 11 kV; Wood - replacement of unstaked pole | E15: 12210429.85 | F15: 15702820.87 | G15: 15205472.38 | H15: 14455628.13 | I15: 14388147.68 | J15: 13829633.25 | K15: 13790416.95
C16: ˃ 11 kV & < = 22 kV; Wood - replacement of staked pole | E16: 562474.4387 | F16: 711763.3188 | G16: 703084.3942 | H16: 668412.417 | I16: 650320.7983 | J16: 639467.0993 | K16: 637653.7804
C17: ˃ 11 kV & < = 22 kV; Wood - replacement of unstaked pole | E17: 8867689.559 | F17: 11221303.08 | G17: 11084475.51 | H17: 10537854.53 | I17: 10252631.15 | J17: 10081517.18 | K17: 10052929.31
C18: > 22 kV & < = 66 kV; Wood - replacement of staked pole | E18: 77172.45852 | F18: 114348.6355 | G18: 187649.6067 | H18: 179198.1348 | I18: 219214.6664 | J18: 171051.1204 | K18: 171020.7205
C19: > 22 kV & < = 66 kV; Wood - replacement of unstaked pole | E19: 1279898.766 | F19: 1896462.549 | G19: 3112153.023 | H19: 2971986.067 | I19: 3635656.895 | J19: 2836868.516 | K19: 2836364.335
C20: > 66 kV & < = 132 kV; Wood - replacement of staked pole | E20: 36910.52566 | F20: 37140.32303 | G20: 97857.22087 | H20: 93449.87051 | I20: 90800.31004 | J20: 89201.29149 | K20: 89185.43825
C21: > 66 kV & < = 132 kV; Wood - replacement of unstaked pole | E21: 168694.7728 | F21: 169745.0319 | G21: 447243.7428 | H21: 427100.5193 | I21: 414991.0466 | J21: 407682.9396 | K21: 407610.4844
C22: > 132 kV; Wood - replacement of staked pole | E22: 0 | F22: 0 | G22: 0 | H22: 0 | I22: 0 | J22: 0 | K22: 0
C23: > 132 kV; Wood - replacement of unstaked pole | E23: 0 | F23: 0 | G23: 0 | H23: 0 | I23: 0 | J23: 0 | K23: 0
C24: ˂ = 1 kV; Concrete | E24: 95016.63075 | F24: 99190.89678 | G24: 104743.1089 | H24: 99603.99736 | I24: 96993.79652 | J24: 95572.79156 | K24: 95678.36274
C25: > 1 kV & < = 11 kV; Concrete | E25: 132619.0818 | F25: 167818.1111 | G25: 165771.8118 | H25: 157596.9234 | I25: 153331.3182 | J25: 150772.2551 | K25: 150344.7145
C26: ˃ 11 kV & < = 22 kV; Concrete | E26: 196165.7252 | F26: 248230.9559 | G26: 245204.1383 | H26: 233112.1159 | I26: 226802.5749 | J26: 223017.294 | K26: 222384.8902
C27: > 22 kV & < = 66 kV; Concrete | E27: 842164.4247 | F27: 39359.80197 | G27: 103705.0979 | H27: 99034.36743 | I27: 96226.47113 | J27: 94531.89639 | K27: 94515.09577
C28: > 66 kV & < = 132 kV; Concrete | E28: 12110.9814 | F28: 12186.38188 | G28: 32108.64544 | H28: 30662.51761 | I28: 29793.15103 | J28: 29268.48541 | K28: 29263.28369
C29: > 132 kV; Concrete | E29: 0 | F29: 0 | G29: 0 | H29: 0 | I29: 0 | J29: 0 | K29: 0
C30: ˂ = 1 kV; Steel | E30: 125939.2029 | F30: 131471.9579 | G30: 138831.1029 | H30: 132019.4995 | I30: 128559.825 | J30: 126676.3628 | K30: 126816.2914
C31: > 1 kV & < = 11 kV; Steel | E31: 9148.065305 | F31: 11576.09462 | G31: 11434.94088 | H31: 10871.03701 | I31: 10576.79553 | J31: 10400.27134 | K31: 10370.77958
C32: ˃ 11 kV & < = 22 kV; Steel | E32: 48789.68162 | F32: 61739.17129 | G32: 60986.35136 | H32: 57978.86406 | I32: 56409.57619 | J32: 55468.11382 | K32: 55310.82444
C33: > 22 kV & < = 66 kV; Steel | E33: 0 | F33: 0 | G33: 0 | H33: 0 | I33: 0 | J33: 0 | K33: 0
C34: > 66 kV & < = 132 kV; Steel | E34: 2264.552426 | F34: 2278.651066 | G34: 6003.783555 | H34: 5733.381663 | I34: 5570.824547 | J34: 5472.720788 | K34: 5471.748152
C35: > 132 kV; Steel | E35: 0 | F35: 0 | G35: 0 | H35: 0 | I35: 0 | J35: 0 | K35: 0
C36: Other | E36: 0 | F36: 0 | G36: 0 | H36: 0 | I36: 0 | J36: 0 | K36: 0
B37: POLE TOP STRUCTURES BY: HIGHEST OPERATING VOLTAGE | C37: ˂ = 1 kV | E37: 9923534.862 | F37: 9898207.282 | G37: 9062485.855 | H37: 8595029.508 | I37: 8314006.388 | J37: 8098239.906 | K37: 7959747.491
C38: > 1 kV & < = 11 kV | E38: 31312443.06 | F38: 31232525.13 | G38: 28595513.22 | H38: 27120514.6 | I38: 26233782.14 | J38: 25552958.64 | K38: 25115963.57
C39: ˃ 11 kV & < = 22 kV | E39: 8037243.112 | F39: 8016729.864 | G39: 7339864.577 | H39: 6961263.568 | I39: 6733658.066 | J39: 6558905.047 | K39: 6446737.638
C40: > 22 kV & < = 66 kV | E40: 5273415.634 | F40: 5259956.431 | G40: 4815849.921 | H40: 4567441.3 | I40: 4418104.221 | J40: 4303444.842 | K40: 4229849.287
C41: > 66 kV & < = 132 kV | E41: 128486.5395 | F41: 128158.6067 | G41: 117337.9711 | H41: 111285.506 | I41: 107646.9147 | J41: 104853.244 | K41: 103060.0915
C42: > 132 kV | E42: 0 | F42: 0 | G42: 0 | H42: 0 | I42: 0 | J42: 0 | K42: 0
C43: Other | E43: 0 | F43: 0 | G43: 0 | H43: 0 | I43: 0 | J43: 0 | K43: 0
B44: STAKING WOODEN POLES BY: HIGHEST OPERATING VOLTAGE | C44: ˂ = 1 Kv | D44: for year wooden pole staked | E44: 860499.5103 | F44: 1123581.933 | G44: 849527.2358 | H44: 807274.6419 | I44: 784250.0375 | J44: 768451.5228 | K44: 761113.7537
C45: > 1 kV & < = 11 kV | D45: for year wooden pole staked | E45: 786742.4095 | F45: 1027274.91 | G45: 776710.6156 | H45: 738079.6726 | I45: 717028.6058 | J45: 702584.2494 | K45: 695875.432
C46: ˃ 11 kV & < = 22 kV | D46: for year wooden pole staked | E46: 688399.6083 | F46: 898865.5462 | G46: 679621.7887 | H46: 645819.7135 | I46: 627400.03 | J46: 614761.2182 | K46: 608891.003
C47: > 22 kV & < = 66 kV | D47: for year wooden pole staked | E47: 122928.5015 | F47: 160511.7047 | G47: 121361.0337 | H47: 115324.9488 | I47: 112035.7196 | J47: 109778.789 | K47: 108730.5362
C48: > 66 kV & < = 132 kV | D48: for year wooden pole staked | E48: 0 | F48: 0 | G48: 0 | H48: 0 | I48: 0 | J48: 0 | K48: 0
C49: > 132 kV | D49: for year wooden pole staked | E49: 0 | F49: 0 | G49: 0 | H49: 0 | I49: 0 | J49: 0 | K49: 0
B50: OVERHEAD CONDUCTORS BY: Highest operating voltage; Number of phases (at HV) | C50: ˂ = 1 kV | D50: per km | E50: 1174083.553 | F50: 1137945.754 | G50: 882975.7171 | H50: 1117640.505 | I50: 1016287.656 | J50: 1291377.892 | K50: 1250177.301
C51: > 1 kV & < = 11 kV | D51: per km | E51: 10793529.39 | F51: 8701185.033 | G51: 10389132.92 | H51: 11729027.5 | I51: 11112757.65 | J51: 12677853.93 | K51: 12415908.19
C52: ˃ 11 kV & < = 22 kV ; SWER | D52: per km | E52: 337388.6579 | F52: 269746.2936 | G52: 325110.6919 | H52: 367040.4713 | I52: 345096.404 | J52: 396732.4215 | K52: 388535.2639
C53: ˃ 11 kV & < = 22 kV ; Single-Phase | D53: per km | E53: 1731351.141 | F53: 1384236.08 | G53: 1668345.258 | H53: 1883513.047 | I53: 1770904.382 | J53: 2035880.918 | K53: 1993816.202
C54: ˃ 11 kV & < = 22 kV ; Multiple-Phase | D54: per km | E54: 2762566.887 | F54: 2208705.484 | G54: 2662033.863 | H54: 3005358.446 | I54: 2825678.565 | J54: 3248478.647 | K54: 3181359.626
C55: > 22 kV & < = 66 kV | D55: per km | E55: 825201.308 | F55: 493435.2384 | G55: 790218.7115 | H55: 787294.7722 | I55: 968456.7686 | J55: 778659.7784 | K55: 775173.0097
C56: > 66 kV & < = 132 kV | D56: per km | E56: 0 | F56: 0 | G56: 0 | H56: 0 | I56: 0 | J56: 0 | K56: 0
C57: > 132 kV | D57: per km | E57: 0 | F57: 0 | G57: 0 | H57: 0 | I57: 0 | J57: 0 | K57: 0
C58: Other | D58: per km | E58: 0 | F58: 0 | G58: 0 | H58: 0 | I58: 0 | J58: 0 | K58: 0
B59: UNDERGROUND CABLES BY: Highest operating voltage | C59: ˂ = 1 kV | D59: per km | E59: 3137835.47 | F59: 2399309.835 | G59: 2030632.573 | H59: 1951231.987 | I59: 1879005.282 | J59: 1814621.398 | K59: 1770565.45
C60: > 1 kV & < = 11 kV | D60: per km | E60: 803661.5528 | F60: 698475.2241 | G60: 489210.2789 | H60: 470081.4698 | I60: 452680.9578 | J60: 437169.9008 | K60: 426556.1526
C61: > 11 kV & < = 22 kV | D61: per km | E61: 152468.6886 | F61: 132512.9976 | G61: 92811.76809 | H61: 89182.69758 | I61: 85881.51535 | J61: 82938.79584 | K61: 80925.18171
C62: > 22 kV & < = 33 kV | D62: per km | E62: 943960.8203 | F62: 400066.9377 | G62: 249673.1529 | H62: 239910.5819 | I62: 231030.0639 | J62: 223113.8473 | K62: 217697.0193
C63: > 33 kV & < = 66 kV | D63: per km | E63: 1763745.284 | F63: 1674007.361 | G63: 274640.4682 | H63: 263901.6401 | I63: 254133.0703 | J63: 245425.232 | K63: 239466.7212
C64: > 66 kV & < = 132 kV | D64: per km | E64: 835928.625 | F64: 484080.9946 | G64: 302104.515 | H64: 290291.8041 | I64: 279546.3773 | J64: 269967.7553 | K64: 263413.3933
C65: > 132 kV | D65: per km | E65: 0 | F65: 0 | G65: 0 | H65: 0 | I65: 0 | J65: 0 | K65: 0
C66: Other | D66: per km | E66: 0 | F66: 0 | G66: 0 | H66: 0 | I66: 0 | J66: 0 | K66: 0
B67: SERVICE LINES BY: Connection voltage; Customer type; Connection complexity | C67: ˂ = 11 kV ; Residential ; Simple Type | D67: per number of spans | E67: 5711335.26 | F67: 7134816.302 | G67: 5550348.609 | H67: 5550965.665 | I67: 5162427.328 | J67: 4977633.245 | K67: 4847111.118
C68: ˂ = 11 kV ; Commercial & Industrial ; Simple Type | D68: per number of spans | E68: 397201.2454 | F68: 496198.8382 | G68: 386021.918 | H68: 386057.8933 | I68: 359041.4845 | J68: 346189.4978 | K68: 337112.1196
C69: ˂ = 11 kV ; Residential ; Complex Type | D69: per number of spans | E69: 0 | F69: 0 | G69: 0 | H69: 0 | I69: 0 | J69: 0 | K69: 0
C70: ˂ = 11 kV ; Commercial & Industrial ; Complex Type | D70: per number of spans | E70: 0 | F70: 0 | G70: 0 | H70: 0 | I70: 0 | J70: 0 | K70: 0
C71: ˂ = 11 kV ; Subdivision ; Complex Type | D71: per number of spans | E71: 0 | F71: 0 | G71: 0 | H71: 0 | I71: 0 | J71: 0 | K71: 0
C72: > 11 kV & < = 22 kV ; Commercial & Industrial | D72: per number of spans | E72: 0 | F72: 0 | G72: 0 | H72: 0 | I72: 0 | J72: 0 | K72: 0
C73: > 11 kV & < = 22 kV ; Subdivision | D73: per number of spans | E73: 0 | F73: 0 | G73: 0 | H73: 0 | I73: 0 | J73: 0 | K73: 0
C74: > 22 kV & < = 33 kV ; Commercial & Industrial | D74: per number of spans | E74: 0 | F74: 0 | G74: 0 | H74: 0 | I74: 0 | J74: 0 | K74: 0
C75: > 22 kV & < = 33 kV ; Subdivision | D75: per number of spans | E75: 0 | F75: 0 | G75: 0 | H75: 0 | I75: 0 | J75: 0 | K75: 0
C76: > 33 kV & < = 66 kV ; Commercial & Industrial | D76: per number of spans | E76: 0 | F76: 0 | G76: 0 | H76: 0 | I76: 0 | J76: 0 | K76: 0
C77: > 33 kV & < = 66 kV ; Subdivision | D77: per number of spans | E77: 0 | F77: 0 | G77: 0 | H77: 0 | I77: 0 | J77: 0 | K77: 0
C78: > 66 kV & < = 132 kV ; Commercial & Industrial | D78: per number of spans | E78: 0 | F78: 0 | G78: 0 | H78: 0 | I78: 0 | J78: 0 | K78: 0
C79: > 66 kV & < = 132 kV ; Subdivision | D79: per number of spans | E79: 0 | F79: 0 | G79: 0 | H79: 0 | I79: 0 | J79: 0 | K79: 0
C80: > 132 kV ; Commercial & Industrial | D80: per number of spans | E80: 0 | F80: 0 | G80: 0 | H80: 0 | I80: 0 | J80: 0 | K80: 0
C81: > 132 kV ; Subdivision | D81: per number of spans | E81: 0 | F81: 0 | G81: 0 | H81: 0 | I81: 0 | J81: 0 | K81: 0
C82: Other | D82: per number of spans | E82: 0 | F82: 0 | G82: 0 | H82: 0 | I82: 0 | J82: 0 | K82: 0
B83: TRANSFORMERS BY: Mounting type; Highest operating voltage; Ampere rating; Number of phases (at LV) | C83: Pole Mounted ; < = 22kV ; < = 60 kVA ; Single Phase | E83: 977483.6835 | F83: 1297035.514 | G83: 1484814.045 | H83: 1685883.904 | I83: 1640479.256 | J83: 1588380.371 | K83: 1523255.914
C84: Pole Mounted ; < = 22kV ; > 60 kVA and < = 600 kVA ; Single Phase | E84: 23212.01359 | F84: 30800.31563 | G84: 35259.43642 | H84: 40034.18241 | I84: 38955.97178 | J84: 37718.7951 | K84: 36172.30404
C85: Pole Mounted ; < = 22kV ; > 600 kVA ; Single Phase | E85: 3992.216309 | F85: 5297.322521 | G85: 6064.243266 | H85: 6885.448146 | I85: 6700.007531 | J85: 6487.226467 | K85: 6221.246663
C86: Pole Mounted ; < = 22kV ; < = 60 kVA ; Multiple Phase | E86: 594449.8355 | F86: 788783.0361 | G86: 902979.2307 | H86: 1025258.453 | I86: 997645.9355 | J86: 965962.3646 | K86: 926357.3837
C87: Pole Mounted ; < = 22kV ; > 60 kVA and < = 600 kVA ; Multiple Phase | E87: 1228302.386 | F87: 1629850.035 | G87: 1865811.844 | H87: 2118475.486 | I87: 2061420.174 | J87: 1995952.907 | K87: 1914117.755
C88: Pole Mounted ; < = 22kV ; > 600 kVA ; Multiple Phase | E88: 4790.659571 | F88: 6356.787025 | G88: 7277.091919 | H88: 8262.537775 | I88: 8040.009037 | J88: 7784.671761 | K88: 7465.495996
C89: Kiosk Mounted ; < = 22kV ; < = 60 kVA ; Single Phase | E89: 11994.28153 | F89: 13693.03189 | G89: 12117.46554 | H89: 11643.65561 | I89: 11212.65464 | J89: 10828.45442 | K89: 10565.5578
C90: Kiosk Mounted ; < = 22kV ; > 60 kVA and < = 600 kVA ; Single Phase | E90: 0 | F90: 0 | G90: 0 | H90: 0 | I90: 0 | J90: 0 | K90: 0
C91: Kiosk Mounted ; < = 22kV ; > 600 kVA ; Single Phase | E91: 0 | F91: 0 | G91: 0 | H91: 0 | I91: 0 | J91: 0 | K91: 0
C92: Kiosk Mounted ; < = 22kV ; < = 60 kVA ; Multiple Phase | E92: 0 | F92: 0 | G92: 0 | H92: 0 | I92: 0 | J92: 0 | K92: 0
C93: Kiosk Mounted ; < = 22kV ; > 60 kVA and < = 600 kVA ; Multiple Phase | E93: 543065.452 | F93: 619979.8243 | G93: 548642.8582 | H93: 527190.1517 | I93: 507675.7077 | J93: 490280.2623 | K93: 478377.0842
C94: Kiosk Mounted ; < = 22kV ; > 600 kVA ; Multiple Phase | E94: 259726.9553 | F94: 296512.0899 | G94: 262394.4105 | H94: 252134.4204 | I94: 242801.4254 | J94: 234481.8646 | K94: 228789.0402
C95: Ground Outdoor / Indoor Chamber Mounted; ˂ 22 kV ; < = 60 kVA ; Single Phase | E95: 0 | F95: 0 | G95: 0 | H95: 0 | I95: 0 | J95: 0 | K95: 0
C96: Ground Outdoor / Indoor Chamber Mounted; ˂ 22 kV ; > 60 kVA and < = 600 kVA ; Single Phase | E96: 0 | F96: 0 | G96: 0 | H96: 0 | I96: 0 | J96: 0 | K96: 0
C97: Ground Outdoor / Indoor Chamber Mounted; ˂ 22 kV ; > 600 kVA ; Single Phase | E97: 0 | F97: 0 | G97: 0 | H97: 0 | I97: 0 | J97: 0 | K97: 0
C98: Ground Outdoor / Indoor Chamber Mounted; ˂ 22 kV ; < = 60 kVA ; Multiple Phase | E98: 0 | F98: 0 | G98: 0 | H98: 0 | I98: 0 | J98: 0 | K98: 0
C99: Ground Outdoor / Indoor Chamber Mounted; ˂ 22 kV ; > 60 kVA and < = 600 kVA ; Multiple Phase | E99: 330561.5795 | F99: 377379.0235 | G99: 333956.5224 | H99: 320898.3532 | I99: 309019.996 | J99: 298431.464 | K99: 291186.0512
C100: Ground Outdoor / Indoor Chamber Mounted; ˂ 22 kV ; > 600 kVA ; Multiple Phase | E100: 291704.4179 | F100: 335538.1548 | G100: 292154.8266 | H100: 274869.2353 | I100: 270263.1191 | J100: 250090.8451 | K100: 247756.4934
C101: Ground Outdoor / Indoor Chamber Mounted; > = 22 kV & < = 33 kV ; < = 15 MVA | E101: 889143.0648 | F101: 1065866.72 | G101: 924485.8911 | H101: 854636.4598 | I101: 855014.6702 | J101: 762985.1362 | K101: 765947.9708
C102: Ground Outdoor / Indoor Chamber Mounted; > = 22 kV & < = 33 kV ; > 15 MVA and < = 40 MVA | E102: 412799.1179 | F102: 518887.7314 | G102: 441613.7583 | H102: 392748.8108 | I102: 408226.0453 | J102: 335421.2586 | K102: 347423.4759
C103: Ground Outdoor / Indoor Chamber Mounted; > = 22 kV & < = 33 kV ; > 40 MVA | E103: 0 | F103: 0 | G103: 0 | H103: 0 | I103: 0 | J103: 0 | K103: 0
C104: Ground Outdoor / Indoor Chamber Mounted; > 33 kV & < = 66 kV ; < = 15 MVA | E104: 2470096.469 | F104: 3104906.716 | G104: 2642516.754 | H104: 2350119.971 | I104: 2442732.238 | J104: 2007084.876 | K104: 2078903.428
C105: Ground Outdoor / Indoor Chamber Mounted; > 33 kV & < = 66 kV ; > 15 MVA and < = 40 MVA | E105: 946936.8017 | F105: 1190297.817 | G105: 1013035.885 | H105: 900942.5813 | I105: 936446.4433 | J105: 769436.5614 | K105: 796968.9392
C106: Ground Outdoor / Indoor Chamber Mounted; > 33 kV & < = 66 kV ; > 40 MVA | E106: 0 | F106: 0 | G106: 0 | H106: 0 | I106: 0 | J106: 0 | K106: 0
C107: Ground Outdoor / Indoor Chamber Mounted; > 66 kV & < = 132 kV ; < = 100 MVA | E107: 745121.5332 | F107: 936616.396 | G107: 797133.2943 | H107: 708929.8001 | I107: 736866.9254 | J107: 605450.9122 | K107: 627115.4705
C108: Ground Outdoor / Indoor Chamber Mounted; > 66 kV & < = 132 kV ; > 100 MVA | E108: 0 | F108: 0 | G108: 0 | H108: 0 | I108: 0 | J108: 0 | K108: 0
C109: Ground Outdoor / Indoor Chamber Mounted; > 132 kV ; < = 100 MVA | E109: 0 | F109: 0 | G109: 0 | H109: 0 | I109: 0 | J109: 0 | K109: 0
C110: Ground Outdoor / Indoor Chamber Mounted; > 132 kV ; > 100 MVA | E110: 0 | F110: 0 | G110: 0 | H110: 0 | I110: 0 | J110: 0 | K110: 0
C111: Other | E111: 3329366.314 | F111: 2712327.221 | G111: 2786226.249 | H111: 2672930.471 | I111: 2577291.357 | J111: 2494312.928 | K111: 2439205.434
B112: SWITCHGEAR BY: Highest operating voltage; Switch function | C112: ˂ = 11 kV ; Fuse | E112: 2060200.679 | F112: 1709734.021 | G112: 1917234.604 | H112: 2014761.129 | I112: 1957330.966 | J112: 1901780.937 | K112: 1846063.243
C113: ˂ = 11 kV ; Switch | E113: 835620.3086 | F113: 862616.697 | G113: 1370630.559 | H113: 1375225.171 | I113: 1376600.11 | J113: 1175904.1 | K113: 1216416.41
C114: ˂ = 11 kV ; Circuit Breaker | E114: 3615959.429 | F114: 4140472.296 | G114: 3893471.915 | H114: 3749064.112 | I114: 3617798.279 | J114: 3497195.591 | K114: 3415942.109
C115: > 11 kV & < = 22 kV ; Switch | E115: 6544187.373 | F115: 5875389.013 | G115: 7561812.066 | H115: 7732193.719 | I115: 7513734.04 | J115: 7274386.264 | K115: 7103345.725
C116: > 11 kV & < = 22 kV ; Circuit Breaker | E116: 2786930.433 | F116: 2872678.714 | G116: 2759699.993 | H116: 2843175.993 | I116: 3052352.87 | J116: 2998747.217 | K116: 2570156.266
C117: > 22 kV & < = 33 kV ; Switch | E117: 110303.6289 | F117: 87555.75567 | G117: 190730.0205 | H117: 179108.7256 | I117: 190605.9327 | J117: 124661.1195 | K117: 150569.938
C118: > 22 kV & < = 33 kV ; Circuit Breaker | E118: 2146733.51 | F118: 2012309.645 | G118: 758018.7699 | H118: 1018348.348 | I118: 1457035.582 | J118: 1484355.355 | K118: 909260.0138
C119: > 33 kV & < = 66 kV ; Switch | E119: 364114.7952 | F119: 352962.1315 | G119: 1317915.918 | H119: 1225030.289 | I119: 1382640.997 | J119: 646384.0498 | K119: 954397.2892
C120: > 33 kV & < = 66 kV ; Circuit Breaker | E120: 5281803.769 | F120: 4899813.558 | G120: 1334424.247 | H120: 2034624.64 | I120: 3195372.565 | J120: 3286309.637 | K120: 1807839.439
C121: > 66 kV & < = 132 kV ; Switch | E121: 268834.7543 | F121: 260191.7353 | G121: 984094.5293 | H121: 914576.284 | I121: 1033138.047 | J121: 480328.9144 | K121: 711762.7101
C122: > 66 kV & < = 132 kV ; Circuit Breaker | E122: 1767844.858 | F122: 1639990.917 | G122: 446638.1461 | H122: 680998.5502 | I122: 1069506.405 | J122: 1099943.476 | K122: 605092.4642
C123: > 132 kV ; Switch | E123: 0 | F123: 0 | G123: 0 | H123: 0 | I123: 0 | J123: 0 | K123: 0
C124: > 132 kV ; Circuit Breaker | E124: 0 | F124: 0 | G124: 0 | H124: 0 | I124: 0 | J124: 0 | K124: 0
C125: Other | E125: 0 | F125: 0 | G125: 0 | H125: 0 | I125: 0 | J125: 0 | K125: 0
B126: PUBLIC LIGHTING BY: Asset type ; Lighting obligation | C126: Luminaires | E126: 589512 | F126: 535032.96 | G126: 476285.04 | H126: 404730.48 | I126: 343949.76 | J126: 343949.76 | K126: 343949.76
C127: Brackets | E127: 0 | F127: 0 | G127: 0 | H127: 0 | I127: 0 | J127: 0 | K127: 0
C128: Lamps | E128: 0 | F128: 0 | G128: 0 | H128: 0 | I128: 0 | J128: 0 | K128: 0
C129: Poles / Columns | E129: 2335764 | F129: 2179874.04 | G129: 2621650.96 | H129: 2138780.52 | I129: 1147791.24 | J129: 2068321.24 | K129: 1884653.24
C130: Other | E130: 0 | F130: 0 | G130: 0 | H130: 0 | I130: 0 | J130: 0 | K130: 0
B131: SCADA, NETWORK CONTROL AND PROTECTION SYSTEMS BY: Function | C131: Field Devices | E131: 901888.3944 | F131: 1203837.785 | G131: 1652836.272 | H131: 1588208.052 | I131: 1529419.023 | J131: 1477013.669 | K131: 1441154.268
C132: Local Network Wiring Assets | E132: 0 | F132: 0 | G132: 0 | H132: 0 | I132: 0 | J132: 0 | K132: 0
C133: Communications Network Assets | E133: 3001392.441 | F133: 3471065.614 | G133: 2448646.329 | H133: 1911731.915 | I133: 1793763.052 | J133: 1276431.566 | K133: 1645762.589
C134: Master Station Assets | E134: 0 | F134: 0 | G134: 0 | H134: 0 | I134: 0 | J134: 0 | K134: 0
C135: Communications Site Infrastructure | E135: 0 | F135: 0 | G135: 0 | H135: 0 | I135: 0 | J135: 0 | K135: 0
C136: Communications Linear Assets | E136: 0 | F136: 0 | G136: 0 | H136: 0 | I136: 0 | J136: 0 | K136: 0
C137: AFLC | E137: 722743.3201 | F137: 825632.081 | G137: 479526.5728 | H137: 460776.4102 | I137: 443720.3338 | J137: 428516.3114 | K137: 418112.6579
C138: Other | E138: 0 | F138: 0 | G138: 0 | H138: 0 | I138: 0 | J138: 0 | K138: 0
B139: OTHER BY: enter DNSP defined asset group here | C139: OTHER - Zone Sustation Property | E139: 1708609.701 | F139: 1474701.287 | G139: 1628451.836 | H139: 1252037.348 | I139: 1153767.277 | J139: 1114233.583 | K139: 1193934.039
C140: OTHER - Zone Sustation Batteries | E140: 290331.9985 | F140: 170543.6862 | G140: 632566.9684 | H140: 656851.4783 | I140: 821354.6605 | J140: 902619.4645 | K140: 880705.3857
C141: OTHER - Zone Sustation Current transformers | E141: 962627.5956 | F141: 1040335.278 | G141: 921292.9787 | H141: 885269.129 | I141: 852500.0516 | J141: 823289.2427 | K141: 803301.1679
C142: OTHER - Zone Sustation Voltage transformers | E142: 344463.4959 | F142: 719126.7472 | G142: 449599.2786 | H142: 431294.0237 | I142: 418018.8625 | J142: 402107.2067 | K142: 392503.0085
C143: OTHER - Zone Sustation Surge Diverters | E143: 79938.81523 | F143: 90287.83388 | G143: 496193.6921 | H143: 476791.8217 | I143: 125432.1857 | J143: 121134.2674 | K143: 118193.3316
C144: OTHER - Zone Sustation Protection Relays | E144: 2795934.57 | F144: 2437771.515 | G144: 2259896.508 | H144: 2171531.38 | I144: 2091150.084 | J144: 2019497.085 | K144: 1970467.1
C145: OTHER - Frequency Injection Relays | E145: 1507514.089 | F145: 1855916.585 | G145: 2693510.962 | H145: 2588190.9 | I145: 2492386.556 | J145: 2406985.239 | K145: 2348547.695
C146: OTHER - Zone Substation Earthing System Refurbishment | E146: 166190.8637 | F146: 80255.85234 | G146: 316283.4842 | H146: 303916.3556 | I146: 292666.6032 | J146: 282638.4182 | K146: 275776.4339
C147: OTHER - Generation | E147: 370098.8008 | F147: 259828.322 | G147: 918242.3734 | H147: 98037.53408 | I147: 141612.8725 | J147: 319107.8915 | K147: 44480.06999
C148: OTHER - Zone Substation Capacitor Bank Refurbishment | E148: 0 | F148: 1402270.38 | G148: 51013.46519 | H148: 49018.76704 | I148: 47204.29083 | J148: 45586.84164 | K148: 44480.06999
E149: 0 | F149: 0 | G149: 0 | H149: 0 | I149: 0 | J149: 0 | K149: 0
E150: 0 | F150: 0 | G150: 0 | H150: 0 | I150: 0 | J150: 0 | K150: 0
E151: 0 | F151: 0 | G151: 0 | H151: 0 | I151: 0 | J151: 0 | K151: 0
B183: ASSET REPLACEMENTS
E184: ASSET REPLACEMENTS (0's)
B185: ASSET GROUP | C185: ASSET CATEGORY | E185: =CRCP_y4 -> 2017-18 | F185: =CRCP_y5 -> 2018-19 | G185: =FRCP_y1 -> 2019-20 | H185: =FRCP_y2 -> 2020-21 | I185: =FRCP_y3 -> 2021-22 | J185: =FRCP_y4 -> 2022-23 | K185: =FRCP_y5 -> 2023-24
B186: POLES BY: HIGHEST OPERATING VOLTAGE ; MATERIAL TYPE | C186: ˂ = 1 kV; Wood - replacement of staked pole | E186: 85.42720232 | F186: 89.18018604 | G186: 97.28517401 | H186: 95.67478097 | I186: 94.8909959 | J186: 94.63351688 | K186: 95.05209931
C187: ˂ = 1 kV; Wood - replacement of unstaked pole | E187: 1446.622697 | F187: 1510.175656 | G187: 1647.425375 | H187: 1620.155009 | I187: 1606.882406 | J187: 1602.522261 | K187: 1609.610529
C188: > 1 kV & < = 11 kV; Wood - replacement of staked pole | E188: 119.9435461 | F188: 154.2494443 | G188: 154.3016219 | H188: 151.7074996 | I188: 153.7925532 | J188: 149.6134875 | K188: 149.6837826
C189: > 1 kV & < = 11 kV; Wood - replacement of unstaked pole | E189: 2414.05514 | F189: 3104.516048 | G189: 3105.566206 | H189: 3053.355357 | I189: 3095.320387 | J189: 3011.210024 | K189: 3012.624826
C190: ˃ 11 kV & < = 22 kV; Wood - replacement of staked pole | E190: 111.2036453 | F190: 140.7187068 | G190: 143.597981 | H190: 141.1838085 | I190: 139.9034309 | J190: 139.2350545 | K190: 139.3004734
C191: ˃ 11 kV & < = 22 kV; Wood - replacement of unstaked pole | E191: 1753.180831 | F191: 2218.50047 | G191: 2263.893662 | H191: 2225.833031 | I191: 2205.64724 | J191: 2195.109953 | K191: 2196.141315
C192: > 22 kV & < = 66 kV; Wood - replacement of staked pole | E192: 10.78373415 | F192: 15.97856683 | G192: 27.08813706 | H192: 26.75250618 | I192: 33.33196617 | J192: 26.32369872 | K192: 26.40626573
C193: > 22 kV & < = 66 kV; Wood - replacement of unstaked pole | E193: 178.8473284 | F193: 265.0031935 | G193: 449.254486 | H193: 443.6880759 | I193: 552.8078693 | J193: 436.5763401 | K193: 437.9457071
C194: > 66 kV & < = 132 kV; Wood - replacement of staked pole | E194: 3.523496454 | F194: 3.545433021 | G194: 9.650306987 | H194: 9.530736526 | I194: 9.431818364 | J194: 9.377971366 | K194: 9.407386345
C195: > 66 kV & < = 132 kV; Wood - replacement of unstaked pole | E195: 16.10368379 | F195: 16.20394203 | G195: 44.10547712 | H195: 43.55899582 | I195: 43.10690319 | J195: 42.86080246 | K195: 42.99523981
C196: > 132 kV; Wood - replacement of staked pole | E196: 0 | F196: 0 | G196: 0 | H196: 0 | I196: 0 | J196: 0 | K196: 0
C197: > 132 kV; Wood - replacement of unstaked pole | E197: 0 | F197: 0 | G197: 0 | H197: 0 | I197: 0 | J197: 0 | K197: 0
C198: ˂ = 1 kV; Concrete | E198: 15.89517055 | F198: 16.59347641 | G198: 18.101546 | H198: 17.80190524 | I198: 17.65606882 | J198: 17.60816051 | K198: 17.68604482
C199: > 1 kV & < = 11 kV; Concrete | E199: 20.60093344 | F199: 26.06872019 | G199: 26.6021176 | H199: 26.1548822 | I199: 25.91768697 | J199: 25.79386748 | K199: 25.80598661
C200: ˃ 11 kV & < = 22 kV; Concrete | E200: 30.47221405 | F200: 38.55998195 | G200: 39.34896562 | H200: 38.68742992 | I200: 38.33657865 | J200: 38.15342899 | K200: 38.17135519
C201: > 22 kV & < = 66 kV; Concrete | E201: 73.25981218 | F201: 3.423905849 | G201: 9.319522422 | H201: 9.204050489 | I201: 9.108522956 | J201: 9.056521677 | K201: 9.084928395
C202: > 66 kV & < = 132 kV; Concrete | E202: 0.985536905 | F202: 0.9916726558 | G202: 2.699231801 | H202: 2.665787436 | I202: 2.638119606 | J202: 2.623058373 | K202: 2.631285867
C203: > 132 kV; Concrete | E203: 0 | F203: 0 | G203: 0 | H203: 0 | I203: 0 | J203: 0 | K203: 0
C204: ˂ = 1 kV; Steel | E204: 19.56328682 | F204: 20.4227402 | G204: 22.27882585 | H204: 21.91003722 | I204: 21.73054624 | J204: 21.67158216 | K204: 21.76743978
C205: > 1 kV & < = 11 kV; Steel | E205: 1.288067473 | F205: 1.629939276 | G205: 1.663289796 | H205: 1.635326531 | I205: 1.620495967 | J205: 1.612754189 | K205: 1.613511934
C206: ˃ 11 kV & < = 22 kV; Steel | E206: 6.869693188 | F206: 8.69300947 | G206: 8.870878913 | H206: 8.721741497 | I206: 8.642645157 | J206: 8.601355674 | K206: 8.605396979
C207: > 22 kV & < = 66 kV; Steel | E207: 0 | F207: 0 | G207: 0 | H207: 0 | I207: 0 | J207: 0 | K207: 0
C208: > 66 kV & < = 132 kV; Steel | E208: 0.1707730173 | F208: 0.1718362151 | G208: 0.4677206472 | H208: 0.4619254353 | I208: 0.4571311768 | J208: 0.4545213787 | K208: 0.4559470321
C209: > 132 kV; Steel | E209: 0 | F209: 0 | G209: 0 | H209: 0 | I209: 0 | J209: 0 | K209: 0
C210: Other | E210: 0 | F210: 0 | G210: 0 | H210: 0 | I210: 0 | J210: 0 | K210: 0
B211: POLE TOP STRUCTURES BY: HIGHEST OPERATING VOLTAGE | C211: ˂ = 1 kV | E211: 7684.908382 | F211: 7665.29439 | G211: 7250.104711 | H211: 7111.21514 | I211: 7005.951669 | J211: 6906.803245 | K211: 6811.190171
C212: > 1 kV & < = 11 kV | E212: 17320.53141 | F212: 17276.32466 | G212: 16340.55477 | H212: 16027.52031 | I212: 15790.2736 | J212: 15566.8092 | K212: 15351.31291
C213: ˃ 11 kV & < = 22 kV | E213: 3890.087921 | F213: 3880.15935 | G213: 3669.991021 | H213: 3599.68535 | I213: 3546.401155 | J213: 3496.212386 | K213: 3447.813206
C214: > 22 kV & < = 66 kV | E214: 1361.26614 | F214: 1357.791816 | G214: 1284.247198 | H214: 1259.644996 | I214: 1240.999152 | J214: 1223.436498 | K214: 1206.500077
C215: > 66 kV & < = 132 kV | E215: 22.30843341 | F215: 22.25149617 | G215: 21.04624676 | H215: 20.6430658 | I215: 20.33749766 | J215: 20.04968083 | K215: 19.77212672
C216: > 132 kV | E216: 0 | F216: 0 | G216: 0 | H216: 0 | I216: 0 | J216: 0 | K216: 0
C217: Other | E217: 0 | F217: 0 | G217: 0 | H217: 0 | I217: 0 | J217: 0 | K217: 0
B218: STAKING WOODEN POLES BY: HIGHEST OPERATING VOLTAGE | C218: ˂ = 1 Kv | D218: for year wooden pole staked | E218: 922.2931515 | F218: 1204.267881 | G218: 940.6332056 | H218: 924.4082616 | I218: 914.6551689 | J218: 907.0870844 | K218: 901.403722
C219: > 1 kV & < = 11 kV | D219: for year wooden pole staked | E219: 843.2394528 | F219: 1101.04492 | G219: 860.0075023 | H219: 845.1732677 | I219: 836.2561545 | J219: 829.3367629 | K219: 824.1405458
C220: ˃ 11 kV & < = 22 kV | D220: for year wooden pole staked | E220: 737.8345212 | F220: 963.4143046 | G220: 752.5065645 | H220: 739.5266093 | I220: 731.7241352 | J220: 725.6696675 | K220: 721.1229776
C221: > 22 kV & < = 66 kV | D221: for year wooden pole staked | E221: 131.7561645 | F221: 172.0382687 | G221: 134.3761722 | H221: 132.0583231 | I221: 130.6650241 | J221: 129.5838692 | K221: 128.7719603
C222: > 66 kV & < = 132 kV | D222: for year wooden pole staked | E222: 0 | F222: 0 | G222: 0 | H222: 0 | I222: 0 | J222: 0 | K222: 0
C223: > 132 kV | D223: for year wooden pole staked | E223: 0 | F223: 0 | G223: 0 | H223: 0 | I223: 0 | J223: 0 | K223: 0
B224: OVERHEAD CONDUCTORS BY: Highest operating voltage; Number of phases (at HV) | C224: ˂ = 1 kV | D224: per km | E224: 23.70995368 | F224: 22.98017125 | G224: 18.42065649 | H224: 24.11337417 | I224: 22.33226848 | J224: 28.72097637 | K224: 27.89682198
C225: > 1 kV & < = 11 kV | D225: per km | E225: 206.5513677 | F225: 166.5110275 | G225: 205.3849148 | H225: 239.8008689 | I225: 231.4040355 | J225: 267.1926405 | K225: 262.5394131
C226: ˃ 11 kV & < = 22 kV ; SWER | D226: per km | E226: 8.877644981 | F226: 7.097784036 | G226: 8.837373085 | H226: 10.31823465 | I226: 9.88080247 | J226: 11.49685726 | K226: 11.29663658
C227: ˃ 11 kV & < = 22 kV ; Single-Phase | D227: per km | E227: 36.44537636 | F227: 29.13851714 | G227: 36.28004823 | H227: 42.35942594 | I227: 40.56363658 | J227: 47.19802275 | K227: 46.37605725
C228: ˃ 11 kV & < = 22 kV ; Multiple-Phase | D228: per km | E228: 48.46060567 | F228: 38.74483763 | G228: 48.24077255 | H228: 56.32438576 | I228: 53.93656463 | J228: 62.75816023 | K228: 61.665211
C229: > 22 kV & < = 66 kV | D229: per km | E229: 11.3858582 | F229: 6.808258301 | G229: 11.26361545 | H229: 11.60559423 | I229: 14.54020704 | J229: 11.83226142 | K229: 11.81832495
C230: > 66 kV & < = 132 kV | D230: per km | E230: 0 | F230: 0 | G230: 0 | H230: 0 | I230: 0 | J230: 0 | K230: 0
C231: > 132 kV | D231: per km | E231: 0 | F231: 0 | G231: 0 | H231: 0 | I231: 0 | J231: 0 | K231: 0
C232: Other | D232: per km | E232: 0 | F232: 0 | G232: 0 | H232: 0 | I232: 0 | J232: 0 | K232: 0
B233: UNDERGROUND CABLES BY: Highest operating voltage | C233: ˂ = 1 kV | D233: per km | E233: 5.641607632 | F233: 4.313790448 | G233: 3.771626697 | H233: 3.748053386 | I233: 3.676082079 | J233: 3.593129662 | K233: 3.517516282
... 260 more rows

Sheet 2.3 Augex (a)
B1: =SheetHeader -> REGULATORY REPORTING STATEMENT
B2: =dms_TradingName -> Essential Energy
B3: =dms_Reg_Year_Span -> 2019-20 to 2023-24
B4: 2.3 AUGEX PROJECT DATA
B6: There are TWO tables on this worksheet - each has been 'grouped' (and sub-grouped) for easy navigation. Both ROWS and COLUMNS have been grouped. See the Instructions sheet on how to group or ungroup tables.
B8: NOTE: DNSP must provide expenditure information on an 'as incurred' basis.
B9: 2.3.1 - AUGEX ASSET DATA - SUBTRANSMISSION SUBSTATIONS, SWITCHING STATIONS AND ZONE SUBSTATIONS
B10: PROJECT DESCRIPTION AND CHANGES | L10: PLANT AND EQUIPMENT EXPENDITURE AND VOLUME | X10: OTHER EXPENDITURE | Z10: TOTAL DIRECT EXPENDITURE ($0's) | AA10: YEARS INCURRED | AB10: ALL RELATED PARTY CONTRACTS | AD10: ALL NON-RELATED PARTY CONTRACTS | AE10: LAND AND EASEMENTS
B11: SUBSTATION ID | C11: SUBSTATION TYPE | D11: PROJECT ID | E11: PROJECT TYPE | F11: PROJECT TRIGGER | G11: VOLTAGE (KV) | H11: SUBSTATION RATING NORMAL CYCLIC (MVA) | J11: SUBSTATION RATING N-1 EMERGENCY (MVA) | L11: TRANSFORMERS | O11: SWITCHGEAR | R11: CAPACITORS | U11: OTHER PLANT ITEM | V11: INSTALLATION (LABOUR) | X11: CIVIL WORKS | Y11: OTHER DIRECT | AB11: RELATED PARTY MARGINS | AC11: TOTAL | AE11: LAND PURCHASE | AF11: EASEMENTS
H12: PRE | I12: POST | J12: PRE | K12: POST | L12: UNITS ADDED | M12: MVA ADDED | N12: =CONCATENATE("EXPENDITURE ($0's, real ", dms_DollarReal,")") -> EXPENDITURE ($0's, real June 2019) | O12: UNITS ADDED | Q12: =CONCATENATE("EXPENDITURE ($0's, real ", dms_DollarReal,")") -> EXPENDITURE ($0's, real June 2019) | R12: MVAR ADDED | T12: =CONCATENATE("EXPENDITURE ($0's, real ", dms_DollarReal,")") -> EXPENDITURE ($0's, real June 2019) | U12: =CONCATENATE("EXPENDITURE ($0's, real ", dms_DollarReal,")") -> EXPENDITURE ($0's, real June 2019) | V12: VOLUME | W12: =CONCATENATE("EXPENDITURE ($0's, real ", dms_DollarReal,")") -> EXPENDITURE ($0's, real June 2019) | X12: =CONCATENATE("EXPENDITURE ($0's, real ", dms_DollarReal,")") -> EXPENDITURE ($0's, real June 2019) | AB12: =CONCATENATE("EXPENDITURE ($0's, real ", dms_DollarReal,")") -> EXPENDITURE ($0's, real June 2019) | AE12: =CONCATENATE("EXPENDITURE ($0's, real ", dms_DollarReal,")") -> EXPENDITURE ($0's, real June 2019)
B13: COB (Cobaki 66/11kV) | C13: Zone substation | D13: ESS_1005 | F13: Demand growth | G13: 66/11 | H13: 0 | I13: 16 | L13: 1 | M13: 16 | N13: 545438.2656 | O13: 11 | Q13: 547807.0893 | U13: 1641252.755 | W13: 1186182.072 | X13: 1678887.214 | Z13: =SUM(N13,Q13,T13,U13,W13,X13,Y13) -> 5599567.396 | AA13: 2018,2022,2023,2024 | AD13: 1678887.214
Z14: 0
Z15: 0
Z16: 0
Z17: 0
Z18: 0
Z19: 0
Z20: 0
Z21: 0
Z22: 0
Z23: 0
Z24: 0
Z25: 0
Z26: 0
Z27: 0
Z28: 0
Z29: 0
Z30: 0
Z31: 0
Z32: 0
Z33: 0
Z34: 0
Z35: 0
Z36: 0
Z37: 0
Z38: 0
Z39: 0
Z40: 0
Z41: 0
Z42: 0
Z43: 0
Z44: 0
Z45: =SUM(N45,Q45,T45,U45,W45,X45,Y45) -> 0
Z46: 0
Z47: 0
Z48: 0
Z49: 0
Z50: 0
Z51: 0
Z52: 0
Z53: 0
Z54: 0
Z55: 0
Z56: 0
Z57: 0
Z58: 0
Z59: 0
Z60: 0
Z61: 0
Z62: 0
Z63: 0
Z64: 0
D65: Non material projects - [forecast]
B67: NOTE: DNSP must provide expenditure information on an 'as incurred' basis.
B68: 2.3.2 - AUGEX ASSET DATA - SUBTRANSMISSION LINES
B69: PROJECT DESCRIPTION AND CHANGES | L69: PLANT AND EQUIPMENT EXPENDITURE AND VOLUME | X69: OTHER EXPENDITURE | Z69: TOTAL DIRECT EXPENDITURE ($0's) | AA69: YEARS INCURRED | AB69: ALL RELATED PARTY CONTRACTS | AD69: ALL NON RELATED PARTY CONTRACTS | AE69: LAND AND EASEMENTS
B70: LINE ID | D70: PROJECT ID | E70: PROJECT TYPE | F70: PROJECT TRIGGER | G70: VOLTAGE (KV) | H70: ROUTE LINE LENGTH ADDED | L70: POLES/TOWERS (INCLUDING STRUCTURES, AND CIVIL WORKS) | O70: OVERHEAD LINES | R70: UNDERGROUND CABLES | U70: OTHER PLANT ITEM | V70: INSTALLATION (LABOUR) | X70: CIVIL WORKS | Y70: OTHER DIRECT | AB70: RELATED PARTY MARGINS | AC70: TOTAL | AE70: LAND PURCHASE | AF70: EASEMENTS
H71: KM ADDED | L71: POLES/TOWERS ADDED | M71: POLES/TOWERS UPGRADED | N71: =CONCATENATE("EXPENDITURE ($0's, real ", dms_DollarReal,")") -> EXPENDITURE ($0's, real June 2019) | O71: CIRCUIT KM ADDED | P71: CIRCUIT KM UPGRADED | Q71: =CONCATENATE("EXPENDITURE ($0's, real ", dms_DollarReal,")") -> EXPENDITURE ($0's, real June 2019) | R71: CIRCUIT KM ADDED | S71: CIRCUIT KM UPGRADED | T71: =CONCATENATE("EXPENDITURE ($0's, real ", dms_DollarReal,")") -> EXPENDITURE ($0's, real June 2019) | U71: =CONCATENATE("EXPENDITURE ($0's, real ", dms_DollarReal,")") -> EXPENDITURE ($0's, real June 2019) | V71: VOLUME | W71: =CONCATENATE("EXPENDITURE ($0's, real ", dms_DollarReal,")") -> EXPENDITURE ($0's, real June 2019) | X71: =CONCATENATE("EXPENDITURE ($0's, real ", dms_DollarReal,")") -> EXPENDITURE ($0's, real June 2019) | AB71: =CONCATENATE("EXPENDITURE ($0's, real ", dms_DollarReal,")") -> EXPENDITURE ($0's, real June 2019) | AE71: =CONCATENATE("EXPENDITURE ($0's, real ", dms_DollarReal,")") -> EXPENDITURE ($0's, real June 2019)
B72: Tharbogang to Tabbita Lane | D72: ESS_5025 | F72: Demand growth | G72: Other | H72: 30 | L72: 200 | N72: 1597000 | O72: 30 | Q72: 400000 | U72: 500000 | V72: 10000 | W72: 700000 | Y72: 800000 | Z72: =SUM(N72,Q72,T72,U72,W72,X72,Y72) -> 3997000 | AA72: 2018,2019,2020,2021 | AD72: 1962437 | AF72: 1500000
Z73: 0
Z74: 0
Z75: 0
Z76: 0
Z77: 0
Z78: 0
Z79: 0
Z80: 0
Z81: 0
Z82: 0
Z83: 0
Z84: 0
Z85: 0
Z86: 0
Z87: 0
Z88: 0
Z89: 0
Z90: 0
Z91: 0
Z92: 0
Z93: 0
Z94: 0
Z95: 0
Z96: 0
Z97: 0
Z98: 0
Z99: 0
Z100: 0
Z101: 0
Z102: 0
Z103: 0
Z104: =SUM(N104,Q104,T104,U104,W104,X104,Y104) -> 0
Z105: 0
Z106: 0
Z107: 0
Z108: 0
Z109: 0
Z110: 0
Z111: 0
Z112: 0
Z113: 0
Z114: 0
Z115: 0
Z116: 0
Z117: 0
Z118: 0
Z119: 0
Z120: 0
Z121: 0
Z122: 0
Z123: 0
Z124: 0
Z125: 0
D126: Non material projects - [forecast]

Sheet 2.3 Augex (b)
B1: =SheetHeader -> REGULATORY REPORTING STATEMENT
B2: =dms_TradingName -> Essential Energy
B3: =dms_Reg_Year_Span -> 2019-20 to 2023-24
B4: 2.3 AUGEX PROJECT DATA
B6: There are FOUR tables on this worksheet. These tables have been 'grouped' (and sub-grouped) for easy navigation. See the Instructions sheet on how to group or ungroup tables.
B8: NOTE: DNSP must provide expenditure information on an 'as incurred' basis.
B9: 2.3.3 - AUGEX DATA - HV/LV FEEDERS AND DISTRIBUTION SUBSTATIONS
B10: PROJECT TYPE | C10: Units | D10: VOLUMES (0's)
D11: =CRCP_y4 -> 2017-18 | E11: =CRCP_y5 -> 2018-19 | F11: =FRCP_y1 -> 2019-20 | G11: =FRCP_y2 -> 2020-21 | H11: =FRCP_y3 -> 2021-22 | I11: =FRCP_y4 -> 2022-23 | J11: =FRCP_y5 -> 2023-24
B12: DESCRIPTOR METRICS - UNITS ADDED
B13: HV Feeder Augmentations - Overhead Lines | C13: Circuit Line Length in KM | D13: 0 | E13: 0 | F13: 0 | G13: 0 | H13: 0 | I13: 0 | J13: 0
B14: HV Feeder Augmentations - Underground Cables | C14: Circuit Line Length in KM | D14: 0 | E14: 0 | F14: 0 | G14: 0 | H14: 0 | I14: 0 | J14: 0
B15: LV Feeder Augmentations - Overhead Lines | C15: Circuit Line Length in KM | D15: 0.1137412541 | E15: 0.09600217237 | F15: 0.1242560566 | G15: 0.1162581493 | H15: 0.1127743166 | I15: 0.1107076502 | J15: 0.109868057
B16: LV Feeder Augmentations - Underground Cables | C16: Circuit Line Length in KM | D16: 0 | E16: 0 | F16: 0 | G16: 0 | H16: 0 | I16: 0 | J16: 0
B17: Distribution Substation Augmentations - Pole Mounted | C17: Number | D17: 109.9745009 | E17: 73.51116206 | F17: 80.01723166 | G17: 74.86681547 | H17: 72.6233301 | I17: 71.29245796 | J17: 70.75178474
B18: Distribution Substation Augmentations - Ground Mounted | C18: Number | D18: 0 | E18: 0 | F18: 0 | G18: 0 | H18: 0 | I18: 0 | J18: 0
B19: Distribution Substation Augmentations - Indoor | C19: Number | D19: 0 | E19: 0 | F19: 0 | G19: 0 | H19: 0 | I19: 0 | J19: 0
B20: DESCRIPTOR METRICS - UNITS UPGRADED
B21: HV Feeder Augmentations - Overhead Lines | C21: Circuit Line Length in KM | D21: 16 | E21: 16 | F21: 16 | G21: 16 | H21: 16 | I21: 16 | J21: 16
B22: HV Feeder Augmentations - Underground Cables | C22: Circuit Line Length in KM | D22: 0 | E22: 0 | F22: 0 | G22: 0 | H22: 0 | I22: 0 | J22: 0
B23: LV Feeder Augmentations - Overhead Lines | C23: Circuit Line Length in KM | D23: 16.01964842 | E23: 15.17842917 | F23: 17.39588929 | G23: 16.2761796 | H23: 15.78844187 | I23: 15.49910789 | J23: 15.38156456
B24: LV Feeder Augmentations - Underground Cables | C24: Circuit Line Length in KM | D24: 0.1515865001 | E24: 0.1762054005 | F24: 0.1632426629 | G24: 0.1527353304 | H24: 0.1481584097 | I24: 0.1454433056 | J24: 0.1443402815
B25: Distribution Substation Augmentations - Pole Mounted | C25: Number | D25: 173.5006407 | E25: 107.3813217 | F25: 115.7218719 | G25: 108.2732787 | H25: 105.0287235 | I25: 103.1040004 | J25: 102.3220724
B26: Distribution Substation Augmentations - Ground Mounted | C26: Number | D26: 0 | E26: 0 | F26: 0 | G26: 0 | H26: 0 | I26: 0 | J26: 0
B27: Distribution Substation Augmentations - Indoor | C27: Number | D27: 0 | E27: 0 | F27: 0 | G27: 0 | H27: 0 | I27: 0 | J27: 0
B29: COST METRICS
B30: PROJECT TYPE | D30: =CONCATENATE("TOTAL DIRECT EXPENDITURE ($0's, real ", dms_DollarReal,")") -> TOTAL DIRECT EXPENDITURE ($0's, real June 2019)
D31: =CRCP_y4 -> 2017-18 | E31: =CRCP_y5 -> 2018-19 | F31: =FRCP_y1 -> 2019-20 | G31: =FRCP_y2 -> 2020-21 | H31: =FRCP_y3 -> 2021-22 | I31: =FRCP_y4 -> 2022-23 | J31: =FRCP_y5 -> 2023-24
B32: HV Feeder Augmentations - Overhead Lines | D32: 17533135.25 | E32: 19079807.81 | F32: 19523810.56 | G32: 16132236.6 | H32: 15201761.44 | I32: 14945722.62 | J32: 14845872.57
B33: HV Feeder Augmentations - Underground Cables | D33: 2635031.548 | E33: 2192563.97 | F33: 2610854.415 | G33: 2269199.878 | H33: 2164857.593 | I33: 2115545.506 | J33: 2099515.806
B34: HV Feeder Non-Material Projects | D34: 0 | E34: 0 | F34: 0 | G34: 0 | H34: 0 | I34: 0 | J34: 0
B35: LV Feeder Augmentations - Overhead Lines | D35: 4600876.422 | E35: 4576401.025 | F35: 5201851.425 | G35: 4461371.618 | H35: 4234150.884 | I35: 4095157.911 | J35: 3896447.405
B36: LV Feeder Augmentations - Underground Cables | D36: 505168.118 | E36: 746989.2881 | F36: 472118.183 | G36: 479532.1584 | H36: 423051.032 | I36: 420187.5431 | J36: 528990.5452
B37: LV Feeder Non-Material Projects | D37: 0 | E37: 0 | F37: 0 | G37: 0 | H37: 0 | I37: 0 | J37: 0
B38: Distribution Substation Augmentations - Pole Mounted | D38: 3523944.213 | E38: 2332179.318 | F38: 2649223.366 | G38: 2486374.063 | H38: 2414366.31 | I38: 2370511.559 | J38: 2352940.752
B39: Distribution Substation Augmentations - Ground Mounted | D39: 65770.14315 | E39: 136442.233 | F39: 306633.2909 | G39: 296951.2708 | H39: 291329.1588 | I39: 286501.7275 | J39: 284862.1951
B40: Distribution Substation Augmentations - Indoor | D40: 0 | E40: 0 | F40: 0 | G40: 0 | H40: 0 | I40: 0 | J40: 0
B45: 2.3.4 - AUGEX - TOTAL EXPENDITURE
D46: =CONCATENATE("TOTAL DIRECT EXPENDITURE ($0's, real ", dms_DollarReal,")") -> TOTAL DIRECT EXPENDITURE ($0's, real June 2019)
D47: =CRCP_y4 -> 2017-18 | E47: =CRCP_y5 -> 2018-19 | F47: =FRCP_y1 -> 2019-20 | G47: =FRCP_y2 -> 2020-21 | H47: =FRCP_y3 -> 2021-22 | I47: =FRCP_y4 -> 2022-23 | J47: =FRCP_y5 -> 2023-24
B48: Subtransmission Substations, Switching Stations, Zone Substations | D48: 4859330.452 | E48: 5459767.59 | F48: 4955575.542 | G48: 3690043.822 | H48: 4323289.553 | I48: 6344159.78 | J48: 2555217.571
B49: Subtransmission Lines | D49: 3319672.64 | E49: 2374066.002 | F49: 3783812.6 | G49: 4177716.085 | H49: 111859.5752 | I49: 109725.2051 | J49: 2960562.708
B50: HV Feeders | D50: 20168166.8 | E50: 21272371.78 | F50: 22134664.98 | G50: 18401436.48 | H50: 17366619.03 | I50: 17061268.12 | J50: 16945388.38
B51: HV Feeders - Land Purchases and Easements | D51: 0 | E51: 0 | F51: 0 | G51: 0 | H51: 0 | I51: 0 | J51: 0
B52: Distribution Substations | D52: 3589714.357 | E52: 2468621.551 | F52: 2955856.656 | G52: 2783325.333 | H52: 2705695.469 | I52: 2657013.287 | J52: 2637802.947
B53: Distribution Substations - Land Purchases and Easements | D53: 0 | E53: 0 | F53: 0 | G53: 0 | H53: 0 | I53: 0 | J53: 0
B54: LV Feeders | D54: 5106044.54 | E54: 5323390.313 | F54: 5673969.608 | G54: 4940903.776 | H54: 4657201.916 | I54: 4515345.454 | J54: 4425437.95
B55: LV Feeders - Land Purchases and Easements | D55: 0 | E55: 0 | F55: 0 | G55: 0 | H55: 0 | I55: 0 | J55: 0
B56: Other Assets | D56: 1027418.209 | E56: 717272.7673 | F56: 1122296.234 | G56: 693035.6978 | H56: 485967.6328 | I56: 477963.48 | J56: 475278.7856
B60: 2.3.5 - AUGEX - BY DRIVER
D61: =CONCATENATE("TOTAL DIRECT EXPENDITURE ($0's, real ", dms_DollarReal,")") -> TOTAL DIRECT EXPENDITURE ($0's, real June 2019)
D62: =CRCP_y4 -> 2017-18 | E62: =CRCP_y5 -> 2018-19 | F62: =FRCP_y1 -> 2019-20 | G62: =FRCP_y2 -> 2020-21 | H62: =FRCP_y3 -> 2021-22 | I62: =FRCP_y4 -> 2022-23 | J62: =FRCP_y5 -> 2023-24
B63: "Greenfield" driven augex (network expansion capex) | D63: 4830863.631 | E63: 4531353.759 | F63: 7418009.134 | G63: 7583433.576 | H63: 4761375.879 | I63: 6858221.188 | J63: 6100733.747
B64: Reinforcement driven augex (augmentation of the existing network) | D64: 33239483.37 | E64: 33084136.24 | F64: 33208166.48 | G64: 27103027.62 | H64: 24889257.3 | I64: 24307254.14 | J64: 23898954.59
B68: 2.3.6 - AUGEX - GREENFIELDS DRIVEN
D69: =CONCATENATE("TOTAL DIRECT EXPENDITURE ($0's, real ", dms_DollarReal,")") -> TOTAL DIRECT EXPENDITURE ($0's, real June 2019)
D70: =CRCP_y4 -> 2017-18 | E70: =CRCP_y5 -> 2018-19 | F70: =FRCP_y1 -> 2019-20 | G70: =FRCP_y2 -> 2020-21 | H70: =FRCP_y3 -> 2021-22 | I70: =FRCP_y4 -> 2022-23 | J70: =FRCP_y5 -> 2023-24
B71: Subtransmission Substations, Switching Stations, Zone Substations | D71: 529300.9176 | E71: 256168.8455 | F71: 0 | G71: 0 | H71: 1457902.898 | I71: 3764949.351 | J71: 0
B72: Subtransmission Lines | D72: 200471.9183 | E72: 717272.7673 | F72: 3060807.911 | G72: 3960203.988 | H72: 0 | I72: 0 | J72: 2851672.714
B73: HV Feeders | D73: 1880091.318 | E73: 1710352.198 | F73: 1997453.073 | G73: 1788440.655 | H73: 1793213.59 | I73: 1643304.955 | J73: 1725853.803
B74: HV Feeders - Land Purchases and Easements | D74: 0 | E74: 0 | F74: 0 | G74: 0 | H74: 0 | I74: 0 | J74: 0
B75: Distribution Substations | D75: 1478411.732 | E75: 988226.9396 | F75: 1075689.483 | G75: 1006451.29 | H75: 976291.6166 | I75: 958400.4057 | J75: 951132.015
B76: Distribution Substations - Land Purchases and Easements | D76: 0 | E76: 0 | F76: 0 | G76: 0 | H76: 0 | I76: 0 | J76: 0
B77: LV Feeders | D77: 742587.7451 | E77: 859333.009 | F77: 671897.0842 | G77: 630327.4428 | H77: 533967.7741 | I77: 491566.4766 | J77: 572075.2154
B78: LV Feeders - Land Purchases and Easements | D78: 0 | E78: 0 | F78: 0 | G78: 0 | H78: 0 | I78: 0 | J78: 0
B79: Other Assets | D79: 0 | E79: 0 | F79: 612161.5823 | G79: 198010.1994 | H79: 0 | I79: 0 | J79: 0

Sheet 2.4 Augex model
B1: =SheetHeader -> REGULATORY REPORTING STATEMENT
B2: =dms_TradingName -> Essential Energy
B3: =dms_Reg_Year_Span -> 2019-20 to 2023-24
B4: 2.4 AUGEX MODEL
B6: There are SIX tables on this worksheet. These tables have been 'grouped' (and sub-grouped) for easy navigation. See the Instructions sheet on how to group or ungroup tables.
B8: 2.4.1 - AUGEX MODEL INPUTS - ASSET STATUS - SUBTRANSMISSION LINES
B9: Line ID | C9: Primary type of area supplied by line | D9: Line voltage | E9: Originating substation | F9: Terminating substation | G9: =CRCP_y4 -> 2017-18 | L9: =PRCP_y5 -> 2013-14 | Q9: =CONCATENATE("Average per annum growth rate in annual line maximum demand (50% PoE) from ", CRCP_y4, " to ", dms_CRCP_FinalYear_Result) -> Average per annum growth rate in annual line maximum demand (50% PoE) from 2017-18 to 2018-19 | R9: Network Segment ID
G10: =CONCATENATE(IF(dms_RPT="Financial","Route line length as at 30 June ","Route line length as at 31 December ")) -> Route line length as at 30 June | H10: Maximum demand (weather corrected at 50% PoE) | J10: Line rating | L10: =CONCATENATE(IF(dms_RPT="Financial","Route line length as at 30 June ","Route line length as at 31 December ")) -> Route line length as at 30 June | M10: Maximum demand (weather corrected at 50% PoE) | O10: Line rating
J11: Thermal | K11: N-1 emergency | O11: Thermal | P11: N-1 emergency
C12: CBD, urban, long rural, or short rural | D12: kV | E12: name | F12: name | G12: km | H12: MVA | I12: MW | J12: MVA | K12: MVA | L12: km | M12: MVA | N12: MW | O12: MVA | P12: MVA | Q12: %
B13: 997/1 | C13: Short Rural | D13: 132 | E13: Union Rd ZS | F13: Corowa ZS | G13: 59.395 | H13: 31.05277094 | I13: 30.43171552 | J13: 128 | K13: 0 | L13: 59.395 | M13: 17.93127769 | N13: 17.57265213 | O13: 128 | P13: 0 | Q13: 0.002084331484 | R13: 9
B14: 997/2 | C14: Urban | D14: 132 | E14: Corowa ZS | F14: Mulwala ZS | G14: 40.515 | H14: 15.9 | I14: 15.582 | J14: 128 | K14: 0 | L14: 40.515 | M14: 14.94273141 | N14: 14.64387678 | O14: 128 | P14: 0 | Q14: 0.003077454989 | R14: 9
B15: 99E | C15: Urban | D15: 132 | E15: Union Rd ZS | F15: Jelbart ZS | G15: 2.734 | H15: 20.89229037 | I15: 20.47444456 | J15: 148 | K15: 0 | L15: 2.734 | M15: 26.89691653 | N15: 26.3589782 | O15: 148 | P15: 0 | Q15: 0.007086817095 | R15: 9
B16: 99G | C16: Urban | D16: 132 | E16: Union Rd ZS | F16: Jelbart ZS | G16: 2.749 | H16: 20.89229037 | I16: 20.47444456 | J16: 148 | K16: 0 | L16: 2.749 | M16: 26.89691653 | N16: 26.3589782 | O16: 148 | P16: 0 | Q16: 0.007086817095 | R16: 9
B17: 661/1 | C17: Short Rural | D17: 66 | E17: TransGrid Armidale 330/132/66kV STS | F17: Hillgrove Tee | G17: 19.6 | H17: 0.8 | I17: 0.784 | J17: 20 | K17: 0 | L17: 19.6 | M17: 1.952883475 | N17: 1.913825806 | O17: 12 | P17: 0 | Q17: 0.01295781308 | R17: 9
B18: 661/2 | C18: Short Rural | D18: 66 | E18: Hillgrove Tee | F18: Hillgrove ZS | G18: 4.8 | H18: 0.4 | I18: 0.392 | J18: 16 | K18: 0 | L18: 4.8 | M18: 0.9764417375 | N18: 0.9569129028 | O18: 9 | P18: 0 | Q18: 0.01295781308 | R18: 9
B19: 661/3 | C19: Short Rural | D19: 66 | E19: Hillgrove Tee | F19: Oaky ZS | G19: 19.3 | H19: 0.5 | I19: 0.49 | J19: 20 | K19: 0 | L19: 19.3 | M19: 1.220552172 | N19: 1.196141128 | O19: 12 | P19: 0 | Q19: 0.01295781308 | R19: 9
B20: 662/1 | C20: Short Rural | D20: 66 | E20: TransGrid Armidale 330/132/66kV STS | F20: Uralla Tee | G20: 23.8 | H20: 6.6 | I20: 6.468 | J20: 9 | K20: 0 | L20: 23.8 | M20: 6.33387078 | N20: 6.207193365 | O20: 15 | P20: 0 | Q20: 0.01295781308 | R20: 9
B21: 662/2 | C21: Short Rural | D21: 66 | E21: Uralla Tee | F21: Uralla ZS | G21: 13.8 | H21: 3.9 | I21: 3.822 | J21: 9 | K21: 0 | L21: 13.8 | M21: 3.85012413 | N21: 3.773121648 | O21: 9 | P21: 0 | Q21: 0.00208337693 | R21: 9
B22: 662/3 | C22: Short Rural | D22: 66 | E22: Uralla Tee | F22: Walcha ZS | G22: 0 | H22: 0 | I22: 0 | J22: 0 | K22: 0 | L22: 30.2 | M22: 3.15907621 | N22: 3.095894685 | O22: 16 | P22: 0 | Q22: 0 | R22: 9
B23: 662/4 | C23: Long Rural | D23: 66 | E23: Uralla Tee | F23: Walcha South ZS | G23: 38.8 | H23: 1.4 | I23: 1.372 | J23: 9 | K23: 0 | L23: 38.8 | M23: 1.382095842 | N23: 1.354453925 | O23: 9 | P23: 0 | Q23: 0.01295781308 | R23: 9
B24: 664 | C24: Short Rural | D24: 66 | E24: TransGrid Armidale 330/132/66kV STS | F24: Galloway St ZS | G24: 4.6 | H24: 19.3 | I24: 18.914 | J24: 28 | K24: 0 | L24: 4.6 | M24: 18.49495526 | N24: 18.12505616 | O24: 15 | P24: 0 | Q24: 0.01295781308 | R24: 9
B25: 665 | C25: Short Rural | D25: 66 | E25: TransGrid Armidale 330/132/66kV STS | F25: Madgwick Dr ZS | G25: 13.1 | H25: 12.4 | I25: 12.152 | J25: 21 | K25: 0 | L25: 13.1 | M25: 12.40655384 | N25: 12.15842276 | O25: 21 | P25: 0 | Q25: 0.01295781308 | R25: 9
B26: 66C | C26: Short Rural | D26: 66 | E26: Miller St ZS | F26: Madgwick Dr ZS | G26: 3.6 | H26: 3 | I26: 2.94 | J26: 21 | K26: 0 | L26: 3.6 | M26: 3.10163846 | N26: 3.039605691 | O26: 21 | P26: 0 | Q26: 0.01295781308 | R26: 9
B27: 66F | C27: Urban | D27: 66 | E27: Galloway St ZS | F27: Miller St ZS | G27: 12.14 | H27: 7.6 | I27: 7.448 | J27: 15 | K27: 0 | L27: 12.14 | M27: 8.041284897 | N27: 7.880459199 | O27: 15 | P27: 0 | Q27: 0.01295781308 | R27: 9
B28: 89A | C28: Short Rural | D28: 66 | E28: Bega 132/66 | F28: Pambula ZS | G28: 24.1 | H28: 14.6 | I28: 14.308 | J28: 38 | K28: 0 | L28: 24.1 | M28: 23.41178436 | N28: 22.94354867 | O28: 38 | P28: 0 | Q28: 0 | R28: 9
B29: 84G | C29: Short Rural | D29: 66 | E29: Bega 132/66kV STS | F29: Eden South ZS | G29: 44 | H29: 9.3 | I29: 9.114 | J29: 61 | K29: 0 | L29: 44 | M29: 7.80312029 | N29: 7.647057884 | O29: 61 | P29: 0 | Q29: 0 | R29: 9
B30: 84M | C30: Short Rural | D30: 66 | E30: Bega 132/66kV STS | F30: Maher St ZS | G30: 4.35 | H30: 10.7 | I30: 10.486 | J30: 61 | K30: 0 | L30: 0 | M30: 0 | N30: 0 | O30: 0 | P30: 0 | Q30: 0 | R30: 9
B31: 89C | C31: Short Rural | D31: 66 | E31: Bega 132/66kV STS | F31: Boundary St 66/33kV STS | G31: 3.4 | H31: 10.8 | I31: 10.584 | J31: 38 | K31: 0 | L31: 3.4 | M31: 22.94354867 | N31: 22.4846777 | O31: 38 | P31: 0 | Q31: 0 | R31: 9
B32: 89B | C32: Short Rural | D32: 66 | E32: Boundary St 66/33kV STS | F32: Maher St ZS | G32: 1.1 | H32: 4.260388023 | I32: 4.175180262 | J32: 39 | K32: 0 | L32: 1.1 | M32: 16.27119013 | N32: 15.94576632 | O32: 39 | P32: 0 | Q32: 0.0009862505167 | R32: 9
B33: 84H | C33: Short Rural | D33: 66 | E33: Eden South ZS | F33: Edrom ZS | G33: 17.4 | H33: 2.5 | I33: 2.45 | J33: 38 | K33: 0 | L33: 17.4 | M33: 2.575296279 | N33: 2.523790354 | O33: 38 | P33: 0 | Q33: 0 | R33: 9
B34: 89F | C34: Short Rural | D34: 66 | E34: Pambula ZS | F34: Eden South ZS | G34: 26.3 | H34: 1.8 | I34: 1.764 | J34: 16 | K34: 0 | L34: 26.3 | M34: 7.80312029 | N34: 7.647057884 | O34: 16 | P34: 0 | Q34: 0 | R34: 9
B35: S839/1 | C35: Short Rural | D35: 66 | E35: Brown Mountain Hydro | F35: Quira ZS | G35: 20.4 | H35: 1.188825635 | I35: 1.165049122 | J35: 21 | K35: 0 | L35: 20.4 | M35: 0 | N35: 0 | O35: 11 | P35: 0 | Q35: 0.001689639841 | R35: 9
B36: S839/2 | C36: Short Rural | D36: 66 | E36: Boundary St 66/33kV STS | F36: Quira ZS | G36: 19 | H36: 1.4 | I36: 1.372 | J36: 21 | K36: 0 | L36: 19 | M36: 0 | N36: 0 | O36: 11 | P36: 0 | Q36: 0 | R36: 9
B37: 7803 | C37: Short Rural | D37: 33 | E37: Boundary St 66/33kV STS | F37: Quira ZS | G37: 15 | H37: 0 | I37: 0 | J37: 6 | K37: 0 | L37: 15 | M37: 0.8779419133 | N37: 0.8428242368 | O37: 6 | P37: 0 | Q37: 0 | R37: 9
B38: 7802/2 | C38: Short Rural | D38: 33 | E38: Brogo ZS | F38: Cobargo ZS | G38: 20.4 | H38: 4.4 | I38: 4.224 | J38: 10 | K38: 0 | L38: 20.4 | M38: 4.466052342 | N38: 4.287410248 | O38: 4 | P38: 0 | Q38: 0 | R38: 9
B39: 7802/1 | C39: Short Rural | D39: 33 | E39: Boundary St 66/33kV STS | F39: Brogo ZS | G39: 16.8 | H39: 5.4 | I39: 5.184 | J39: 12 | K39: 0 | L39: 16.8 | M39: 5.473830651 | N39: 5.254877425 | O39: 12 | P39: 0 | Q39: 0 | R39: 9
B40: 7814 | C40: Short Rural | D40: 33 | E40: Cobargo ZS | F40: Bermagui ZS | G40: 16 | H40: 2.9 | I40: 2.784 | J40: 5 | K40: 0 | L40: 16 | M40: 1.455806024 | N40: 1.397573783 | O40: 5 | P40: 0 | Q40: -0.006945227862 | R40: 10
B41: 7817 | C41: Short Rural | D41: 33 | E41: Narooma Tee | F41: Cobargo ZS | G41: 26.99 | H41: 0 | I41: 0 | J41: 10 | K41: 0 | L41: 26.99 | M41: 0 | N41: 0 | O41: 10 | P41: 0 | Q41: 0 | R41: 9
B42: 974 | C42: Short Rural | D42: 132 | E42: TransGrid Cooma 132/66/11kV STS | F42: Bega 132/66kV STS | G42: 92.5 | H42: 22.3 | I42: 21.854 | J42: 128 | K42: 0 | L42: 92.5 | M42: 44.95529003 | N42: 44.05618423 | O42: 128 | P42: 0 | Q42: 0 | R42: 9
B43: 97R/1 | C43: Long Rural | D43: 132 | E43: TransGrid Cooma 132/66/11kV STS | F43: Steeple Flat 132/66kV STS | G43: 44.448 | H43: 78.63878265 | I43: 77.066007 | J43: 140 | K43: 0 | L43: 0 | M43: 0 | N43: 0 | O43: 0 | P43: 0 | Q43: -0.0002918279358 | R43: 10
B44: 97R/2 | C44: Short Rural | D44: 132 | E44: Steeple Flat 132/66kV STS | F44: Bega 132/66kV STS | G44: 46.8 | H44: 23.2 | I44: 22.736 | J44: 140 | K44: 0 | L44: 0 | M44: 0 | N44: 0 | O44: 0 | P44: 0 | Q44: 0 | R44: 9
B45: 97C | C45: Urban | D45: 132 | E45: Steeple Flat 132/66kV STS | F45: Boco Rock Wind Farm | G45: 25 | H45: 113.9 | I45: 111.622 | J45: 140 | K45: 0 | L45: 0 | M45: 0 | N45: 0 | O45: 0 | P45: 0 | Q45: 0 | R45: 9
B46: 851 | C46: Short Rural | D46: 66 | E46: TransGrid Beryl 132/66kV STS | F46: Gulgong ZS | G46: 6.76 | H46: 4.2 | I46: 4.116 | J46: 28 | K46: 0 | L46: 6.76 | M46: 4.609195045 | N46: 4.517011144 | O46: 11 | P46: 0 | Q46: 0.01882369039 | R46: 9
B47: 852 | C47: Long Rural | D47: 66 | E47: TransGrid Beryl 132/66kV STS | F47: Dunedoo ZS | G47: 40.1 | H47: 13.8 | I47: 13.524 | J47: 15 | K47: 0 | L47: 40.1 | M47: 15.4408034 | N47: 15.13198733 | O47: 15 | P47: 0 | Q47: 0 | R47: 9
B48: 86J | C48: Long Rural | D48: 66 | E48: TransGrid Beryl 132/66kV STS | F48: Dunedoo ZS | G48: 38.87 | H48: 12.60270093 | I48: 12.35064691 | J48: 61 | K48: 0 | L48: 0 | M48: 0 | N48: 0 | O48: 0 | P48: 0 | Q48: -0.01368645979 | R48: 10
B49: 80L | C49: Short Rural | D49: 66 | E49: Ulan Sw Stn | F49: Ulan Town ZS | G49: 0.6 | H49: 1.7 | I49: 1.666 | J49: 15 | K49: 0 | L49: 0.6 | M49: 2.078047355 | N49: 2.036486408 | O49: 15 | P49: 0 | Q49: 0 | R49: 9
B50: 80T | C50: Urban | D50: 66 | E50: Ulan Sw Stn | F50: Moolarben Mine ZS | G50: 4.95 | H50: 28.6 | I50: 28.028 | J50: 43 | K50: 0 | L50: 4.95 | M50: 7.273165744 | N50: 7.127702429 | O50: 43 | P50: 0 | Q50: 0.02201984526 | R50: 9
B51: 80T/2 | C51: Urban | D51: 66 | E51: Moolarben Mine ZS | F51: Wilpinjong Mine ZS | G51: 13.25 | H51: 11.9 | I51: 11.662 | J51: 43 | K51: 0 | L51: 13.25 | M51: 3.117071033 | N51: 3.054729612 | O51: 43 | P51: 0 | Q51: 0.0226178672 | R51: 9
B52: 80U | C52: Short Rural | D52: 66 | E52: TransGrid Beryl 132/66kV STS | F52: Ulan Sw Stn | G52: 28.9 | H52: 34 | I52: 33.32 | J52: 61 | K52: 0 | L52: 28.9 | M52: 0 | N52: 0 | O52: 15 | P52: 0 | Q52: 0.06055157402 | R52: 9
B53: 80R | C53: Short Rural | D53: 66 | E53: TransGrid Beryl 132/66kV STS | F53: Ulan Sw Stn | G53: 31.8 | H53: 36.5 | I53: 35.77 | J53: 64 | K53: 0 | L53: 31.8 | M53: 36.71216994 | N53: 35.97792655 | O53: 64 | P53: 0 | Q53: 0.05422823372 | R53: 9
B54: 85A | C54: Long Rural | D54: 66 | E54: Dunedoo ZS | F54: Coonabarabran ZS | G54: 93 | H54: 9.3 | I54: 9.114 | J54: 11 | K54: 0 | L54: 93 | M54: 10.1402291 | N54: 9.937424517 | O54: 11 | P54: 0 | Q54: -0.01281495001 | R54: 10
B55: 94M/4 | C55: Short Rural | D55: 132 | E55: TransGrid 94M Mudgee Tee | F55: Mudgee ZS | G55: 1.5 | H55: 22.43521695 | I55: 21.98651261 | J55: 128 | K55: 0 | L55: 1.5 | M55: 23.96781423 | N55: 23.48845795 | O55: 128 | P55: 0 | Q55: 0.0006759661654 | R55: 9
B56: 5B1:MTG | C56: Short Rural | D56: 66 | E56: Mt Gipps ZS | F56: Sunset Strip ZS | G56: 84.669 | H56: 6.171430329 | I56: 6.048001722 | J56: 19 | K56: 0 | L56: 84.669 | M56: 4.738017017 | N56: 4.643256676 | O56: 19 | P56: 0 | Q56: 0.01021905057 | R56: 9
B57: 5B1:PPL | C57: Long Rural | D57: 66 | E57: Pinnacles Place ZS | F57: Mt Gipps ZS | G57: 22.318 | H57: 8.053716579 | I57: 7.892642247 | J57: 19 | K57: 0 | L57: 22.318 | M57: 6.355876486 | N57: 6.228758956 | O57: 19 | P57: 0 | Q57: 0.01021905057 | R57: 9
B58: 5B1:SUN | C58: Short Rural | D58: 66 | E58: Sunset Strip ZS | F58: Menindee ZS | G58: 15.065 | H58: 1.851429099 | I58: 1.814400517 | J58: 6 | K58: 0 | L58: 15.065 | M58: 1.73342086 | N58: 1.698752443 | O58: 19 | P58: 0 | Q58: 0.01021905057 | R58: 9
B59: X4 | C59: Urban | D59: 220 | E59: TransGrid Broken Hill 220/22kV STS | F59: Perilya Mine | G59: 2.972 | H59: 22.7455724 | I59: 22.13144195 | J59: 213 | K59: 0 | L59: 2.972 | M59: 30.4311662 | N59: 29.60952472 | O59: 213 | P59: 0 | Q59: 0.01058271211 | R59: 9
B60: 83H/1 | C60: Short Rural | D60: 66 | E60: Ellerslie ZS | F60: Ginkgo Snapper Tee | G60: 80.5 | H60: 11.1 | I60: 10.878 | J60: 45 | K60: 0 | L60: 100 | M60: 13.18964831 | N60: 12.92585534 | O60: 20 | P60: 0 | Q60: 0 | R60: 9
B61: 83H/2 | C61: Short Rural | D61: 66 | E61: Ginkgo Snapper Tee | F61: Ginkgo ZS | G61: 10 | H61: 6.7 | I61: 6.566 | J61: 20 | K61: 0 | L61: 3.663 | M61: 7.841410066 | N61: 7.684581865 | O61: 20 | P61: 0 | Q61: 0 | R61: 9
B62: 83H/3 | C62: Short Rural | D62: 66 | E62: Ginkgo Snapper Tee | F62: Snapper ZS | G62: 10 | H62: 5.1 | I62: 4.998 | J62: 12 | K62: 0 | L62: 9.179 | M62: 5.95285012 | N62: 5.833793118 | O62: 20 | P62: 0 | Q62: 0 | R62: 9
B63: 83U | C63: Short Rural | D63: 66 | E63: Powercor Mildura ZS (NSW Border) | F63: Buronga ZS | G63: 4.887 | H63: 7.120877119 | I63: 6.978459576 | J63: 22 | K63: 0 | L63: 4.887 | M63: 13.52967932 | N63: 13.25908574 | O63: 22 | P63: 0 | Q63: -0.009656923993 | R63: 10
B64: 83W | C64: Short Rural | D64: 66 | E64: Buronga ZS | F64: Dareton ZS | G64: 14.543 | H64: 0 | I64: 0 | J64: 22 | K64: 0 | L64: 14.543 | M64: 5.38894007 | N64: 5.281161268 | O64: 22 | P64: 0 | Q64: 0 | R64: 9
B65: Merbein - Dareton Line | C65: Short Rural | D65: 66 | E65: Powercor Mildura ZS (NSW Border) | F65: Dareton ZS | G65: 9.261 | H65: 24.93345301 | I65: 24.43478395 | J65: 49 | K65: 0 | L65: 8.905 | M65: 27.40333355 | N65: 26.85526688 | O65: 22 | P65: 0 | Q65: -0.03614103616 | R65: 10
B66: 893 | C66: Short Rural | D66: 66 | E66: Lismore 132/66kV STS | F66: Casino ZS | G66: 21.699 | H66: 9.247764336e-09 | I66: 9.062809049e-09 | J66: 34 | K66: 0 | L66: 21.699 | M66: 0 | N66: 0 | O66: 38 | P66: 0 | Q66: -0.01087346937 | R66: 10
B67: 8401 | C67: Short Rural | D67: 33 | E67: Casino ZS | F67: Mallanganee ZS | G67: 36.438 | H67: 3.28682324 | I67: 3.15535031 | J67: 4 | K67: 0 | L67: 36.438 | M67: 3.46684172 | N67: 3.328168051 | O67: 4 | P67: 0 | Q67: 0.001167832128 | R67: 9
B68: 8402 | C68: Short Rural | D68: 33 | E68: Mallanganee ZS | F68: Bonalbo ZS | G68: 22.4 | H68: 1.972093944 | I68: 1.893210186 | J68: 4 | K68: 0 | L68: 22.4 | M68: 2.022324336 | N68: 1.941431363 | O68: 4 | P68: 0 | Q68: 0.001167832128 | R68: 9
B69: 8403 | C69: Short Rural | D69: 33 | E69: Bonalbo ZS | F69: Urbenville ZS | G69: 31.5 | H69: 1.1 | I69: 1.056 | J69: 4 | K69: 0 | L69: 31.5 | M69: 1.214594913 | N69: 1.166011117 | O69: 4 | P69: 0 | Q69: -0.001585376714 | R69: 10
B70: 96L | C70: Short Rural | D70: 132 | E70: Transgrid Casino 132kV 96L Tee | F70: Casino ZS | G70: 0.95 | H70: 25.82503974 | I70: 25.30853894 | J70: 140 | K70: 0 | L70: 0.95 | M70: 27.76216944 | N70: 27.20692605 | O70: 140 | P70: 0 | Q70: 0.001167832128 | R70: 9
B71: 702 | C71: Short Rural | D71: 66 | E71: Boambee South 132/66kV STS | F71: Sawtell ZS | G71: 3.579 | H71: 7.8 | I71: 7.644 | J71: 61 | K71: 0 | L71: 3.579 | M71: 7.88926834 | N71: 7.731482974 | O71: 61 | P71: 0 | Q71: 0.03099104242 | R71: 9
B72: 705 | C72: Short Rural | D72: 66 | E72: TransGrid Coffs Harbour 132/66 kV STS | F72: South Coffs ZS | G72: 11.072 | H72: 13.5660174 | I72: 13.29469706 | J72: 52 | K72: 0 | L72: 11.072 | M72: 11.94992116 | N72: 11.71092274 | O72: 52 | P72: 0 | Q72: -0.01870720347 | R72: 10
B73: 706 | C73: Short Rural | D73: 66 | E73: TransGrid Coffs Harbour 132/66 kV STS | F73: South Coffs ZS | G73: 10.004 | H73: 15.40444366 | I73: 15.09635478 | J73: 52 | K73: 0 | L73: 10.004 | M73: 13.57418229 | N73: 13.30269865 | O73: 52 | P73: 0 | Q73: -0.01870720347 | R73: 10
B74: 7501 | C74: Short Rural | D74: 66 | E74: Nana Glen ZS | F74: Woolgoolga ZS | G74: 20.6 | H74: 5.070919801 | I74: 4.969501405 | J74: 29 | K74: 0 | L74: 20.6 | M74: 0 | N74: 0 | O74: 29 | P74: 0 | Q74: -0.01870720347 | R74: 10
B75: 7502 | C75: Short Rural | D75: 66 | E75: Nana Glen ZS | F75: Ulong ZS | G75: 14.77 | H75: 0.7 | I75: 0.686 | J75: 9 | K75: 0 | L75: 14.77 | M75: 0.6961119124 | N75: 0.6821896741 | O75: 9 | P75: 0 | Q75: -0.01870720347 | R75: 10
B76: 7503 | C76: Short Rural | D76: 66 | E76: Ulong ZS | F76: Dorrigo ZS | G76: 20.86 | H76: 0 | I76: 0 | J76: 9 | K76: 0 | L76: 20.86 | M76: 0 | N76: 0 | O76: 9 | P76: 0 | Q76: 0 | R76: 9
B77: 7509 | C77: Short Rural | D77: 66 | E77: Moonee ZS | F77: Woolgoolga ZS | G77: 9.4 | H77: 10.4 | I77: 10.192 | J77: 30 | K77: 0 | L77: 9.4 | M77: 11.07852952 | N77: 10.85695893 | O77: 30 | P77: 0 | Q77: 0.003136257642 | R77: 9
B78: 7510 | C78: Short Rural | D78: 66 | E78: North Coffs ZS | F78: Moonee ZS | G78: 11 | H78: 15.3 | I78: 14.994 | J78: 61 | K78: 0 | L78: 11 | M78: 16.04078753 | N78: 15.71997178 | O78: 61 | P78: 0 | Q78: -0.01870720347 | R78: 10
B79: 703:NGN | C79: Short Rural | D79: 66 | E79: TransGrid Coffs Harbour 132/66 kV STS | F79: Nana Glen ZS | G79: 12.63 | H79: 8.29470043 | I79: 8.128806421 | J79: 62 | K79: 0 | L79: 12.63 | M79: 3.596578214 | N79: 3.52464665 | O79: 62 | P79: 0 | Q79: -0.01870720347 | R79: 10
B80: 711:CHN | C80: Urban | D80: 66 | E80: TransGrid Coffs Harbour 132/66 kV STS | F80: North Coffs ZS | G80: 11.29 | H80: 37.9 | I80: 37.142 | J80: 62 | K80: 0 | L80: 11.29 | M80: 38.77485332 | N80: 37.99935625 | O80: 62 | P80: 0 | Q80: -0.01870720347 | R80: 10
B81: 87C | C81: Short Rural | D81: 66 | E81: North Coffs ZS | F81: South Coffs ZS | G81: 6.09 | H81: 10.40322722 | I81: 10.19516268 | J81: 68 | K81: 0 | L81: 0 | M81: 0 | N81: 0 | O81: 0 | P81: 0 | Q81: -0.01870720347 | R81: 10
B82: 96C/2(D) | C82: Short Rural | D82: 132 | E82: TransGrid 96C Armidale Coffs Harbour Dorrigo Tee | F82: Dorrigo ZS | G82: 2.147 | H82: 3.2 | I82: 3.136 | J82: 122 | K82: 0 | L82: 2.147 | M82: 3.480559562 | N82: 3.410948371 | O82: 122 | P82: 0 | Q82: -0.01113423699 | R82: 10
B83: 82D | C83: Short Rural | D83: 66 | E83: TransGrid Cooma 132/66/11kV STS | F83: Jindabyne East ZS | G83: 51.1 | H83: 15.5 | I83: 15.19 | J83: 20 | K83: 0 | L83: 51.1 | M83: 10.24887441 | N83: 10.04389692 | O83: 20 | P83: 0 | Q83: -0.01675657005 | R83: 10
B84: 82R | C84: Urban | D84: 66 | E84: Jindabyne East ZS | F84: Jindabyne ZS | G84: 16.6 | H84: 11.4 | I84: 11.172 | J84: 20 | K84: 0 | L84: 16.6 | M84: 6.289082025 | N84: 6.163300384 | O84: 20 | P84: 0 | Q84: -0.01675657005 | R84: 10
B85: 82J/1 | C85: Urban | D85: 66 | E85: Snowy Adit 132/66/11kV ZS | F85: Snowy Lookout Sw Stn | G85: 9.2 | H85: 0 | I85: 0 | J85: 12 | K85: 0 | L85: 9.2 | M85: 6.289082025 | N85: 6.163300384 | O85: 12 | P85: 0 | Q85: 0 | R85: 9
B86: 82J/2 | C86: Urban | D86: 66 | E86: Jindabyne ZS | F86: Snowy Lookout Sw Stn | G86: 9.2 | H86: 0 | I86: 0 | J86: 12 | K86: 0 | L86: 9.2 | M86: 7.453726844 | N86: 7.304652307 | O86: 12 | P86: 0 | Q86: 0 | R86: 9
B87: 810/3 | C87: Urban | D87: 66 | E87: Steeple Flat 132/66kV STS | F87: Brown Mountain Hydro | G87: 9.2 | H87: 5.25 | I87: 5.145 | J87: 70 | K87: 0 | L87: 9.2 | M87: 0 | N87: 0 | O87: 11 | P87: 0 | Q87: 0 | R87: 9
B88: 810/4 | C88: Short Rural | D88: 66 | E88: Steeple Flat 132/66kV STS | F88: Bombala ZS | G88: 41.4 | H88: 8.7 | I88: 8.526 | J88: 21 | K88: 0 | L88: 41.4 | M88: 4.350499401 | N88: 4.263489413 | O88: 11 | P88: 0 | Q88: -0.01536679502 | R88: 10
B89: 849/1 | C89: Short Rural | D89: 33 | E89: Adaminaby ZS | F89: Providence Portal ZS | G89: 9.859 | H89: 2 | I89: 1.92 | J89: 7 | K89: 0 | L89: 9.859 | M89: 0.5823224097 | N89: 0.5590295133 | O89: 7 | P89: 0 | Q89: -0.01675657005 | R89: 10
B90: 849/2 | C90: Short Rural | D90: 33 | E90: Providence Portal ZS | F90: Cabramurra ZS | G90: 26.173 | H90: 1.8 | I90: 1.728 | J90: 7 | K90: 0 | L90: 26.173 | M90: 0.5240901687 | N90: 0.503126562 | O90: 7 | P90: 0 | Q90: -0.01675657005 | R90: 10
B91: 888/1 | C91: Short Rural | D91: 66 | E91: TransGrid Cooma 132/66/11kV STS | F91: Rhine Falls Sw Stn | G91: 24 | H91: 3.5 | I91: 3.43 | J91: 16 | K91: 0 | L91: 24 | M91: 3.261005494 | N91: 3.195785384 | O91: 16 | P91: 0 | Q91: -0.01675657005 | R91: 10
B92: 888/3 | C92: Short Rural | D92: 66 | E92: Rhine Falls Sw Stn | F92: Adaminaby ZS | G92: 28.5 | H92: 3.3 | I92: 3.234 | J92: 16 | K92: 0 | L92: 28.5 | M92: 3.261005494 | N92: 3.195785384 | O92: 16 | P92: 0 | Q92: -0.01675657005 | R92: 10
B93: 888/4 | C93: Short Rural | D93: 66 | E93: Rhine Falls Sw Stn | F93: Eucumbene Tee | G93: 24.5 | H93: 0.3 | I93: 0.294 | J93: 15 | K93: 0 | L93: 24.5 | M93: 1.488328742 | N93: 1.458562167 | O93: 15 | P93: 0 | Q93: -0.002585249093 | R93: 10
B94: 888/6 | C94: Short Rural | D94: 66 | E94: Eucumbene Tee | F94: Eucumbene ZS | G94: 8 | H94: 0.2 | I94: 0.196 | J94: 15 | K94: 0 | L94: 8 | M94: 0.2329289639 | N94: 0.2282703846 | O94: 15 | P94: 0 | Q94: -0.002585249093 | R94: 10
B95: 888/7 | C95: Short Rural | D95: 66 | E95: Eucumbene Tee | F95: Snowy Adit 132/66/11kV ZS | G95: 19.3 | H95: 0 | I95: 0 | J95: 20 | K95: 0 | L95: 19.3 | M95: 0 | N95: 0 | O95: 20 | P95: 0 | Q95: 0 | R95: 9
B96: 865 | C96: Short Rural | D96: 66 | E96: TransGrid Cowra 132/66kV STS | F96: Cowra Town ZS | G96: 3.938 | H96: 9.817352902 | I96: 9.621005844 | J96: 15 | K96: 0 | L96: 3.45 | M96: 20.82557096 | N96: 20.40905954 | O96: 15 | P96: 0 | Q96: -0.001357033248 | R96: 10
B97: 866:COW | C97: Short Rural | D97: 66 | E97: TransGrid Cowra 132/66kV STS | F97: Cowra Town ZS | G97: 3.554 | H97: 8.714679207 | I97: 8.540385622 | J97: 15 | K97: 0 | L97: 3.93 | M97: 0 | N97: 0 | O97: 15 | P97: 0 | Q97: -0.001357033248 | R97: 10
B98: 863:CWD | C98: Short Rural | D98: 66 | E98: TransGrid Cowra 132/66kV STS | F98: Canowindra ZS | G98: 36 | H98: 5.584508716 | I98: 5.472818542 | J98: 9 | K98: 0 | L98: 36 | M98: 6.558328976 | N98: 6.427162397 | O98: 9 | P98: 0 | Q98: -0.001357033248 | R98: 10
B99: 891/1 | C99: Urban | D99: 66 | E99: TransGrid Cowra 132/66kV STS | F99: Wyangala Dam Tee | G99: 16.968 | H99: 2.009711735 | I99: 1.969517501 | J99: 20 | K99: 0 | L99: 16.1 | M99: 21.13919513 | N99: 20.71641123 | O99: 20 | P99: 0 | Q99: -0.001357033248 | R99: 10
B100: 891/2 | C100: Urban | D100: 66 | E100: Wyangala Dam Tee | F100: Wyangala Dam | G100: 28.695 | H100: 0 | I100: 0 | J100: 19 | K100: 0 | L100: 29 | M100: 22.89662222 | N100: 22.43868977 | O100: 19 | P100: 0 | Q100: 0 | R100: 9
B101: 891:BMU/1 | C101: Long Rural | D101: 66 | E101: Wyangala Dam Tee | F101: Bendick Murrell Tee | G101: 30.2 | H101: 2.303165219 | I101: 2.257101914 | J101: 19 | K101: 0 | L101: 30.2 | M101: 2.416226465 | N101: 2.367901936 | O101: 19 | P101: 0 | Q101: -0.001357033248 | R101: 10
B102: 891/7 | C102: Long Rural | D102: 66 | E102: Bendick Murrell Tee | F102: Bendick Murrell ZS | G102: 0.1 | H102: 1.671795603 | I102: 1.638359691 | J102: 19 | K102: 0 | L102: 0.1 | M102: 1.7 | N102: 1.666 | O102: 19 | P102: 0 | Q102: -0.001357033248 | R102: 10
B103: 891:BMU/2 | C103: Urban | D103: 66 | E103: Bendick Murrell Tee | F103: Monteagle Tee | G103: 12.75 | H103: 0.720294914 | I103: 0.7058890157 | J103: 19 | K103: 0 | L103: 12.75 | M103: 0.8054088217 | N103: 0.7893006452 | O103: 19 | P103: 0 | Q103: -0.001357033248 | R103: 10
B104: 891/5 | C104: Urban | D104: 66 | E104: Monteagle Tee | F104: Monteagle ZS | G104: 3.248 | H104: 0.809220212 | I104: 0.7930358078 | J104: 13 | K104: 0 | L104: 3 | M104: 0.8 | N104: 0.784 | O104: 13 | P104: 0 | Q104: -0.001357033248 | R104: 10
B105: 891/6 | C105: Short Rural | D105: 66 | E105: Monteagle Tee | F105: Young ZS | G105: 9.846 | H105: 0 | I105: 0 | J105: 19 | K105: 0 | L105: 10 | M105: 0 | N105: 0 | O105: 19 | P105: 0 | Q105: 0 | R105: 9
B106: 893/1 | C106: Short Rural | D106: 66 | E106: TransGrid Cowra 132/66kV STS | F106: Grenfell Tee | G106: 8.936 | H106: 4.197274067 | I106: 4.113328585 | J106: 12 | K106: 0 | L106: 8.53 | M106: 4.717394527 | N106: 4.623046636 | O106: 12 | P106: 0 | Q106: -0.001357033248 | R106: 10
B107: 893/4 | C107: Short Rural | D107: 66 | E107: Grenfell Tee | F107: Payten'sBridge ZS | G107: 35.5 | H107: 0 | I107: 0 | J107: 12 | K107: 0 | L107: 35.5 | M107: 0 | N107: 0 | O107: 12 | P107: 0 | Q107: 0 | R107: 9
B108: 893/6 | C108: Short Rural | D108: 66 | E108: Grenfell Tee | F108: Grenfell ZS | G108: 47.1 | H108: 4.286199365 | I108: 4.200475378 | J108: 12 | K108: 0 | L108: 47.1 | M108: 4.822225516 | N108: 4.725781006 | O108: 12 | P108: 0 | Q108: -0.001357033248 | R108: 10
B109: CLY1526 | C109: Short Rural | D109: 33 | E109: Coleambally 132/33kV STS | F109: Coleambally Tee | G109: 10 | H109: 3.863057864 | I109: 3.70853555 | J109: 8 | K109: 0 | L109: 10 | M109: 5.169911853 | N109: 4.963115379 | O109: 8 | P109: 0 | Q109: 0.01484766665 | R109: 9
B110: CLY1530 | C110: Short Rural | D110: 33 | E110: Coleambally 132/33kV STS | F110: Ringwood Rd ZS | G110: 7.83 | H110: 5.768555409 | I110: 5.537813193 | J110: 8 | K110: 0 | L110: 11 | M110: 4.308259877 | N110: 4.135929482 | O110: 8 | P110: 0 | Q110: 0.01484766665 | R110: 9
B111: 99N | C111: Long Rural | D111: 132 | E111: TransGrid Darlington Point 330/132kV STS | F111: Hillston ZS | G111: 163.037 | H111: 11.02345227 | I111: 10.80298322 | J111: 128 | K111: 0 | L111: 163.037 | M111: 13.67671173 | N111: 13.4031775 | O111: 128 | P111: 0 | Q111: 0.003826061919 | R111: 9
B112: 99R | C112: Long Rural | D112: 132 | E112: TransGrid Darlington Point 330/132kV STS | F112: Hay 132 ZS | G112: 116.415 | H112: 8.364686728 | I112: 8.197392994 | J112: 128 | K112: 0 | L112: 116.415 | M112: 17.38565051 | N112: 17.0379375 | O112: 128 | P112: 0 | Q112: 0.003826061919 | R112: 9
B113: HAT 22 | C113: Short Rural | D113: 33 | E113: Hay 132 ZS | F113: Hay ZS | G113: 2.6 | H113: 5.74743557 | I113: 5.517538148 | J113: 8 | K113: 0 | L113: 2.6 | M113: 3.477130101 | N113: 3.338044897 | O113: 8 | P113: 0 | Q113: 0.003826061919 | R113: 9
B114: HAT 32 | C114: Short Rural | D114: 33 | E114: Hay 132 ZS | F114: Hay ZS | G114: 2.45 | H114: 1.014796008 | I114: 0.9742041673 | J114: 8 | K114: 0 | L114: 2.45 | M114: 3.303273596 | N114: 3.171142652 | O114: 8 | P114: 0 | Q114: 0.003826061919 | R114: 9
B115: HAT 42 | C115: Short Rural | D115: 33 | E115: Hay 132 ZS | F115: Carrathool ZS | G115: 54.79 | H115: 1.854309068 | I115: 1.780136706 | J115: 7 | K115: 0 | L115: 54.79 | M115: 1.448804209 | N115: 1.390852041 | O115: 7 | P115: 0 | Q115: 0.003826061919 | R115: 9
B116: HIL1117 | C116: Long Rural | D116: 33 | E116: Hillston ZS | F116: Ivanhoe ZS | G116: 160 | H116: 3.053613441 | I116: 2.931468903 | J116: 8 | K116: 0 | L116: 160 | M116: 1.564708546 | N116: 1.502120204 | O116: 8 | P116: 0 | Q116: 0.01437366555 | R116: 9
B117: 844 | C117: Short Rural | D117: 66 | E117: TransGrid Deniliquin 132/66kV STS | F117: Barham ZS | G117: 174.562 | H117: 5.643115651 | I117: 5.530253338 | J117: 11 | K117: 0 | L117: 86.9 | M117: 6.434948416 | N117: 6.306249447 | O117: 11 | P117: 0 | Q117: -0.0007189689059 | R117: 10
B118: 845 | C118: Long Rural | D118: 66 | E118: TransGrid Deniliquin 132/66kV STS | F118: Deniliquin ZS | G118: 5.268 | H118: 21.46305751 | I118: 21.03379636 | J118: 38 | K118: 0 | L118: 5.6 | M118: 24.01614677 | N118: 23.53582383 | O118: 38 | P118: 0 | Q118: -0.0007189689059 | R118: 10
B119: 822/1 | C119: Short Rural | D119: 66 | E119: TransGrid Deniliquin 132/66kV STS | F119: Murgha ZS | G119: 74.231 | H119: 7.355268387 | I119: 7.208163019 | J119: 11 | K119: 0 | L119: 95.7 | M119: 8.273505106 | N119: 8.108035004 | O119: 11 | P119: 0 | Q119: -0.0007189689059 | R119: 10
B120: 822/2 | C120: Long Rural | D120: 66 | E120: Murgha ZS | F120: Moulamein ZS | G120: 35.317 | H120: 6.175979513 | I120: 6.052459922 | J120: 11 | K120: 0 | L120: 15 | M120: 6.876679568 | N120: 6.739145977 | O120: 11 | P120: 0 | Q120: -0.0007189689059 | R120: 10
B121: 84Y | C121: Short Rural | D121: 66 | E121: TransGrid Deniliquin 132/66kV STS | F121: Moama ZS | G121: 70.023 | H121: 8.30743496 | I121: 8.14128626 | J121: 66 | K121: 0 | L121: 0 | M121: 9.307693244 | N121: 9.121539379 | O121: 20 | P121: 0 | Q121: -0.0007189689059 | R121: 10
B122: MM61 | C122: Short Rural | D122: 66 | E122: Moulamein ZS | F122: Koraleigh ZS | G122: 56.75 | H122: 4.096936904 | I122: 4.014998166 | J122: 15 | K122: 0 | L122: 56 | M122: 4.711301519 | N122: 4.617075488 | O122: 34 | P122: 0 | Q122: -0.0007189689059 | R122: 10
B123: No.6 Moama | C123: Short Rural | D123: 66 | E123: TransGrid Deniliquin 132/66kV STS | F123: Moama ZS | G123: 69 | H123: 5.791618694 | I123: 5.67578632 | J123: 34 | K123: 0 | L123: 69 | M123: 6.549858209 | N123: 6.418861045 | O123: 34 | P123: 0 | Q123: -0.0007189689059 | R123: 10
B124: 81X | C124: Urban | D124: 66 | E124: Dubbo 132/66kV STS | F124: Yarrandale ZS | G124: 4.33 | H124: 10.98348332 | I124: 10.76381366 | J124: 28 | K124: 0 | L124: 4.33 | M124: 14.42573947 | N124: 14.13722468 | O124: 15 | P124: 0 | Q124: -0.002176820403 | R124: 10
B125: 81P | C125: Urban | D125: 66 | E125: Dubbo 132/66kV STS | F125: Yarrandale ZS | G125: 5.57 | H125: 10.03441546 | I125: 9.833727147 | J125: 61 | K125: 0 | L125: 5.57 | M125: 13.13772702 | N125: 12.87497248 | O125: 61 | P125: 0 | Q125: 0.0003872080482 | R125: 9
B126: 81T | C126: Short Rural | D126: 66 | E126: Yarrandale ZS | F126: Gilgandra ZS | G126: 59.17 | H126: 5.882243543 | I126: 5.764598672 | J126: 43 | K126: 0 | L126: 59.17 | M126: 0 | N126: 0 | O126: 43 | P126: 0 | Q126: -0.002176820403 | R126: 10
B127: 812 | C127: Short Rural | D127: 66 | E127: Yarrandale ZS | F127: Gilgandra ZS | G127: 59.2 | H127: 5.882243543 | I127: 5.764598672 | J127: 15 | K127: 0 | L127: 59.2 | M127: 16.3296167 | N127: 16.00302437 | O127: 15 | P127: 0 | Q127: -0.002176820403 | R127: 10
B128: 815 | C128: Urban | D128: 66 | E128: Dubbo 132/66kV STS | F128: Phillip St ZS | G128: 1.4 | H128: 12.19599556 | I128: 11.95207565 | J128: 24 | K128: 0 | L128: 1.4 | M128: 15.51892651 | N128: 15.20854798 | O128: 27 | P128: 0 | Q128: 0.01364479947 | R128: 9
B129: 816 | C129: Urban | D129: 66 | E129: Dubbo 132/66kV STS | F129: Phillip St ZS | G129: 1.38 | H129: 12.19599556 | I129: 11.95207565 | J129: 24 | K129: 0 | L129: 1.38 | M129: 15.6347394 | N129: 15.32204461 | O129: 27 | P129: 0 | Q129: 0.01364479947 | R129: 9
B130: 813:EUL | C130: Short Rural | D130: 66 | E130: Eulomogo ZS | F130: Geurie ZS | G130: 29.96 | H130: 1.198580909 | I130: 1.174609291 | J130: 12 | K130: 0 | L130: 29.96 | M130: 1.389754613 | N130: 1.361959521 | O130: 12 | P130: 0 | Q130: -0.006695492202 | R130: 10
B131: 814/1 | C131: Long Rural | D131: 66 | E131: Gilgandra ZS | F131: Gulargambone ZS | G131: 48 | H131: 6.891797608 | I131: 6.753961655 | J131: 11 | K131: 0 | L131: 48 | M131: 7.875276141 | N131: 7.717770618 | O131: 11 | P131: 0 | Q131: 0.01599412422 | R131: 9
B132: 814/2 | C132: Short Rural | D132: 66 | E132: Gulargambone ZS | F132: Coonamble ZS | G132: 44.5 | H132: 5.49223009 | I132: 5.382385489 | J132: 11 | K132: 0 | L132: 44.5 | M132: 6.485521528 | N132: 6.355811097 | O132: 11 | P132: 0 | Q132: 0.0003626836589 | R132: 9
B133: 81M | C133: Short Rural | D133: 66 | E133: Dubbo 132/66kV STS | F133: Eulomogo ZS | G133: 2.14 | H133: 9.391817422 | I133: 9.203981074 | J133: 20 | K133: 0 | L133: 2.14 | M133: 12.6236044 | N133: 12.37113231 | O133: 20 | P133: 0 | Q133: -0.002176820403 | R133: 10
B134: 81R | C134: Short Rural | D134: 66 | E134: Dubbo 132/66kV STS | F134: Eulomogo ZS | G134: 2.05 | H134: 9.807034613 | I134: 9.610893921 | J134: 20 | K134: 0 | L134: 2.05 | M134: 12.04453998 | N134: 11.80364918 | O134: 20 | P134: 0 | Q134: -0.002176820403 | R134: 10
B135: 943/1 | C135: Urban | D135: 132 | E135: 94F Tee | F135: Dubbo South ZS | G135: 3.368 | H135: 39.51483604 | I135: 38.72453932 | J135: 106 | K135: 0 | L135: 3.368 | M135: 80.83739333 | N135: 79.22064546 | O135: 106 | P135: 0 | Q135: -0.002176820403 | R135: 10
B136: 943/2 | C136: Short Rural | D136: 132 | E136: Dubbo South ZS | F136: Narromine South Sw Stn | G136: 31.6 | H136: 25.20961519 | I136: 24.70542288 | J136: 106 | K136: 0 | L136: 31.6 | M136: 64.85521528 | N136: 63.55811097 | O136: 106 | P136: 0 | Q136: -0.002176820403 | R136: 10
B137: 94W/1 | C137: Short Rural | D137: 132 | E137: Dubbo 132/66kV STS | F137: Nevertire Tee | G137: 113.4 | H137: 37.43875008 | I137: 36.68997508 | J137: 128 | K137: 0 | L137: 113.4 | M137: 42.85076724 | N137: 41.99375189 | O137: 128 | P137: 0 | Q137: -0.002176820403 | R137: 10
B138: 94W/2 | C138: Short Rural | D138: 132 | E138: Nevertire Tee | F138: Nevertire ZS | G138: 0.46 | H138: 8 | I138: 7.84 | J138: 124 | K138: 0 | L138: 0.46 | M138: 8 | N138: 7.84 | O138: 124 | P138: 0 | Q138: 0.008594328941 | R138: 9
B139: 94W/3 | C139: Short Rural | D139: 132 | E139: Nevertire Tee | F139: Nyngan 132/66kV STS | G139: 60 | H139: 30.29108272 | I139: 29.68526106 | J139: 128 | K139: 0 | L139: 60 | M139: 35.6703684 | N139: 34.95696104 | O139: 128 | P139: 0 | Q139: -0.002176820403 | R139: 10
B140: 9GW | C140: Short Rural | D140: 132 | E140: Dubbo 132/66kV STS | F140: Dubbo West ZS | G140: 5.5 | H140: 34.34439339 | I140: 33.65750553 | J140: 140 | K140: 0 | L140: 0 | M140: 0 | N140: 0 | O140: 0 | P140: 0 | Q140: -0.002176820403 | R140: 10
B141: 808D | C141: Short Rural | D141: 66 | E141: Dubbo 132/66kV STS | F141: West Dubbo ZS | G141: 0 | H141: 0 | I141: 0 | J141: 0 | K141: 0 | L141: 5.5 | M141: 14.1291719 | N141: 13.84658846 | O141: 12 | P141: 0 | Q141: 0 | R141: 9
B142: 9GP | C142: Short Rural | D142: 132 | E142: Narromine South Sw Stn | F142: Narromine ZS | G142: 3.75 | H142: 12 | I142: 11.76 | J142: 124 | K142: 0 | L142: 3.75 | M142: 9.728282292 | N142: 9.533716646 | O142: 124 | P142: 0 | Q142: 0.008598284008 | R142: 9
B143: 9GR | C143: Short Rural | D143: 132 | E143: Narromine South Sw Stn | F143: Narromine ZS | G143: 3.75 | H143: 0 | I143: 0 | J143: 124 | K143: 0 | L143: 3.75 | M143: 0 | N143: 0 | O143: 124 | P143: 0 | Q143: 0 | R143: 9
B144: 9GT | C144: Short Rural | D144: 132 | E144: Dubbo West ZS | F144: Narromine South Sw Stn | G144: 32.128 | H144: 24.24077507 | I144: 23.75595957 | J144: 140 | K144: 0 | L144: 31 | M144: 14.82404921 | N144: 14.52756822 | O144: 24 | P144: 0 | Q144: -0.002176820403 | R144: 10
B145: 9GU | C145: Short Rural | D145: 132 | E145: Narromine South Sw Stn | F145: Nyngan 132/66kV STS | G145: 133.8 | H145: 37.33988885 | I145: 36.59309107 | J145: 106 | K145: 0 | L145: 133.8 | M145: 32.42760764 | N145: 31.77905549 | O145: 106 | P145: 0 | Q145: -0.002176820403 | R145: 10
B146: 811 | C146: Short Rural | D146: 66 | E146: Nyngan 132/66kV STS | F146: Cobar Town ZS | G146: 132 | H146: 7.4 | I146: 7.252 | J146: 10 | K146: 0 | L146: 132 | M146: 9.728282292 | N146: 9.533716646 | O146: 10 | P146: 0 | Q146: -0.004292456847 | R146: 10
B147: 854 | C147: Long Rural | D147: 66 | E147: Nyngan 132/66kV STS | F147: Nyngan Town ZS | G147: 3.54 | H147: 5.9400594 | I147: 5.821258212 | J147: 15 | K147: 0 | L147: 3.54 | M147: 5.906457106 | N147: 5.788327964 | O147: 15 | P147: 0 | Q147: 0.007022622176 | R147: 9
B148: 820/1:NYN | C148: Short Rural | D148: 66 | E148: Nyngan Town ZS | F148: Nevertire Tee | G148: 4.8 | H148: 0 | I148: 0 | J148: 15 | K148: 0 | L148: 4.8 | M148: 0.1158128844 | N148: 0.1134966267 | O148: 15 | P148: 0 | Q148: 0 | R148: 9
B149: 820:NVE | C149: Short Rural | D149: 66 | E149: Nyngan 132/66kV STS | F149: Nevertire ZS | G149: 58.01 | H149: 0 | I149: 0 | J149: 11 | K149: 0 | L149: 58.01 | M149: 0.1158128844 | N149: 0.1134966267 | O149: 11 | P149: 0 | Q149: 0 | R149: 9
B150: 855/1 | C150: Short Rural | D150: 66 | E150: Nyngan 132/66kV STS | F150: Girilambone Tee | G150: 47.3 | H150: 15.8 | I150: 15.484 | J150: 28 | K150: 0 | L150: 47.3 | M150: 12.97104306 | N150: 12.71162219 | O150: 28 | P150: 0 | Q150: 0.02072752724 | R150: 9
B151: 855/1a | C151: Short Rural | D151: 66 | E151: Girilambone Tee | F151: Girilambone ZS | G151: 1.67 | H151: 11.4 | I151: 11.172 | J151: 24 | K151: 0 | L151: 1.67 | M151: 9.750045787 | N151: 9.555044871 | O151: 24 | P151: 0 | Q151: 0.04577059403 | R151: 9
B152: 855/4 | C152: Urban | D152: 66 | E152: Girilambone ZS | F152: Tritton Mine ZS | G152: 23.8 | H152: 10.6 | I152: 10.388 | J152: 24 | K152: 0 | L152: 23.8 | M152: 6.948773066 | N152: 6.809797604 | O152: 24 | P152: 0 | Q152: 0.04595843909 | R152: 9
B153: 855/2 | C153: Short Rural | D153: 66 | E153: Girilambone Tee | F153: Byrock ZS | G153: 82.7 | H153: 8.4 | I153: 8.232 | J153: 28 | K153: 0 | L153: 82.7 | M153: 6.485521528 | N153: 6.355811097 | O153: 38 | P153: 0 | Q153: -0.01001386451 | R153: 10
B154: 855/3 | C154: Short Rural | D154: 66 | E154: Byrock ZS | F154: Bourke ZS | G154: 78.4 | H154: 8 | I154: 7.84 | J154: 28 | K154: 0 | L154: 78.4 | M154: 6.717147297 | N154: 6.582804351 | O154: 38 | P154: 0 | Q154: -0.01076662051 | R154: 10
B155: 946/1 | C155: Urban | D155: 132 | E155: Nyngan 132/66kV STS | F155: Scrubby Valley Sw Stn | G155: 118 | H155: 39.9 | I155: 39.102 | J155: 106 | K155: 0 | L155: 118 | M155: 37.98662609 | N155: 37.22689357 | O155: 106 | P155: 0 | Q155: 0.01597774046 | R155: 9
B156: 9UT | C156: Urban | D156: 132 | E156: Nyngan 132/66kV STS | F156: Nyngan Solar Farm | G156: 3.4 | H156: 57.89799118 | I156: 56.74003136 | J156: 106 | K156: 0 | L156: 0 | M156: 0 | N156: 0 | O156: 106 | P156: 0 | Q156: -0.01406218058 | R156: 10
B157: 9UW | C157: Urban | D157: 132 | E157: Nyngan Solar Farm | F157: Scrubby Valley Sw Stn | G157: 118 | H157: 35.36451624 | I157: 34.65722592 | J157: 106 | K157: 0 | L157: 118 | M157: 0 | N157: 0 | O157: 106 | P157: 0 | Q157: 0.01597774046 | R157: 9
B158: 946/2 | C158: Long Rural | D158: 132 | E158: Scrubby Valley Sw Stn | F158: Cobar CSA ZS | G158: 20.3 | H158: 27.5 | I158: 26.95 | J158: 106 | K158: 0 | L158: 20.3 | M158: 26.63696342 | N158: 26.10422415 | O158: 106 | P158: 0 | Q158: 0.01631619393 | R158: 9
B159: 946/3 | C159: Urban | D159: 132 | E159: Scrubby Valley Sw Stn | F159: Cobar Peak ZS | G159: 9.5 | H159: 17.84740141 | I159: 17.49045339 | J159: 102 | K159: 0 | L159: 9.5 | M159: 12.73941729 | N159: 12.48462894 | O159: 102 | P159: 0 | Q159: 0.03627077659 | R159: 9
B160: 94R | C160: Urban | D160: 132 | E160: Cobar CSA ZS | F160: Cobar Elura ZS | G160: 32.6 | H160: 11.8 | I160: 11.564 | J160: 128 | K160: 0 | L160: 32.6 | M160: 12.97104306 | N160: 12.71162219 | O160: 128 | P160: 0 | Q160: -0.0172262659 | R160: 10
B161: 84A | C161: Long Rural | D161: 66 | E161: TransGrid Finley 132/66kV STS | F161: Jerilderie ZS | G161: 43.019 | H161: 5.4 | I161: 5.292 | J161: 15 | K161: 0 | L161: 43.019 | M161: 6.886356883 | N161: 6.748629745 | O161: 15 | P161: 0 | Q161: 0.0001314177876 | R161: 9
B162: 84B | C162: Long Rural | D162: 66 | E162: TransGrid Finley 132/66kV STS | F162: Finley ZS | G162: 5.788 | H162: 9.47035551 | I162: 9.2809484 | J162: 61 | K162: 0 | L162: 5.788 | M162: 8.620806581 | N162: 8.448390449 | O162: 61 | P162: 0 | Q162: 0.003089843446 | R162: 9
B163: 84C | C163: Long Rural | D163: 66 | E163: TransGrid Finley 132/66kV STS | F163: Finley ZS | G163: 10.903 | H163: 6.912668255 | I163: 6.77441489 | J163: 61 | K163: 0 | L163: 10.903 | M163: 8.620806581 | N163: 8.448390449 | O163: 61 | P163: 0 | Q163: 0.003089843446 | R163: 9
B164: 9R4 | C164: Urban | D164: 132 | E164: TransGrid Finley 132/66kV STS | F164: Mulwala ZS | G164: 62.946 | H164: 15.94851319 | I164: 15.62954293 | J164: 140 | K164: 0 | L164: 62.946 | M164: 28.50613376 | N164: 27.93601108 | O164: 22 | P164: 0 | Q164: 0.003089843446 | R164: 9
B165: 858 | C165: Short Rural | D165: 66 | E165: TransGrid Forbes 132/66kV STS | F165: Forbes Town ZS | G165: 0.85 | H165: 16.33634085 | I165: 16.00961404 | J165: 28 | K165: 0 | L165: 0.85 | M165: 13.71043476 | N165: 13.43622607 | O165: 15 | P165: 0 | Q165: -0.004560709428 | R165: 10
B166: 859 | C166: Short Rural | D166: 66 | E166: TransGrid Forbes 132/66kV STS | F166: Forbes Town ZS | G166: 0.85 | H166: 0 | I166: 0 | J166: 28 | K166: 0 | L166: 0.85 | M166: 0 | N166: 0 | O166: 15 | P166: 0 | Q166: 0 | R166: 9
B167: 893/5 | C167: Short Rural | D167: 66 | E167: TransGrid Forbes 132/66kV STS | F167: Payten's Bridge ZS | G167: 49.6 | H167: 2.688389005 | I167: 2.634621225 | J167: 12 | K167: 0 | L167: 49.6 | M167: 3.834274128 | N167: 3.757588646 | O167: 12 | P167: 0 | Q167: -0.004560709428 | R167: 10
B168: 896:WJL | C168: Short Rural | D168: 66 | E168: TransGrid Forbes 132/66kV STS | F168: West Jemalong ZS | G168: 36.6 | H168: 5.407679034 | I168: 5.299525453 | J168: 11 | K168: 0 | L168: 36.6 | M168: 10.34092113 | N168: 10.13410271 | O168: 16 | P168: 0 | Q168: -0.004560709428 | R168: 10
B169: 89H | C169: Short Rural | D169: 66 | E169: TransGrid Forbes 132/66kV STS | F169: West Jemalong ZS | G169: 36.6 | H169: 9.775023625 | I169: 9.579523152 | J169: 43 | K169: 0 | L169: 36.6 | M169: 5.69331613 | N169: 5.579449807 | O169: 20 | P169: 0 | Q169: -0.004560709428 | R169: 10
B170: 894:CDN | C170: Short Rural | D170: 66 | E170: Condobolin ZS | F170: Lake Cargelligo ZS | G170: 88.9 | H170: 3.862627881 | I170: 3.785375324 | J170: 15 | K170: 0 | L170: 88.9 | M170: 4.066654378 | N170: 3.985321291 | O170: 15 | P170: 0 | Q170: -0.004560709428 | R170: 10
B171: 897:CDN | C171: Long Rural | D171: 66 | E171: West Jemalong ZS | F171: Condobolin ZS | G171: 63.6 | H171: 12.28830683 | I171: 12.0425407 | J171: 20 | K171: 0 | L171: 63.6 | M171: 13.36186439 | N171: 13.0946271 | O171: 16 | P171: 0 | Q171: -0.004560709428 | R171: 10
B172: 886 | C172: Short Rural | D172: 66 | E172: TransGrid Glen Innes 132/66kV STS | F172: Glen Innes ZS | G172: 3.014 | H172: 5.6 | I172: 5.488 | J172: 70 | K172: 0 | L172: 13.05 | M172: 6.795190389 | N172: 6.659286581 | O172: 70 | P172: 0 | Q172: -0.001654337613 | R172: 10
B173: 887 | C173: Short Rural | D173: 66 | E173: TransGrid Glen Innes 132/66kV STS | F173: Glen Innes ZS | G173: 9.3 | H173: 6.6 | I173: 6.468 | J173: 19 | K173: 0 | L173: 9.3 | M173: 8.17726301 | N173: 8.01371775 | O173: 19 | P173: 0 | Q173: -0.001654337613 | R173: 10
B174: 6AE/E | C174: Short Rural | D174: 66 | E174: Emmaville ZS | F174: Pindari ZS | G174: 36.7 | H174: 0.3 | I174: 0.294 | J174: 17 | K174: 0 | L174: 36.7 | M174: 0.2308941506 | N174: 0.2262762676 | O174: 17 | P174: 0 | Q174: -0.001654337613 | R174: 10
B175: 6AE/A | C175: Short Rural | D175: 66 | E175: Pindari ZS | F175: Ashford ZS | G175: 20.6 | H175: 0 | I175: 0 | J175: 17 | K175: 0 | L175: 20.6 | M175: 0 | N175: 0 | O175: 17 | P175: 0 | Q175: 0 | R175: 9
B176: 6NE | C176: Short Rural | D176: 66 | E176: Glen Innes ZS | F176: Emmaville ZS | G176: 39 | H176: 1 | I176: 0.98 | J176: 17 | K176: 0 | L176: 39 | M176: 1.49724534 | N176: 1.467300433 | O176: 17 | P176: 0 | Q176: -0.001654337613 | R176: 10
B177: 6NY | C177: Long Rural | D177: 66 | E177: Glen Innes ZS | F177: Guyra ZS | G177: 53.2 | H177: 5.4 | I177: 5.292 | J177: 11 | K177: 0 | L177: 53.2 | M177: 5.873808641 | N177: 5.756332468 | O177: 11 | P177: 0 | Q177: 0.03089745644 | R177: 9
B178: 972 | C178: Short Rural | D178: 132 | E178: TransGrid Marulan 330/132kV STS | F178: Goulburn 132/66/33kV STS | G178: 35.177 | H178: 49.9 | I178: 48.902 | J178: 180 | K178: 0 | L178: 35.177 | M178: 77.4083214 | N178: 75.86015498 | O178: 180 | P178: 0 | Q178: -0.002128052261 | R178: 10
B179: 9UR | C179: Urban | D179: 132 | E179: TransGrid Marulan 330/132kV STS | F179: Taralga Wind Farm | G179: 37 | H179: 102 | I179: 99.96 | J179: 140 | K179: 0 | L179: 0 | M179: 0 | N179: 0 | O179: 0 | P179: 0 | Q179: 0 | R179: 9
B180: 860/1 | C180: Short Rural | D180: 66 | E180: Goulburn 132/66/33kV STS | F180: Marulan North Tee | G180: 7.29 | H180: 5.9 | I180: 5.782 | J180: 25 | K180: 0 | L180: 7.29 | M180: 12.35735251 | N180: 12.11020546 | O180: 12 | P180: 0 | Q180: -0.002128052261 | R180: 10
B181: 86L | C181: Short Rural | D181: 66 | E181: Marulan North Tee | F181: Marulan North ZS | G181: 16.39 | H181: 2.1 | I181: 2.058 | J181: 12 | K181: 0 | L181: 16.39 | M181: 8.626831 | N181: 8.45429438 | O181: 12 | P181: 0 | Q181: -0.002128052261 | R181: 10
B182: 840:GOU | C182: Short Rural | D182: 66 | E182: Goulburn 132/66/33kV STS | F182: Goulburn North ZS | G182: 6.8 | H182: 13.3 | I182: 13.034 | J182: 61 | K182: 0 | L182: 6.8 | M182: 5.362624676 | N182: 5.255372182 | O182: 9 | P182: 0 | Q182: -0.002128052261 | R182: 10
B183: 841:GBN | C183: Long Rural | D183: 66 | E183: Goulburn North ZS | F183: Crookwell ZS | G183: 42 | H183: 6.1 | I183: 5.978 | J183: 9 | K183: 0 | L183: 42 | M183: 5.945518662 | N183: 5.826608289 | O183: 9 | P183: 0 | Q183: -0.002128052261 | R183: 10
B184: 843 | C184: Short Rural | D184: 66 | E184: Clinton St ZS | F184: Goulburn North ZS | G184: 10.6 | H184: 0 | I184: 0 | J184: 46 | K184: 0 | L184: 5.3 | M184: 9.676040175 | N184: 9.482519372 | O184: 46 | P184: 0 | Q184: 0 | R184: 9
B185: 850/2 | C185: Urban | D185: 66 | E185: Clinton St Tee | F185: Clinton St ZS | G185: 1.9 | H185: 0 | I185: 0 | J185: 17 | K185: 0 | L185: 1.9 | M185: 0 | N185: 0 | O185: 17 | P185: 0 | Q185: 0 | R185: 9
B186: 870:GOU | C186: Urban | D186: 66 | E186: Goulburn 132/66/33kV STS | F186: Clinton St ZS | G186: 1.9 | H186: 18.49569584 | I186: 18.12578193 | J186: 34 | K186: 0 | L186: 1.9 | M186: 16.32103162 | N186: 15.99461099 | O186: 17 | P186: 0 | Q186: -0.002128052261 | R186: 10
B187: 850:GOU | C187: Short Rural | D187: 66 | E187: Goulburn 132/66/33kV STS | F187: Woodlawn ZS | G187: 37.6 | H187: 4.917597837 | I187: 4.81924588 | J187: 15 | K187: 0 | L187: 37.6 | M187: 9.792618973 | N187: 9.596766593 | O187: 15 | P187: 0 | Q187: -0.002128052261 | R187: 10
B188: GOU12 | C188: Long Rural | D188: 33 | E188: Goulburn 132/66/33kV STS | F188: Brisbane Grove ZS | G188: 2.931 | H188: 2.3 | I188: 2.208 | J188: 7 | K188: 0 | L188: 2.931 | M188: 1.340656169 | N188: 1.287029922 | O188: 7 | P188: 0 | Q188: -0.002128052261 | R188: 10
B189: 825 | C189: Short Rural | D189: 66 | E189: TransGrid Koolkhan 132/66kV STS | F189: Koolkhan ZS | G189: 0.527 | H189: 17.87745244 | I189: 17.51990339 | J189: 62 | K189: 0 | L189: 0.527 | M189: 19.7355855 | N189: 19.34087379 | O189: 62 | P189: 0 | Q189: -0.002600884373 | R189: 10
B190: 826 | C190: Urban | D190: 66 | E190: TransGrid Koolkhan 132/66kV STS | F190: Grafton North ZS | G190: 7.074 | H190: 14.6113794 | I190: 14.31915181 | J190: 61 | K190: 0 | L190: 7.074 | M190: 15.69613817 | N190: 15.38221541 | O190: 61 | P190: 0 | Q190: -0.002600884373 | R190: 10
B191: 6501 | C191: Long Rural | D191: 66 | E191: Casino ZS | F191: Rappville Tee | G191: 84.559 | H191: 1.03300159 | I191: 1.012341558 | J191: 16 | K191: 0 | L191: 84.559 | M191: 0.6924766841 | N191: 0.6786271505 | O191: 16 | P191: 0 | Q191: 0.001167832128 | R191: 9
B192: 6503 | C192: Short Rural | D192: 66 | E192: Grafton North ZS | F192: South Grafton ZS | G192: 8.822 | H192: 9.540371255 | I192: 9.34956383 | J192: 24 | K192: 0 | L192: 8.822 | M192: 10.1563247 | N192: 9.953198207 | O192: 14 | P192: 0 | Q192: -0.002600884373 | R192: 10
B193: 6504 | C193: Short Rural | D193: 66 | E193: Five Mile Sw Stn | F193: South Grafton ZS | G193: 4.8 | H193: 4.125565948 | I193: 4.043054629 | J193: 61 | K193: 0 | L193: 4.8 | M193: 5.308987912 | N193: 5.202808154 | O193: 61 | P193: 0 | Q193: -0.002600884373 | R193: 10
B194: 6505 | C194: Urban | D194: 66 | E194: Koolkhan SS | F194: Grafton ZS | G194: 6.0555 | H194: 15.90061876 | I194: 15.58260638 | J194: 52 | K194: 0 | L194: 6.0555 | M194: 17.88898101 | N194: 17.53120139 | O194: 52 | P194: 0 | Q194: -0.002600884373 | R194: 10
B195: 6506 | C195: Short Rural | D195: 66 | E195: Shannon Creek ZS | F195: Nymboida ZS | G195: 12.5 | H195: 0.4 | I195: 0.392 | J195: 14 | K195: 0 | L195: 12.5 | M195: 0.5770639035 | N195: 0.5655226254 | O195: 14 | P195: 0 | Q195: -0.006103385866 | R195: 10
B196: 6508 | C196: Short Rural | D196: 66 | E196: Maclean ZS | F196: Yamba ZS | G196: 18.283 | H196: 10.7 | I196: 10.486 | J196: 28 | K196: 0 | L196: 18.283 | M196: 11.03682728 | N196: 10.81609073 | O196: 28 | P196: 0 | Q196: 0.005963660385 | R196: 9
B197: 6509 | C197: Short Rural | D197: 66 | E197: Shannon Creek ZS | F197: Five Mile Sw Stn | G197: 16.3 | H197: 1.117340778 | I197: 1.094993962 | J197: 14 | K197: 0 | L197: 16.3 | M197: 0.5770639035 | N197: 0.5655226254 | O197: 14 | P197: 0 | Q197: -0.002600884373 | R197: 10
B198: 6510 | C198: Short Rural | D198: 66 | E198: Grafton North ZS | F198: Five Mile Sw Stn | G198: 11.8 | H198: 5.156957435 | I198: 5.053818286 | J198: 28 | K198: 0 | L198: 11.8 | M198: 5.539813473 | N198: 5.429017204 | O198: 15 | P198: 0 | Q198: -0.002600884373 | R198: 10
B199: 896:MLN | C199: Short Rural | D199: 66 | E199: TransGrid Koolkhan 132/66kV STS | F199: Maclean ZS | G199: 36.203 | H199: 8.49178991 | I199: 8.321954111 | J199: 21 | K199: 0 | L199: 36.143 | M199: 7.242917901 | N199: 7.098059543 | O199: 21 | P199: 0 | Q199: -0.002600884373 | R199: 10
B200: 8G1 | C200: Short Rural | D200: 66 | E200: TransGrid Koolkhan 132/66kV STS | F200: Maclean ZS | G200: 40.34 | H200: 10.89837005 | I200: 10.68040264 | J200: 68 | K200: 0 | L200: 37 | M200: 12.99126544 | N200: 12.73144013 | O200: 70 | P200: 0 | Q200: -0.002600884373 | R200: 10
B201: 6404 | C201: Short Rural | D201: 33 | E201: Yamba Tee | F201: Yamba ZS | G201: 17.29 | H201: 0 | I201: 0 | J201: 10 | K201: 0 | L201: 19.493 | M201: 0 | N201: 0 | O201: 14 | P201: 0 | Q201: 0 | R201: 9
B202: 6402 | C202: Short Rural | D202: 33 | E202: Maclean ZS | F202: Yamba Tee | G202: 15.546 | H202: 0.4297464529 | I202: 0.4125565948 | J202: 8 | K202: 0 | L202: 15.247 | M202: 0.4039447324 | N202: 0.3877869431 | O202: 3 | P202: 0 | Q202: -0.002600884373 | R202: 10
... 2243 more rows

Sheet 2.5 Connections
B1: =SheetHeader -> REGULATORY REPORTING STATEMENT
B2: =dms_TradingName -> Essential Energy
B3: =dms_Reg_Year_Span -> 2019-20 to 2023-24
B4: 2.5 CONNECTIONS
B6: There are THREE tables on this worksheet - each has been 'grouped' (and sub-grouped) for easy navigation. See the Instructions sheet on how to group or ungroup tables.
B8: 2.5.1 - DESCRIPTOR METRICS
B9: VOLUMES AND EXPENDITURE - ALL
B10: CONNECTION SUBCATEGORY | C10: DESCRIPTOR METRIC | D10: Unit of Measure | E10: =CONCATENATE("VOLUMES and EXPENDITURE (0's, real ", dms_DollarReal, ")") -> VOLUMES and EXPENDITURE (0's, real June 2019)
E11: =CRCP_y4 -> 2017-18 | F11: =CRCP_y5 -> 2018-19 | G11: =FRCP_y1 -> 2019-20 | H11: =FRCP_y2 -> 2020-21 | I11: =FRCP_y3 -> 2021-22 | J11: =FRCP_y4 -> 2022-23 | K11: =FRCP_y5 -> 2023-24
B12: RESIDENTIAL | C12: Underground connections | D12: 0's | E12: 7119.245442 | F12: 5766.039727 | G12: 5586.572214 | H12: 5138.35124 | I12: 5111.138315 | J12: 5047.342954 | K12: 4376.802723
C13: Overhead connections | D13: 0's | E13: 4373.587573 | F13: 3542.268615 | G13: 3432.015796 | H13: 3156.658849 | I13: 3139.941051 | J13: 3100.749454 | K13: 2688.814447
C14: Distribution substations installed | D14: MVA added | E14: 5.07725 | F14: 5.07725 | G14: 5.07725 | H14: 5.07725 | I14: 5.07725 | J14: 5.07725 | K14: 5.07725
C15: Distribution substations installed | D15: 0's | E15: 69.05182562 | F15: 69.05182562 | G15: 69.05182562 | H15: 69.05182562 | I15: 69.05182562 | J15: 69.05182562 | K15: 69.05182562
C16: Distribution substations installed | D16: total spend $0's | E16: 867674.5004 | F16: 867674.5004 | G16: 867674.5004 | H16: 867674.5004 | I16: 867674.5004 | J16: 867674.5004 | K16: 867674.5004
C17: Augmentation HV | D17: net circuit KM added | E17: 32.0901295 | F17: 33.24191559 | G17: 34.39370168 | H17: 35.54548777 | I17: 36.69727386 | J17: 37.84905995 | K17: 39.00084604
C18: Augmentation HV | D18: total spend $0's | E18: 2310489.324 | F18: 2393417.923 | G18: 2476346.521 | H18: 2559275.12 | I18: 2642203.718 | J18: 2725132.317 | K18: 2808060.915
C19: Augmentation LV | D19: net circuit KM added | E19: 10.76208333 | F19: 10.84416667 | G19: 10.92625 | H19: 11.00833333 | I19: 11.09041667 | J19: 11.1725 | K19: 11.25458333
C20: Augmentation LV | D20: total spend $0's | E20: 736943.7536 | F20: 673679.8897 | G20: 916638.2204 | H20: 916670.9343 | I20: 918893.1554 | J20: 868584.2448 | K20: 820200.0473
C21: Mean days to connect residential customer with LV single phase connection | D21: 0's | E21: 0 | F21: 0 | G21: 0 | H21: 0 | I21: 0 | J21: 0 | K21: 0
C22: Volume of GSL breaches for residential customers | D22: 0's | E22: 0 | F22: 0 | G22: 0 | H22: 0 | I22: 0 | J22: 0 | K22: 0
C23: Volume of customer complaints relating to connection services | D23: 0's | E23: 0 | F23: 0 | G23: 0 | H23: 0 | I23: 0 | J23: 0 | K23: 0
C24: GSL payments | D24: $0's | E24: 0 | F24: 0 | G24: 0 | H24: 0 | I24: 0 | J24: 0 | K24: 0
B25: COMMERCIAL/INDUSTRIAL | C25: Underground connections | D25: 0's | E25: 607.3353921 | F25: 491.8948261 | G25: 476.58464 | H25: 438.3473769 | I25: 436.0258708 | J25: 430.5835551 | K25: 373.3804684
C26: Overhead connections | D26: 0's | E26: 993.8993529 | F26: 804.9818201 | G26: 779.926827 | H26: 717.3518617 | I26: 713.5527361 | J26: 704.6464315 | K26: 611.0340525
C27: Distribution substations installed | D27: MVA added | E27: 2.108 | F27: 2.108 | G27: 2.108 | H27: 2.108 | I27: 2.108 | J27: 2.108 | K27: 2.108
C28: Distribution substations installed | D28: 0's | E28: 14.41875854 | F28: 14.41875854 | G28: 14.41875854 | H28: 14.41875854 | I28: 14.41875854 | J28: 14.41875854 | K28: 14.41875854
C29: Distribution substations installed | D29: total spend $0's | E29: 364815.4313 | F29: 364815.4313 | G29: 364815.4313 | H29: 364815.4313 | I29: 364815.4313 | J29: 364815.4313 | K29: 364815.4313
C30: Augmentation HV | D30: net circuit KM added | E30: 2.652826087 | F30: 2.044637681 | G30: 1.436449275 | H30: 0.8282608696 | I30: 0.2200724638 | J30: 0.2200724638 | K30: 0.2200724638
C31: Augmentation HV | D31: total spend $0's | E31: 230795.8696 | F31: 177883.4783 | G31: 124971.087 | H31: 72058.69565 | I31: 19146.30435 | J31: 19146.30435 | K31: 19146.30435
C32: Augmentation LV | D32: net circuit KM added | E32: 3.110277778 | F32: 3.097444444 | G32: 3.084611111 | H32: 3.071777778 | I32: 3.058944444 | J32: 3.046111111 | K32: 3.033277778
C33: Augmentation LV | D33: total spend $0's | E33: 208388.6111 | F33: 207528.7778 | G33: 206668.9444 | H33: 205809.1111 | I33: 204949.2778 | J33: 204089.4444 | K33: 203229.6111
B34: SUBDIVISION | C34: Underground connections | D34: 0's | E34: 0 | F34: 0 | G34: 0 | H34: 0 | I34: 0 | J34: 0 | K34: 0
C35: Overhead connections | D35: 0's | E35: 0 | F35: 0 | G35: 0 | H35: 0 | I35: 0 | J35: 0 | K35: 0
C36: Distribution substations installed | D36: MVA added | E36: 0 | F36: 0 | G36: 0 | H36: 0 | I36: 0 | J36: 0 | K36: 0
C37: Distribution substations installed | D37: 0's | E37: 0 | F37: 0 | G37: 0 | H37: 0 | I37: 0 | J37: 0 | K37: 0
C38: Distribution substations installed | D38: total spend $0's | E38: 0 | F38: 0 | G38: 0 | H38: 0 | I38: 0 | J38: 0 | K38: 0
C39: Augmentation HV | D39: net circuit KM added | E39: 0 | F39: 0 | G39: 0 | H39: 0 | I39: 0 | J39: 0 | K39: 0
C40: Augmentation HV | D40: total spend $0's | E40: 0 | F40: 0 | G40: 0 | H40: 0 | I40: 0 | J40: 0 | K40: 0
C41: Augmentation LV | D41: net circuit KM added | E41: 0 | F41: 0 | G41: 0 | H41: 0 | I41: 0 | J41: 0 | K41: 0
C42: Augmentation LV | D42: total spend $0's | E42: 0 | F42: 0 | G42: 0 | H42: 0 | I42: 0 | J42: 0 | K42: 0
C43: Cost per lot | D43: $0's | E43: 0 | F43: 0 | G43: 0 | H43: 0 | I43: 0 | J43: 0 | K43: 0
B44: EMBEDDED GENERATION | C44: Underground connections | D44: 0's | E44: 3754.664591 | F44: 3723.365879 | G44: 3692.067167 | H44: 3660.768454 | I44: 3629.469742 | J44: 3598.17103 | K44: 3566.872318
C45: Overhead connections | D45: 0's | E45: 9098.917414 | F45: 9332.686056 | G45: 9566.454698 | H45: 9800.223341 | I45: 10033.99198 | J45: 10267.76062 | K45: 10501.52927
C46: Distribution substations installed | D46: MVA added | E46: 0 | F46: 0 | G46: 0 | H46: 0 | I46: 0 | J46: 0 | K46: 0
C47: Distribution substations installed | D47: 0's | E47: 0 | F47: 0 | G47: 0 | H47: 0 | I47: 0 | J47: 0 | K47: 0
C48: Distribution substations installed | D48: total spend $0's | E48: 0 | F48: 0 | G48: 0 | H48: 0 | I48: 0 | J48: 0 | K48: 0
C49: Augmentation HV | D49: net circuit KM added | E49: 0 | F49: 0 | G49: 0 | H49: 0 | I49: 0 | J49: 0 | K49: 0
C50: Augmentation HV | D50: total spend $0's | E50: 0 | F50: 0 | G50: 0 | H50: 0 | I50: 0 | J50: 0 | K50: 0
C51: Augmentation LV | D51: net circuit KM added | E51: 0 | F51: 0 | G51: 0 | H51: 0 | I51: 0 | J51: 0 | K51: 0
C52: Augmentation LV | D52: total spend $0's | E52: 0 | F52: 0 | G52: 0 | H52: 0 | I52: 0 | J52: 0 | K52: 0
B54: VOLUMES AND EXPENDITURE - STANDARD CONTROL SERVICES
B55: CONNECTION SUBCATEGORY | C55: DESCRIPTOR METRIC | D55: Unit of Measure | E55: =CONCATENATE("VOLUMES and EXPENDITURE (0's, real ", dms_DollarReal, ")") -> VOLUMES and EXPENDITURE (0's, real June 2019)
E56: =CRCP_y4 -> 2017-18 | F56: =CRCP_y5 -> 2018-19 | G56: =FRCP_y1 -> 2019-20 | H56: =FRCP_y2 -> 2020-21 | I56: =FRCP_y3 -> 2021-22 | J56: =FRCP_y4 -> 2022-23 | K56: =FRCP_y5 -> 2023-24
B57: RESIDENTIAL | C57: Underground connections | D57: 0's | E57: 7119.245442 | F57: 5766.039727 | G57: 5586.572214 | H57: 5138.35124 | I57: 5111.138315 | J57: 5047.342954 | K57: 4376.802723
C58: Overhead connections | D58: 0's | E58: 4373.587573 | F58: 3542.268615 | G58: 3432.015796 | H58: 3156.658849 | I58: 3139.941051 | J58: 3100.749454 | K58: 2688.814447
C59: Distribution substations installed | D59: MVA added | E59: 5.07725 | F59: 5.07725 | G59: 5.07725 | H59: 5.07725 | I59: 5.07725 | J59: 5.07725 | K59: 5.07725
C60: Distribution substations installed | D60: 0's | E60: 69.05182562 | F60: 69.05182562 | G60: 69.05182562 | H60: 69.05182562 | I60: 69.05182562 | J60: 69.05182562 | K60: 69.05182562
C61: Distribution substations installed | D61: total spend $0's | E61: 867674.5004 | F61: 867674.5004 | G61: 867674.5004 | H61: 867674.5004 | I61: 867674.5004 | J61: 867674.5004 | K61: 867674.5004
C62: Augmentation HV | D62: net circuit KM added | E62: 32.0901295 | F62: 33.24191559 | G62: 34.39370168 | H62: 35.54548777 | I62: 36.69727386 | J62: 37.84905995 | K62: 39.00084604
C63: Augmentation HV | D63: total spend $0's | E63: 2310489.324 | F63: 2393417.923 | G63: 2476346.521 | H63: 2559275.12 | I63: 2642203.718 | J63: 2725132.317 | K63: 2808060.915
C64: Augmentation LV | D64: net circuit KM added | E64: 10.76208333 | F64: 10.84416667 | G64: 10.92625 | H64: 11.00833333 | I64: 11.09041667 | J64: 11.1725 | K64: 11.25458333
C65: Augmentation LV | D65: total spend $0's | E65: 736943.7536 | F65: 673679.8897 | G65: 916638.2204 | H65: 916670.9343 | I65: 918893.1554 | J65: 868584.2448 | K65: 820200.0473
C66: Mean days to connect residential customer with LV single phase connection | D66: 0's | E66: 0 | F66: 0 | G66: 0 | H66: 0 | I66: 0 | J66: 0 | K66: 0
C67: Volume of GSL breaches for residential customers | D67: 0's | E67: 0 | F67: 0 | G67: 0 | H67: 0 | I67: 0 | J67: 0 | K67: 0
C68: Volume of customer complaints relating to connection services | D68: 0's | E68: 0 | F68: 0 | G68: 0 | H68: 0 | I68: 0 | J68: 0 | K68: 0
C69: GSL payments | D69: $0's | E69: 0 | F69: 0 | G69: 0 | H69: 0 | I69: 0 | J69: 0 | K69: 0
B70: COMMERCIAL/INDUSTRIAL | C70: Underground connections | D70: 0's | E70: 607.3353921 | F70: 491.8948261 | G70: 476.58464 | H70: 438.3473769 | I70: 436.0258708 | J70: 430.5835551 | K70: 373.3804684
C71: Overhead connections | D71: 0's | E71: 993.8993529 | F71: 804.9818201 | G71: 779.926827 | H71: 717.3518617 | I71: 713.5527361 | J71: 704.6464315 | K71: 611.0340525
C72: Distribution substations installed | D72: MVA added | E72: 2.108 | F72: 2.108 | G72: 2.108 | H72: 2.108 | I72: 2.108 | J72: 2.108 | K72: 2.108
C73: Distribution substations installed | D73: 0's | E73: 14.41875854 | F73: 14.41875854 | G73: 14.41875854 | H73: 14.41875854 | I73: 14.41875854 | J73: 14.41875854 | K73: 14.41875854
C74: Distribution substations installed | D74: total spend $0's | E74: 364815.4313 | F74: 364815.4313 | G74: 364815.4313 | H74: 364815.4313 | I74: 364815.4313 | J74: 364815.4313 | K74: 364815.4313
C75: Augmentation HV | D75: net circuit KM added | E75: 2.652826087 | F75: 2.044637681 | G75: 1.436449275 | H75: 0.8282608696 | I75: 0.2200724638 | J75: 0.2200724638 | K75: 0.2200724638
C76: Augmentation HV | D76: total spend $0's | E76: 230795.8696 | F76: 177883.4783 | G76: 124971.087 | H76: 72058.69565 | I76: 19146.30435 | J76: 19146.30435 | K76: 19146.30435
C77: Augmentation LV | D77: net circuit KM added | E77: 3.110277778 | F77: 3.097444444 | G77: 3.084611111 | H77: 3.071777778 | I77: 3.058944444 | J77: 3.046111111 | K77: 3.033277778
C78: Augmentation LV | D78: total spend $0's | E78: 208388.6111 | F78: 207528.7778 | G78: 206668.9444 | H78: 205809.1111 | I78: 204949.2778 | J78: 204089.4444 | K78: 203229.6111
B79: SUBDIVISION | C79: Underground connections | D79: 0's | E79: 0 | F79: 0 | G79: 0 | H79: 0 | I79: 0 | J79: 0 | K79: 0
C80: Overhead connections | D80: 0's | E80: 0 | F80: 0 | G80: 0 | H80: 0 | I80: 0 | J80: 0 | K80: 0
C81: Distribution substations installed | D81: MVA added | E81: 0 | F81: 0 | G81: 0 | H81: 0 | I81: 0 | J81: 0 | K81: 0
C82: Distribution substations installed | D82: 0's | E82: 0 | F82: 0 | G82: 0 | H82: 0 | I82: 0 | J82: 0 | K82: 0
C83: Distribution substations installed | D83: total spend $0's | E83: 0 | F83: 0 | G83: 0 | H83: 0 | I83: 0 | J83: 0 | K83: 0
C84: Augmentation HV | D84: net circuit KM added | E84: 0 | F84: 0 | G84: 0 | H84: 0 | I84: 0 | J84: 0 | K84: 0
C85: Augmentation HV | D85: total spend $0's | E85: 0 | F85: 0 | G85: 0 | H85: 0 | I85: 0 | J85: 0 | K85: 0
C86: Augmentation LV | D86: net circuit KM added | E86: 0 | F86: 0 | G86: 0 | H86: 0 | I86: 0 | J86: 0 | K86: 0
C87: Augmentation LV | D87: total spend $0's | E87: 0 | F87: 0 | G87: 0 | H87: 0 | I87: 0 | J87: 0 | K87: 0
C88: Cost per lot | D88: $0's | E88: 0 | F88: 0 | G88: 0 | H88: 0 | I88: 0 | J88: 0 | K88: 0
B89: EMBEDDED GENERATION | C89: Underground connections | D89: 0's | E89: 3754.664591 | F89: 3723.365879 | G89: 3692.067167 | H89: 3660.768454 | I89: 3629.469742 | J89: 3598.17103 | K89: 3566.872318
C90: Overhead connections | D90: 0's | E90: 9098.917414 | F90: 9332.686056 | G90: 9566.454698 | H90: 9800.223341 | I90: 10033.99198 | J90: 10267.76062 | K90: 10501.52927
C91: Distribution substations installed | D91: MVA added | E91: 0 | F91: 0 | G91: 0 | H91: 0 | I91: 0 | J91: 0 | K91: 0
C92: Distribution substations installed | D92: 0's | E92: 0 | F92: 0 | G92: 0 | H92: 0 | I92: 0 | J92: 0 | K92: 0
C93: Distribution substations installed | D93: total spend $0's | E93: 0 | F93: 0 | G93: 0 | H93: 0 | I93: 0 | J93: 0 | K93: 0
C94: Augmentation HV | D94: net circuit KM added | E94: 0 | F94: 0 | G94: 0 | H94: 0 | I94: 0 | J94: 0 | K94: 0
C95: Augmentation HV | D95: total spend $0's | E95: 0 | F95: 0 | G95: 0 | H95: 0 | I95: 0 | J95: 0 | K95: 0
C96: Augmentation LV | D96: net circuit KM added | E96: 0 | F96: 0 | G96: 0 | H96: 0 | I96: 0 | J96: 0 | K96: 0
C97: Augmentation LV | D97: total spend $0's | E97: 0 | F97: 0 | G97: 0 | H97: 0 | I97: 0 | J97: 0 | K97: 0
B101: 2.5.2 - COST METRICS BY CONNECTION CLASSIFICATION
B102: EXPENDITURE - ALL
B103: CONNECTION SUBCATEGORY | C103: CONNECTION CLASSICIATION | E103: =CONCATENATE("EXPENDITURE ($'0s, real ", dms_DollarReal,")") -> EXPENDITURE ($'0s, real June 2019)
E104: =CRCP_y4 -> 2017-18 | F104: =CRCP_y5 -> 2018-19 | G104: =FRCP_y1 -> 2019-20 | H104: =FRCP_y2 -> 2020-21 | I104: =FRCP_y3 -> 2021-22 | J104: =FRCP_y4 -> 2022-23 | K104: =FRCP_y5 -> 2023-24
B105: RESIDENTIAL | C105: Simple connection LV | E105: 3915107.578 | F105: 3934772.313 | G105: 4260659.242 | H105: 4343620.554 | I105: 4428771.374 | J105: 4461391.062 | K105: 4495935.463
C106: Complex connection LV | E106: 0 | F106: 0 | G106: 0 | H106: 0 | I106: 0 | J106: 0 | K106: 0
C107: Complex connection HV | E107: 0 | F107: 0 | G107: 0 | H107: 0 | I107: 0 | J107: 0 | K107: 0
B108: COMMERCIAL/INDUSTRIAL | C108: Simple connection LV | E108: 803999.912 | F108: 750227.6873 | G108: 696455.4627 | H108: 642683.238 | I108: 588911.0134 | J108: 588051.1801 | K108: 587191.3467
C109: Complex connection HV (customer connected at LV, minor HV works) | E109: 0 | F109: 0 | G109: 0 | H109: 0 | I109: 0 | J109: 0 | K109: 0
C110: Complex connection HV (customer connected at LV, upstream asset works) | E110: 0 | F110: 0 | G110: 0 | H110: 0 | I110: 0 | J110: 0 | K110: 0
C111: Complex connection HV (customer connected at HV) | E111: 0 | F111: 0 | G111: 0 | H111: 0 | I111: 0 | J111: 0 | K111: 0
C112: Complex connection sub-transmission | E112: 0 | F112: 0 | G112: 0 | H112: 0 | I112: 0 | J112: 0 | K112: 0
B113: SUBDIVISION | C113: Complex connection LV | E113: 0 | F113: 0 | G113: 0 | H113: 0 | I113: 0 | J113: 0 | K113: 0
C114: Complex connection HV (no upstream asset works) | E114: 0 | F114: 0 | G114: 0 | H114: 0 | I114: 0 | J114: 0 | K114: 0
C115: Complex connection HV (with upstream asset works) | E115: 0 | F115: 0 | G115: 0 | H115: 0 | I115: 0 | J115: 0 | K115: 0
B116: EMBEDDED GENERATION | C116: Simple connection LV | E116: 0 | F116: 0 | G116: 0 | H116: 0 | I116: 0 | J116: 0 | K116: 0
C117: Complex connection HV (small capacity) | E117: 0 | F117: 0 | G117: 0 | H117: 0 | I117: 0 | J117: 0 | K117: 0
C118: Complex connection HV (large capacity) | E118: 0 | F118: 0 | G118: 0 | H118: 0 | I118: 0 | J118: 0 | K118: 0
B120: EXPENDITURE - STANDARD CONTROL SERVICES
E121: =CONCATENATE("EXPENDITURE ($'0s, real ", dms_DollarReal,")") -> EXPENDITURE ($'0s, real June 2019)
E122: =CRCP_y4 -> 2017-18 | F122: =CRCP_y5 -> 2018-19 | G122: =FRCP_y1 -> 2019-20 | H122: =FRCP_y2 -> 2020-21 | I122: =FRCP_y3 -> 2021-22 | J122: =FRCP_y4 -> 2022-23 | K122: =FRCP_y5 -> 2023-24
B123: RESIDENTIAL | C123: Simple connection LV | E123: 3915107.578 | F123: 3934772.313 | G123: 4260659.242 | H123: 4343620.554 | I123: 4428771.374 | J123: 4461391.062 | K123: 4495935.463
C124: Complex connection LV | E124: 0 | F124: 0 | G124: 0 | H124: 0 | I124: 0 | J124: 0 | K124: 0
C125: Complex connection HV | E125: 0 | F125: 0 | G125: 0 | H125: 0 | I125: 0 | J125: 0 | K125: 0
B126: COMMERCIAL/INDUSTRIAL | C126: Simple connection LV | E126: 803999.912 | F126: 750227.6873 | G126: 696455.4627 | H126: 642683.238 | I126: 588911.0134 | J126: 588051.1801 | K126: 587191.3467
C127: Complex connection HV (customer connected at LV, minor HV works) | E127: 0 | F127: 0 | G127: 0 | H127: 0 | I127: 0 | J127: 0 | K127: 0
C128: Complex connection HV (customer connected at LV, upstream asset works) | E128: 0 | F128: 0 | G128: 0 | H128: 0 | I128: 0 | J128: 0 | K128: 0
C129: Complex connection HV (customer connected at HV) | E129: 0 | F129: 0 | G129: 0 | H129: 0 | I129: 0 | J129: 0 | K129: 0
C130: Complex connection sub-transmission | E130: 0 | F130: 0 | G130: 0 | H130: 0 | I130: 0 | J130: 0 | K130: 0
B131: SUBDIVISION | C131: Complex connection LV | E131: 0 | F131: 0 | G131: 0 | H131: 0 | I131: 0 | J131: 0 | K131: 0
C132: Complex connection HV (no upstream asset works) | E132: 0 | F132: 0 | G132: 0 | H132: 0 | I132: 0 | J132: 0 | K132: 0
C133: Complex connection HV (with upstream asset works) | E133: 0 | F133: 0 | G133: 0 | H133: 0 | I133: 0 | J133: 0 | K133: 0
B134: EMBEDDED GENERATION | C134: Simple connection LV | E134: 0 | F134: 0 | G134: 0 | H134: 0 | I134: 0 | J134: 0 | K134: 0
C135: Complex connection HV (small capacity) | E135: 0 | F135: 0 | G135: 0 | H135: 0 | I135: 0 | J135: 0 | K135: 0
C136: Complex connection HV (large capacity) | E136: 0 | F136: 0 | G136: 0 | H136: 0 | I136: 0 | J136: 0 | K136: 0
B138: EXPENDITURE - STANDARD CONTROL SERVICES - CAPITAL CONTRIBUTIONS
E139: =CONCATENATE("EXPENDITURE ($'0s, real ", dms_DollarReal,")") -> EXPENDITURE ($'0s, real June 2019)
E140: =CRCP_y4 -> 2017-18 | F140: =CRCP_y5 -> 2018-19 | G140: =FRCP_y1 -> 2019-20 | H140: =FRCP_y2 -> 2020-21 | I140: =FRCP_y3 -> 2021-22 | J140: =FRCP_y4 -> 2022-23 | K140: =FRCP_y5 -> 2023-24
B141: RESIDENTIAL | C141: Simple connection LV | E141: 65433619.9 | F141: 64847054.54 | G141: 65768543.35 | H141: 65700659.41 | I141: 65658461.16 | J141: 65633202.87 | K141: 65621141.23
C142: Complex connection LV | E142: 0 | F142: 0 | G142: 0 | H142: 0 | I142: 0 | J142: 0 | K142: 0
C143: Complex connection HV | E143: 0 | F143: 0 | G143: 0 | H143: 0 | I143: 0 | J143: 0 | K143: 0
B144: COMMERCIAL/INDUSTRIAL | C144: Simple connection LV | E144: 22596864.1 | F144: 22394299.46 | G144: 22712526.65 | H144: 22689083.59 | I144: 22674510.84 | J144: 22665788.13 | K144: 22661622.77
C145: Complex connection HV (customer connected at LV, minor HV works) | E145: 0 | F145: 0 | G145: 0 | H145: 0 | I145: 0 | J145: 0 | K145: 0
C146: Complex connection HV (customer connected at LV, upstream asset works) | E146: 0 | F146: 0 | G146: 0 | H146: 0 | I146: 0 | J146: 0 | K146: 0
C147: Complex connection HV (customer connected at HV) | E147: 0 | F147: 0 | G147: 0 | H147: 0 | I147: 0 | J147: 0 | K147: 0
C148: Complex connection sub-transmission | E148: 0 | F148: 0 | G148: 0 | H148: 0 | I148: 0 | J148: 0 | K148: 0
B149: SUBDIVISION | C149: Complex connection LV | E149: 0 | F149: 0 | G149: 0 | H149: 0 | I149: 0 | J149: 0 | K149: 0
C150: Complex connection HV (no upstream asset works) | E150: 0 | F150: 0 | G150: 0 | H150: 0 | I150: 0 | J150: 0 | K150: 0
C151: Complex connection HV (with upstream asset works) | E151: 0 | F151: 0 | G151: 0 | H151: 0 | I151: 0 | J151: 0 | K151: 0
B152: EMBEDDED GENERATION | C152: Simple connection LV | E152: 0 | F152: 0 | G152: 0 | H152: 0 | I152: 0 | J152: 0 | K152: 0
C153: Complex connection HV (small capacity) | E153: 0 | F153: 0 | G153: 0 | H153: 0 | I153: 0 | J153: 0 | K153: 0
C154: Complex connection HV (large capacity) | E154: 0 | F154: 0 | G154: 0 | H154: 0 | I154: 0 | J154: 0 | K154: 0
B158: 2.5.3 - VOLUMES BY CONNECTION CLASSIFICATION
B159: NEW CONNECTIONS - ALL
E160: VOLUMES (0's)
E161: =CRCP_y4 -> 2017-18 | F161: =CRCP_y5 -> 2018-19 | G161: =FRCP_y1 -> 2019-20 | H161: =FRCP_y2 -> 2020-21 | I161: =FRCP_y3 -> 2021-22 | J161: =FRCP_y4 -> 2022-23 | K161: =FRCP_y5 -> 2023-24
B162: RESIDENTIAL | C162: Simple connection LV | E162: 11492.83301 | F162: 9308.308342 | G162: 9018.58801 | H162: 8295.010089 | I162: 8251.079367 | J162: 8148.092408 | K162: 7065.617169
C163: Complex connection LV | E163: 0 | F163: 0 | G163: 0 | H163: 0 | I163: 0 | J163: 0 | K163: 0
C164: Complex connection HV | E164: 0 | F164: 0 | G164: 0 | H164: 0 | I164: 0 | J164: 0 | K164: 0
B165: COMMERCIAL/INDUSTRIAL | C165: Simple connection LV | E165: 1601.234745 | F165: 1296.876646 | G165: 1256.511467 | H165: 1155.699239 | I165: 1149.578607 | J165: 1135.229987 | K165: 984.4145209
C166: Complex connection HV (customer connected at LV, minor HV works) | E166: 0 | F166: 0 | G166: 0 | H166: 0 | I166: 0 | J166: 0 | K166: 0
C167: Complex connection HV (customer connected at LV, upstream asset works) | F167: 0 | G167: 0 | H167: 0 | I167: 0 | J167: 0 | K167: 0
C168: Complex connection HV (customer connected at HV) | F168: 0 | G168: 0 | H168: 0 | I168: 0 | J168: 0 | K168: 0
C169: Complex connection sub-transmission | F169: 0 | G169: 0 | H169: 0 | I169: 0 | J169: 0 | K169: 0
B170: SUBDIVISION | C170: Complex connection LV | F170: 0 | G170: 0 | H170: 0 | I170: 0 | J170: 0 | K170: 0
C171: Complex connection HV (no upstream asset works) | F171: 0 | G171: 0 | H171: 0 | I171: 0 | J171: 0 | K171: 0
C172: Complex connection HV (with upstream asset works) | F172: 0 | G172: 0 | H172: 0 | I172: 0 | J172: 0 | K172: 0
B173: EMBEDDED GENERATION | C173: Simple connection LV | E173: 12853.582 | F173: 13056.05193 | G173: 13258.52186 | H173: 13460.99179 | I173: 13663.46172 | J173: 13865.93165 | K173: 14068.40158
C174: Complex connection HV (small capacity) | F174: 0 | G174: 0 | H174: 0 | I174: 0 | J174: 0 | K174: 0
C175: Complex connection HV (large capacity) | F175: 0 | G175: 0 | H175: 0 | I175: 0 | J175: 0 | K175: 0
B177: NEW CONNECTIONS - STANDARD CONTROL SERVICES
E178: VOLUMES (0's)
E179: =CRCP_y4 -> 2017-18 | F179: =CRCP_y5 -> 2018-19 | G179: =FRCP_y1 -> 2019-20 | H179: =FRCP_y2 -> 2020-21 | I179: =FRCP_y3 -> 2021-22 | J179: =FRCP_y4 -> 2022-23 | K179: =FRCP_y5 -> 2023-24
B180: RESIDENTIAL | C180: Simple connection LV | E180: 11492.83301 | F180: 9308.308342 | G180: 9018.58801 | H180: 8295.010089 | I180: 8251.079367 | J180: 8148.092408 | K180: 7065.617169
C181: Complex connection LV | E181: 0 | F181: 0 | G181: 0 | H181: 0 | I181: 0 | J181: 0 | K181: 0
C182: Complex connection HV | E182: 0 | F182: 0 | G182: 0 | H182: 0 | I182: 0 | J182: 0 | K182: 0
B183: COMMERCIAL/INDUSTRIAL | C183: Simple connection LV | E183: 1601.234745 | F183: 1296.876646 | G183: 1256.511467 | H183: 1155.699239 | I183: 1149.578607 | J183: 1135.229987 | K183: 984.4145209
C184: Complex connection HV (customer connected at LV, minor HV works) | E184: 0 | F184: 0 | G184: 0 | H184: 0 | I184: 0 | J184: 0 | K184: 0
C185: Complex connection HV (customer connected at LV, upstream asset works) | F185: 0 | G185: 0 | H185: 0 | I185: 0 | J185: 0 | K185: 0
C186: Complex connection HV (customer connected at HV) | F186: 0 | G186: 0 | H186: 0 | I186: 0 | J186: 0 | K186: 0
C187: Complex connection sub-transmission | F187: 0 | G187: 0 | H187: 0 | I187: 0 | J187: 0 | K187: 0
B188: SUBDIVISION | C188: Complex connection LV | F188: 0 | G188: 0 | H188: 0 | I188: 0 | J188: 0 | K188: 0
C189: Complex connection HV (no upstream asset works) | F189: 0 | G189: 0 | H189: 0 | I189: 0 | J189: 0 | K189: 0
C190: Complex connection HV (with upstream asset works) | F190: 0 | G190: 0 | H190: 0 | I190: 0 | J190: 0 | K190: 0
B191: EMBEDDED GENERATION | C191: Simple connection LV | E191: 12853.582 | F191: 13056.05193 | G191: 13258.52186 | H191: 13460.99179 | I191: 13663.46172 | J191: 13865.93165 | K191: 14068.40158
C192: Complex connection HV (small capacity) | F192: 0 | G192: 0 | H192: 0 | I192: 0 | J192: 0 | K192: 0
C193: Complex connection HV (large capacity) | F193: 0 | G193: 0 | H193: 0 | I193: 0 | J193: 0 | K193: 0
B195: EXISTING CONNECTIONS
E196: VOLUMES (0's)
E197: =CRCP_y4 -> 2017-18 | F197: =CRCP_y5 -> 2018-19 | G197: =FRCP_y1 -> 2019-20 | H197: =FRCP_y2 -> 2020-21 | I197: =FRCP_y3 -> 2021-22 | J197: =FRCP_y4 -> 2022-23 | K197: =FRCP_y5 -> 2023-24
B198: RESIDENTIAL | C198: Simple connection LV | E198: 785090.5699 | F198: 792763.2838
C199: Complex connection LV | E199: 0 | F199: 0
C200: Complex connection HV | E200: 0 | F200: 0
B201: COMMERCIAL/INDUSTRIAL | C201: Simple connection LV | E201: 111582.2387 | F201: 112672.7353
C202: Complex connection HV (customer connected at LV, minor HV works) | E202: 0 | F202: 0
C203: Complex connection HV (customer connected at LV, upstream asset works) | E203: 0 | F203: 0
C204: Complex connection HV (customer connected at HV) | E204: 0 | F204: 0
C205: Complex connection sub-transmission | E205: 0 | F205: 0
B206: SUBDIVISION | C206: Complex connection LV | E206: 0 | F206: 0
C207: Complex connection HV (no upstream asset works) | E207: 0 | F207: 0
C208: Complex connection HV (with upstream asset works) | E208: 0 | F208: 0
B209: EMBEDDED GENERATION | C209: Simple connection LV | E209: 141397.582 | F209: 154453.6339
C210: Complex connection HV (small capacity) | E210: 0 | F210: 0
C211: Complex connection HV (large capacity) | E211: 0 | F211: 0

Sheet 2.6 Non-network
B1: =SheetHeader -> REGULATORY REPORTING STATEMENT
B2: =dms_TradingName -> Essential Energy
B3: =dms_Reg_Year_Span -> 2019-20 to 2023-24
B4: 2.6 NON NETWORK EXPENDITURE
B6: There are THREE tables on this worksheet - each has been 'grouped' (and sub-grouped) for easy navigation. See the Instructions sheet on how to group or ungroup tables.
B8: 2.6.1 - NON-NETWORK EXPENDITURE
E9: =CONCATENATE("EXPENDITURE ($'0s, real ", dms_DollarReal,")") -> EXPENDITURE ($'0s, real June 2019)
B10: SERVICE SUBCATEGORY | C10: ASSET CATEGORY | E10: =CRCP_y4 -> 2017-18 | F10: =CRCP_y5 -> 2018-19 | G10: =FRCP_y1 -> 2019-20 | H10: =FRCP_y2 -> 2020-21 | I10: =FRCP_y3 -> 2021-22 | J10: =FRCP_y4 -> 2022-23 | K10: =FRCP_y5 -> 2023-24
B11: OPEX
B12: IT & COMMUNICATIONS | C12: Total IT and communications | I12: Not reported as Non System is included in overheads. As agreed with Kaye Johnston. See email from 15/3/18 10.55 am.
B13: MOTOR VEHICLES | C13: Car
C14: Light commercial vehicle
C15: Elevated work platform (LCV)
C16: Elevated work platform (HCV)
C17: Heavy commercial vehicle
B18: BUILDINGS AND PROPERTY | C18: Total buildings and property expenditure
B19: OTHER | C19: Other expenditure
B20: OTHER - DNSP nominated
B31: CAPEX
B32: IT & COMMUNICATIONS | C32: Total IT and communications | E32: 38342426.73 | F32: 43331769.03 | G32: 58846941.52 | H32: 29356646.24 | I32: 33674209.74 | J32: 21306029.2 | K32: 20860312.79
B33: MOTOR VEHICLES | C33: Car | E33: 418975.3087 | F33: 1364944.312 | G33: 186678.9814 | H33: 215204.6193 | I33: 316183.0675 | J33: 639539.5771 | K33: 966798.0274
C34: Light commercial vehicle | E34: 13229456.33 | F34: 10129038.44 | G34: 13922696.22 | H34: 12644125.37 | I34: 13552375.82 | J34: 15699611.24 | K34: 14558695.8
C35: Elevated work platform (LCV) | E35: 0 | F35: 0 | G35: 0 | H35: 0 | I35: 0 | J35: 0 | K35: 0
C36: Elevated work platform (HCV) | E36: 3136281.57 | F36: 12665341.43 | G36: 8371041.105 | H36: 10550150.26 | I36: 13205076.32 | J36: 14024785.66 | K36: 7645267.802
C37: Heavy commercial vehicle | E37: 3041065.741 | F37: 7553178.144 | G37: 8206571.128 | H37: 6710470.189 | I37: 7111395.54 | J37: 9142673.665 | K37: 10658134.89
B38: BUILDINGS AND PROPERTY | C38: Total buildings and property expenditure | E38: 12526980.99 | F38: 29707261.41 | G38: 14466927.86 | H38: 8865542.682 | I38: 12997018.71 | J38: 12947101.66 | K38: 12676251.76
B39: OTHER | C39: Other expenditure
B40: OTHER - DNSP nominated | C40: Office furniture and equipment | E40: 74631.66882 | F40: 66194.73342 | G40: 9768.781664 | H40: 9599.415469 | I40: 9622.715552 | J40: 9718.668101 | K40: 9515.356171
C41: Tools and equipment | E41: 6567376.784 | F41: 5705710.078 | G41: 2385074.185 | H41: 2343722.975 | I41: 2349411.752 | J41: 2372838.824 | K41: 2323199.672
C42: Other fleet assets | E42: 87171.50337 | F42: 87374.29827 | G42: 88020.48954 | H42: 86494.43481 | I42: 86704.37755 | J42: 87568.947 | K42: 85737.02812
C43: Capitalised property leases | E43: 0 | F43: 0 | G43: 26064831.2 | H43: 1954317.465 | I43: 373837.238 | J43: 3461532.364 | K43: 86310.95375
C44: LiDAR | E44: 7248423 | F44: 10500000 | G44: 13545105.48 | H44: 10736134.79 | I44: 11107187.77 | J44: 8814300.424 | K44: 12491629.7
B54: 2.6.2 - ANNUAL DESCRIPTOR METRICS
B55: IT & COMMUNICATIONS
E56: VOLUMES (0's)
E57: =CRCP_y4 -> 2017-18 | F57: =CRCP_y5 -> 2018-19 | G57: =FRCP_y1 -> 2019-20 | H57: =FRCP_y2 -> 2020-21 | I57: =FRCP_y3 -> 2021-22 | J57: =FRCP_y4 -> 2022-23 | K57: =FRCP_y5 -> 2023-24
B58: Employee numbers | E58: 2602.857103 | F58: 2622.912484 | G58: 2547.250897 | H58: 2477.138821 | I58: 2410.317284 | J58: 2390.580114 | K58: 2321.707656
B59: User numbers | E59: 2602.857103 | F59: 2622.912484 | G59: 2547.250897 | H59: 2477.138821 | I59: 2410.317284 | J59: 2390.580114 | K59: 2321.707656
B60: Number of devices | E60: 4445.603224 | F60: 4398.314938 | G60: 4348.986414 | H60: 4263.204347 | I60: 4074.996847 | J60: 4115.650746 | K60: 4029.551692
B62: MOTOR VEHICLES
E63: VOLUMES (0's or %)
B64: ASSET CATEGORY | C64: DESCRIPTOR METRIC | D64: Units | E64: =CRCP_y4 -> 2017-18 | F64: =CRCP_y5 -> 2018-19 | G64: =FRCP_y1 -> 2019-20 | H64: =FRCP_y2 -> 2020-21 | I64: =FRCP_y3 -> 2021-22 | J64: =FRCP_y4 -> 2022-23 | K64: =FRCP_y5 -> 2023-24
B65: CAR | C65: Average kilometres travelled | D65: 0's | E65: 20130 | F65: 20130 | G65: 20130 | H65: 20130 | I65: 20130 | J65: 20130 | K65: 20130
C66: Number purchased | D66: 0's | E66: 12 | F66: 15.72699024 | G66: 4.400917237 | H66: 5.189536637 | I66: 7.803185453 | J66: 15.76206669 | K66: 24.00583987
C67: Number leased | D67: 0's | E67: 0 | F67: 0 | G67: 0 | H67: 0 | I67: 0 | J67: 0 | K67: 0
C68: Number in fleet | D68: 0's | E68: 55.78796203 | F68: 55.91818754 | G68: 56.33174064 | H68: 55.35505746 | I68: 55.48931877 | J68: 56.04290378 | K68: 54.87049112
C69: Proportion of total fleet expenditure allocated as regulatory expenditure | D69: % | E69: 0.8716869067 | F69: 0.8737216803 | G69: 0.8801834474 | H69: 0.8649227728 | I69: 0.8670206058 | J69: 0.8756703716 | K69: 0.8573514238
B70: LIGHT COMMERCIAL VEHICLE | C70: Average kilometres travelled | D70: 0's | E70: 24090 | F70: 24090 | G70: 24090 | H70: 24090 | I70: 24090 | J70: 24090 | K70: 24090
C71: Number purchased | D71: 0's | E71: 322 | F71: 230.6625236 | G71: 192.760175 | H71: 190.28301 | I71: 197.6806981 | J71: 252.193067 | K71: 234.9142901
C72: Number leased | D72: 0's | E72: 0 | F72: 0 | G72: 0 | H72: 0 | I72: 0 | J72: 0 | K72: 0
C73: Number in fleet | D73: 0's | E73: 1021.399133 | F73: 1024.875531 | G73: 1032.455184 | H73: 1014.554412 | I73: 1017.015171 | J73: 1027.161346 | K73: 1005.67322
C74: Proportion of total fleet expenditure allocated as regulatory expenditure | D74: % | E74: 0.8716869067 | F74: 0.8737216803 | G74: 0.8801834474 | H74: 0.8649227728 | I74: 0.8670206058 | J74: 0.8756703716 | K74: 0.8573514238
B75: ELEVATED WORK PLATFORM (LCV) | C75: Average kilometres travelled | D75: 0's | E75: 0 | F75: 0 | G75: 0 | H75: 0 | I75: 0 | J75: 0 | K75: 0
C76: Number purchased | D76: 0's | E76: 0 | F76: 0 | G76: 0 | H76: 0 | I76: 0 | J76: 0 | K76: 0
C77: Number leased | D77: 0's | E77: 0 | F77: 0 | G77: 0 | H77: 0 | I77: 0 | J77: 0 | K77: 0
C78: Number in fleet | D78: 0's | E78: 0 | F78: 0 | G78: 0 | H78: 0 | I78: 0 | J78: 0 | K78: 0
C79: Proportion of total fleet expenditure allocated as regulatory expenditure | D79: % | E79: 0.8716869067 | F79: 0.8737216803 | G79: 0.8801834474 | H79: 0.8649227728 | I79: 0.8670206058 | J79: 0.8756703716 | K79: 0.8573514238
B80: ELEVATED WORK PLATFORM (HCV) | C80: Average kilometres travelled | D80: 0's | E80: 18180 | F80: 18180 | G80: 18180 | H80: 18180 | I80: 18180 | J80: 18180 | K80: 18180
C81: Number purchased | D81: 0's | E81: 3 | F81: 8.737216803 | G81: 11.44238482 | H81: 12.97384159 | I81: 25.14359757 | J81: 29.77279263 | K81: 17.14702848
C82: Number leased | D82: 0's | E82: 0 | F82: 0 | G82: 0 | H82: 0 | I82: 0 | J82: 0 | K82: 0
C83: Number in fleet | D83: 0's | E83: 184.7976242 | F83: 185.2289962 | G83: 186.5988909 | H83: 183.3636278 | I83: 183.8083684 | J83: 185.6421188 | K83: 181.7585018
C84: Proportion of total fleet expenditure allocated as regulatory expenditure | D84: % | E84: 0.8716869067 | F84: 0.8737216803 | G84: 0.8801834474 | H84: 0.8649227728 | I84: 0.8670206058 | J84: 0.8756703716 | K84: 0.8573514238
B85: HEAVY COMMERCIAL VEHICLE | C85: Average kilometres travelled | D85: 0's | E85: 13170 | F85: 13170 | G85: 13170 | H85: 13170 | I85: 13170 | J85: 13170 | K85: 13170
C86: Number purchased | D86: 0's | E86: 25 | F86: 7.863495122 | G86: 24.64513653 | H86: 27.67752873 | I86: 27.74465939 | J86: 37.65382598 | K86: 31.72200268
C87: Number leased | D87: 0's | E87: 0 | F87: 0 | G87: 0 | H87: 0 | I87: 0 | J87: 0 | K87: 0
C88: Number in fleet | D88: 0's | E88: 265.8645065 | F88: 266.4851125 | G88: 268.4559515 | H88: 263.8014457 | I88: 264.4412848 | J88: 267.0794633 | K88: 261.4921843
C89: Proportion of total fleet expenditure allocated as regulatory expenditure | D89: % | E89: 0.8716869067 | F89: 0.8737216803 | G89: 0.8801834474 | H89: 0.8649227728 | I89: 0.8670206058 | J89: 0.8756703716 | K89: 0.8573514238
B93: 2.6.4 - INFORMATION & COMMUNICATIONS TECHNOLOGY - CAPEX BY PURPOSE
E94: =CONCATENATE("EXPENDITURE ($'0s, real ", dms_DollarReal,")") -> EXPENDITURE ($'0s, real June 2019)
E95: =CRCP_y4 -> 2017-18 | F95: =CRCP_y5 -> 2018-19 | G95: =FRCP_y1 -> 2019-20 | H95: =FRCP_y2 -> 2020-21 | I95: =FRCP_y3 -> 2021-22 | J95: =FRCP_y4 -> 2022-23 | K95: =FRCP_y5 -> 2023-24
B96: ICT CAPABILITY GROWTH
E97: 0 | F97: 1046239.896 | G97: 2705202.685 | H97: 1726861.544 | I97: 833176.3233 | J97: 651506.6781 | K97: 635252.3236
B98: Asset Management and Planning | E98: 8821378.359 | F98: 0 | G98: 0 | H98: 0 | I98: 0 | J98: 0 | K98: 0
B99: Customer and Market Interactions | E99: 628850.7345 | F99: 1708858.497 | G99: 1914721.381 | H99: 1709592.928 | I99: 0 | J99: 598681.8123 | K99: 583745.3784
B100: Enterprise Services | E100: 6725209.244 | F100: 0 | G100: 0 | H100: 0 | I100: 2430097.61 | J100: 0 | K100: 0
B101: Network Services and Works Management | E101: 7773293.801 | F101: 11334265.54 | G101: 11945050.82 | H101: 5871329.248 | I101: 10848650.04 | J101: 6074859.566 | K101: 7468507.047
B102: Technology and ICT | E102: 0 | F102: 0 | G102: 0 | H102: 0 | I102: 0 | J102: 0 | K102: 0
B103: ICT ASSET EXTENSIONS
E104: 0 | F104: 0 | G104: 0 | H104: 0 | I104: 0 | J104: 0 | K104: 0
B105: Asset Management and Planning | E105: 0 | F105: 0 | G105: 0 | H105: 0 | I105: 0 | J105: 0 | K105: 0
B106: Customer and Market Interactions | E106: 0 | F106: 0 | G106: 0 | H106: 0 | I106: 0 | J106: 0 | K106: 0
B107: Enterprise Services | E107: 0 | F107: 0 | G107: 0 | H107: 0 | I107: 0 | J107: 0 | K107: 0
B108: Network Services and Works Management | E108: 579940.1218 | F108: 1550178.779 | G108: 597252.5408 | H108: 348826.0318 | I108: 183993.1047 | J108: 116214.7047 | K108: 127050.4647
B109: Technology and ICT | E109: 0 | F109: 0 | G109: 0 | H109: 0 | I109: 0 | J109: 0 | K109: 0
B110: ICT ASSET REMEDITATION
E111: 0 | F111: 0 | G111: 0 | H111: 0 | I111: 0 | J111: 0 | K111: 0
B112: Asset Management and Planning | E112: 0 | F112: 0 | G112: 0 | H112: 0 | I112: 0 | J112: 0 | K112: 0
B113: Customer and Market Interactions | E113: 0 | F113: 0 | G113: 0 | H113: 0 | I113: 0 | J113: 0 | K113: 0
B114: Enterprise Services | E114: 0 | F114: 0 | G114: 0 | H114: 0 | I114: 0 | J114: 0 | K114: 0
B115: Network Services and Works Management | E115: 149352.0494 | F115: 629487.6708 | G115: 250319.0796 | H115: 65620.73866 | I115: 32979.89613 | J115: 33455.74834 | K115: 48931.5979
B116: Technology and ICT | E116: 0 | F116: 0 | G116: 0 | H116: 0 | I116: 0 | J116: 0 | K116: 0
B117: ICT ASSET REPLACEMENT
E118: 87340.37979 | F118: 4184959.584 | G118: 10820810.74 | H118: 6907446.174 | I118: 7498586.91 | J118: 2606026.712 | K118: 2541009.294
B119: Asset Management and Planning | E119: 0 | F119: 1830919.818 | G119: 12823363.38 | H119: 0 | I119: 0 | J119: 0 | K119: 2403657.441
B120: Customer and Market Interactions | E120: 3214125.976 | F120: 9799780.36 | G120: 10381654.46 | H120: 6838371.713 | I120: 0 | J120: 2394727.249 | K120: 2334981.514
B121: Enterprise Services | E121: 2008828.735 | F121: 2266853.108 | G121: 2810600.192 | H121: 0 | I121: 3211200.413 | J121: 1320621.645 | K121: 1631053.263
B122: Network Services and Works Management | E122: 8354107.327 | F122: 8980225.774 | G122: 4597966.251 | H122: 5888597.864 | I122: 8635525.435 | J122: 7509935.087 | K122: 3086124.464
B123: Technology and ICT | E123: 0 | F123: 0 | G123: 0 | H123: 0 | I123: 0 | J123: 0 | K123: 0

Sheet 2.10 Overheads
B1: =SheetHeader -> REGULATORY REPORTING STATEMENT
B2: =dms_TradingName -> Essential Energy
B3: =dms_Reg_Year_Span -> 2019-20 to 2023-24
B4: 2.10 OVERHEADS
B6: There are TWO tables on this worksheet. Each table has been 'grouped' (and sub-grouped) for easy navigation. See the Instructions sheet on how to group or ungroup data.
B8: 2.10.1 - NETWORK OVERHEADS EXPENDITURE
D9: =CONCATENATE("EXPENDITURE ($0's, real ", dms_DollarReal,")") -> EXPENDITURE ($0's, real June 2019)
D10: =CRCP_y4 -> 2017-18 | E10: =CRCP_y5 -> 2018-19 | F10: =FRCP_y1 -> 2019-20 | G10: =FRCP_y2 -> 2020-21 | H10: =FRCP_y3 -> 2021-22 | I10: =FRCP_y4 -> 2022-23 | J10: =FRCP_y5 -> 2023-24
B11: OPEX
B12: Standard Control Services | C12: Total | D12: 93195586.51 | E12: 89740884.23 | F12: 93075701.4 | G12: 87826453.78 | H12: 84036148.58 | I12: 76463958.13 | J12: 69666629.57
B13: Alternative Control Services | C13: Total | D13: 13612811.71 | E13: 12291241 | F13: 11480726.88 | G13: 10767253.48 | H13: 10795535.78 | I13: 10323408.44 | J13: 10883257.7
B14: CAPEX
B15: Standard Control Services | C15: Total | D15: 105207129 | E15: 97991647.54 | F15: 102024708.3 | G15: 90946543.46 | H15: 88302711.41 | I15: 86873461.35 | J15: 87872330.62
B16: Alternative Control Services | C16: Total | D16: 1424490.017 | E16: 1205087.963 | F16: 1336426.803 | G16: 1041415.551 | H16: 733990.2329 | I16: 983462.8457 | J16: 939135.9294
B17: OTHER DISTRIBUTION SERVICES
B18: Negotiated Services | C18: Total
B19: Unregulated Distribution Services | C19: Total | D19: 1798826.317 | E19: 1598266.285 | F19: 2760122.735 | G19: 2653815.164 | H19: 2640706.654 | I19: 2600579.057 | J19: 2560734.254
B23: 2.10.2 - CORPORATE OVERHEADS EXPENDITURE
D24: =CONCATENATE("EXPENDITURE ($0's, real ", dms_DollarReal,")") -> EXPENDITURE ($0's, real June 2019)
D25: =CRCP_y4 -> 2017-18 | E25: =CRCP_y5 -> 2018-19 | F25: =FRCP_y1 -> 2019-20 | G25: =FRCP_y2 -> 2020-21 | H25: =FRCP_y3 -> 2021-22 | I25: =FRCP_y4 -> 2022-23 | J25: =FRCP_y5 -> 2023-24
B26: OPEX
B27: Standard Control Services | C27: Total | D27: 50030698.29 | E27: 48830409.33 | F27: 46658484.34 | G27: 43576976.64 | H27: 39454488.46 | I27: 36037232.27 | J27: 33467706.16
B28: Alternative Control Services | C28: Total | D28: 7992348.312 | E28: 7406289.124 | F28: 5786799.458 | G28: 5494447.134 | H28: 5065191.446 | I28: 4690382.289 | J28: 4978600.607
B29: CAPEX
B30: Standard Control Services | C30: Total | D30: 41952490.12 | E30: 39014739.23 | F30: 35520603.55 | G30: 31548030.98 | H30: 27270832.62 | I30: 24649218.99 | J30: 23800233.65
B31: Alternative Control Services | C31: Total | D31: 779392.1166 | E31: 668480.1527 | F31: 661416.2108 | G31: 533053.254 | H31: 334826.5184 | I31: 417876.7902 | J31: 384665.4556
B32: OTHER DISTRIBUTION SERVICES
B33: Negotiated Services | C33: Total
B34: Unregulated Distribution Services | C34: Total | D34: 751374.098 | E34: 662778.2949 | F34: 964186.2687 | G34: 913525.8498 | H34: 827872.5484 | I34: 782311.3201 | J34: 766897.4508

Sheet 2.11 Labour
B1: =SheetHeader -> REGULATORY REPORTING STATEMENT
B2: =dms_TradingName -> Essential Energy
B3: =dms_Reg_Year_Span -> 2019-20 to 2023-24
B4: 2.11 LABOUR
B6: Table numbering on this worksheet starts at 2.11.3.
B8: 2.11.3 - LABOUR / NON-LABOUR EXPENDITURE SPLIT - STANDARD CONTROL SERVICES
C9: EXPENDITURE
C10: ($0's, nominal) | H10: =CONCATENATE("($0's, real ", dms_DollarReal,")") -> ($0's, real June 2019)
C11: =PRCP_y4 -> 2012-13 | D11: =PRCP_y5 -> 2013-14 | E11: =CRCP_y1 -> 2014-15 | F11: =CRCP_y2 -> 2015-16 | G11: =CRCP_y3 -> 2016-17 | H11: =CRCP_y4 -> 2017-18 | I11: =CRCP_y5 -> 2018-19 | J11: =FRCP_y1 -> 2019-20 | K11: =FRCP_y2 -> 2020-21 | L11: =FRCP_y3 -> 2021-22 | M11: =FRCP_y4 -> 2022-23 | N11: =FRCP_y5 -> 2023-24
B12: OPEX
B13: In-house labour expenditure | C13: 302605483.5 | D13: 301565424.9 | E13: 263963951.7 | F13: 232493650.2 | G13: 226055318.8 | H13: 231755639.4 | I13: 224053580.2 | J13: 232262950.4 | K13: 232027889.7 | L13: 230562698.9 | M13: 230201624.1 | N13: 229108039.6
B14: Labour expenditure outsourced to related parties | C14: 0 | D14: 0 | E14: 0 | F14: 0 | G14: 0 | H14: 0 | I14: 0 | J14: 0 | K14: 0 | L14: 0 | M14: 0 | N14: 0
B15: Labour expenditure outsourced to unrelated parties | C15: 74711791.6 | D15: 72928277.74 | E15: 59166439.43 | F15: 41061978.55 | G15: 59121071.44 | H15: 70746840.31 | I15: 84633695.42 | J15: 82062845.51 | K15: 75766407.99 | L15: 69497282.62 | M15: 55960596.02 | N15: 43566950.45
B16: Controllable non-labour expenditure | C16: 80703628.83 | D16: 77690089.37 | E16: 64886984.58 | F16: 37164880.61 | G16: 32970449.03 | H16: 43696712.01 | I16: 56405501.9 | J16: 53148974.32 | K16: 46654962.18 | L16: 42118561.72 | M16: 32758912.61 | N16: 22354301.63
B17: Uncontrollable non-labour expenditure | C17: 3021366.839 | D17: 3287437.31 | E17: 3282491.333 | F17: 3216330.173 | G17: 3795853.266 | H17: 3891177.274 | I17: 4031992.509 | J17: 3995530.769 | K17: 3926008.167 | L17: 3935581.754 | M17: 3974920.307 | N17: 3891339.334
B18: Total | C18: =SUM(C13:C17) -> 461042270.8 | D18: =SUM(D13:D17) -> 455471229.3 | E18: 391299867 | F18: 313936839.6 | G18: 321942692.5 | H18: 350090369 | I18: =SUM(I13:I17) -> 369124770 | J18: 371470301 | K18: 358375268 | L18: 346114125 | M18: 322896053 | N18: 298920631
B19: CAPEX
B20: In-house labour expenditure | C20: 218227211.4 | D20: 218361425.8 | E20: 193541676.4 | F20: 155361098.9 | G20: 150914804.6 | H20: 160397812.9 | I20: 157076783.2 | J20: 155658506.5 | K20: 140814190.4 | L20: 132433809.9 | M20: 127785090.9 | N20: 125572308.6
B21: Labour expenditure outsourced to related parties | C21: 0 | D21: 0 | E21: 0 | F21: 0 | G21: 0 | H21: 0 | I21: 0 | J21: 0 | K21: 0 | L21: 0 | M21: 0 | N21: 0
B22: Labour expenditure outsourced to unrelated parties | C22: 23612642.46 | D22: 20645726.23 | E22: 14999454.18 | F22: 20120613.27 | G22: 16121699.09 | H22: 22882652.36 | I22: 24722825.6 | J22: 28570871.54 | K22: 16253734.9 | L22: 17188255.94 | M22: 12132759.18 | N22: 11770892.51
B23: Controllable non-labour expenditure | C23: 398739788.6 | D23: 325253500.4 | E23: 415096461 | F23: 345254240.7 | G23: 309771991.7 | H23: 261866663.7 | I23: 296931674.2 | J23: 314288195 | K23: 254320644.7 | L23: 259617491.1 | M23: 256026072.9 | N23: 247129416.9
B24: Uncontrollable non-labour expenditure | C24: 0 | D24: 0 | E24: 0 | F24: 0 | G24: 0 | H24: 0 | I24: 0 | J24: 0 | K24: 0 | L24: 0 | M24: 0 | N24: 0
B25: Total | C25: =SUM(C20:C24) -> 640579642.4 | D25: =SUM(D20:D24) -> 564260652.4 | E25: 623637591.6 | F25: 520735952.8 | G25: 476808495.3 | H25: 445147129 | I25: =SUM(I20:I24) -> 478731283 | J25: =SUM(J20:J24) -> 498517573 | K25: =SUM(K20:K24) -> 411388570 | L25: =SUM(L20:L24) -> 409239557 | M25: =SUM(M20:M24) -> 395943923 | N25: =SUM(N20:N24) -> 384472618

Sheet 2.14 Forecast price changes
B1: =SheetHeader -> REGULATORY REPORTING STATEMENT
B2: =dms_TradingName -> Essential Energy
B3: =dms_Reg_Year_Span -> 2019-20 to 2023-24
B4: 2.14 FORECAST PRICE CHANGES
B6: There is ONE table on this worksheet. It has been grouped for easy navigation. See the Instructions sheet on how to group or ungroup data.
B8: Instructions
B9: =CONCATENATE(dms_TradingName, " must provide all forecast price changes used to forecast opex and capex, including forecast changes in CPI. Forecast price changes must be expressed in real terms, except for CPI. "&"If the same escalators are not used for capex and opex, report capex and opex escalators separately. Add additional rows as required. If price changes for a given year were not used to forecast either opex or capex enter '0' for that year.") -> Essential Energy must provide all forecast price changes used to forecast opex and capex, including forecast changes in CPI. Forecast price changes must be expressed in real terms, except for CPI. If the same escalators are not used for capex and opex, report capex and opex escalators separately. Add additional rows as required. If price changes for a given year were not used to forecast either opex or capex enter '0' for that year.
B11: 2.14.2 - FORECAST CAPEX AND OPEX PRICE CHANGES
C12: Price changes (% YoY real) Current regulatory period | E12: Price changes (%YoY real) Forthcoming regulatory period
C13: Forecast
C14: =CRCP_y4 -> 2017-18 | D14: =CRCP_y5 -> 2018-19 | E14: =FRCP_y1 -> 2019-20 | F14: =FRCP_y2 -> 2020-21 | G14: =FRCP_y3 -> 2021-22 | H14: =FRCP_y4 -> 2022-23 | I14: =FRCP_y5 -> 2023-24
B15: OPEX
B16: CPI | C16: 0.01276990945 | D16: 0.0195 | E16: 0.025 | F16: 0.025 | G16: 0.025 | H16: 0.025 | I16: 0.025
B17: Price growth | C17: 0 | D17: 0.006687804768 | E17: 0.005562513435 | F17: 0.007561343092 | G17: 0.00957578589 | H17: 0.00986498828 | I17: 0.008499810311
B18: Output growth | C18: 0 | D18: 0.007466872611 | E18: 0.00761444762 | F18: 0.006443865487 | G18: 0.006754166615 | H18: 0.006069538871 | I18: 0.006808500441
B19: CAPEX

Sheet 2.16 Opex Summary
B1: =SheetHeader -> REGULATORY REPORTING STATEMENT
B2: =dms_TradingName -> Essential Energy
B3: =dms_Reg_Year_Span -> 2019-20 to 2023-24
B4: 2.16 OPEX SUMMARY
B6: There are FOUR tables on this worksheet. Each table has been 'grouped' (and 'sub-grouped') for easy navigation. See the Instructions sheet on how to group or ungroup data.
B8: Instructions | J8: IMPORTANT!
B9: =CONCATENATE("Complete the tables below in accordance with the regulatory information notice. ",dms_TradingName,"'s total forecast opex must reconcile to Table 2.16.1 (and if ",dms_TradingName," owns any dual function assets Table 2.16.3). If ",dms_TradingName," did not forecast its total opex using a Base Year approach, total forecast opex must reconcile to Table 2.16.2 (and if ",dms_TradingName," owns any dual function assets Table 2.16.4).") -> Complete the tables below in accordance with the regulatory information notice. Essential Energy's total forecast opex must reconcile to Table 2.16.1 (and if Essential Energy owns any dual function assets Table 2.16.3). If Essential Energy did not forecast its total opex using a Base Year approach, total forecast opex must reconcile to Table 2.16.2 (and if Essential Energy owns any dual function assets Table 2.16.4). | J9: =CONCATENATE("Has ",dms_TradingName," used a base-step-trend model to derive its opex forecast? ") -> Has Essential Energy used a base-step-trend model to derive its opex forecast? | L9: Yes
B10: =CONCATENATE("If ",dms_TradingName," does not own any dual function assets,Table 2.16.3 and 2.16.4 may be left blank.") -> If Essential Energy does not own any dual function assets,Table 2.16.3 and 2.16.4 may be left blank. | J10: Yes / No
B11: The total step changes in Table 2.16.1 and Table 2.16.3 must "&"reconcile (in each year) to the total step changes for each year in Table 2.17.1 and Table 2.17.3 of worksheet '2.17 Step Changes', respectively.") | J11: Please nominate the base year. | L11: 2016-17
B14: 2.16.1 - STANDARD CONTROL SERVICES - OPEX BY DRIVER
C15: EXPENDITURE
C16: =CONCATENATE("Forecast ($0's, real ", dms_DollarReal,")") -> Forecast ($0's, real June 2019)
C17: =CRCP_y1 -> 2014-15 | D17: =CRCP_y2 -> 2015-16 | E17: =CRCP_y3 -> 2016-17 | F17: =CRCP_y4 -> 2017-18 | G17: =CRCP_y5 -> 2018-19 | H17: =FRCP_y1 -> 2019-20 | I17: =FRCP_y2 -> 2020-21 | J17: =FRCP_y3 -> 2021-22 | K17: =FRCP_y4 -> 2022-23 | L17: =FRCP_y5 -> 2023-24
B18: Base year total opex, excluding category specific | E18: 297958047.2 | F18: 348844305.6 | G18: 348844305.6 | H18: 348844305.6 | I18: 348844305.6 | J18: 348844305.6 | K18: 348844305.6 | L18: 348844305.6
B19: Increment from base year to final year | G19: 0
B20: Price growth | H20: 4262492.606 | I20: 6893703.518 | J20: 10227503.36 | K20: 13661294.32 | L20: 16619963.13
B21: Output growth | H21: 5247455.116 | I21: 7489803.991 | J21: 9841260.032 | K21: 11953936.41 | L21: 14323883.17
B22: Productivity growth | H22: -9509947.722 | I22: -14383507.51 | J22: -20068763.39 | K22: -25615230.73 | L22: -30943846.29
B23: Step changes | H23: 22625995.23 | I23: 9530962.147 | J23: -2730180.578 | K23: -25948252.67 | L23: -49923674.65
B24: Category specific | E24: 23984645.32 | F24: 1246063.19 | G24: 20280464.44 | H24: 0 | I24: 0 | J24: 0 | K24: 0 | L24: 0
B25: Total opex | C25: =SUM(C18:C24) -> 0 | D25: =SUM(D18:D24) -> 0 | E25: =SUM(E18:E24) -> 321942692.5 | F25: 350090368.7 | G25: 369124770 | H25: 371470300.8 | I25: 358375267.7 | J25: 346114125 | K25: 322896052.9 | L25: 298920630.9
B28: 2.16.2 - STANDARD CONTROL SERVICES - OPEX BY CATEGORY
C29: EXPENDITURE
C30: =CONCATENATE("Forecast ($0's, real ", dms_DollarReal,")") -> Forecast ($0's, real June 2019)
C31: =CRCP_y1 -> 2014-15 | D31: =CRCP_y2 -> 2015-16 | E31: =CRCP_y3 -> 2016-17 | F31: =CRCP_y4 -> 2017-18 | G31: =CRCP_y5 -> 2018-19 | H31: =FRCP_y1 -> 2019-20 | I31: =FRCP_y2 -> 2020-21 | J31: =FRCP_y3 -> 2021-22 | K31: =FRCP_y4 -> 2022-23 | L31: =FRCP_y5 -> 2023-24
B32: Vegetation management
B33: Maintenance
B34: Emergency response
B35: Non-network
B36: Metering
B37: Network overheads
B38: Corporate overheads
B39: Total opex | C39: =SUM(C32:C38) -> 0 | D39: =SUM(D32:D38) -> 0 | E39: 0 | F39: 0 | G39: 0 | H39: =SUM(H32:H38) -> 0 | I39: 0 | J39: 0 | K39: 0 | L39: 0
B42: 2.16.3 - DUAL FUNCTION ASSETS - OPEX BY DRIVER
C43: EXPENDITURE
C44: =CONCATENATE("Forecast ($0's, real ", dms_DollarReal,")") -> Forecast ($0's, real June 2019)
C45: =CRCP_y1 -> 2014-15 | D45: =CRCP_y2 -> 2015-16 | E45: =CRCP_y3 -> 2016-17 | F45: =CRCP_y4 -> 2017-18 | G45: =CRCP_y5 -> 2018-19 | H45: =FRCP_y1 -> 2019-20 | I45: =FRCP_y2 -> 2020-21 | J45: =FRCP_y3 -> 2021-22 | K45: =FRCP_y4 -> 2022-23 | L45: =FRCP_y5 -> 2023-24
B46: Base year total opex, excluding category specific | E46: 0 | F46: 0 | G46: 0 | H46: 0 | I46: 0 | J46: 0 | K46: 0 | L46: 0
B47: Increment from base year to final year | G47: 0
B48: Price growth | H48: 0 | I48: 0 | J48: 0 | K48: 0 | L48: 0
B49: Output growth | H49: 0 | I49: 0 | J49: 0 | K49: 0 | L49: 0
B50: Productivity growth | H50: 0 | I50: 0 | J50: 0 | K50: 0 | L50: 0
B51: Step changes | H51: 0 | I51: 0 | J51: 0 | K51: 0 | L51: 0
B52: Category specific | E52: 0 | F52: 0 | G52: 0 | H52: 0 | I52: 0 | J52: 0 | K52: 0 | L52: 0
B53: Total opex | C53: =SUM(C46:C52) -> 0 | D53: =SUM(D46:D52) -> 0 | E53: 0 | F53: 0 | G53: 0 | H53: =SUM(H46:H52) -> 0 | I53: 0 | J53: 0 | K53: 0 | L53: 0
B56: 2.16.4 - DUAL FUNCTION ASSETS - OPEX BY CATEGORY
C57: EXPENDITURE
C58: =CONCATENATE("Forecast ($0's, real ", dms_DollarReal,")") -> Forecast ($0's, real June 2019)
C59: =CRCP_y1 -> 2014-15 | D59: =CRCP_y2 -> 2015-16 | E59: =CRCP_y3 -> 2016-17 | F59: =CRCP_y4 -> 2017-18 | G59: =CRCP_y5 -> 2018-19 | H59: =FRCP_y1 -> 2019-20 | I59: =FRCP_y2 -> 2020-21 | J59: =FRCP_y3 -> 2021-22 | K59: =FRCP_y4 -> 2022-23 | L59: =FRCP_y5 -> 2023-24
B60: Vegetation management
B61: Maintenance
B62: Emergency response
B63: Non-network
B64: Metering
B65: Network overheads
B66: Corporate overheads
B67: Total opex | C67: =SUM(C60:C66) -> 0 | D67: =SUM(D60:D66) -> 0 | E67: 0 | F67: 0 | G67: 0 | H67: =SUM(H60:H66) -> 0 | I67: 0 | J67: 0 | K67: 0 | L67: 0

Sheet 2.17 Step Changes
B1: =SheetHeader -> REGULATORY REPORTING STATEMENT
B2: =dms_TradingName -> Essential Energy
B3: =dms_Reg_Year_Span -> 2019-20 to 2023-24
B4: 2.17 STEP CHANGES
B6: There are FIVE tables on this worksheet. Each table has been 'grouped' (and 'sub-grouped') for easy navigation. See the Instructions sheet on how to group or ungroup data.
B8: Instructions
B9: =CONCATENATE("Complete the Tables below in accordance with the regulatory information notice. If ",dms_TradingName," does not own any dual function assets,Table 2.17.3 and 2.17.4 may be left blank."&" The total step changes in Table 2.17.1 and Table 2.17.3 must reconcile (in each year) to the total step changes for each year in Table 2.16.1 and Table 2.16.3 of worksheet '2.16 Opex Summary', respectively.") -> Complete the Tables below in accordance with the regulatory information notice. If Essential Energy does not own any dual function assets,Table 2.17.3 and 2.17.4 may be left blank. The total step changes in Table 2.17.1 and Table 2.17.3 must reconcile (in each year) to the total step changes for each year in Table 2.16.1 and Table 2.16.3 of worksheet '2.16 Opex Summary', respectively.
B10: The total category specific forecast in Table 2.17.5 must reconcile (in each year) to the total category specific forecasts for each year in Table 2.16.1 and Table 2.16.3 of worksheet '2.16 Opex Summary'.
B12: 2.17.1 - STEP CHANGES FOR STANDARD CONTROL SERVICES - FORECAST OPEX
E13: EXPENDITURE
E14: =CONCATENATE("Forecast ($0's, real ", dms_DollarReal, ")") -> Forecast ($0's, real June 2019)
B15: Step change | C15: Description | E15: =CRCP_y4 -> 2017-18 | F15: =CRCP_y5 -> 2018-19 | G15: =FRCP_y1 -> 2019-20 | H15: =FRCP_y2 -> 2020-21 | I15: =FRCP_y3 -> 2021-22 | J15: =FRCP_y4 -> 2022-23 | K15: =FRCP_y5 -> 2023-24
B16: Strategic Initiatives | C16: Spend and benefits related to opex | D16: 0 | E16: 0 | F16: 0 | G16: 27287922.01 | H16: 14232245.17 | I16: 2100330.939 | J16: -20929857.68 | K16: -44887427.85
B17: Property lease expenditure | C17: Reduction due to accounting standard change | D17: 0 | E17: 0 | F17: 0 | G17: -4661926.778 | H17: -4701283.022 | I17: -4830511.517 | J17: -5018394.992 | K17: -5036246.803
B18: 0 | C18: 0 | D18: 0 | E18: 0 | F18: 0 | G18: 0 | H18: 0 | I18: 0 | J18: 0 | K18: 0
E19: 0 | F19: 0 | G19: 0 | H19: 0 | I19: 0 | J19: 0 | K19: 0
E20: 0 | F20: 0 | G20: 0 | H20: 0 | I20: 0 | J20: 0 | K20: 0
E21: 0 | F21: 0 | G21: 0 | H21: 0 | I21: 0 | J21: 0 | K21: 0
E22: 0 | F22: 0 | G22: 0 | H22: 0 | I22: 0 | J22: 0 | K22: 0
E23: 0 | F23: 0 | G23: 0 | H23: 0 | I23: 0 | J23: 0 | K23: 0
E24: 0 | F24: 0 | G24: 0 | H24: 0 | I24: 0 | J24: 0 | K24: 0
B26: Total | E26: =SUM(E16:E25) -> 0 | F26: 0 | G26: 22625995.23 | H26: 9530962.147 | I26: -2730180.578 | J26: -25948252.67 | K26: -49923674.65
B27: Check | G27: =IF(G$26-'2.16 Opex Summary'!H$23=0,"OK","Error") -> OK | H27: =IF(H$26-'2.16 Opex Summary'!I$23=0,"OK","Error") -> OK | I27: =IF(I$26-'2.16 Opex Summary'!J$23=0,"OK","Error") -> OK | J27: =IF(J$26-'2.16 Opex Summary'!K$23=0,"OK","Error") -> OK | K27: =IF(K$26-'2.16 Opex Summary'!L$23=0,"OK","Error") -> OK
B29: 2.17.2 - STEP CHANGES FOR STANDARD CONTROL SERVICES - FORECAST CAPEX
E30: EXPENDITURE
E31: =CONCATENATE("Forecast ($0's, real ", dms_DollarReal, ")") -> Forecast ($0's, real June 2019)
B32: Step change | C32: Description | E32: =CRCP_y4 -> 2017-18 | F32: =CRCP_y5 -> 2018-19 | G32: =FRCP_y1 -> 2019-20 | H32: =FRCP_y2 -> 2020-21 | I32: =FRCP_y3 -> 2021-22 | J32: =FRCP_y4 -> 2022-23 | K32: =FRCP_y5 -> 2023-24
B33: Strategic Initiatives | C33: Spend and benefits related to capex | D33: 0 | E33: 0 | F33: -4437573.564 | G33: 1481416.836 | H33: -29993007.75 | I33: -42665270.62 | J33: -57561698.79 | K33: -59420984.92
B34: Capitalised property leases | C34: Accounting standard change | D34: 0 | E34: 0 | F34: 0 | G34: 26064831.2 | H34: 1954317.465 | I34: 373837.238 | J34: 3461532.364 | K34: 86310.95375
E35: 0 | F35: 0 | G35: 0 | H35: 0 | I35: 0 | J35: 0 | K35: 0
E36: 0 | F36: 0 | G36: 0 | H36: 0 | I36: 0 | J36: 0 | K36: 0
E37: 0 | F37: 0 | G37: 0 | H37: 0 | I37: 0 | J37: 0 | K37: 0
B43: Total | E43: =SUM(E33:E42) -> 0 | F43: -4437573.564 | G43: 27546248.04 | H43: -28038690.28 | I43: -42291433.39 | J43: -54100166.43 | K43: -59334673.96
B45: 2.17.3 - STEP CHANGES FOR DUAL FUNCTION ASSETS - FORECAST OPEX
E46: EXPENDITURE
E47: =CONCATENATE("Forecast ($0's, real ", dms_DollarReal, ")") -> Forecast ($0's, real June 2019)
B48: Step change | C48: Description | E48: =CRCP_y4 -> 2017-18 | F48: =CRCP_y5 -> 2018-19 | G48: =FRCP_y1 -> 2019-20 | H48: =FRCP_y2 -> 2020-21 | I48: =FRCP_y3 -> 2021-22 | J48: =FRCP_y4 -> 2022-23 | K48: =FRCP_y5 -> 2023-24
B59: Total | E59: =SUM(E49:E58) -> 0 | F59: 0 | G59: 0 | H59: 0 | I59: 0 | J59: 0 | K59: 0
B60: Check | G60: =IF(G$26-'2.16 Opex Summary'!H$51=0,"OK","Error") -> Error | H60: =IF(H$26-'2.16 Opex Summary'!I$51=0,"OK","Error") -> Error | I60: =IF(I$26-'2.16 Opex Summary'!J$51=0,"OK","Error") -> Error | J60: =IF(J$26-'2.16 Opex Summary'!K$51=0,"OK","Error") -> Error | K60: =IF(K$26-'2.16 Opex Summary'!L$51=0,"OK","Error") -> Error
B62: 2.17.4 - STEP CHANGES FOR DUAL FUNCTION ASSETS - FORECAST CAPEX
E63: EXPENDITURE
E64: =CONCATENATE("Forecast ($0's, real ", dms_DollarReal, ")") -> Forecast ($0's, real June 2019)
B65: Step change | C65: Description | E65: =CRCP_y4 -> 2017-18 | F65: =CRCP_y5 -> 2018-19 | G65: =FRCP_y1 -> 2019-20 | H65: =FRCP_y2 -> 2020-21 | I65: =FRCP_y3 -> 2021-22 | J65: =FRCP_y4 -> 2022-23 | K65: =FRCP_y5 -> 2023-24
B76: Total | E76: =SUM(E66:E75) -> 0 | F76: 0 | G76: 0 | H76: 0 | I76: 0 | J76: 0 | K76: 0
B79: 2.17.5 - FORECAST CATEGORY SPECIFIC OPEX
D80: EXPENDITURE
D81: =CONCATENATE("Forecast ($0's, real ", dms_DollarReal, ")") -> Forecast ($0's, real June 2019)
B82: Category | C82: Description | D82: =CRCP_y3 -> 2016-17 | E82: =CRCP_y4 -> 2017-18 | F82: =CRCP_y5 -> 2018-19 | G82: =FRCP_y1 -> 2019-20 | H82: =FRCP_y2 -> 2020-21 | I82: =FRCP_y3 -> 2021-22 | J82: =FRCP_y4 -> 2022-23 | K82: =FRCP_y5 -> 2023-24
G83: 0 | H83: 0 | I83: 0 | J83: 0 | K83: 0
B84: Recognised underspend | C84: Adjust base year | D84: 0 | E84: -12802066.52 | F84: 0 | G84: 0 | H84: 0 | I84: 0 | J84: 0 | K84: 0
B85: Strategic investment initiative & vegetation management | C85: Transformation program | D85: 0 | E85: 0 | F85: 20280464.44 | G85: 0 | H85: 0 | I85: 0 | J85: 0 | K85: 0
D86: 0 | E86: 0 | F86: 0 | G86: 0 | H86: 0 | I86: 0 | J86: 0 | K86: 0
B93: Total | D93: =SUM(D90:D92) -> 0 | E93: 0 | F93: 0 | G93: 0 | H93: 0 | I93: 0 | J93: 0 | K93: 0

Sheet 3.1 Revenue
B1: =SheetHeader -> REGULATORY REPORTING STATEMENT
B2: =dms_TradingName -> Essential Energy
B3: =dms_Reg_Year_Span -> 2019-20 to 2023-24
B4: 3.1 REVENUE
B6: There are THREE tables on this worksheet. Each table has been 'grouped' (and 'sub-grouped') for easy navigation. See the Instructions sheet on how to group or ungroup data.
B8: 3.1.1 - REVENUE GROUPING BY CHARGEABLE QUANTITY
C9: Standard control services | K9: Alternative control services
C10: REVENUE | K10: REVENUE
C11: =CONCATENATE("Forecast ($0's, real ", dms_DollarReal,")") -> Forecast ($0's, real June 2019) | K11: =CONCATENATE("Forecast ($0's, real ", dms_DollarReal,")") -> Forecast ($0's, real June 2019)
C12: =CRCP_y4 -> 2017-18 | D12: =CRCP_y5 -> 2018-19 | E12: =FRCP_y1 -> 2019-20 | F12: =FRCP_y2 -> 2020-21 | G12: =FRCP_y3 -> 2021-22 | H12: =FRCP_y4 -> 2022-23 | I12: =FRCP_y5 -> 2023-24 | K12: =CRCP_y4 -> 2017-18 | L12: =CRCP_y5 -> 2018-19 | M12: =FRCP_y1 -> 2019-20 | N12: =FRCP_y2 -> 2020-21 | O12: =FRCP_y3 -> 2021-22 | P12: =FRCP_y4 -> 2022-23 | Q12: =FRCP_y5 -> 2023-24
A13: DREV0101 | B13: Revenue from Fixed Customer Charges | C13: 311988895.4 | D13: 313056407 | E13: 331089222.8 | F13: 342652039.4 | G13: 354378557.9 | H13: 365300276.7 | I13: 375730621.2
A14: DREV0102 | B14: Revenue from Energy Delivery charges where time of use is not a determinant | C14: 361894993.1 | D14: 362374552.5 | E14: 348360758.9 | F14: 335821241.6 | G14: 323598740.9 | H14: 311519567.5 | I14: 299400906
A15: DREV0103 | B15: Revenue from On–Peak Energy Delivery charges | C15: 22543029.61 | D15: 21722419.53 | E15: 27676809.06 | F15: 31902303.9 | G15: 36245888.85 | H15: 40862610.78 | I15: 46020394.77
A16: DREV0104 | B16: Revenue from Shoulder period Energy Delivery Charges | C16: 46601417.82 | D16: 45018617.56 | E16: 53196593.99 | F16: 56504920.64 | G16: 59592416.02 | H16: 62744850.09 | I16: 66685971.04
A17: DREV0105 | B17: Revenue from Off–Peak Energy Delivery charges | C17: 25084728.69 | D17: 24232886.41 | E17: 28718562.26 | F17: 31219792.46 | G17: 33678194.9 | H17: 36256242.41 | I17: 39297477.13
A18: DREV0106 | B18: Revenue from controlled load customer charges | C18: 8662158.771 | D18: 8673637.295 | E18: 8225032.309 | F18: 8185355.007 | G18: 8146449.753 | H18: 8082291.802 | I18: 8022079.22
A19: DREV0107 | B19: Revenue from unmetered supplies | C19: 9064411.757 | D19: 8994973.152 | E19: 6412501.603 | F19: 6617001.683 | G19: 6867389.421 | H19: 7083354.604 | I19: 7333609.061
A20: DREV0108 | B20: Revenue from Contracted Maximum Demand charges | C20: 10271041.94 | D20: 10457651.9 | E20: 9010849.106 | F20: 9206338.915 | G20: 9383595.852 | H20: 9593343.378 | I20: 9806087.692
A21: DREV0109 | B21: Revenue from Measured Maximum Demand charges | C21: 186196405.3 | D21: 190860674.8 | E21: 186760202.6 | F21: 191614496.5 | G21: 196309043.2 | H21: 201441266.5 | I21: 205551515.9
A22: DREV0110 | B22: Revenue from metering charges | C22: 0 | D22: 0 | E22: 0 | F22: 0 | G22: 0 | H22: 0 | I22: 0 | K22: 33177588.5 | L22: 33535433 | M22: 29524239.51 | N22: 28849431.62 | O22: 28238859.59 | P22: 28287155.91 | Q22: 28315594.86
A23: DREV0111 | B23: Revenue from connection charges | C23: 0 | D23: 0 | E23: 0 | F23: 0 | G23: 0 | H23: 0 | I23: 0 | K23: 33924882 | L23: 33883082.5 | M23: 28859028.02 | N23: 28738083.13 | O23: 28856318.21 | P23: 29182399.06 | Q23: 30469327.84
A24: DREV0112 | B24: Revenue from public lighting charges | C24: 0 | D24: 0 | E24: 0 | F24: 0 | G24: 0 | H24: 0 | I24: 0 | K24: 14809257 | L24: 15007040 | M24: 13939349.69 | N24: 12157858.22 | O24: 11127322.61 | P24: 11276019.76 | Q24: 10373825.57
A25: DREV0113 | B25: Revenue from other Sources | C25: 0 | D25: 0 | E25: 0 | F25: 0 | G25: 0 | H25: 0 | I25: 0 | K25: 0 | L25: 0 | M25: 0 | N25: 0 | O25: 0 | P25: 0 | Q25: 0
A26: DREV01 | B26: Total revenue by chargeable quantity | C26: =SUM(C13:C25) -> 982307082.3 | D26: =SUM(D13:D25) -> 985391820.2 | E26: 999450532.6 | F26: 1013723490 | G26: 1028200277 | H26: 1042883804 | I26: 1057848662 | K26: =SUM(K13:K25) -> 81911727.5 | L26: =SUM(L13:L25) -> 82425555.5 | M26: 72322617.22 | N26: 69745372.98 | O26: 68222500.4 | P26: 68745574.73 | Q26: 69158748.27
B29: 3.1.2 - REVENUE GROUPING BY CUSTOMER TYPE OR CLASS
C30: Standard control services | K30: Alternative control services
C31: REVENUE | K31: REVENUE
C32: =CONCATENATE("Forecast ($0's, real ", dms_DollarReal,")") -> Forecast ($0's, real June 2019) | K32: =CONCATENATE("Forecast ($0's, real ", dms_DollarReal,")") -> Forecast ($0's, real June 2019)
C33: =CRCP_y4 -> 2017-18 | D33: =CRCP_y5 -> 2018-19 | E33: =FRCP_y1 -> 2019-20 | F33: =FRCP_y2 -> 2020-21 | G33: =FRCP_y3 -> 2021-22 | H33: =FRCP_y4 -> 2022-23 | I33: =FRCP_y5 -> 2023-24 | K33: =CRCP_y4 -> 2017-18 | L33: =CRCP_y5 -> 2018-19 | M33: =FRCP_y1 -> 2019-20 | N33: =FRCP_y2 -> 2020-21 | O33: =FRCP_y3 -> 2021-22 | P33: =FRCP_y4 -> 2022-23 | Q33: =FRCP_y5 -> 2023-24
A34: DREV0201 | B34: Revenue from residential Customers | C34: 509269709.3 | D34: 509944560 | E34: 523801699.5 | F34: 532329223.4 | G34: 541540696.7 | H34: 549670550.8 | I34: 557715706.8 | K34: 81911727.5 | L34: 82425555.5 | M34: 72322617.22 | N34: 69745372.98 | O34: 68222500.4 | P34: 68745574.73 | Q34: 69158748.27
A35: DREV0202 | B35: Revenue from Non residential customers not on demand tariffs | C35: 200477110.6 | D35: 200708534.1 | E35: 209549920.2 | F35: 210153438.1 | G35: 210507480.7 | H35: 211626549.2 | I35: 212874391.6 | K35: 0 | L35: 0 | M35: 0 | N35: 0 | O35: 0 | P35: 0 | Q35: 0
A36: DREV0203 | B36: Revenue from Non-residential low voltage demand tariff customers | C36: 200445153.6 | D36: 202327885 | E36: 195919190.5 | F36: 199093838 | G36: 202259739.9 | H36: 205876226.1 | I36: 209650451.2 | K36: 0 | L36: 0 | M36: 0 | N36: 0 | O36: 0 | P36: 0 | Q36: 0
A37: DREV0204 | B37: Revenue from Non-residential high voltage demand tariff customers | C37: 63050697.13 | D37: 63415867.85 | E37: 63767220.85 | F37: 65529988.81 | G37: 67024970.22 | H37: 68627123.11 | I37: 70274503.28 | K37: 0 | L37: 0 | M37: 0 | N37: 0 | O37: 0 | P37: 0 | Q37: 0
A38: DREV0205 | B38: Revenue from unmetered supplies | C38: 9064411.757 | D38: 8994973.152 | E38: 6412501.603 | F38: 6617001.683 | G38: 6867389.421 | H38: 7083354.604 | I38: 7333609.061 | K38: 0 | L38: 0 | M38: 0 | N38: 0 | O38: 0 | P38: 0 | Q38: 0
A39: DREV0206 | B39: Revenue from Other Customers | C39: 0 | D39: 0 | E39: 0 | F39: 0 | G39: 0 | H39: 0 | I39: 0 | K39: 0 | L39: 0 | M39: 0 | N39: 0 | O39: 0 | P39: 0 | Q39: 0
A40: DREV02 | B40: Total revenue by customer class | C40: =SUM(C34:C39) -> 982307082.3 | D40: =SUM(D34:D39) -> 985391820.2 | E40: 999450532.6 | F40: 1013723490 | G40: 1028200277 | H40: 1042883804 | I40: 1057848662 | K40: =SUM(K34:K39) -> 81911727.5 | L40: =SUM(L34:L39) -> 82425555.5 | M40: 72322617.22 | N40: 69745372.98 | O40: 68222500.4 | P40: 68745574.73 | Q40: 69158748.27
B43: 3.1.3 - REVENUE (penalties) ALLOWED (deducted) THROUGH INCENTIVE SCHEMES
C44: Standard control services | K44: Alternative control services
C45: REVENUE | K45: REVENUE
C46: =CONCATENATE("Forecast ($0's, real ", dms_DollarReal,")") -> Forecast ($0's, real June 2019) | K46: =CONCATENATE("Forecast ($0's, real ", dms_DollarReal,")") -> Forecast ($0's, real June 2019)
C47: =CRCP_y4 -> 2017-18 | D47: =CRCP_y5 -> 2018-19 | E47: =FRCP_y1 -> 2019-20 | F47: =FRCP_y2 -> 2020-21 | G47: =FRCP_y3 -> 2021-22 | H47: =FRCP_y4 -> 2022-23 | I47: =FRCP_y5 -> 2023-24 | K47: =CRCP_y4 -> 2017-18 | L47: =CRCP_y5 -> 2018-19 | M47: =FRCP_y1 -> 2019-20 | N47: =FRCP_y2 -> 2020-21 | O47: =FRCP_y3 -> 2021-22 | P47: =FRCP_y4 -> 2022-23 | Q47: =FRCP_y5 -> 2023-24
A48: DREV0301 | B48: EBSS | C48: 0 | D48: 0 | E48: 0 | F48: 0 | G48: 0 | H48: 0 | I48: 0 | K48: 0 | L48: 0 | M48: 0 | N48: 0 | O48: 0 | P48: 0 | Q48: 0
A49: DREV0302 | B49: STPIS | C49: 0 | D49: 0 | E49: 0 | F49: 0 | G49: 0 | H49: 0 | I49: 0 | K49: 0 | L49: 0 | M49: 0 | N49: 0 | O49: 0 | P49: 0 | Q49: 0
A50: DREV0303 | B50: F-Factor | C50: 0 | D50: 0 | E50: 0 | F50: 0 | G50: 0 | H50: 0 | I50: 0 | K50: 0 | L50: 0 | M50: 0 | N50: 0 | O50: 0 | P50: 0 | Q50: 0
A51: DREV0304 | B51: S-Factor True up | C51: 0 | D51: 0 | E51: 0 | F51: 0 | G51: 0 | H51: 0 | I51: 0 | K51: 0 | L51: 0 | M51: 0 | N51: 0 | O51: 0 | P51: 0 | Q51: 0
A52: DREV0305 | B52: Other | C52: 649088.3076 | D52: 658824.6322 | E52: 956091.6795 | F52: 966796.3975 | G52: 977653.9876 | H52: 988666.6328 | I52: 999890.2765 | K52: 0 | L52: 0 | M52: 0 | N52: 0 | O52: 0 | P52: 0 | Q52: 0
A53: DREV03 | B53: Total revenue of incentive schemes | C53: =SUM(C48:C52) -> 649088.3076 | D53: =SUM(D48:D52) -> 658824.6322 | E53: 956091.6795 | F53: 966796.3975 | G53: 977653.9876 | H53: 988666.6328 | I53: 999890.2765 | K53: =SUM(K48:K52) -> 0 | L53: =SUM(L48:L52) -> 0 | M53: 0 | N53: 0 | O53: 0 | P53: 0 | Q53: 0

Sheet 3.2 Operating expenditure
B1: =SheetHeader -> REGULATORY REPORTING STATEMENT
B2: =dms_TradingName -> Essential Energy
B3: =dms_Reg_Year_Span -> 2019-20 to 2023-24
B4: 3.2 OPERATING EXPENDITURE
B6: There are THREE tables on this worksheet. Both ROWS and COLUMNS have been grouped for ease of navigation. see the Instructions sheet on how to group or ungroup tables.
B8: Instructions
B9: =CONCATENATE("Forecasts for opex in table 3.2.1 are to be for the opex categories that ",dms_TradingName," has reported in its response to its annual reporting RIN.") -> Forecasts for opex in table 3.2.1 are to be for the opex categories that Essential Energy has reported in its response to its annual reporting RIN.
B11: 3.2.1 - OPEX CATEGORIES
B12: CURRENT OPEX CATEGORIES AND COST ALLOCATIONS
C13: Standard control services | K13: Alternative control services
C14: EXPENDITURE | K14: EXPENDITURE
C15: =CONCATENATE("Forecast ($0's, real ",dms_DollarReal,")") -> Forecast ($0's, real June 2019) | K15: =CONCATENATE("Forecast ($0's, real ",dms_DollarReal,")") -> Forecast ($0's, real June 2019)
C16: =CRCP_y4 -> 2017-18 | D16: =CRCP_y5 -> 2018-19 | E16: =FRCP_y1 -> 2019-20 | F16: =FRCP_y2 -> 2020-21 | G16: =FRCP_y3 -> 2021-22 | H16: =FRCP_y4 -> 2022-23 | I16: =FRCP_y5 -> 2023-24 | K16: =CRCP_y4 -> 2017-18 | L16: =CRCP_y5 -> 2018-19 | M16: =FRCP_y1 -> 2019-20 | N16: =FRCP_y2 -> 2020-21 | O16: =FRCP_y3 -> 2021-22 | P16: =FRCP_y4 -> 2022-23 | Q16: =FRCP_y5 -> 2023-24
A17: DOPEX0101 | B17: Inspections | C17: 50663947.38 | D17: 52293090.95 | E17: 52578723.29 | F17: 51996654.89 | G17: 51390790.59 | H17: 50909042.32 | I17: 50432882.19
A18: DOPEX0102 | B18: Maintenance and repair | C18: 60611845.25 | D18: 65779768.9 | E18: 64134171.79 | F18: 60340309.54 | G18: 57411045.27 | H18: 56562719.77 | I18: 56687675.99
A19: DOPEX0103 | B19: Vegetation management | C19: 177311732.8 | D19: 189611773.3 | E19: 193007360.7 | F19: 184996928.1 | G19: 177006644.5 | H19: 155707936.9 | I19: 132662034.7
A20: DOPEX0104 | B20: Emergency response | C20: 60953616.54 | D20: 61440136.82 | E20: 61750044.99 | F20: 61041375.19 | G20: 60305644.66 | H20: 59716353.92 | I20: 59138038
A21: DOPEX0105 | B21: Other network costs | C21: 549226.7528 | D21: 0 | E21: 0 | F21: 0 | G21: 0 | H21: 0 | I21: 0
A22: DOPEX0106 | B22: Public Lighting | K22: 13665650.26 | L22: 15089049.95 | M22: 10518810.95 | N22: 11196243.84 | O22: 12325876.2 | P22: 10514784.75 | Q22: 13099192.28
A23: DOPEX0107 | B23: Metering | K23: 18835554.17 | L23: 18137529.92 | M23: 19156594.38 | N23: 17916526.53 | O23: 17142540.92 | P23: 17042678.09 | Q23: 16947598.12
A24: DOPEX0108 | B24: Ancillary Network Services | K24: 26122770.32 | L24: 24933215.22 | M24: 19416582.39 | N24: 19022936.03 | O24: 18805677.5 | P24: 18904453.08 | Q24: 19863086.65
A25: DOPEX0109
A26: DOPEX0110
A27: DOPEX0111
A28: DOPEX0112
A29: DOPEX0113
A30: DOPEX0114
A31: DOPEX0115
A32: DOPEX0116
A33: DOPEX0117
A34: DOPEX0118
A35: DOPEX0119
A36: DOPEX0120
A37: DOPEX0121
A38: DOPEX0122
A39: DOPEX0123
A40: DOPEX0124
A41: DOPEX0125
A42: DOPEX0126
A43: DOPEX0127
A44: DOPEX0128
A45: DOPEX0129
A46: DOPEX0130
A47: DOPEX0131
A48: DOPEX0132
A49: DOPEX0133
A50: DOPEX0134
A51: DOPEX0135
A52: DOPEX0136
A53: DOPEX0137
A54: DOPEX0138
A55: DOPEX0139
A56: DOPEX0140
A57: DOPEX0141
A58: DOPEX0142
A59: DOPEX0143
A60: DOPEX0144
A61: DOPEX0145
A62: DOPEX0146
A63: DOPEX0147
A64: DOPEX0148
A65: DOPEX0149
A66: DOPEX01 | B66: Total opex | C66: =SUM(C17:C65) -> 350090368.7 | D66: =SUM(D17:D65) -> 369124770 | E66: 371470300.8 | F66: 358375267.7 | G66: 346114125 | H66: 322896052.9 | I66: 298920630.9 | K66: =SUM(K17:K65) -> 58623974.76 | L66: =SUM(L17:L65) -> 58159795.09 | M66: 49091987.72 | N66: 48135706.4 | O66: 48274094.61 | P66: 46461915.92 | Q66: 49909877.05
B69: 3.2.2 - OPEX CONSISTENCY
B70: OPEX CONSISTENCY - CURRENT COST ALLOCATION APPROACH
C71: Standard control services | K71: Alternative control services
C72: EXPENDITURE | K72: EXPENDITURE
C73: =CONCATENATE("Forecast ($0's, real ",dms_DollarReal,")") -> Forecast ($0's, real June 2019) | K73: =CONCATENATE("Forecast ($0's, real ",dms_DollarReal,")") -> Forecast ($0's, real June 2019)
C74: =CRCP_y4 -> 2017-18 | D74: =CRCP_y5 -> 2018-19 | E74: =FRCP_y1 -> 2019-20 | F74: =FRCP_y2 -> 2020-21 | G74: =FRCP_y3 -> 2021-22 | H74: =FRCP_y4 -> 2022-23 | I74: =FRCP_y5 -> 2023-24 | K74: =CRCP_y4 -> 2017-18 | L74: =CRCP_y5 -> 2018-19 | M74: =FRCP_y1 -> 2019-20 | N74: =FRCP_y2 -> 2020-21 | O74: =FRCP_y3 -> 2021-22 | P74: =FRCP_y4 -> 2022-23 | Q74: =FRCP_y5 -> 2023-24
A75: DOPEX0201 | B75: Opex for network services | C75: 350090368.7 | D75: 369124770 | E75: 371470300.8 | F75: 358375267.7 | G75: 346114125 | H75: 322896052.9 | I75: 298920630.9
A76: DOPEX0202 | B76: Opex for metering | C76: 0 | D76: 0 | E76: 0 | F76: 0 | G76: 0 | H76: 0 | I76: 0 | K76: 18835554.17 | L76: 18137529.92 | M76: 19156594.38 | N76: 17916526.53 | O76: 17142540.92 | P76: 17042678.09 | Q76: 16947598.12
A77: DOPEX0203 | B77: Opex for connection services | C77: 0 | D77: 0 | E77: 0 | F77: 0 | G77: 0 | H77: 0 | I77: 0 | K77: 26122770.32 | L77: 24933215.22 | M77: 19416582.39 | N77: 19022936.03 | O77: 18805677.5 | P77: 18904453.08 | Q77: 19863086.65
A78: DOPEX0204 | B78: Opex for public lighting | C78: 0 | D78: 0 | E78: 0 | F78: 0 | G78: 0 | H78: 0 | I78: 0 | K78: 13665650.26 | L78: 15089049.95 | M78: 10518810.95 | N78: 11196243.84 | O78: 12325876.2 | P78: 10514784.75 | Q78: 13099192.28
A79: DOPEX0205 | B79: Opex for amounts payable for easement levy or similar direct charges on DNSP | C79: 0 | D79: 0 | E79: 0 | F79: 0 | G79: 0 | H79: 0 | I79: 0
A80: DOPEX0207 | B80: Opex for transmission connection point planning | C80: 0 | D80: 0 | E80: 0 | F80: 0 | G80: 0 | H80: 0 | I80: 0
B83: 3.2.4 - OPEX FOR HIGH VOLTAGE CUSTOMERS
C84: End user costs (not standard control services)
C85: EXPENDITURE
C86: =CONCATENATE("Forecast ($0's, real ",dms_DollarReal,")") -> Forecast ($0's, real June 2019)
C87: =CRCP_y4 -> 2017-18 | D87: =CRCP_y5 -> 2018-19 | E87: =FRCP_y1 -> 2019-20 | F87: =FRCP_y2 -> 2020-21 | G87: =FRCP_y3 -> 2021-22 | H87: =FRCP_y4 -> 2022-23 | I87: =FRCP_y5 -> 2023-24
A88: DOPEX0401 | B88: Opex for high voltage customers | C88: 1602354.622 | D88: 1642413.488 | E88: 1663911.046 | F88: 1685408.605 | G88: 1706906.164 | H88: 1728403.723 | I88: 1749901.281

Sheet 3.3 Assets (RAB)
B1: =SheetHeader -> REGULATORY REPORTING STATEMENT
B2: =dms_TradingName -> Essential Energy
B3: =dms_Reg_Year_Span -> 2019-20 to 2023-24
B4: 3.3 ASSETS
B6: There are FOUR tables on this worksheet. Both ROWS and COLUMNS in each have been grouped (and sub-grouped) for ease of navigation. see the Instructions sheet on how to group or ungroup tables.
B8: 3.3.1 - REGULATORY ASSET BASE VALUES
C9: Network services | K9: Standard control services | S9: Alternative control services
C10: =CONCATENATE("Forecast ($0's, real ", dms_DollarReal,")") -> Forecast ($0's, real June 2019) | K10: =CONCATENATE("Forecast ($0's, real ", dms_DollarReal,")") -> Forecast ($0's, real June 2019) | S10: =CONCATENATE("Forecast ($0's, real ", dms_DollarReal,")") -> Forecast ($0's, real June 2019)
C11: =CRCP_y4 -> 2017-18 | D11: =CRCP_y5 -> 2018-19 | E11: =FRCP_y1 -> 2019-20 | F11: =FRCP_y2 -> 2020-21 | G11: =FRCP_y3 -> 2021-22 | H11: =FRCP_y4 -> 2022-23 | I11: =FRCP_y5 -> 2023-24 | K11: =CRCP_y4 -> 2017-18 | L11: =CRCP_y5 -> 2018-19 | M11: =FRCP_y1 -> 2019-20 | N11: =FRCP_y2 -> 2020-21 | O11: =FRCP_y3 -> 2021-22 | P11: =FRCP_y4 -> 2022-23 | Q11: =FRCP_y5 -> 2023-24 | S11: =CRCP_y4 -> 2017-18 | T11: =CRCP_y5 -> 2018-19 | U11: =FRCP_y1 -> 2019-20 | V11: =FRCP_y2 -> 2020-21 | W11: =FRCP_y3 -> 2021-22 | X11: =FRCP_y4 -> 2022-23 | Y11: =FRCP_y5 -> 2023-24
B12: For total asset base:
A13: DRAB0101 | B13: Opening value | C13: 7664343276 | D13: 7900804799 | E13: 8215248070 | F13: 8437199357 | G13: 8537401094 | H13: 8613296562 | I13: 8652538557 | K13: 7664343276 | L13: 7900804799 | M13: 8215248070 | N13: 8437199357 | O13: 8537401094 | P13: 8613296562 | Q13: 8652538557 | S13: 96751683 | T13: 93310068.23 | U13: 91043614.53 | V13: 87512839.65 | W13: 82121965 | X13: 76872476.01 | Y13: 71464579.57
A14: DRAB0102 | B14: Inflation addition | C14: 97872969.63 | D14: 154065693.6 | E14: 0 | F14: 0 | G14: 0 | H14: 0 | I14: 0 | K14: 97872969.63 | L14: 154065693.6 | M14: 0 | N14: 0 | O14: 0 | P14: 0 | Q14: 0 | S14: 1235510.231 | T14: 1819546.33 | U14: 0 | V14: 0 | W14: 0 | X14: 0 | Y14: 0
A15: DRAB0103 | B15: Straight line depreciation | C15: -322756211.9 | D15: -333797423.1 | E15: -285823287.5 | F15: -318636750.2 | G15: -340555042.2 | H15: -363484965.3 | I15: -359407743.1 | K15: -322756211.9 | L15: -333797423.1 | M15: -285823287.5 | N15: -318636750.2 | O15: -340555042.2 | P15: -363484965.3 | Q15: -359407743.1 | S15: -6824286.84 | T15: -6990542.726 | U15: -7091623.894 | V15: -7329013.828 | W15: -7458223.107 | X15: -7605472.048 | Y15: -7751977.088
A16: DRAB0105 | B16: Actual additions (recognised in RAB) | C16: 463678654.2 | D16: 499554430.2 | E16: 513015444.5 | F16: 424240311.4 | G16: 422840369.9 | H16: 410886048 | I16: 397820175 | K16: 463678654.2 | L16: 499554430.2 | M16: 513015444.5 | N16: 424240311.4 | O16: 422840369.9 | P16: 410886048 | Q16: 397820175 | S16: 2147161.833 | T16: 2904542.696 | U16: 3560849.013 | V16: 1938139.183 | W16: 2208734.12 | X16: 2197575.604 | Y16: 2008982.494
A17: DRAB0106 | B17: Disposals | C17: -2333888.665 | D17: -5379429.835 | E17: -5240869.591 | F17: -5401824.352 | G17: -6389859.872 | H17: -8159087.449 | I17: -6938091.428 | K17: -2333888.665 | L17: -5379429.835 | M17: -5240869.591 | N17: -5401824.352 | O17: -6389859.872 | P17: -8159087.449 | Q17: -6938091.428 | S17: 0 | T17: 0 | U17: 0 | V17: 0 | W17: 0 | X17: 0 | Y17: 0
A18: DRAB0107 | B18: Closing value | C18: =SUM(C13+C14+C15+C16+C17) -> 7900804799 | D18: 8215248070 | E18: 8437199357 | F18: 8537401094 | G18: 8613296562 | H18: 8652538557 | I18: 8684012898 | K18: =SUM(K13+K14+K15+K16+K17) -> 7900804799 | L18: 8215248070 | M18: 8437199357 | N18: 8537401094 | O18: 8613296562 | P18: 8652538557 | Q18: 8684012898 | S18: =SUM(S13+S14+S15+S16+S17) -> 93310068.23 | T18: 91043614.53 | U18: 87512839.65 | V18: 82121965 | W18: 76872476.01 | X18: 71464579.57 | Y18: 65721584.98
B21: 3.3.2 - ASSET VALUE ROLL FORWARD
C22: Network services | K22: Standard control services | S22: Alternative control services
C23: =CONCATENATE("Forecast ($0's, real ", dms_DollarReal,")") -> Forecast ($0's, real June 2019) | K23: =CONCATENATE("Forecast ($0's, real ", dms_DollarReal,")") -> Forecast ($0's, real June 2019) | S23: =CONCATENATE("Forecast ($0's, real ", dms_DollarReal,")") -> Forecast ($0's, real June 2019)
C24: =CRCP_y4 -> 2017-18 | D24: =CRCP_y5 -> 2018-19 | E24: =FRCP_y1 -> 2019-20 | F24: =FRCP_y2 -> 2020-21 | G24: =FRCP_y3 -> 2021-22 | H24: =FRCP_y4 -> 2022-23 | I24: =FRCP_y5 -> 2023-24 | K24: =CRCP_y4 -> 2017-18 | L24: =CRCP_y5 -> 2018-19 | M24: =FRCP_y1 -> 2019-20 | N24: =FRCP_y2 -> 2020-21 | O24: =FRCP_y3 -> 2021-22 | P24: =FRCP_y4 -> 2022-23 | Q24: =FRCP_y5 -> 2023-24 | S24: =CRCP_y4 -> 2017-18 | T24: =CRCP_y5 -> 2018-19 | U24: =FRCP_y1 -> 2019-20 | V24: =FRCP_y2 -> 2020-21 | W24: =FRCP_y3 -> 2021-22 | X24: =FRCP_y4 -> 2022-23 | Y24: =FRCP_y5 -> 2023-24
B25: For overhead network assets less than 33kV:
A26: DRAB0201 | B26: Opening value | C26: 3485919088 | D26: 3657886689 | E26: 3850927649 | F26: 3976029845 | G26: 4082130372 | H26: 4174410738 | I26: 4263264095 | K26: 3485919088 | L26: 3657886689 | M26: 3850927649 | N26: 3976029845 | O26: 4082130372 | P26: 4174410738 | Q26: 4263264095 | S26: 0 | T26: 0 | U26: 0 | V26: 0 | W26: 0 | X26: 0 | Y26: 0
A27: DRAB0202 | B27: Inflation addition | C27: 44514871.11 | D27: 71328790.43 | E27: 0 | F27: 0 | G27: 0 | H27: 0 | I27: 0 | K27: 44514871.11 | L27: 71328790.43 | M27: 0 | N27: 0 | O27: 0 | P27: 0 | Q27: 0 | S27: 0 | T27: 0 | U27: 0 | V27: 0 | W27: 0 | X27: 0 | Y27: 0
A28: DRAB0203 | B28: Straight line depreciation | C28: -93640674.24 | D28: -98802317.3 | E28: -96502353.1 | F28: -100113539.9 | G28: -103474751.8 | H28: -106665167.2 | I28: -109849022.4 | K28: -93640674.24 | L28: -98802317.3 | M28: -96502353.1 | N28: -100113539.9 | O28: -103474751.8 | P28: -106665167.2 | Q28: -109849022.4 | S28: 0 | T28: 0 | U28: 0 | V28: 0 | W28: 0 | X28: 0 | Y28: 0
A29: DRAB0205 | B29: Actual additions (recognised in RAB) | C29: 221093403.6 | D29: 220514487.5 | E29: 221604548.8 | F29: 206214067 | G29: 195755117.3 | H29: 195518524.6 | I29: 193689598.9 | K29: 221093403.6 | L29: 220514487.5 | M29: 221604548.8 | N29: 206214067 | O29: 195755117.3 | P29: 195518524.6 | Q29: 193689598.9 | S29: 0 | T29: 0 | U29: 0 | V29: 0 | W29: 0 | X29: 0 | Y29: 0
A30: DRAB0206 | B30: Disposals | C30: 0 | D30: 0 | E30: 0 | F30: 0 | G30: 0 | H30: 0 | I30: 0 | K30: 0 | L30: 0 | M30: 0 | N30: 0 | O30: 0 | P30: 0 | Q30: 0 | S30: 0 | T30: 0 | U30: 0 | V30: 0 | W30: 0 | X30: 0 | Y30: 0
A31: DRAB0207 | B31: Closing value | C31: =SUM(C26+C27+C28+C29+C30) -> 3657886689 | D31: 3850927649 | E31: 3976029845 | F31: 4082130372 | G31: 4174410738 | H31: 4263264095 | I31: 4347104672 | K31: =SUM(K26+K27+K28+K29+K30) -> 3657886689 | L31: 3850927649 | M31: 3976029845 | N31: 4082130372 | O31: 4174410738 | P31: 4263264095 | Q31: 4347104672 | S31: =SUM(S26+S27+S28+S29+S30) -> 0 | T31: 0 | U31: 0 | V31: 0 | W31: 0 | X31: 0 | Y31: 0
B32: For underground network assets less than 33kV:
A33: DRAB0301 | B33: Opening value | C33: 617211945.3 | D33: 615736060.2 | E33: 615711784 | F33: 603129835.2 | G33: 589647846.4 | H33: 575352777 | I33: 560346531.2 | K33: 617211945.3 | L33: 615736060.2 | M33: 615711784 | N33: 603129835.2 | O33: 589647846.4 | P33: 575352777 | Q33: 560346531.2 | S33: 0 | T33: 0 | U33: 0 | V33: 0 | W33: 0 | X33: 0 | Y33: 0
A34: DRAB0302 | B34: Inflation addition | C34: 7881740.653 | D34: 12006853.17 | E34: 0 | F34: 0 | G34: 0 | H34: 0 | I34: 0 | K34: 7881740.653 | L34: 12006853.17 | M34: 0 | N34: 0 | O34: 0 | P34: 0 | Q34: 0 | S34: 0 | T34: 0 | U34: 0 | V34: 0 | W34: 0 | X34: 0 | Y34: 0
A35: DRAB0303 | B35: Straight line depreciation | C35: -16534343.58 | D35: -17445746.45 | E35: -17039636.62 | F35: -17677271.97 | G35: -18270768.68 | H35: -18834107.48 | I35: -19396287.91 | K35: -16534343.58 | L35: -17445746.45 | M35: -17039636.62 | N35: -17677271.97 | O35: -18270768.68 | P35: -18834107.48 | Q35: -19396287.91 | S35: 0 | T35: 0 | U35: 0 | V35: 0 | W35: 0 | X35: 0 | Y35: 0
A36: DRAB0305 | B36: Actual additions (recognised in RAB) | C36: 7176717.794 | D36: 5414617.114 | E36: 4457687.761 | F36: 4195283.225 | G36: 3975699.244 | H36: 3827861.696 | I36: 3741265.973 | K36: 7176717.794 | L36: 5414617.114 | M36: 4457687.761 | N36: 4195283.225 | O36: 3975699.244 | P36: 3827861.696 | Q36: 3741265.973 | S36: 0 | T36: 0 | U36: 0 | V36: 0 | W36: 0 | X36: 0 | Y36: 0
A37: DRAB0306 | B37: Disposals | C37: 0 | D37: 0 | E37: 0 | F37: 0 | G37: 0 | H37: 0 | I37: 0 | K37: 0 | L37: 0 | M37: 0 | N37: 0 | O37: 0 | P37: 0 | Q37: 0 | S37: 0 | T37: 0 | U37: 0 | V37: 0 | W37: 0 | X37: 0 | Y37: 0
A38: DRAB0307 | B38: Closing value | C38: =SUM(C33+C34+C35+C36+C37) -> 615736060.2 | D38: 615711784 | E38: 603129835.2 | F38: 589647846.4 | G38: 575352777 | H38: 560346531.2 | I38: 544691509.3 | K38: =SUM(K33+K34+K35+K36+K37) -> 615736060.2 | L38: 615711784 | M38: 603129835.2 | N38: 589647846.4 | O38: 575352777 | P38: 560346531.2 | Q38: 544691509.3 | S38: =SUM(S33+S34+S35+S36+S37) -> 0 | T38: 0 | U38: 0 | V38: 0 | W38: 0 | X38: 0 | Y38: 0
B39: For distribution substations and transformers:
A40: DRAB0401 | B40: Opening value | C40: 602595267.9 | D40: 599011004.5 | E40: 596967332.2 | F40: 585913394.4 | G40: 575407389.7 | H40: 563952233.9 | I40: 551447829.2 | K40: 602595267.9 | L40: 599011004.5 | M40: 596967332.2 | N40: 585913394.4 | O40: 575407389.7 | P40: 563952233.9 | Q40: 551447829.2 | S40: 0 | T40: 0 | U40: 0 | V40: 0 | W40: 0 | X40: 0 | Y40: 0
A41: DRAB0402 | B41: Inflation addition | C41: 7695087.005 | D41: 11680714.59 | E41: 0 | F41: 0 | G41: 0 | H41: 0 | I41: 0 | K41: 7695087.005 | L41: 11680714.59 | M41: 0 | N41: 0 | O41: 0 | P41: 0 | Q41: 0 | S41: 0 | T41: 0 | U41: 0 | V41: 0 | W41: 0 | X41: 0 | Y41: 0
A42: DRAB0403 | B42: Straight line depreciation | C42: -26519159.02 | D42: -27245757.95 | E42: -24736378.47 | F42: -25249413.29 | G42: -25767404.52 | H42: -26298023.28 | I42: -26813409.5 | K42: -26519159.02 | L42: -27245757.95 | M42: -24736378.47 | N42: -25249413.29 | O42: -25767404.52 | P42: -26298023.28 | Q42: -26813409.5 | S42: 0 | T42: 0 | U42: 0 | V42: 0 | W42: 0 | X42: 0 | Y42: 0
A43: DRAB0405 | B43: Actual additions (recognised in RAB) | C43: 15239808.61 | D43: 13521371.13 | E43: 13682440.61 | F43: 14743408.63 | G43: 14312248.73 | H43: 13793618.57 | I43: 13347086.04 | K43: 15239808.61 | L43: 13521371.13 | M43: 13682440.61 | N43: 14743408.63 | O43: 14312248.73 | P43: 13793618.57 | Q43: 13347086.04 | S43: 0 | T43: 0 | U43: 0 | V43: 0 | W43: 0 | X43: 0 | Y43: 0
A44: DRAB0406 | B44: Disposals | C44: 0 | D44: 0 | E44: 0 | F44: 0 | G44: 0 | H44: 0 | I44: 0 | K44: 0 | L44: 0 | M44: 0 | N44: 0 | O44: 0 | P44: 0 | Q44: 0 | S44: 0 | T44: 0 | U44: 0 | V44: 0 | W44: 0 | X44: 0 | Y44: 0
A45: DRAB0407 | B45: Closing value | C45: =SUM(C40+C41+C42+C43+C44) -> 599011004.5 | D45: 596967332.2 | E45: 585913394.4 | F45: 575407389.7 | G45: 563952233.9 | H45: 551447829.2 | I45: 537981505.7 | K45: =SUM(K40+K41+K42+K43+K44) -> 599011004.5 | L45: 596967332.2 | M45: 585913394.4 | N45: 575407389.7 | O45: 563952233.9 | P45: 551447829.2 | Q45: 537981505.7 | S45: =SUM(S40+S41+S42+S43+S44) -> 0 | T45: 0 | U45: 0 | V45: 0 | W45: 0 | X45: 0 | Y45: 0
B46: For overhead network assets 33kV and above:
A47: DRAB0501 | B47: Opening value | C47: 974193838.4 | D47: 982760254.1 | E47: 999624891.4 | F47: 1002959472 | G47: 1000424085 | H47: 993103577.9 | I47: 983206815.6 | K47: 974193838.4 | L47: 982760254.1 | M47: 999624891.4 | N47: 1002959472 | O47: 1000424085 | P47: 993103577.9 | Q47: 983206815.6 | S47: 0 | T47: 0 | U47: 0 | V47: 0 | W47: 0 | X47: 0 | Y47: 0
A48: DRAB0502 | B48: Inflation addition | C48: 12440367.1 | D48: 19163824.95 | E48: 0 | F48: 0 | G48: 0 | H48: 0 | I48: 0 | K48: 12440367.1 | L48: 19163824.95 | M48: 0 | N48: 0 | O48: 0 | P48: 0 | Q48: 0 | S48: 0 | T48: 0 | U48: 0 | V48: 0 | W48: 0 | X48: 0 | Y48: 0
A49: DRAB0503 | B49: Straight line depreciation | C49: -28745709.27 | D49: -29710987.26 | E49: -28370781.37 | F49: -28969252.27 | G49: -29467201.15 | H49: -29890838.07 | I49: -30275715.27 | K49: -28745709.27 | L49: -29710987.26 | M49: -28370781.37 | N49: -28969252.27 | O49: -29467201.15 | P49: -29890838.07 | Q49: -30275715.27 | S49: 0 | T49: 0 | U49: 0 | V49: 0 | W49: 0 | X49: 0 | Y49: 0
A50: DRAB0505 | B50: Actual additions (recognised in RAB) | C50: 24871757.83 | D50: 27411799.63 | E50: 31705361.93 | F50: 26433865.18 | G50: 22146694.19 | H50: 19994075.79 | I50: 23471508.2 | K50: 24871757.83 | L50: 27411799.63 | M50: 31705361.93 | N50: 26433865.18 | O50: 22146694.19 | P50: 19994075.79 | Q50: 23471508.2 | S50: 0 | T50: 0 | U50: 0 | V50: 0 | W50: 0 | X50: 0 | Y50: 0
A51: DRAB0506 | B51: Disposals | C51: 0 | D51: 0 | E51: 0 | F51: 0 | G51: 0 | H51: 0 | I51: 0 | K51: 0 | L51: 0 | M51: 0 | N51: 0 | O51: 0 | P51: 0 | Q51: 0 | S51: 0 | T51: 0 | U51: 0 | V51: 0 | W51: 0 | X51: 0 | Y51: 0
A52: DRAB0507 | B52: Closing value | C52: =SUM(C47+C48+C49+C50+C51) -> 982760254.1 | D52: 999624891.4 | E52: 1002959472 | F52: 1000424085 | G52: 993103577.9 | H52: 983206815.6 | I52: 976402608.5 | K52: =SUM(K47+K48+K49+K50+K51) -> 982760254.1 | L52: 999624891.4 | M52: 1002959472 | N52: 1000424085 | O52: 993103577.9 | P52: 983206815.6 | Q52: 976402608.5 | S52: =SUM(S47+S48+S49+S50+S51) -> 0 | T52: 0 | U52: 0 | V52: 0 | W52: 0 | X52: 0 | Y52: 0
B53: For underground network assets 33kV and above:
A54: DRAB0601 | B54: Opening value | C54: 23407542.12 | D54: 30296258.82 | E54: 36723811.71 | F54: 37956524.27 | G54: 38797519.19 | H54: 39737741.54 | I54: 40642232.53 | K54: 23407542.12 | L54: 30296258.82 | M54: 36723811.71 | N54: 37956524.27 | O54: 38797519.19 | P54: 39737741.54 | Q54: 40642232.53 | S54: 0 | T54: 0 | U54: 0 | V54: 0 | W54: 0 | X54: 0 | Y54: 0
A55: DRAB0602 | B55: Inflation addition | C55: 298912.1934 | D55: 590777.047 | E55: 0 | F55: 0 | G55: 0 | H55: 0 | I55: 0 | K55: 298912.1934 | L55: 590777.047 | M55: 0 | N55: 0 | O55: 0 | P55: 0 | Q55: 0 | S55: 0 | T55: 0 | U55: 0 | V55: 0 | W55: 0 | X55: 0 | Y55: 0
A56: DRAB0603 | B56: Straight line depreciation | C56: -700872.387 | D56: -724407.6105 | E56: -691730.9668 | F56: -706322.7699 | G56: -718463.6641 | H56: -728792.6986 | I56: -738176.7008 | K56: -700872.387 | L56: -724407.6105 | M56: -691730.9668 | N56: -706322.7699 | O56: -718463.6641 | P56: -728792.6986 | Q56: -738176.7008 | S56: 0 | T56: 0 | U56: 0 | V56: 0 | W56: 0 | X56: 0 | Y56: 0
A57: DRAB0605 | B57: Actual additions (recognised in RAB) | C57: 7290676.891 | D57: 6561183.449 | E57: 1924443.532 | F57: 1547317.685 | G57: 1658686.015 | H57: 1633283.694 | I57: 1431996.17 | K57: 7290676.891 | L57: 6561183.449 | M57: 1924443.532 | N57: 1547317.685 | O57: 1658686.015 | P57: 1633283.694 | Q57: 1431996.17 | S57: 0 | T57: 0 | U57: 0 | V57: 0 | W57: 0 | X57: 0 | Y57: 0
A58: DRAB0606 | B58: Disposals | C58: 0 | D58: 0 | E58: 0 | F58: 0 | G58: 0 | H58: 0 | I58: 0 | K58: 0 | L58: 0 | M58: 0 | N58: 0 | O58: 0 | P58: 0 | Q58: 0 | S58: 0 | T58: 0 | U58: 0 | V58: 0 | W58: 0 | X58: 0 | Y58: 0
A59: DRAB0607 | B59: Closing value | C59: =SUM(C54+C55+C56+C57+C58) -> 30296258.82 | D59: 36723811.71 | E59: 37956524.27 | F59: 38797519.19 | G59: 39737741.54 | H59: 40642232.53 | I59: 41336052 | K59: =SUM(K54+K55+K56+K57+K58) -> 30296258.82 | L59: 36723811.71 | M59: 37956524.27 | N59: 38797519.19 | O59: 39737741.54 | P59: 40642232.53 | Q59: 41336052 | S59: =SUM(S54+S55+S56+S57+S58) -> 0 | T59: 0 | U59: 0 | V59: 0 | W59: 0 | X59: 0 | Y59: 0
B60: Zone substations and transformers
A61: DRAB0701 | B61: Opening value | C61: 1370991068 | D61: 1400445017 | E61: 1432356734 | F61: 1433462916 | G61: 1433119573 | H61: 1434150815 | I61: 1432374501 | K61: 1370991068 | L61: 1400445017 | M61: 1432356734 | N61: 1433462916 | O61: 1433119573 | P61: 1434150815 | Q61: 1432374501 | S61: 0 | T61: 0 | U61: 0 | V61: 0 | W61: 0 | X61: 0 | Y61: 0
A62: DRAB0702 | B62: Inflation addition | C62: 17507431.79 | D62: 27308677.83 | E62: 0 | F62: 0 | G62: 0 | H62: 0 | I62: 0 | K62: 17507431.79 | L62: 27308677.83 | M62: 0 | N62: 0 | O62: 0 | P62: 0 | Q62: 0 | S62: 0 | T62: 0 | U62: 0 | V62: 0 | W62: 0 | X62: 0 | Y62: 0
A63: DRAB0703 | B63: Straight line depreciation | C63: -60421533.28 | D63: -62077023.98 | E63: -56359627.16 | F63: -57528531.14 | G63: -58708727.86 | H63: -59917695.27 | I63: -61091956.69 | K63: -60421533.28 | L63: -62077023.98 | M63: -56359627.16 | N63: -57528531.14 | O63: -58708727.86 | P63: -59917695.27 | Q63: -61091956.69 | S63: 0 | T63: 0 | U63: 0 | V63: 0 | W63: 0 | X63: 0 | Y63: 0
A64: DRAB0705 | B64: Actual additions (recognised in RAB) | C64: 72368050.55 | D64: 66680063.19 | E64: 57465809.02 | F64: 57185188.64 | G64: 59739970 | H64: 58141380.46 | I64: 49241702.35 | K64: 72368050.55 | L64: 66680063.19 | M64: 57465809.02 | N64: 57185188.64 | O64: 59739970 | P64: 58141380.46 | Q64: 49241702.35 | S64: 0 | T64: 0 | U64: 0 | V64: 0 | W64: 0 | X64: 0 | Y64: 0
A65: DRAB0706 | B65: Disposals | C65: 0 | D65: 0 | E65: 0 | F65: 0 | G65: 0 | H65: 0 | I65: 0 | K65: 0 | L65: 0 | M65: 0 | N65: 0 | O65: 0 | P65: 0 | Q65: 0 | S65: 0 | T65: 0 | U65: 0 | V65: 0 | W65: 0 | X65: 0 | Y65: 0
A66: DRAB0707 | B66: Closing value | C66: =SUM(C61+C62+C63+C64+C65) -> 1400445017 | D66: 1432356734 | E66: 1433462916 | F66: 1433119573 | G66: 1434150815 | H66: 1432374501 | I66: 1420524246 | K66: =SUM(K61+K62+K63+K64+K65) -> 1400445017 | L66: 1432356734 | M66: 1433462916 | N66: 1433119573 | O66: 1434150815 | P66: 1432374501 | Q66: 1420524246 | S66: =SUM(S61+S62+S63+S64+S65) -> 0 | T66: 0 | U66: 0 | V66: 0 | W66: 0 | X66: 0 | Y66: 0
B67: For easements:
A68: DRAB0801 | B68: Opening value | C68: 106359415.5 | D68: 107866312.2 | E68: 110328012.8 | F68: 110344573.9 | G68: 110360285.8 | H68: 110375544.6 | I68: 110390490.3 | K68: 106359415.5 | L68: 107866312.2 | M68: 110328012.8 | N68: 110344573.9 | O68: 110360285.8 | P68: 110375544.6 | Q68: 110390490.3 | S68: 0 | T68: 0 | U68: 0 | V68: 0 | W68: 0 | X68: 0 | Y68: 0
A69: DRAB0802 | B69: Inflation addition | C69: 1358200.105 | D69: 2103393.088 | E69: 0 | F69: 0 | G69: 0 | H69: 0 | I69: 0 | K69: 1358200.105 | L69: 2103393.088 | M69: 0 | N69: 0 | O69: 0 | P69: 0 | Q69: 0 | S69: 0 | T69: 0 | U69: 0 | V69: 0 | W69: 0 | X69: 0 | Y69: 0
A70: DRAB0803 | B70: Actual additions (recognised in RAB) | C70: 148696.603 | D70: 358307.5421 | E70: 16561.07115 | F70: 15711.92736 | G70: 15258.71933 | H70: 14945.7849 | I70: 14907.91957 | K70: 148696.603 | L70: 358307.5421 | M70: 16561.07115 | N70: 15711.92736 | O70: 15258.71933 | P70: 14945.7849 | Q70: 14907.91957 | S70: 0 | T70: 0 | U70: 0 | V70: 0 | W70: 0 | X70: 0 | Y70: 0
A71: DRAB0804 | B71: Disposals | C71: 0 | D71: 0 | E71: 0 | F71: 0 | G71: 0 | H71: 0 | I71: 0 | K71: 0 | L71: 0 | M71: 0 | N71: 0 | O71: 0 | P71: 0 | Q71: 0 | S71: 0 | T71: 0 | U71: 0 | V71: 0 | W71: 0 | X71: 0 | Y71: 0
A72: DRAB0805 | B72: Closing value | C72: =SUM(C68+C69+C70+C71) -> 107866312.2 | D72: =SUM(D68+D69+D70+D71) -> 110328012.8 | E72: =SUM(E68+E69+E70+E71) -> 110344573.9 | F72: 110360285.8 | G72: 110375544.6 | H72: 110390490.3 | I72: 110405398.3 | K72: =SUM(K68+K69+K70+K71) -> 107866312.2 | L72: =SUM(L68+L69+L70+L71) -> 110328012.8 | M72: =SUM(M68+M69+M70+M71) -> 110344573.9 | N72: 110360285.8 | O72: 110375544.6 | P72: 110390490.3 | Q72: 110405398.3 | S72: =SUM(S68+S69+S70+S71) -> 0 | T72: =SUM(T68+T69+T70+T71) -> 0 | U72: =SUM(U68+U69+U70+U71) -> 0 | V72: 0 | W72: 0 | X72: 0 | Y72: 0
B73: For meters:
A74: DRAB0901 | B74: Opening value | C74: 34537629.45 | D74: 37277308.15 | E74: 40385151.61 | F74: 44866933.67 | G74: 48088878.35 | H74: 50546110.95 | I74: 52630116.29 | K74: 34537629.45 | L74: 37277308.15 | M74: 40385151.61 | N74: 44866933.67 | O74: 48088878.35 | P74: 50546110.95 | Q74: 52630116.29 | S74: 96561083.88 | T74: 93130291.76 | U74: 90873632.98 | V74: 87356011.88 | W74: 81978291.01 | X74: 76741955.81 | Y74: 71347213.14
A75: DRAB0902 | B75: Inflation addition | C75: 441042.4007 | D75: 726907.5088 | E75: 0 | F75: 0 | G75: 0 | H75: 0 | I75: 0 | K75: 441042.4007 | L75: 726907.5088 | M75: 0 | N75: 0 | O75: 0 | P75: 0 | Q75: 0 | S75: 1233076.298 | T75: 1816040.689 | U75: 0 | V75: 0 | W75: 0 | X75: 0 | Y75: 0
A76: DRAB0903 | B76: Straight line depreciation | C76: -1876103.729 | D76: -2143674.806 | E76: -2008356.815 | F76: -2259190.75 | G76: -2471028.245 | H76: -2661497.985 | I76: -2844904.425 | K76: -1876103.729 | L76: -2143674.806 | M76: -2008356.815 | N76: -2259190.75 | O76: -2471028.245 | P76: -2661497.985 | Q76: -2844904.425 | S76: -6811030.25 | T76: -6977242.163 | U76: -7078470.116 | V76: -7315860.05 | W76: -7445069.329 | X76: -7592318.27 | Y76: -7738823.31
A77: DRAB0905 | B77: Actual additions (recognised in RAB) | C77: 4174740.024 | D77: 4524610.761 | E77: 6490138.876 | F77: 5481135.433 | G77: 4928260.848 | H77: 4745503.317 | I77: 4650493.153 | K77: 4174740.024 | L77: 4524610.761 | M77: 6490138.876 | N77: 5481135.433 | O77: 4928260.848 | P77: 4745503.317 | Q77: 4650493.153 | S77: 2147161.833 | T77: 2904542.696 | U77: 3560849.013 | V77: 1938139.183 | W77: 2208734.12 | X77: 2197575.604 | Y77: 2008982.494
A78: DRAB0906 | B78: Disposals | C78: 0 | D78: 0 | E78: 0 | F78: 0 | G78: 0 | H78: 0 | I78: 0 | K78: 0 | L78: 0 | M78: 0 | N78: 0 | O78: 0 | P78: 0 | Q78: 0 | S78: 0 | T78: 0 | U78: 0 | V78: 0 | W78: 0 | X78: 0 | Y78: 0
A79: DRAB0907 | B79: Closing value | C79: =SUM(C74+C75+C76+C77+C78) -> 37277308.15 | D79: 40385151.61 | E79: 44866933.67 | F79: 48088878.35 | G79: 50546110.95 | H79: 52630116.29 | I79: 54435705.01 | K79: =SUM(K74+K75+K76+K77+K78) -> 37277308.15 | L79: 40385151.61 | M79: 44866933.67 | N79: 48088878.35 | O79: 50546110.95 | P79: 52630116.29 | Q79: 54435705.01 | S79: =SUM(S74+S75+S76+S77+S78) -> 93130291.76 | T79: 90873632.98 | U79: 87356011.88 | V79: 81978291.01 | W79: 76741955.81 | X79: 71347213.14 | Y79: 65617372.32
B80: For “other” asset items with long lives:
A81: DRAB1001 | B81: Opening value | C81: 312597661.9 | D81: 314416891 | E81: 334742440.6 | F81: 333064599.2 | G81: 325151558.8 | H81: 321078296.4 | I81: 316521495.4 | K81: 312597661.9 | L81: 314416891 | M81: 334742440.6 | N81: 333064599.2 | O81: 325151558.8 | P81: 321078296.4 | Q81: 316521495.4 | S81: 190599.1204 | T81: 179776.4646 | U81: 169981.5429 | V81: 156827.7649 | W81: 143673.987 | X81: 130520.209 | Y81: 117366.4311
A82: DRAB1002 | B82: Inflation addition | C82: 3991843.836 | D82: 6131129.375 | E82: 0 | F82: 0 | G82: 0 | H82: 0 | I82: 0 | K82: 3991843.836 | L82: 6131129.375 | M82: 0 | N82: 0 | O82: 0 | P82: 0 | Q82: 0 | S82: 2433.933508 | T82: 3505.641061 | U82: 0 | V82: 0 | W82: 0 | X82: 0 | Y82: 0
A83: DRAB1003 | B83: Straight line depreciation | C83: -22039109.07 | D83: -22778684.86 | E83: -18852719.39 | F83: -19335070.15 | G83: -19699894.97 | H83: -20149077.25 | I83: -20598868.67 | K83: -22039109.07 | L83: -22778684.86 | M83: -18852719.39 | N83: -19335070.15 | O83: -19699894.97 | P83: -20149077.25 | Q83: -20598868.67 | S83: -13256.58922 | T83: -13300.56284 | U83: -13153.77795 | V83: -13153.77795 | W83: -13153.77795 | X83: -13153.77795 | Y83: -13153.77795
A84: DRAB1005 | B84: Actual additions (recognised in RAB) | C84: 19866494.37 | D84: 36973105.06 | E84: 17174878.03 | F84: 11422029.73 | G84: 15626632.53 | H84: 15592276.26 | I84: 15259178.25 | K84: 19866494.37 | L84: 36973105.06 | M84: 17174878.03 | N84: 11422029.73 | O84: 15626632.53 | P84: 15592276.26 | Q84: 15259178.25 | S84: 0 | T84: 0 | U84: 0 | V84: 0 | W84: 0 | X84: 0 | Y84: 0
A85: DRAB1006 | B85: Disposals | C85: 0 | D85: 0 | E85: 0 | F85: 0 | G85: 0 | H85: 0 | I85: 0 | K85: 0 | L85: 0 | M85: 0 | N85: 0 | O85: 0 | P85: 0 | Q85: 0 | S85: 0 | T85: 0 | U85: 0 | V85: 0 | W85: 0 | X85: 0 | Y85: 0
A86: DRAB1007 | B86: Closing value | C86: =SUM(C81+C82+C83+C84+C85) -> 314416891 | D86: 334742440.6 | E86: 333064599.2 | F86: 325151558.8 | G86: 321078296.4 | H86: 316521495.4 | I86: 311181805 | K86: =SUM(K81+K82+K83+K84+K85) -> 314416891 | L86: 334742440.6 | M86: 333064599.2 | N86: 325151558.8 | O86: 321078296.4 | P86: 316521495.4 | Q86: 311181805 | S86: =SUM(S81+S82+S83+S84+S85) -> 179776.4646 | T86: 169981.5429 | U86: 156827.7649 | V86: 143673.987 | W86: 130520.209 | X86: 117366.4311 | Y86: 104212.6531
B87: For “other” asset items with short lives:
A88: DRAB1101 | B88: Opening value | C88: 136529819.3 | D88: 155109004.7 | E88: 197480262.3 | F88: 309471264 | G88: 334273585.7 | H88: 350588726.9 | I88: 341714451.2 | K88: 136529819.3 | L88: 155109004.7 | M88: 197480262.3 | N88: 309471264 | O88: 334273585.7 | P88: 350588726.9 | Q88: 341714451.2 | S88: 0 | T88: 0 | U88: 0 | V88: 0 | W88: 0 | X88: 0 | Y88: 0
A89: DRAB1102 | B89: Inflation addition | C89: 1743473.429 | D89: 3024625.591 | E89: 0 | F89: 0 | G89: 0 | H89: 0 | I89: 0 | K89: 1743473.429 | L89: 3024625.591 | M89: 0 | N89: 0 | O89: 0 | P89: 0 | Q89: 0 | S89: 0 | T89: 0 | U89: 0 | V89: 0 | W89: 0 | X89: 0 | Y89: 0
A90: DRAB1103 | B90: Straight line depreciation | C90: -72278707.32 | D90: -72868822.92 | E90: -41261703.61 | F90: -66798157.93 | G90: -81976801.3 | H90: -98339766.05 | I90: -87799401.57 | K90: -72278707.32 | L90: -72868822.92 | M90: -41261703.61 | N90: -66798157.93 | O90: -81976801.3 | P90: -98339766.05 | Q90: -87799401.57 | S90: 0 | T90: 0 | U90: 0 | V90: 0 | W90: 0 | X90: 0 | Y90: 0
A91: DRAB1105 | B91: Actual additions (recognised in RAB) | C91: 91448307.95 | D91: 117594884.8 | E91: 158493574.9 | F91: 97002304 | G91: 104681802.4 | H91: 97624577.83 | I91: 92972438.05 | K91: 91448307.95 | L91: 117594884.8 | M91: 158493574.9 | N91: 97002304 | O91: 104681802.4 | P91: 97624577.83 | Q91: 92972438.05 | S91: 0 | T91: 0 | U91: 0 | V91: 0 | W91: 0 | X91: 0 | Y91: 0
A92: DRAB1106 | B92: Disposals | C92: -2333888.665 | D92: -5379429.835 | E92: -5240869.591 | F92: -5401824.352 | G92: -6389859.872 | H92: -8159087.449 | I92: -6938091.428 | K92: -2333888.665 | L92: -5379429.835 | M92: -5240869.591 | N92: -5401824.352 | O92: -6389859.872 | P92: -8159087.449 | Q92: -6938091.428 | S92: 0 | T92: 0 | U92: 0 | V92: 0 | W92: 0 | X92: 0 | Y92: 0
A93: DRAB1107 | B93: Closing value | C93: =SUM(C88+C89+C90+C91+C92) -> 155109004.7 | D93: 197480262.3 | E93: 309471264 | F93: 334273585.7 | G93: 350588726.9 | H93: 341714451.2 | I93: 339949396.3 | K93: =SUM(K88+K89+K90+K91+K92) -> 155109004.7 | L93: 197480262.3 | M93: 309471264 | N93: 334273585.7 | O93: 350588726.9 | P93: 341714451.2 | Q93: 339949396.3 | S93: =SUM(S88+S89+S90+S91+S92) -> 0 | T93: 0 | U93: 0 | V93: 0 | W93: 0 | X93: 0 | Y93: 0
B97: 3.3.3 - TOTAL DISAGGREGATED RAB ASSET VALUES
C98: Network services | K98: Standard control services | S98: Alternative control services
C99: =CONCATENATE("Forecast ($0's, real ", dms_DollarReal,")") -> Forecast ($0's, real June 2019) | K99: =CONCATENATE("Forecast ($0's, real ", dms_DollarReal,")") -> Forecast ($0's, real June 2019) | S99: =CONCATENATE("Forecast ($0's, real ", dms_DollarReal,")") -> Forecast ($0's, real June 2019)
C100: =CRCP_y4 -> 2017-18 | D100: =CRCP_y5 -> 2018-19 | E100: =FRCP_y1 -> 2019-20 | F100: =FRCP_y2 -> 2020-21 | G100: =FRCP_y3 -> 2021-22 | H100: =FRCP_y4 -> 2022-23 | I100: =FRCP_y5 -> 2023-24 | K100: =CRCP_y4 -> 2017-18 | L100: =CRCP_y5 -> 2018-19 | M100: =FRCP_y1 -> 2019-20 | N100: =FRCP_y2 -> 2020-21 | O100: =FRCP_y3 -> 2021-22 | P100: =FRCP_y4 -> 2022-23 | Q100: =FRCP_y5 -> 2023-24 | S100: =CRCP_y4 -> 2017-18 | T100: =CRCP_y5 -> 2018-19 | U100: =FRCP_y1 -> 2019-20 | V100: =FRCP_y2 -> 2020-21 | W100: =FRCP_y3 -> 2021-22 | X100: =FRCP_y4 -> 2022-23 | Y100: =FRCP_y5 -> 2023-24
A101: DRAB1201 | B101: Overhead network assets less than 33kV (wires and poles) | C101: 3571902889 | D101: 3754407169 | E101: 3913478747 | F101: 4029080109 | G101: 4128270555 | H101: 4218837416 | I101: 4305184383 | K101: 3571902889 | L101: 3754407169 | M101: 3913478747 | N101: 4029080109 | O101: 4128270555 | P101: 4218837416 | Q101: 4305184383 | S101: 0 | T101: 0 | U101: 0 | V101: 0 | W101: 0 | X101: 0 | Y101: 0
A102: DRAB1202 | B102: Underground network assets less than 33kV (cables) | C102: 616474002.8 | D102: 615723922.1 | E102: 609420809.6 | F102: 596388840.8 | G102: 582500311.7 | H102: 567849654.1 | I102: 552519020.3 | K102: 616474002.8 | L102: 615723922.1 | M102: 609420809.6 | N102: 596388840.8 | O102: 582500311.7 | P102: 567849654.1 | Q102: 552519020.3 | S102: 0 | T102: 0 | U102: 0 | V102: 0 | W102: 0 | X102: 0 | Y102: 0
A103: DRAB1203 | B103: Distribution substations including transformers | C103: 600803136.2 | D103: 597989168.3 | E103: 591440363.3 | F103: 580660392 | G103: 569679811.8 | H103: 557700031.6 | I103: 544714667.5 | K103: 600803136.2 | L103: 597989168.3 | M103: 591440363.3 | N103: 580660392 | O103: 569679811.8 | P103: 557700031.6 | Q103: 544714667.5 | S103: 0 | T103: 0 | U103: 0 | V103: 0 | W103: 0 | X103: 0 | Y103: 0
A104: DRAB1204 | B104: Overhead network assets 33kV and above (wires and towers / poles etc) | C104: 978477046.2 | D104: 991192572.7 | E104: 1001292182 | F104: 1001691778 | G104: 996763831.4 | H104: 988155196.8 | I104: 979804712.1 | K104: 978477046.2 | L104: 991192572.7 | M104: 1001292182 | N104: 1001691778 | O104: 996763831.4 | P104: 988155196.8 | Q104: 979804712.1 | S104: 0 | T104: 0 | U104: 0 | V104: 0 | W104: 0 | X104: 0 | Y104: 0
A105: DRAB1205 | B105: Underground network assets 33kV and above(cables, ducts etc) | C105: 26851900.47 | D105: 33510035.26 | E105: 37340167.99 | F105: 38377021.73 | G105: 39267630.36 | H105: 40189987.04 | I105: 40989142.27 | K105: 26851900.47 | L105: 33510035.26 | M105: 37340167.99 | N105: 38377021.73 | O105: 39267630.36 | P105: 40189987.04 | Q105: 40989142.27 | S105: 0 | T105: 0 | U105: 0 | V105: 0 | W105: 0 | X105: 0 | Y105: 0
A106: DRAB1206 | B106: Zone substations and transformers | C106: 1385718042 | D106: 1416400875 | E106: 1432909825 | F106: 1433291245 | G106: 1433635194 | H106: 1433262658 | I106: 1426449374 | K106: 1385718042 | L106: 1416400875 | M106: 1432909825 | N106: 1433291245 | O106: 1433635194 | P106: 1433262658 | Q106: 1426449374 | S106: 0 | T106: 0 | U106: 0 | V106: 0 | W106: 0 | X106: 0 | Y106: 0
A107: DRAB1207 | B107: Easements | C107: 107112863.8 | D107: 109097162.5 | E107: 110336293.4 | F107: 110352429.9 | G107: 110367915.2 | H107: 110383017.4 | I107: 110397944.3 | K107: 107112863.8 | L107: 109097162.5 | M107: 110336293.4 | N107: 110352429.9 | O107: 110367915.2 | P107: 110383017.4 | Q107: 110397944.3 | S107: 0 | T107: 0 | U107: 0 | V107: 0 | W107: 0 | X107: 0 | Y107: 0
A108: DRAB1208 | B108: Meters | C108: 35907468.8 | D108: 38831229.88 | E108: 42626042.64 | F108: 46477906.01 | G108: 49317494.65 | H108: 51588113.62 | I108: 53532910.65 | K108: 35907468.8 | L108: 38831229.88 | M108: 42626042.64 | N108: 46477906.01 | O108: 49317494.65 | P108: 51588113.62 | Q108: 53532910.65 | S108: 94845687.82 | T108: 92001962.37 | U108: 89114822.43 | V108: 84667151.45 | W108: 79360123.41 | X108: 74044584.47 | Y108: 68482292.73
A109: DRAB1209 | B109: “Other” assets with long lives | C109: 313507276.5 | D109: 324579665.8 | E109: 333903519.9 | F109: 329108079 | G109: 323114927.6 | H109: 318799895.9 | I109: 313851650.2 | K109: 313507276.5 | L109: 324579665.8 | M109: 333903519.9 | N109: 329108079 | O109: 323114927.6 | P109: 318799895.9 | Q109: 313851650.2 | S109: 185187.7925 | T109: 174879.0038 | U109: 163404.6539 | V109: 150250.8759 | W109: 137097.098 | X109: 123943.32 | Y109: 110789.5421
A110: DRAB1210 | B110: “Other” assets with short lives | C110: 145819412 | D110: 176294633.5 | E110: 253475763.1 | F110: 321872424.8 | G110: 342431156.3 | H110: 346151589 | I110: 340831923.7 | K110: 145819412 | L110: 176294633.5 | M110: 253475763.1 | N110: 321872424.8 | O110: 342431156.3 | P110: 346151589 | Q110: 340831923.7 | S110: 0 | T110: 0 | U110: 0 | V110: 0 | W110: 0 | X110: 0 | Y110: 0
A111: DRAB13 | B111: Value of Capital Contributions or Contributed Assets (included in the above) | C111: 0 | D111: 0 | E111: 0 | F111: 0 | G111: 0 | H111: 0 | I111: 0 | K111: 0 | L111: 0 | M111: 0 | N111: 0 | O111: 0 | P111: 0 | Q111: 0 | S111: 0 | T111: 0 | U111: 0 | V111: 0 | W111: 0 | X111: 0 | Y111: 0
B114: 3.3.4 - ASSET LIVES
C115: Network services | K115: Standard control services | S115: Alternative control services
C116: Forecast ( years ) | K116: Forecast ( years ) | S116: Forecast ( years )
C117: =CRCP_y4 -> 2017-18 | D117: =CRCP_y5 -> 2018-19 | E117: =FRCP_y1 -> 2019-20 | F117: =FRCP_y2 -> 2020-21 | G117: =FRCP_y3 -> 2021-22 | H117: =FRCP_y4 -> 2022-23 | I117: =FRCP_y5 -> 2023-24 | K117: =CRCP_y4 -> 2017-18 | L117: =CRCP_y5 -> 2018-19 | M117: =FRCP_y1 -> 2019-20 | N117: =FRCP_y2 -> 2020-21 | O117: =FRCP_y3 -> 2021-22 | P117: =FRCP_y4 -> 2022-23 | Q117: =FRCP_y5 -> 2023-24 | S117: =CRCP_y4 -> 2017-18 | T117: =CRCP_y5 -> 2018-19 | U117: =FRCP_y1 -> 2019-20 | V117: =FRCP_y2 -> 2020-21 | W117: =FRCP_y3 -> 2021-22 | X117: =FRCP_y4 -> 2022-23 | Y117: =FRCP_y5 -> 2023-24
B118: Estimated service life of new assets
A119: DRAB1401 | B119: Overhead network assets less than 33kV (wires and poles) | C119: 53 | D119: 53 | E119: 53 | F119: 53 | G119: 53 | H119: 53 | I119: 53 | K119: 53 | L119: 53 | M119: 53 | N119: 53 | O119: 53 | P119: 53 | Q119: 53 | S119: 0 | T119: 0 | U119: 0 | V119: 0 | W119: 0 | X119: 0 | Y119: 0
A120: DRAB1402 | B120: Underground network assets less than 33kV (cables) | C120: 54 | D120: 54 | E120: 54 | F120: 54 | G120: 54 | H120: 54 | I120: 54 | K120: 54 | L120: 54 | M120: 54 | N120: 54 | O120: 54 | P120: 54 | Q120: 54 | S120: 0 | T120: 0 | U120: 0 | V120: 0 | W120: 0 | X120: 0 | Y120: 0
A121: DRAB1403 | B121: Distribution substations including transformers | C121: 45 | D121: 45 | E121: 45 | F121: 45 | G121: 45 | H121: 45 | I121: 45 | K121: 45 | L121: 45 | M121: 45 | N121: 45 | O121: 45 | P121: 45 | Q121: 45 | S121: 0 | T121: 0 | U121: 0 | V121: 0 | W121: 0 | X121: 0 | Y121: 0
A122: DRAB1404 | B122: Overhead network assets 33kV and above (wires and towers / poles etc) | C122: 55 | D122: 55 | E122: 55 | F122: 55 | G122: 55 | H122: 55 | I122: 55 | K122: 55 | L122: 55 | M122: 55 | N122: 55 | O122: 55 | P122: 55 | Q122: 55 | S122: 0 | T122: 0 | U122: 0 | V122: 0 | W122: 0 | X122: 0 | Y122: 0
A123: DRAB1405 | B123: Underground network assets 33kV and above(cables, ducts etc) | C123: 54 | D123: 54 | E123: 54 | F123: 54 | G123: 54 | H123: 54 | I123: 54 | K123: 54 | L123: 54 | M123: 54 | N123: 54 | O123: 54 | P123: 54 | Q123: 54 | S123: 0 | T123: 0 | U123: 0 | V123: 0 | W123: 0 | X123: 0 | Y123: 0
A124: DRAB1406 | B124: Zone substations and transformers | C124: 46 | D124: 46 | E124: 46 | F124: 46 | G124: 46 | H124: 46 | I124: 46 | K124: 46 | L124: 46 | M124: 46 | N124: 46 | O124: 46 | P124: 46 | Q124: 46 | S124: 0 | T124: 0 | U124: 0 | V124: 0 | W124: 0 | X124: 0 | Y124: 0
A125: DRAB1407 | B125: Meters | C125: 26 | D125: 26 | E125: 26 | F125: 26 | G125: 26 | H125: 26 | I125: 26 | K125: 26 | L125: 26 | M125: 26 | N125: 26 | O125: 26 | P125: 26 | Q125: 26 | S125: 15 | T125: 15 | U125: 15 | V125: 15 | W125: 15 | X125: 15 | Y125: 15
A126: DRAB1408 | B126: “Other” assets with long lives | C126: 30 | D126: 34 | E126: 34 | F126: 38 | G126: 40 | H126: 43 | I126: 45 | K126: 30 | L126: 34 | M126: 34 | N126: 38 | O126: 40 | P126: 43 | Q126: 45 | S126: 15 | T126: 15 | U126: 15 | V126: 15 | W126: 15 | X126: 15 | Y126: 15
A127: DRAB1409 | B127: “Other” assets with short lives | C127: 6 | D127: 6 | E127: 6 | F127: 6 | G127: 6 | H127: 6 | I127: 7 | K127: 6 | L127: 6 | M127: 6 | N127: 6 | O127: 6 | P127: 6 | Q127: 7 | S127: 0 | T127: 0 | U127: 0 | V127: 0 | W127: 0 | X127: 0 | Y127: 0
B128: Estimated residual service life
A129: DRAB1501 | B129: Overhead network assets less than 33kV (wires and poles) | C129: 9.601708374 | D129: 8.740979785 | E129: 7.900154168 | F129: 7.059772616 | G129: 6.222417186 | H129: 5.386388494 | I129: 4.553888932 | K129: 9.601708374 | L129: 8.740979785 | M129: 7.900154168 | N129: 7.059772616 | O129: 6.222417186 | P129: 5.386388494 | Q129: 4.553888932 | S129: 0 | T129: 0 | U129: 0 | V129: 0 | W129: 0 | X129: 0 | Y129: 0
A130: DRAB1502 | B130: Underground network assets less than 33kV (cables) | C130: 34.21573365 | D130: 33.22698977 | E130: 32.23572129 | F130: 31.24477536 | G130: 30.25403066 | H130: 29.26348359 | I130: 28.27316465 | K130: 34.21573365 | L130: 33.22698977 | M130: 32.23572129 | N130: 31.24477536 | O130: 30.25403066 | P130: 29.26348359 | Q130: 28.27316465 | S130: 0 | T130: 0 | U130: 0 | V130: 0 | W130: 0 | X130: 0 | Y130: 0
A131: DRAB1503 | B131: Distribution substations including transformers | C131: 20.7708776 | D131: 19.91925834 | E131: 19.10019232 | F131: 18.30898497 | G131: 17.51942948 | H131: 16.72951765 | I131: 15.93668889 | K131: 20.7708776 | L131: 19.91925834 | M131: 19.10019232 | N131: 18.30898497 | O131: 17.51942948 | P131: 16.72951765 | Q131: 15.93668889 | S131: 0 | T131: 0 | U131: 0 | V131: 0 | W131: 0 | X131: 0 | Y131: 0
A132: DRAB1504 | B132: Overhead network assets 33kV and above (wires and towers / poles etc) | C132: 15.21139773 | D132: 14.27609652 | E132: 13.3880721 | F132: 12.49928083 | G132: 11.63928166 | H132: 10.75065221 | I132: 9.863767374 | K132: 15.21139773 | L132: 14.27609652 | M132: 13.3880721 | N132: 12.49928083 | O132: 11.63928166 | P132: 10.75065221 | Q132: 9.863767374 | S132: 0 | T132: 0 | U132: 0 | V132: 0 | W132: 0 | X132: 0 | Y132: 0
A133: DRAB1505 | B133: Underground network assets 33kV and above (cables, ducts etc) | C133: 40.12885906 | D133: 39.38910259 | E133: 38.50899987 | F133: 37.63430588 | G133: 36.76314412 | H133: 35.89529821 | I133: 35.03104646 | K133: 40.12885906 | L133: 39.38910259 | M133: 38.50899987 | N133: 37.63430588 | O133: 36.76314412 | P133: 35.89529821 | Q133: 35.03104646 | S133: 0 | T133: 0 | U133: 0 | V133: 0 | W133: 0 | X133: 0 | Y133: 0
A134: DRAB1506 | B134: Zone substations and transformers | C134: 20.45946587 | D134: 19.692259 | E134: 18.90470878 | F134: 18.13677469 | G134: 17.36588165 | H134: 16.57887166 | I134: 15.79570949 | K134: 20.45946587 | L134: 19.692259 | M134: 18.90470878 | N134: 18.13677469 | O134: 17.36588165 | P134: 16.57887166 | Q134: 15.79570949 | S134: 0 | T134: 0 | U134: 0 | V134: 0 | W134: 0 | X134: 0 | Y134: 0
A135: DRAB1507 | B135: Meters | C135: 20.08395424 | D135: 19.88471298 | E135: 19.86986316 | F135: 19.6460845 | G135: 19.32967502 | H135: 18.98799461 | I135: 18.63847261 | K135: 20.08395424 | L135: 19.88471298 | M135: 19.86986316 | N135: 19.6460845 | O135: 19.32967502 | P135: 18.98799461 | Q135: 18.63847261 | S135: 13.78672764 | T135: 12.85559313 | U135: 11.97415954 | V135: 11.06154084 | W135: 10.19110645 | X135: 9.352818622 | Y135: 8.534862837
A136: DRAB1508 | B136: “Other” assets with long lives | C136: 23.82552449 | D136: 27.04875851 | E136: 28.77547934 | F136: 29.86560601 | G136: 31.44683388 | H136: 33.14354709 | I136: 34.95406164 | K136: 23.82552449 | L136: 27.04875851 | M136: 28.77547934 | N136: 29.86560601 | O136: 31.44683388 | P136: 33.14354709 | Q136: 34.95406164 | S136: 13.92264044 | T136: 12.92264044 | U136: 11.92264044 | V136: 10.92264044 | W136: 9.922640439 | X136: 8.922640439 | Y136: 7.922640439
A137: DRAB1509 | B137: “Other” assets with short lives | C137: 3.848140628 | D137: 4.21930937 | E137: 4.451124813 | F137: 4.275427321 | G137: 4.176279391 | H137: 4.097574928 | I137: 4.089681627 | K137: 3.848140628 | L137: 4.21930937 | M137: 4.451124813 | N137: 4.275427321 | O137: 4.176279391 | P137: 4.097574928 | Q137: 4.089681627 | S137: 0 | T137: 0 | U137: 0 | V137: 0 | W137: 0 | X137: 0 | Y137: 0

Sheet 3.4 Operational data
B1: =SheetHeader -> REGULATORY REPORTING STATEMENT
B2: =dms_TradingName -> Essential Energy
B3: =dms_Reg_Year_Span -> 2019-20 to 2023-24
B4: 3.4 OPERATIONAL DATA
B6: There are TWO tables on this worksheet. Each table has been grouped for ease of navigation. See the Instructions sheet on how to group or ungroup tables.
B9: 3.4.1 - ENERGY DELIVERY
D10: Standard control services
D11: Forecast
C12: Units | D12: =CRCP_y4 -> 2017-18 | E12: =CRCP_y5 -> 2018-19 | F12: =FRCP_y1 -> 2019-20 | G12: =FRCP_y2 -> 2020-21 | H12: =FRCP_y3 -> 2021-22 | I12: =FRCP_y4 -> 2022-23 | J12: =FRCP_y5 -> 2023-24
A13: DOPED01 | B13: Total energy delivered | C13: GWh | D13: 12306.4 | E13: 12287.1 | F13: 12288.6 | G13: 12272.2 | H13: 12248.6 | I13: 12279.6 | J13: 12307.1
B14: 3.4.1.1 - Energy grouping - delivery by chargeable quantity
A15: DOPED0201 | B15: Energy Delivery where time of use is not a determinant | C15: GWh | D15: 4368.23 | E15: 4183.437831 | F15: 4007.901649 | G15: 3809.311333 | H15: 3619.48456 | I15: 3444.656936 | J15: 3271.116837
A16: DOPED0202 | B16: Energy Delivery at On-peak times | C16: GWh | D16: 1085.082 | E16: 1117.836492 | F16: 1152.25363 | G16: 1188.22067 | H16: 1221.340507 | I16: 1260.962572 | J16: 1299.602884
A17: DOPED0203 | B17: Energy Delivery at Shoulder times | C17: GWh | D17: 2252.949 | E17: 2303.480669 | F17: 2358.350718 | G17: 2413.164885 | H17: 2462.882483 | I17: 2526.198614 | J17: 2588.040456
A18: DOPED0204 | B18: Energy Delivery at Off-peak times | C18: GWh | D18: 3417.115 | E18: 3509.640009 | F18: 3607.706004 | G18: 3709.299112 | H18: 3802.59745 | I18: 3915.082878 | J18: 4024.808823
A19: DOPED0205 | B19: Controlled load energy deliveries | C19: GWh | D19: 1023.77 | E19: 1010.16 | F19: 996.76 | G19: 983.55 | H19: 970.53 | I19: 957.71 | J19: 945.07
A20: DOPED0206 | B20: Energy Delivery to unmetered supplies | C20: GWh | D20: 159.25 | E20: 162.54 | F20: 165.63 | G20: 168.65 | H20: 171.76 | I20: 174.99 | J20: 178.46
B21: 3.4.1.2 - Energy - received from TNSP and other DNSPs by time of receipt
A22: DOPED0301 | B22: Energy into DNSP network at On-peak times | C22: GWh | D22: 1795.295663 | E22: 1635.582046 | F22: 1425.582986 | G22: 1340.435785 | H22: 1246.180837 | I22: 1153.299213 | J22: 1050.071109
A23: DOPED0302 | B23: Energy into DNSP network at Shoulder times | C23: GWh | D23: 3114.848989 | E23: 2837.744884 | F23: 2473.395227 | G23: 2325.664311 | H23: 2162.131398 | I23: 2000.981211 | J23: 1821.879817
A24: DOPED0303 | B24: Energy into DNSP network at Off-peak times | C24: GWh | D24: 5478.339549 | E24: 4990.973907 | F24: 4350.162381 | G24: 4090.335942 | H24: 3802.717238 | I24: 3519.289231 | J24: 3204.288969
A25: DOPED0304 | B25: Energy received from TNSP and other DNSPs not included in the above categories | C25: GWh | D25: 0 | E25: 0 | F25: 0 | G25: 0 | H25: 0 | I25: 0 | J25: 0
B26: 3.4.1.3 - Energy - received into DNSP system from embedded generation by time of receipt
A27: DOPED0401 | B27: Energy into DNSP network at On-peak times from non-residential embedded generation | C27: GWh | D27: 359.2863586 | E27: 485.9597341 | F27: 657.2942656 | G27: 723.0236921 | H27: 795.3260614 | I27: 874.8586675 | J27: 962.3445343
A28: DOPED0402 | B28: Energy into DNSP network at Shoulder times from non-residential embedded generation | C28: GWh | D28: 905.39355 | E28: 1224.60761 | F28: 1656.366779 | G28: 1822.003457 | H28: 2004.203803 | I28: 2204.624183 | J28: 2425.086601
A29: DOPED0403 | B29: Energy into DNSP network at Off-peak times from non-residential embedded generation | C29: GWh | D29: 1255.65232 | E29: 1698.356904 | F29: 2297.145577 | G29: 2526.860135 | H29: 2779.546148 | I29: 3057.500763 | J29: 3363.25084
A30: DOPED0404 | B30: Energy received from embedded generation not included in above categories from non-residential embedded generation | C30: GWh | D30: 0 | E30: 0 | F30: 0 | G30: 0 | H30: 0 | I30: 0 | J30: 0
A31: DOPED0405 | B31: Energy into DNSP network at On-peak times from residential embedded generation | C31: GWh | D31: 0 | E31: 0 | F31: 0 | G31: 0 | H31: 0 | I31: 0 | J31: 0
A32: DOPED0406 | B32: Energy into DNSP network at Shoulder times from residential embedded generation | C32: GWh | D32: 0 | E32: 0 | F32: 0 | G32: 0 | H32: 0 | I32: 0 | J32: 0
A33: DOPED0407 | B33: Energy into DNSP network at Off-peak times from residential embedded generation | C33: GWh | D33: 0 | E33: 0 | F33: 0 | G33: 0 | H33: 0 | I33: 0 | J33: 0
A34: DOPED0408 | B34: Energy received from embedded generation not included in above categories from residential embedded generation | C34: GWh | D34: 182.74127 | E34: 197.80126 | F34: 212.67483 | G34: 226.85239 | H34: 239.96453 | I34: 252.49457 | J34: 265.38049
B35: 3.4.1.4 - Energy grouping - customer type or class
A36: DOPED0501 | B36: Residential customers energy deliveries | C36: GWh | D36: 4580.27 | E36: 4554.46 | F36: 4534.96 | G36: 4518.55 | H36: 4507.33 | I36: 4502.81 | J36: 4496.07
A37: DOPED0502 | B37: Non residential customers not on demand tariffs energy deliveries | C37: GWh | D37: 1897.405 | E37: 1878.517 | F37: 1865.015 | G37: 1844.353 | H37: 1820.997 | I37: 1812.779 | J37: 1804.916
A38: DOPED0503 | B38: Non-residential low voltage demand tariff customers energy deliveries | C38: GWh | D38: 2402.95 | E38: 2411.34 | F38: 2424.93 | G38: 2428.85 | H38: 2428.36 | I38: 2445.79 | J38: 2463.06
A39: DOPED0504 | B39: Non-residential high voltage demand tariff customers energy deliveries | C39: GWh | D39: 3425.799 | E39: 3442.863 | F39: 3463.674 | G39: 3480.512 | H39: 3491.994 | I39: 3518.268 | J39: 3543.04
A40: DOPED0505 | B40: Other Customer Class Energy Deliveries | C40: GWh | D40: 0 | E40: 0 | F40: 0 | G40: 0 | H40: 0 | I40: 0 | J40: 0
B44: 3.4.3 - SYSTEM DEMAND
D45: Standard control services
D46: Forecast
C47: Units | D47: =CRCP_y4 -> 2017-18 | E47: =CRCP_y5 -> 2018-19 | F47: =FRCP_y1 -> 2019-20 | G47: =FRCP_y2 -> 2020-21 | H47: =FRCP_y3 -> 2021-22 | I47: =FRCP_y4 -> 2022-23 | J47: =FRCP_y5 -> 2023-24
B48: 3.4.3.1 - Annual system maximum demand characteristics at the zone substation level – MW measure
A49: DOPSD0102 | B49: Non–coincident Summated Weather Adjusted System Annual Maximum Demand 10% POE | C49: MW | D49: 2709.90686 | E49: 2732.452907 | F49: 2752.418432 | G49: 2770.510376 | H49: 2787.30435 | I49: 2803.13104 | J49: 2818.493115
A50: DOPSD0103 | B50: Non–coincident Summated Weather Adjusted System Annual Maximum Demand 50% POE | C50: MW | D50: 2445.403749 | E50: 2459.318438 | F50: 2471.156823 | G50: 2481.521503 | H50: 2490.782282 | I50: 2499.181544 | J50: 2506.887301
A51: DOPSD0105 | B51: Coincident Weather Adjusted System Annual Maximum Demand 10% POE | C51: MW | D51: 2132.845704 | E51: 2149.331163 | F51: 2164.063955 | G51: 2177.480134 | H51: 2189.982582 | I51: 2201.802465 | J51: 2213.378238
A52: DOPSD0106 | B52: Coincident Weather Adjusted System Annual Maximum Demand 50% POE | C52: MW | D52: 1923.318954 | E52: 1933.484751 | F52: 1942.214644 | G52: 1949.910517 | H52: 1956.82316 | I52: 1963.119619 | J52: 1968.917269
B53: 3.4.3.2 - Annual system maximum demand characteristics at the transmission connection point – MW measure
A54: DOPSD0108 | B54: Non–coincident Summated Weather Adjusted System Annual Maximum Demand 10% POE | C54: MW | D54: 2918.209722 | E54: 2923.684602 | F54: 2948.795978 | G54: 2975.706123 | H54: 3004.471335 | I54: 3035.161675 | J54: 3067.860394
A55: DOPSD0109 | B55: Non–coincident Summated Weather Adjusted System Annual Maximum Demand 50% POE | C55: MW | D55: 2629.798292 | E55: 2661.522351 | F55: 2684.060434 | G55: 2708.275351 | H55: 2734.191046 | I55: 2761.847232 | J55: 2791.305621
A56: DOPSD0111 | B56: Coincident Weather Adjusted System Annual Maximum Demand 10% POE | C56: MW | D56: 2466.007554 | E56: 2474.540147 | F56: 2478.741085 | G56: 2486.731056 | H56: 2488.755387 | I56: 2499.013127 | J56: 2502.911104
A57: DOPSD0112 | B57: Coincident Weather Adjusted System Annual Maximum Demand 50% POE | C57: MW | D57: 2300.785155 | E57: 2302.001574 | F57: 2309.508211 | G57: 2309.072479 | H57: 2314.319234 | I57: 2311.616853 | J57: 2331.839905
B58: 3.4.3.3 - Annual system maximum demand characteristics at the zone substation level – MVA measure
A59: DOPSD0202 | B59: Non–coincident Summated Weather Adjusted System Annual Maximum Demand 10% POE | C59: MVA | D59: 2786.468653 | E59: 2809.629304 | F59: 2830.166366 | G59: 2848.789148 | H59: 2866.083889 | I59: 2882.390972 | J59: 2898.214751
A60: DOPSD0203 | B60: Non–coincident Summated Weather Adjusted System Annual Maximum Demand 50% POE | C60: MVA | D60: 2514.587457 | E60: 2528.896957 | F60: 2541.098065 | G60: 2551.797647 | H60: 2561.369449 | I60: 2570.059173 | J60: 2578.037525
A61: DOPSD0205 | B61: Coincident Weather Adjusted System Annual Maximum Demand 10% POE | C61: MVA | D61: 2191.568175 | E61: 2208.498154 | F61: 2223.642865 | G61: 2237.440779 | H61: 2250.303259 | I61: 2262.468951 | J61: 2274.378421
A62: DOPSD0206 | B62: Coincident Weather Adjusted System Annual Maximum Demand 50% POE | C62: MVA | D62: 1976.32225 | E62: 1986.771451 | F62: 1995.760728 | G62: 2003.69595 | H62: 2010.830992 | I62: 2017.335302 | J62: 2023.328148
B63: 3.4.3.4 - Annual system maximum demand characteristics at the transmission connection point – MVA measure
A64: DOPSD0208 | B64: Non–coincident Summated Weather Adjusted System Annual Maximum Demand 10% POE | C64: MVA | D64: 2965.266023 | E64: 2970.829185 | F64: 2996.345484 | G64: 3023.689557 | H64: 3052.91861 | I64: 3084.103833 | J64: 3117.329821
A65: DOPSD0209 | B65: Non–coincident Summated Weather Adjusted System Annual Maximum Demand 50% POE | C65: MVA | D65: 2672.347968 | E65: 2704.585317 | F65: 2727.488062 | G65: 2752.094772 | H65: 2778.429777 | I65: 2806.533436 | J65: 2836.468457
A66: DOPSD0211 | B66: Coincident Weather Adjusted System Annual Maximum Demand 10% POE | C66: MVA | D66: 2517.215264 | E66: 2525.92504 | F66: 2530.213212 | G66: 2538.369099 | H66: 2540.435466 | I66: 2550.906212 | J66: 2554.885132
A67: DOPSD0212 | B67: Coincident Weather Adjusted System Annual Maximum Demand 50% POE | C67: MVA | D67: 2341.089969 | E67: 2348.689017 | F67: 2349.930762 | G67: 2357.593692 | H67: 2357.148888 | I67: 2362.504884 | J67: 2359.746237
B68: 3.4.3.5 - Power factor conversion between MVA and MW
A69: DOPSD0301 | B69: Average overall network power factor conversion between MVA and MW | C69: Factor | D69: 0.9709360974 | E69: 0.9709360974 | F69: 0.9709360974 | G69: 0.9709360974 | H69: 0.9709360974 | I69: 0.9709360974 | J69: 0.9709360974
A70: DOPSD0302 | B70: Average power factor conversion for low voltage distribution lines | C70: Factor | D70: 0.85 | E70: 0.85 | F70: 0.85 | G70: 0.85 | H70: 0.85 | I70: 0.85 | J70: 0.85
A71: DOPSD0303 | B71: Average power factor conversion for 3.3 kV lines | C71: Factor | D71: 0 | E71: 0 | F71: 0 | G71: 0 | H71: 0 | I71: 0 | J71: 0
A72: DOPSD0304 | B72: Average power factor conversion for 6.6 kV lines | C72: Factor | D72: 0 | E72: 0 | F72: 0 | G72: 0 | H72: 0 | I72: 0 | J72: 0
A73: DOPSD0305 | B73: Average power factor conversion for 7.6 kV lines | C73: Factor | D73: 0 | E73: 0 | F73: 0 | G73: 0 | H73: 0 | I73: 0 | J73: 0
A74: DOPSD0306 | B74: Average power factor conversion for 11 kV lines | C74: Factor | D74: 0.92 | E74: 0.92 | F74: 0.92 | G74: 0.92 | H74: 0.92 | I74: 0.92 | J74: 0.92
A75: DOPSD0307 | B75: Average power factor conversion for SWER lines | C75: Factor | D75: 1 | E75: 1 | F75: 1 | G75: 1 | H75: 1 | I75: 1 | J75: 1
A76: DOPSD0308 | B76: Average power factor conversion for 22 kV lines | C76: Factor | D76: 0.94 | E76: 0.94 | F76: 0.94 | G76: 0.94 | H76: 0.94 | I76: 0.94 | J76: 0.94
A77: DOPSD0309 | B77: Average power factor conversion for 33 kV lines | C77: Factor | D77: 0.96 | E77: 0.96 | F77: 0.96 | G77: 0.96 | H77: 0.96 | I77: 0.96 | J77: 0.96
A78: DOPSD0310 | B78: Average power factor conversion for 44 kV lines | C78: Factor | D78: 0 | E78: 0 | F78: 0 | G78: 0 | H78: 0 | I78: 0 | J78: 0
A79: DOPSD0311 | B79: Average power factor conversion for 66 kV lines | C79: Factor | D79: 0.98 | E79: 0.98 | F79: 0.98 | G79: 0.98 | H79: 0.98 | I79: 0.98 | J79: 0.98
A80: DOPSD0312 | B80: Average power factor conversion for 110 kV lines | C80: Factor | D80: 1 | E80: 1 | F80: 1 | G80: 1 | H80: 1 | I80: 1 | J80: 1
A81: DOPSD0313 | B81: Average power factor conversion for 132 kV lines | C81: Factor | D81: 0.98 | E81: 0.98 | F81: 0.98 | G81: 0.98 | H81: 0.98 | I81: 0.98 | J81: 0.98
A82: DOPSD0314 | B82: Average power factor conversion for 220 kV lines | C82: Factor | D82: 0 | E82: 0 | F82: 0 | G82: 0 | H82: 0 | I82: 0 | J82: 0
B83: 3.4.3.6 - Demand supplied (for customers charged on this basis) – MW measure
A84: DOPSD0401 | B84: Summated Chargeable Contracted Maximum Demand | C84: MW | D84: 0 | E84: 0 | F84: 0 | G84: 0 | H84: 0 | I84: 0 | J84: 0
A85: DOPSD0402 | B85: Summated Chargeable Measured Maximum Demand | C85: MW | D85: 469.847 | E85: 469.847 | F85: 469.847 | G85: 469.847 | H85: 469.847 | I85: 469.847 | J85: 469.847
B86: 3.4.3.7 - Demand supplied (for customers charged on this basis) – MVA measure
A87: DOPSD0403 | B87: Summated Chargeable Contracted Maximum Demand | C87: MVA | D87: 915.2 | E87: 902.9 | F87: 892.7 | G87: 880.7 | H87: 867.7 | I87: 860 | J87: 852.6
A88: DOPSD0404 | B88: Summated Chargeable Measured Maximum Demand | C88: MVA | D88: 31746.6 | E88: 31818.5 | F88: 31923 | G88: 31978.9 | H88: 32004.6 | I88: 32136.2 | J88: 32264.2

Sheet 3.5 Physical assets
B1: =SheetHeader -> REGULATORY REPORTING STATEMENT
B2: =dms_TradingName -> Essential Energy
B3: =dms_Reg_Year_Span -> 2019-20 to 2023-24
B4: 3.5 PHYSICAL ASSETS DATA
B6: There are THREE tables on this worksheet. Each table has been grouped (and sub-grouped) for ease of navigation. See the Instructions sheet on how to group or ungroup tables.
B10: 3.5.1 - NETWORK CAPACITIES VARIABLES
D11: VOLUMES
C12: Units | D12: =CRCP_y4 -> 2017-18 | E12: =CRCP_y5 -> 2018-19 | F12: =FRCP_y1 -> 2019-20 | G12: =FRCP_y2 -> 2020-21 | H12: =FRCP_y3 -> 2021-22 | I12: =FRCP_y4 -> 2022-23 | J12: =FRCP_y5 -> 2023-24
B13: Circuit length
B14: 3.5.1.1 - Overhead network length of circuit at each voltage
A15: DPA0101 | B15: Overhead low voltage distribution | C15: km | D15: 25576.22382 | E15: 25496.46858 | F15: 25416.71335 | G15: 25336.95811 | H15: 25257.20288 | I15: 25177.44764 | J15: 25097.6924
A16: DPA0102 | B16: Overhead 2.2 kV | C16: km | D16: 0 | E16: 0 | F16: 0 | G16: 0 | H16: 0 | I16: 0 | J16: 0
A17: DPA0103 | B17: Overhead 7.6 kV | C17: km | D17: 18.73932574 | E17: 18.68719089 | F17: 18.63505603 | G17: 18.58292118 | H17: 18.53078633 | I17: 18.47865148 | J17: 18.42651662
A18: DPA0104 | B18: Overhead 11 kV | C18: km | D18: 0 | E18: 0 | F18: 0 | G18: 0 | H18: 0 | I18: 0 | J18: 0
A19: DPA0105 | B19: Overhead SWER | C19: km | D19: 70499.70024 | E19: 70533.44365 | F19: 70567.18706 | G19: 70600.93048 | H19: 70634.67389 | I19: 70668.4173 | J19: 70702.16072
A20: DPA0106 | B20: Overhead 22 kV | C20: km | D20: 29614.66892 | E20: 29592.2027 | F20: 29569.73648 | G20: 29547.27027 | H20: 29524.80405 | I20: 29502.33783 | J20: 29479.87162
A21: DPA0107 | B21: Overhead 33 kV | C21: km | D21: 42483.9642 | E21: 42526.95704 | F21: 42569.94989 | G21: 42612.94273 | H21: 42655.93557 | I21: 42698.92841 | J21: 42741.92125
A22: DPA0108 | B22: Overhead 44 kV | C22: km | D22: 5417.491212 | E22: 5440.564015 | F22: 5463.636818 | G22: 5486.709621 | H22: 5509.782424 | I22: 5532.855227 | J22: 5555.928031
A23: DPA0109 | B23: Overhead 66 kV | C23: km | D23: 0 | E23: 0 | F23: 0 | G23: 0 | H23: 0 | I23: 0 | J23: 0
A24: DPA0110 | B24: Overhead 132 kV | C24: km | D24: 7618.026837 | E24: 7618.026837 | F24: 7618.026837 | G24: 7619.026837 | H24: 7620.026837 | I24: 7621.026837 | J24: 7621.026837
A25: DPA0111 | B25: Overhead 6.6kv | C25: km | D25: 21.0176288 | E25: 21.0176288 | F25: 21.0176288 | G25: 21.0176288 | H25: 21.0176288 | I25: 21.0176288 | J25: 21.0176288
A26: DPA0112 | B26: Overhead 110kV | C26: km | D26: 2187.105162 | E26: 2187.105162 | F26: 2187.105162 | G26: 2187.105162 | H26: 2187.105162 | I26: 2187.105162 | J26: 2187.105162
A27: DPA0113 | B27: Overhead 220kV | C27: km | D27: 2.97242005 | E27: 2.97242005 | F27: 2.97242005 | G27: 2.97242005 | H27: 2.97242005 | I27: 2.97242005 | J27: 2.97242005
A28: DPA0114 | B28: Other | C28: km | D28: 0 | E28: 0 | F28: 0 | G28: 0 | H28: 0 | I28: 0 | J28: 0
A29: DPA01 | B29: Total overhead circuit km | D29: =SUM(D15:D28) -> 183439.9098 | E29: =SUM(E15:E28) -> 183437.4452 | F29: 183434.9807 | G29: 183433.5162 | H29: 183432.0516 | I29: 183430.5871 | J29: 183428.1226
B30: 3.5.1.2 - Underground network circuit length at each voltage
A31: DPA0201 | B31: Underground low voltage distribution | C31: km | D31: 6276.198393 | E31: 6478.238071 | F31: 6680.27775 | G31: 6882.317429 | H31: 7084.357107 | I31: 7286.396786 | J31: 7488.436464
A32: DPA0202 | B32: Underground 5 kV | C32: km | D32: 0 | E32: 0 | F32: 0 | G32: 0 | H32: 0 | I32: 0 | J32: 0
A33: DPA0203 | B33: Underground 6.6 Kv | C33: km | D33: 0.01479026513 | E33: 0.01774831815 | F33: 0.02070637118 | G33: 0.0236644242 | H33: 0.02662247723 | I33: 0.02958053025 | J33: 0.03253858328
A34: DPA0204 | B34: Underground 7.6 kV | C34: km | D34: 0 | E34: 0 | F34: 0 | G34: 0 | H34: 0 | I34: 0 | J34: 0
A35: DPA0205 | B35: Underground 11 kV | C35: km | D35: 2239.801952 | E35: 2300.562342 | F35: 2361.322732 | G35: 2422.083123 | H35: 2482.843513 | I35: 2543.603903 | J35: 2604.364294
A36: DPA0206 | B36: Underground SWER | C36: km | D36: 40.1997676 | E36: 40.43972112 | F36: 40.67967464 | G36: 40.91962815 | H36: 41.15958167 | I36: 41.39953519 | J36: 41.63948871
A37: DPA0207 | B37: Underground 22 kV | C37: km | D37: 343.5504529 | E37: 354.2605435 | F37: 364.9706341 | G37: 375.6807247 | H37: 386.3908153 | I37: 397.1009059 | J37: 407.8109965
A38: DPA0208 | B38: Underground 33 kV | C38: km | D38: 48 | E38: 48 | F38: 48 | G38: 48 | H38: 48 | I38: 48 | J38: 48
A39: DPA0209 | B39: Underground 66 kV | C39: km | D39: 33.85577443 | E39: 33.85577443 | F39: 33.85577443 | G39: 33.85577443 | H39: 34.85577443 | I39: 34.85577443 | J39: 34.85577443
A40: DPA0210 | B40: Underground 110 kV | C40: km | D40: 0 | E40: 0 | F40: 0 | G40: 0 | H40: 0 | I40: 0 | J40: 0
A41: DPA0211 | B41: Underground 132 kV | C41: km | D41: 9.87153407 | E41: 9.87153407 | F41: 9.87153407 | G41: 9.87153407 | H41: 9.87153407 | I41: 9.87153407 | J41: 9.87153407
A42: DPA0212 | B42: Other | C42: km | D42: 0 | E42: 0 | F42: 0 | G42: 0 | H42: 0 | I42: 0 | J42: 0
A43: DPA02 | B43: Total underground circuit km | D43: =SUM(D31:D42) -> 8991.492664 | E43: =SUM(E31:E42) -> 9265.245735 | F43: 9538.998806 | G43: 9812.751877 | H43: 10087.50495 | I43: 10361.25802 | J43: 10635.01109
B45: Circuit Capacity MVA
B46: 3.5.1.3 - Estimated overhead network weighted average MVA capacity by voltage class
A47: DPA0301 | B47: Overhead low voltage distribution | C47: MVA | D47: 0.088703662 | E47: 0.088703662 | F47: 0.088703662 | G47: 0.088703662 | H47: 0.088703662 | I47: 0.088703662 | J47: 0.088703662
A48: DPA0302 | B48: Overhead 6.6 kV | C48: MVA | D48: 0.725088634 | E48: 0.725088634 | F48: 0.725088634 | G48: 0.725088634 | H48: 0.725088634 | I48: 0.725088634 | J48: 0.725088634
A49: DPA0303 | B49: Overhead 7.6 kV | C49: MVA | D49: 0 | E49: 0 | F49: 0 | G49: 0 | H49: 0 | I49: 0 | J49: 0
A50: DPA0304 | B50: Overhead 11 kV | C50: MVA | D50: 2.097177668 | E50: 2.097177668 | F50: 2.097177668 | G50: 2.097177668 | H50: 2.097177668 | I50: 2.097177668 | J50: 2.097177668
A51: DPA0305 | B51: Overhead SWER | C51: MVA | D51: 0.302770887 | E51: 0.302770887 | F51: 0.302770887 | G51: 0.302770887 | H51: 0.302770887 | I51: 0.302770887 | J51: 0.302770887
A52: DPA0306 | B52: Overhead 22 kV | C52: MVA | D52: 2.543552802 | E52: 2.543552802 | F52: 2.543552802 | G52: 2.543552802 | H52: 2.543552802 | I52: 2.543552802 | J52: 2.543552802
A53: DPA0307 | B53: Overhead 33 kV | C53: MVA | D53: 7.291697981 | E53: 7.291697981 | F53: 7.291697981 | G53: 7.291697981 | H53: 7.291697981 | I53: 7.291697981 | J53: 7.291697981
A54: DPA0308 | B54: Overhead 44 kV | C54: MVA | D54: 0 | E54: 0 | F54: 0 | G54: 0 | H54: 0 | I54: 0 | J54: 0
A55: DPA0309 | B55: Overhead 66 kV | C55: MVA | D55: 24.89424873 | E55: 24.89424873 | F55: 24.89424873 | G55: 24.89424873 | H55: 24.89424873 | I55: 24.89424873 | J55: 24.89424873
A56: DPA0310 | B56: Overhead 110 kV | C56: MVA | D56: 106 | E56: 106 | F56: 106 | G56: 106 | H56: 106 | I56: 106 | J56: 106
A57: DPA0311 | B57: Overhead 132 kV | C57: MVA | D57: 126.9982848 | E57: 126.9982848 | F57: 126.9982848 | G57: 126.9982848 | H57: 126.9982848 | I57: 126.9982848 | J57: 126.9982848
A58: DPA0312 | B58: Overhead 220 kV | C58: MVA | D58: 213 | E58: 213 | F58: 213 | G58: 213 | H58: 213 | I58: 213 | J58: 213
A59: DPA0313 | B59: Other | C59: MVA | D59: 0 | E59: 0 | F59: 0 | G59: 0 | H59: 0 | I59: 0 | J59: 0
B60: 3.5.1.4 - Estimated underground network weighted average MVA capacity by voltage class
A61: DPA0401 | B61: Underground low voltage distribution | C61: MVA | D61: 0.180956442 | E61: 0.180956442 | F61: 0.180956442 | G61: 0.180956442 | H61: 0.180956442 | I61: 0.180956442 | J61: 0.180956442
A62: DPA0402 | B62: Underground 5 kV | C62: MVA | D62: 0 | E62: 0 | F62: 0 | G62: 0 | H62: 0 | I62: 0 | J62: 0
A63: DPA0403 | B63: Underground 6.6 kV | C63: MVA | D63: 1.20912 | E63: 1.20912 | F63: 1.20912 | G63: 1.20912 | H63: 1.20912 | I63: 1.20912 | J63: 1.20912
A64: DPA0404 | B64: Underground 7.6 kV | C64: MVA | D64: 0 | E64: 0 | F64: 0 | G64: 0 | H64: 0 | I64: 0 | J64: 0
A65: DPA0405 | B65: Underground 11 kV | C65: MVA | D65: 5.404632557 | E65: 5.404632557 | F65: 5.404632557 | G65: 5.404632557 | H65: 5.404632557 | I65: 5.404632557 | J65: 5.404632557
A66: DPA0406 | B66: Underground SWER | C66: MVA | D66: 0.915145724 | E66: 0.915145724 | F66: 0.915145724 | G66: 0.915145724 | H66: 0.915145724 | I66: 0.915145724 | J66: 0.915145724
A67: DPA0407 | B67: Underground 12.7 kV | C67: MVA | D67: 0 | E67: 0 | F67: 0 | G67: 0 | H67: 0 | I67: 0 | J67: 0
A68: DPA0408 | B68: Underground 22 kV | C68: MVA | D68: 7.863503987 | E68: 7.863503987 | F68: 7.863503987 | G68: 7.863503987 | H68: 7.863503987 | I68: 7.863503987 | J68: 7.863503987
A69: DPA0409 | B69: Underground 33 kV | C69: MVA | D69: 20.59361096 | E69: 20.59361096 | F69: 20.59361096 | G69: 20.59361096 | H69: 20.59361096 | I69: 20.59361096 | J69: 20.59361096
A70: DPA0410 | B70: Underground 66 kV | C70: MVA | D70: 77.33926198 | E70: 77.33926198 | F70: 77.33926198 | G70: 77.33926198 | H70: 77.33926198 | I70: 77.33926198 | J70: 77.33926198
A71: DPA0411 | B71: Underground 110 kV | C71: MVA | D71: 0 | E71: 0 | F71: 0 | G71: 0 | H71: 0 | I71: 0 | J71: 0
A72: DPA0412 | B72: Underground 132 kV | C72: MVA | D72: 185.1476569 | E72: 185.1476569 | F72: 185.1476569 | G72: 185.1476569 | H72: 185.1476569 | I72: 185.1476569 | J72: 185.1476569
A73: DPA0413 | B73: Other | C73: MVA | D73: 0 | E73: 0 | F73: 0 | G73: 0 | H73: 0 | I73: 0 | J73: 0
B77: 3.5.2 - TRANSFORMER CAPACITIES VARIABLES
D78: VOLUMES
C79: Units | D79: =CRCP_y4 -> 2017-18 | E79: =CRCP_y5 -> 2018-19 | F79: =FRCP_y1 -> 2019-20 | G79: =FRCP_y2 -> 2020-21 | H79: =FRCP_y3 -> 2021-22 | I79: =FRCP_y4 -> 2022-23 | J79: =FRCP_y5 -> 2023-24
B80: Distribution transformer total installed capacity
A81: DPA0501 | B81: Distribution transformer capacity owned by utility | C81: MVA | D81: 10139.013 | E81: 10298.197 | F81: 10457.381 | G81: 10616.565 | H81: 10775.749 | I81: 10934.933 | J81: 11094.117
A82: DPA0502 | B82: Distribution transformer capacity owned by High Voltage Customers | C82: MVA | D82: 776.22603 | E82: 776.22603 | F82: 776.22603 | G82: 776.22603 | H82: 776.22603 | I82: 776.22603 | J82: 776.22603
A83: DPA0503 | B83: Cold spare capacity included in DPA0501 | C83: MVA | D83: 135.1825 | E83: 135.464 | F83: 135.7455 | G83: 136.027 | H83: 136.3085 | I83: 136.59 | J83: 136.8715
B84: Zone substation transformer capacity
A85: DPA0601 | B85: Total installed capacity for first step transformation where there are two steps to reach distribution voltage | C85: MVA | D85: 2152.5 | E85: 2152.5 | F85: 2152.5 | G85: 2155.5 | H85: 2171.5 | I85: 2187.5 | J85: 2187.5
